Workbook

Sheet Lexique
B4: INDICATEURS
A5: Structure
B6: •Mise en place d’une synthèse BDD et d’un zoom Pro (yc relation privée du pro)
B7: •Application des taux réels sur la majorité des lignes de produits Collecte | C7: Les marges de certains produits sont adaptées au niveau local (marges figées) pour être en phase avec la politique commerciale de la CEGEE.
B8: •Ajout de l’indicateur PNB/ETP sur chaque ligne
B9: •Intégration d’un suivi bancarisation « relation privée » du Pro dans la synthèse BDD
A11: ETP
B12: •Le PNB par ETP sur réalisations est calculé à partir de la moyenne des ETP performance. | C12: Mis a jour mensuellement en moyennant les ETP depuis le début d'année
A14: Collecte
B15: •Taux de marge figé à 0,20% sur les produits LEP, LDD, LJ, DAT, Emprunt Ecureuil
B16: •Taux du LGP | C16: Les taux boostés bénéficient d'un mode de calcul adapté a la politique commerciale de la CEGEE
B17: •Ajout des versements FCP structurés
B18: •Mise en place d'un cap / floor a 150% de l'objectif sur les comptes créditeurs en cas de forte variation
A20: Crédits
B21: •Commissions ADE
B22: •Intégration des commissions apporteurs d’affaires venant en déduction du PNB crédit
A24: Bancarisation
B25: •Formules : intégration des options dans le prix moyen ddes Formules
B26: •Retraitement en nombre des Formules individuelles entrant dans une Formule Famille
A28: Autres
B29: •Mise a jour du taux sur commissions immobilières à 4%
B30: •Mise a jour du taux sur remises commerciales à 4%
A32: Bonus digital
B33: •Mise en place d'un floor à 0 sur le PNB lorsque les réalisations sont négatives | C33: Floor mis en place sur les données agrégées pour les secteurs et Dirco

Sheet Liste agences mai
A1: CEGEE | B1: AUBE_HAUTE_MARNE | C1: BAS_RHIN | D1: HAUT_RHIN | E1: MARNE_ARDENNES | F1: MEURTHE_ET_MOSELLE_MEUSE | G1: MOSELLE | H1: VOSGES | I1: MULTIMEDIA | J1: EXPERT DIRECT | K1: MON BANQUIER EN LIGNE | L1: BANQUE_DIRIGEANT
A2: AUBE_HAUTE_MARNE | B2: Territoire_TROYES | C2: Territoire_CHAUMONT
A3: BAS_RHIN | B3: Territoire_STRASBOURG | C3: Territoire_HAGUENAU | D3: Territoire_SELESTAT
A4: HAUT_RHIN | B4: Territoire_COLMAR | C4: Territoire_MULHOUSE
A5: MARNE_ARDENNES | B5: Territoire_CHARLEVILLE_MEZIERES | C5: Territoire_CHALONS_EN_CHAMPAGNE | D5: Territoire_REIMS
A6: MEURTHE_ET_MOSELLE_MEUSE | B6: Territoire_PONT_A_MOUSSON | C6: Territoire_NANCY | D6: Territoire_VERDUN
A7: MOSELLE | B7: Territoire_MOSELLE_EST | C7: Territoire_METZ | D7: Territoire_MOSELLE_NORD
A8: VOSGES | B8: Territoire_EPINAL | C8: Territoire_SAINT_DIE
A12: Territoire_TROYES | B12: AIX EN OTHE | C12: ARCIS SUR AUBE | D12: BAR SUR AUBE | E12: BAR SUR SEINE | F12: BRIENNE LE CHATEAU | G12: LA CHAPELLE ST LUC | H12: NOGENT SUR SEINE | I12: ROMILLY SUR SEINE | J12: SAINT ANDRE LES VERGERS | K12: SAINT JULIEN LES VILLAS | L12: SAINTE SAVINE | M12: TROYES 1ER MAI | N12: TROYES BROSSOLETTE | O12: TROYES CHARTREUX | P12: TROYES GAMBETTA | Q12: TROYES ZOLA
A13: Territoire_CHAUMONT | B13: BOURBONNE LES BAINS | C13: CHALINDREY | D13: CHATEAUVILLAIN | E13: CHAUMONT HOTEL DE VILLE | F13: CHAUMONT REPUBLIQUE | G13: JOINVILLE | H13: LANGRES | I13: NOGENT EN BASSIGNY | J13: SAINT DIZIER CENTRE | K13: SAINT DIZIER EUROPE | L13: WASSY
A14: Territoire_STRASBOURG | B14: BISCHHEIM | C14: ECKBOLSHEIM | D14: ESPACE MESANGE | E14: LA WANTZENAU | F14: MUNDOLSHEIM | G14: OBERHAUSBERGEN | H14: REICHSTETT | I14: SCHILTIGHEIM CENTRE | J14: SCHILTIGHEIM KLEBER | K14: STRASBOURG ANVERS | L14: STRASBOURG AUSTERLITZ | M14: STRASBOURG CRONENBOURG | N14: STRASBOURG DANUBE | O14: STRASBOURG ESPLANADE | P14: STRASBOURG FRANCS BOURGEOIS | Q14: STRASBOURG GARE | R14: STRASBOURG HALLES | S14: STRASBOURG KOENIGSHOFFEN | T14: STRASBOURG MEINAU | U14: STRASBOURG MONTAGNE VERTE | V14: STRASBOURG NEUDORF | W14: STRASBOURG ROBERTSAU | X14: STRASBOURG STOCKFELD | Y14: STRASBOURG VOSGES | Z14: VENDENHEIM
A15: Territoire_HAGUENAU | B15: BETSCHDORF | C15: BISCHWILLER | D15: BOUXWILLER | E15: BRUMATH | F15: DRUSENHEIM | G15: GUNDERSHOFFEN | H15: HAGUENAU HOUBLON | I15: HAGUENAU MUSAU | J15: HOCHFELDEN | K15: HOERDT | L15: INGWILLER | M15: NIEDERBRONN LES BAINS | N15: PFAFFENHOFFEN | O15: REICHSHOFFEN | P15: SARRE UNION | Q15: SAVERNE | R15: SCHWEIGHOUSE SUR MODER | S15: SELTZ | T15: SOUFFLENHEIM | U15: SOULTZ SOUS FORETS | V15: TRUCHTERSHEIM | Y15: WISSEMBOURG | Z15: WOERTH
A16: Territoire_SELESTAT | B16: BARR | C16: BENFELD | D16: CHATENOIS | E16: ERSTEIN | F16: FEGERSHEIM | G16: ILLKIRCH CENTRE | H16: LINGOLSHEIM | I16: MARCKOLSHEIM | J16: MARLENHEIM | K16: MOLSHEIM | L16: MUTZIG | M16: OBERNAI | N16: ROSHEIM | O16: SCHIRMECK | P16: SELESTAT CENTRE | Q16: VILLE | R16: WASSELONNE
A17: Territoire_COLMAR | B17: COLMAR MARAICHERS | C17: COLMAR REPUBLIQUE | D17: COLMAR SAINTE MARIE | E17: ENSISHEIM | F17: GUEBWILLER | G17: HORBOURG WIHR | H17: INGERSHEIM | I17: KAYSERSBERG | J17: MUNSTER | K17: MUNTZENHEIM | L17: NEUF BRISACH | M17: ORBEY | N17: PULVERSHEIM | O17: RIBEAUVILLE | P17: ROUFFACH | Q17: SAINTE MARIE AUX MINES | R17: SOULTZ | S17: SOULTZMATT | T17: WINTZENHEIM
A18: Territoire_MULHOUSE | B18: ALTKIRCH | C18: BRUNSTATT | D18: CERNAY | E18: DANNEMARIE | F18: FERRETTE | G18: ILLZACH | H18: MASEVAUX | I18: MULHOUSE DORNACH | J18: MULHOUSE REUNION | K18: PFASTATT | L18: RIEDISHEIM | M18: RIXHEIM | N18: SAINT AMARIN | O18: SAINT LOUIS | P18: SEPPOIS LE BAS | Q18: SIERENTZ | R18: THANN | S18: WITTELSHEIM | T18: WITTENHEIM
A19: Territoire_CHARLEVILLE_MEZIERES | B19: CARIGNAN | C19: CHARLEVILLE JEAN JAURES | D19: CHARLEVILLE MEZIERES | E19: CHARLEVILLE MOHON | F19: CHARLEVILLE NEVERS | G19: GIVET | H19: MOUZON | I19: RETHEL | J19: REVIN | K19: ROCROI | L19: SEDAN | M19: VILLERS SEMEUSE CORA | N19: VOUZIERS
A20: Territoire_CHALONS_EN_CHAMPAGNE | B20: CHALONS ROOSEVELT | C20: CHALONS VIVIERS | D20: FAGNIERES LECLERC | E20: MONTMIRAIL | F20: MOURMELON SUIPPES | G20: SAINTE MENEHOULD | H20: SARRY | I20: SEZANNE | J20: VERTUS | K20: VITRY LE FRANCOIS
A21: Territoire_REIMS | B21: AY CHAMPAGNE | C21: BETHENY | D21: DAMERY | E21: DORMANS | F21: EPERNAY | G21: FISMES | H21: PIERRY LECLERC | I21: REIMS CENTRE VILLE | J21: REIMS CHATILLONS | K21: REIMS EUROPE | L21: REIMS HIPPODROME | M21: REIMS HOTEL DE VILLE | N21: REIMS JEAN JAURES | O21: REIMS SAINT MARCEAUX | P21: REIMS SAINT REMI | Q21: REIMS SAINT THOMAS | R21: REIMS SAINTE ANNE | S21: TINQUEUX | T21: VERZY
A22: Territoire_PONT_A_MOUSSON | B22: BRIEY | C22: CHALIGNY NEUVES MAISONS | D22: CHAMPIGNEULLES | E22: DIEULOUARD | F22: FROUARD | G22: JARNY | H22: JOEUF | I22: LAXOU ARISTIDE BRIAND | J22: LAXOU BOUFFLERS | K22: LUDRES | L22: NANCY PLATEAU DE HAYE | M22: NANCY TROIS MAISONS | N22: PAGNY SUR MOSELLE | O22: PIENNES | P22: POMPEY | Q22: PONT A MOUSSON BREUIL | R22: PONT A MOUSSON CENTRALE | S22: TOUL REPUBLIQUE | T22: VEZELISE | U22: VILLERS GENERAL LECLERC
A23: Territoire_NANCY | B23: BACCARAT | C23: BAYON | D23: BLAINVILLE | E23: BLAMONT | F23: DOMBASLE SUR MEURTHE | G23: ESSEY LES NANCY | H23: JARVILLE LA MALGRANGE | I23: LUNEVILLE CARNOT | J23: NANCY ARTEM | K23: NANCY JEAN JAURES | L23: NANCY PLACE DOMBASLE | M23: NANCY POINT CENTRAL | N23: NANCY SAINT SEBASTIEN | O23: SAINT MAX | P23: SAINT NICOLAS DE PORT | Q23: TOMBLAINE | R23: VANDOEUVRE LES NANCY
A24: Territoire_VERDUN | B24: BAR LE DUC | C24: COMMERCY | D24: ETAIN | E24: LIGNY EN BARROIS | F24: LONGUYON | G24: LONGWY BAS | H24: LONGWY HAUT | I24: MONTMEDY | J24: REVIGNY SUR ORNAIN | K24: SAINT MIHIEL | L24: STENAY | M24: VAUCOULEURS | N24: VERDUN CENTRALE | O24: VERDUN MAZEL | P24: VILLERUPT
A25: Territoire_MOSELLE_EST | B25: BEHREN LES FORBACH | C25: BITCHE | D25: CHATEAU SALINS | E25: CREUTZWALD | F25: DIEUZE | G25: FAULQUEMONT | H25: FORBACH CENTRALE | I25: MERLEBACH | J25: MORHANGE | K25: NEUNKIRCH | L25: PHALSBOURG | M25: PUTTELANGE AUX LACS | N25: SAINT AVOLD | O25: SARREBOURG | P25: SARREGUEMINES | Q25: STIRING WENDEL | R25: VALMONT
A26: Territoire_METZ | B26: ARS SUR MOSELLE | C26: BOULAY | D26: CLOUANGE | E26: MAIZIERES LES METZ | F26: MARANGE SILVANGE | G26: MARLY | H26: METZ CATHEDRALE | I26: METZ MOZART | J26: METZ PLAPPEVILLE | K26: METZ POMPIDOU | L26: METZ REPUBLIQUE | M26: METZ SAINT LIVIER | N26: METZ SAINT LOUIS | O26: METZ SAINT MAXIMIN | P26: METZ SARRE | Q26: MONTIGNY LES METZ | R26: MOULINS LES METZ | S26: REMILLY | T26: ROMBAS | U26: SAINT JULIEN LES METZ | V26: SAINTE MARIE AUX CHENES | W26: WOIPPY
A27: Territoire_MOSELLE_NORD | B27: AUDUN LE TICHE | C27: BOUSSE | D27: BOUZONVILLE | E27: CATTENOM | F27: FAMECK | G27: FLORANGE | H27: FONTOY | I27: GUENANGE | J27: HAGONDANGE | K27: HAYANGE | L27: HETTANGE GRANDE | M27: METZERVISSE | N27: NILVANGE | O27: SIERCK LES BAINS | P27: TERVILLE | Q27: THIONVILLE CENTRALE | R27: THIONVILLE COTE DES ROSES | S27: UCKANGE | T27: YUTZ
A28: Territoire_EPINAL | B28: CHANTRAINE | C28: CHARMES | D28: CHATENOIS VOSGES | E28: DARNEY | F28: DOCELLES | G28: ELOYES | H28: EPINAL ARISTIDE BRIAND | I28: EPINAL AVRINSART | J28: EPINAL LEOPOLD BOURG | K28: GOLBEY | L28: LE VAL D AJOL | M28: MIRECOURT | N28: NEUFCHATEAU | O28: NOMEXY | P28: REMIREMONT | Q28: THAON LES VOSGES | R28: VITTEL | S28: XERTIGNY
A29: Territoire_SAINT_DIE | B29: BRUYERES | C29: CORNIMONT LA BRESSE | D29: FRAIZE | E29: GERARDMER | F29: LE THILLOT | G29: MOYENMOUTIER | H29: RAMBERVILLERS | I29: RAON L ETAPE | J29: SAINT DIE | K29: SAINT DIE CATHEDRALE | L29: SENONES | M29: VAGNEY
A33: Lib_Agence | B33: Id_groupe | C33: Id_UC | D33: Id_PV | E33: Lib_PV | F33: Id_Agence | G33: Lib_Agence
A34: MARNE_ARDENNES | B34: 200030 | F34: =B34 -> 200030 | G34: MARNE_ARDENNES
A35: Territoire_CHARLEVILLE_MEZIERES | B35: 200030 | C35: 100002 | F35: =C35 -> 100002 | G35: Territoire_CHARLEVILLE_MEZIERES
A36: CHARLEVILLE JEAN JAURES | B36: 200030 | C36: 100002 | D36: 8801 | E36: CHARLEVILLE JEAN JAURES | F36: 8801 | G36: CHARLEVILLE JEAN JAURES
A37: CHARLEVILLE NEVERS | B37: 200030 | C37: 100002 | D37: 8802 | E37: CHARLEVILLE NEVERS | F37: 8802 | G37: CHARLEVILLE NEVERS
A38: SEDAN | B38: 200030 | C38: 100002 | D38: 8806 | E38: SEDAN | F38: 8806 | G38: SEDAN
A39: VRIGNE AUX BOIS | B39: 200030 | C39: 100002 | D39: 8814 | E39: VRIGNE AUX BOIS | F39: 8814 | G39: VRIGNE AUX BOIS
A40: CARIGNAN | B40: 200030 | C40: 100002 | D40: 8815 | E40: CARIGNAN | F40: 8815 | G40: CARIGNAN
A41: CHARLEVILLE MOHON | B41: 200030 | C41: 100002 | D41: 8817 | E41: CHARLEVILLE MOHON | F41: 8817 | G41: CHARLEVILLE MOHON
A42: MOUZON | B42: 200030 | C42: 100002 | D42: 8819 | E42: MOUZON | F42: 8819 | G42: MOUZON
A43: VOUZIERS | B43: 200030 | C43: 100002 | D43: 8820 | E43: VOUZIERS | F43: 8820 | G43: VOUZIERS
A44: CHARLEVILLE MEZIERES | B44: 200030 | C44: 100002 | D44: 8822 | E44: CHARLEVILLE MEZIERES | F44: 8822 | G44: CHARLEVILLE MEZIERES
A45: VILLERS SEMEUSE CORA | B45: 200030 | C45: 100002 | D45: 8833 | E45: VILLERS SEMEUSE CORA | F45: 8833 | G45: VILLERS SEMEUSE CORA
A46: GIVET | B46: 200030 | C46: 100002 | D46: 8839 | E46: GIVET | F46: 8839 | G46: GIVET
A47: RETHEL | B47: 200030 | C47: 100002 | D47: 8840 | E47: RETHEL | F47: 8840 | G47: RETHEL
A48: ROCROI | B48: 200030 | C48: 100002 | D48: 8860 | E48: ROCROI | F48: 8860 | G48: ROCROI
A49: REVIN | B49: 200030 | C49: 100002 | D49: 8862 | E49: REVIN | F49: 8862 | G49: REVIN
A50: Territoire_CHALONS_EN_CHAMPAGNE | B50: 200030 | C50: 100006 | F50: =C50 -> 100006 | G50: Territoire_CHALONS_EN_CHAMPAGNE
A51: CHALONS VIVIERS | B51: 200030 | C51: 100006 | D51: 51101 | E51: CHALONS VIVIERS | F51: 51101 | G51: CHALONS VIVIERS
A52: FAGNIERES LECLERC | B52: 200030 | C52: 100006 | D52: 51103 | E52: FAGNIERES LECLERC | F52: 51103 | G52: FAGNIERES LECLERC
A53: CHALONS ROOSEVELT | B53: 200030 | C53: 100006 | D53: 51110 | E53: CHALONS ROOSEVELT | F53: 51110 | G53: CHALONS ROOSEVELT
A54: MOURMELON SUIPPES | B54: 200030 | C54: 100006 | D54: 51114 | E54: SUIPPES | F54: 51115 | G54: MOURMELON SUIPPES
A55: MOURMELON SUIPPES | B55: 200030 | C55: 100006 | D55: 51115 | E55: MOURMELON LE GRAND | F55: 51115 | G55: MOURMELON SUIPPES
A56: SARRY | B56: 200030 | C56: 100006 | D56: 51120 | E56: SARRY | F56: 51120 | G56: SARRY
A57: SAINTE MENEHOULD | B57: 200030 | C57: 100006 | D57: 51128 | E57: SAINTE MENEHOULD | F57: 51128 | G57: SAINTE MENEHOULD
A58: VITRY LE FRANCOIS | B58: 200030 | C58: 100006 | D58: 51166 | E58: VITRY LE FRANCOIS | F58: 51166 | G58: VITRY LE FRANCOIS
A59: MONTMIRAIL | B59: 200030 | C59: 100006 | D59: 51330 | E59: MONTMIRAIL | F59: 51330 | G59: MONTMIRAIL
A60: VERTUS | B60: 200030 | C60: 100006 | D60: 51354 | E60: VERTUS | F60: 51354 | G60: VERTUS
A61: SEZANNE | B61: 200030 | C61: 100006 | D61: 51381 | E61: SEZANNE | F61: 51381 | G61: SEZANNE
A62: Territoire_REIMS | B62: 200030 | C62: 100011 | F62: =C62 -> 100011 | G62: Territoire_REIMS
A63: REIMS HOTEL DE VILLE | B63: 200030 | C63: 100011 | D63: 51301 | E63: REIMS HOTEL DE VILLE | F63: 51301 | G63: REIMS HOTEL DE VILLE
A64: REIMS HIPPODROME | B64: 200030 | C64: 100011 | D64: 51305 | E64: REIMS HIPPODROME | F64: 51305 | G64: REIMS HIPPODROME
A65: REIMS SAINT MARCEAUX | B65: 200030 | C65: 100011 | D65: 51306 | E65: REIMS SAINT MARCEAUX | F65: 51306 | G65: REIMS SAINT MARCEAUX
A66: REIMS SAINTE ANNE | B66: 200030 | C66: 100011 | D66: 51307 | E66: REIMS SAINTE ANNE | F66: 51307 | G66: REIMS SAINTE ANNE
A67: REIMS SAINT THOMAS | B67: 200030 | C67: 100011 | D67: 51308 | E67: REIMS SAINT THOMAS | F67: 51308 | G67: REIMS SAINT THOMAS
A68: REIMS EUROPE | B68: 200030 | C68: 100011 | D68: 51309 | E68: REIMS EUROPE | F68: 51309 | G68: REIMS EUROPE
A69: REIMS CHATILLONS | B69: 200030 | C69: 100011 | D69: 51310 | E69: REIMS CHATILLONS | F69: 51310 | G69: REIMS CHATILLONS
A70: FISMES | B70: 200030 | C70: 100011 | D70: 51314 | E70: FISMES | F70: 51314 | G70: FISMES
A71: VERZY | B71: 200030 | C71: 100011 | D71: 51318 | E71: VERZY | F71: 51318 | G71: VERZY
A72: TINQUEUX | B72: 200030 | C72: 100011 | D72: 51336 | E72: TINQUEUX | F72: 51336 | G72: TINQUEUX
A73: BETHENY | B73: 200030 | C73: 100011 | D73: 51340 | E73: BETHENY | F73: 51340 | G73: BETHENY
A74: REIMS JEAN JAURES | B74: 200030 | C74: 100011 | D74: 51341 | E74: REIMS JEAN JAURES | F74: 51341 | G74: REIMS JEAN JAURES
A75: REIMS SAINT REMI | B75: 200030 | C75: 100011 | D75: 51349 | E75: REIMS SAINT REMI | F75: 51349 | G75: REIMS SAINT REMI
A76: REIMS CENTRE VILLE | B76: 200030 | C76: 100011 | D76: 51350 | E76: REIMS CENTRE VILLE | F76: 51350 | G76: REIMS CENTRE VILLE
A77: PIERRY LECLERC | B77: 200030 | C77: 100011 | D77: 51361 | E77: PIERRY LECLERC | F77: 51361 | G77: PIERRY LECLERC
A78: DORMANS | B78: 200030 | C78: 100011 | D78: 51365 | E78: DORMANS | F78: 51365 | G78: DORMANS
A79: AY CHAMPAGNE | B79: 200030 | C79: 100011 | D79: 51367 | E79: AY CHAMPAGNE | F79: 51367 | G79: AY CHAMPAGNE
A80: DAMERY | B80: 200030 | C80: 100011 | D80: 51369 | E80: DAMERY | F80: 51369 | G80: DAMERY
A81: EPERNAY | B81: 200030 | C81: 100011 | D81: 51370 | E81: EPERNAY | F81: 51370 | G81: EPERNAY
A82: AUBE_HAUTE_MARNE | B82: 200050 | F82: =B82 -> 200050 | G82: AUBE_HAUTE_MARNE
A83: Territoire_TROYES | B83: 200050 | C83: 100014 | F83: =C83 -> 100014 | G83: Territoire_TROYES
A84: TROYES GAMBETTA | B84: 200050 | C84: 100014 | D84: 10510 | E84: TROYES GAMBETTA | F84: 10510 | G84: TROYES GAMBETTA
A85: TROYES BROSSOLETTE | B85: 200050 | C85: 100014 | D85: 10511 | E85: TROYES BROSSOLETTE | F85: 10511 | G85: TROYES BROSSOLETTE
A86: TROYES ZOLA | B86: 200050 | C86: 100014 | D86: 10512 | E86: TROYES ZOLA | F86: 10512 | G86: TROYES ZOLA
A87: TROYES 1ER MAI | B87: 200050 | C87: 100014 | D87: 10513 | E87: TROYES 1ER MAI | F87: 10513 | G87: TROYES 1ER MAI
A88: SAINT ANDRE LES VERGERS | B88: 200050 | C88: 100014 | D88: 10520 | E88: SAINT ANDRE LES VERGERS | F88: 10520 | G88: SAINT ANDRE LES VERGERS
A89: SAINTE SAVINE | B89: 200050 | C89: 100014 | D89: 10521 | E89: SAINTE SAVINE | F89: 10521 | G89: SAINTE SAVINE
A90: TROYES CHARTREUX | B90: 200050 | C90: 100014 | D90: 10522 | E90: TROYES CHARTREUX | F90: 10522 | G90: TROYES CHARTREUX
A91: LA CHAPELLE ST LUC | B91: 200050 | C91: 100014 | D91: 10523 | E91: LA CHAPELLE ST LUC | F91: 10523 | G91: LA CHAPELLE ST LUC
A92: SAINT JULIEN LES VILLAS | B92: 200050 | C92: 100014 | D92: 10524 | E92: SAINT JULIEN LES VILLAS | F92: 10524 | G92: SAINT JULIEN LES VILLAS
A93: ARCIS SUR AUBE | B93: 200050 | C93: 100014 | D93: 10530 | E93: ARCIS SUR AUBE | F93: 10530 | G93: ARCIS SUR AUBE
A94: BAR SUR AUBE | B94: 200050 | C94: 100014 | D94: 10550 | E94: BAR SUR AUBE | F94: 10550 | G94: BAR SUR AUBE
A95: BRIENNE LE CHATEAU | B95: 200050 | C95: 100014 | D95: 10551 | E95: BRIENNE LE CHATEAU | F95: 10551 | G95: BRIENNE LE CHATEAU
A96: BAR SUR SEINE | B96: 200050 | C96: 100014 | D96: 10556 | E96: BAR SUR SEINE | F96: 10556 | G96: BAR SUR SEINE
A97: NOGENT SUR SEINE | B97: 200050 | C97: 100014 | D97: 10570 | E97: NOGENT SUR SEINE | F97: 10570 | G97: NOGENT SUR SEINE
A98: ROMILLY SUR SEINE | B98: 200050 | C98: 100014 | D98: 10571 | E98: ROMILLY SUR SEINE | F98: 10571 | G98: ROMILLY SUR SEINE
A99: AIX EN OTHE | B99: 200050 | C99: 100014 | D99: 10583 | E99: AIX EN OTHE | F99: 10583 | G99: AIX EN OTHE
A100: Territoire_CHAUMONT | B100: 200050 | C100: 100021 | F100: =C100 -> 100021 | G100: Territoire_CHAUMONT
A101: CHATEAUVILLAIN | B101: 200050 | C101: 100021 | D101: 10539 | E101: CHATEAUVILLAIN | F101: 10539 | G101: CHATEAUVILLAIN
A102: LANGRES | B102: 200050 | C102: 100021 | D102: 10541 | E102: LANGRES | F102: 10541 | G102: LANGRES
A103: CHALINDREY | B103: 200050 | C103: 100021 | D103: 10558 | E103: CHALINDREY | F103: 10558 | G103: CHALINDREY
A104: BOURBONNE LES BAINS | B104: 200050 | C104: 100021 | D104: 10560 | E104: BOURBONNE LES BAINS | F104: 10560 | G104: BOURBONNE LES BAINS
A105: CHAUMONT HOTEL DE VILLE | B105: 200050 | C105: 100021 | D105: 10566 | E105: CHAUMONT HOTEL DE VILLE | F105: 10566 | G105: CHAUMONT HOTEL DE VILLE
A106: NOGENT EN BASSIGNY | B106: 200050 | C106: 100021 | D106: 10582 | E106: NOGENT EN BASSIGNY | F106: 10582 | G106: NOGENT EN BASSIGNY
A107: CHAUMONT REPUBLIQUE | B107: 200050 | C107: 100021 | D107: 10590 | E107: CHAUMONT REPUBLIQUE | F107: 10590 | G107: CHAUMONT REPUBLIQUE
A108: WASSY | B108: 200050 | C108: 100021 | D108: 51151 | E108: WASSY | F108: 51151 | G108: WASSY
A109: JOINVILLE | B109: 200050 | C109: 100021 | D109: 51154 | E109: JOINVILLE | F109: 51154 | G109: JOINVILLE
A110: SAINT DIZIER CENTRE | B110: 200050 | C110: 100021 | D110: 51156 | E110: SAINT DIZIER CENTRE | F110: 51156 | G110: SAINT DIZIER CENTRE
A111: SAINT DIZIER EUROPE | B111: 200050 | C111: 100021 | D111: 51157 | E111: SAINT DIZIER EUROPE | F111: 51157 | G111: SAINT DIZIER EUROPE
A112: VOSGES | B112: 200080 | F112: =B112 -> 200080 | G112: VOSGES
A113: Territoire_SAINT_DIE | B113: 200080 | C113: 100055 | F113: =C113 -> 100055 | G113: Territoire_SAINT_DIE
A114: BRUYERES | B114: 200080 | C114: 100055 | D114: 88186 | E114: BRUYERES | F114: 88186 | G114: BRUYERES
A115: CORNIMONT LA BRESSE | B115: 200080 | C115: 100055 | D115: 88246 | E115: CORNIMONT LA BRESSE | F115: 88246 | G115: CORNIMONT LA BRESSE
A116: FRAIZE | B116: 200080 | C116: 100055 | D116: 88316 | E116: FRAIZE | F116: 88316 | G116: FRAIZE
A117: GERARDMER | B117: 200080 | C117: 100055 | D117: 88326 | E117: GERARDMER | F117: 88326 | G117: GERARDMER
A118: GRANGES AUMONTZEY | B118: 200080 | C118: 100055 | D118: 88346 | E118: GRANGES AUMONTZEY | F118: 88346 | G118: GRANGES AUMONTZEY
A119: LE THILLOT | B119: 200080 | C119: 100055 | D119: 88386 | E119: LE THILLOT | F119: 88386 | G119: LE THILLOT
A120: MOYENMOUTIER | B120: 200080 | C120: 100055 | D120: 88461 | E120: MOYENMOUTIER | F120: 88461 | G120: MOYENMOUTIER
A121: RAMBERVILLERS | B121: 200080 | C121: 100055 | D121: 88551 | E121: RAMBERVILLERS | F121: 88551 | G121: RAMBERVILLERS
A122: RAON L ETAPE | B122: 200080 | C122: 100055 | D122: 88556 | E122: RAON L ETAPE | F122: 88556 | G122: RAON L ETAPE
A123: SAINT DIE | B123: 200080 | C123: 100055 | D123: 88586 | E123: SAINT DIE | F123: 88586 | G123: SAINT DIE
A124: SAINT DIE CATHEDRALE | B124: 200080 | C124: 100055 | D124: 88587 | E124: SAINT DIE CATHEDRALE | F124: 88587 | G124: SAINT DIE CATHEDRALE
A125: SENONES | B125: 200080 | C125: 100055 | D125: 88616 | E125: SENONES | F125: 88616 | G125: SENONES
A126: VAGNEY | B126: 200080 | C126: 100055 | D126: 88666 | E126: VAGNEY | F126: 88666 | G126: VAGNEY
A127: Territoire_EPINAL | B127: 200080 | C127: 100057 | F127: =C127 -> 100057 | G127: Territoire_EPINAL
A128: CHANTRAINE | B128: 200080 | C128: 100057 | D128: 88201 | E128: CHANTRAINE | F128: 88201 | G128: CHANTRAINE
A129: CHARMES | B129: 200080 | C129: 100057 | D129: 88206 | E129: CHARMES | F129: 88206 | G129: CHARMES
A130: CHATENOIS VOSGES | B130: 200080 | C130: 100057 | D130: 88216 | E130: CHATENOIS VOSGES | F130: 88216 | G130: CHATENOIS VOSGES
A131: DARNEY | B131: 200080 | C131: 100057 | D131: 88256 | E131: DARNEY | F131: 88256 | G131: DARNEY
A132: DOCELLES | B132: 200080 | C132: 100057 | D132: 88261 | E132: DOCELLES | F132: 88261 | G132: DOCELLES
A133: ELOYES | B133: 200080 | C133: 100057 | D133: 88281 | E133: ELOYES | F133: 88281 | G133: ELOYES
A134: EPINAL ARISTIDE BRIAND | B134: 200080 | C134: 100057 | D134: 88286 | E134: EPINAL ARISTIDE BRIAND | F134: 88286 | G134: EPINAL ARISTIDE BRIAND
A135: EPINAL LEOPOLD BOURG | B135: 200080 | C135: 100057 | D135: 88288 | E135: EPINAL LEOPOLD BOURG | F135: 88288 | G135: EPINAL LEOPOLD BOURG
A136: EPINAL AVRINSART | B136: 200080 | C136: 100057 | D136: 88291 | E136: EPINAL AVRINSART | F136: 88291 | G136: EPINAL AVRINSART
A137: GOLBEY | B137: 200080 | C137: 100057 | D137: 88336 | E137: GOLBEY | F137: 88336 | G137: GOLBEY
A138: LE VAL D AJOL | B138: 200080 | C138: 100057 | D138: 88396 | E138: LE VAL D AJOL | F138: 88396 | G138: LE VAL D AJOL
A139: MIRECOURT | B139: 200080 | C139: 100057 | D139: 88451 | E139: MIRECOURT | F139: 88451 | G139: MIRECOURT
A140: NEUFCHATEAU | B140: 200080 | C140: 100057 | D140: 88501 | E140: NEUFCHATEAU | F140: 88501 | G140: NEUFCHATEAU
A141: NOMEXY | B141: 200080 | C141: 100057 | D141: 88511 | E141: NOMEXY | F141: 88511 | G141: NOMEXY
A142: REMIREMONT | B142: 200080 | C142: 100057 | D142: 88561 | E142: REMIREMONT | F142: 88561 | G142: REMIREMONT
A143: THAON LES VOSGES | B143: 200080 | C143: 100057 | D143: 88631 | E143: THAON LES VOSGES | F143: 88631 | G143: THAON LES VOSGES
A144: VITTEL | B144: 200080 | C144: 100057 | D144: 88706 | E144: VITTEL | F144: 88706 | G144: VITTEL
A145: XERTIGNY | B145: 200080 | C145: 100057 | D145: 88716 | E145: XERTIGNY | F145: 88716 | G145: XERTIGNY
A146: MEURTHE_ET_MOSELLE_MEUSE | B146: 200110 | F146: =B146 -> 200110 | G146: MEURTHE_ET_MOSELLE_MEUSE
A147: Territoire_NANCY | B147: 200110 | C147: 100026 | F147: =C147 -> 100026 | G147: Territoire_NANCY
A148: BACCARAT | B148: 200110 | C148: 100026 | D148: 54116 | E148: BACCARAT | F148: 54116 | G148: BACCARAT
A149: BAYON | B149: 200110 | C149: 100026 | D149: 54161 | E149: BAYON | F149: 54161 | G149: BAYON
A150: BLAINVILLE | B150: 200110 | C150: 100026 | D150: 54166 | E150: BLAINVILLE | F150: 54166 | G150: BLAINVILLE
A151: BLAMONT | B151: 200110 | C151: 100026 | D151: 54171 | E151: BLAMONT | F151: 54171 | G151: BLAMONT
A152: DOMBASLE SUR MEURTHE | B152: 200110 | C152: 100026 | D152: 54266 | E152: DOMBASLE SUR MEURTHE | F152: 54266 | G152: DOMBASLE SUR MEURTHE
A153: ESSEY LES NANCY | B153: 200110 | C153: 100026 | D153: 54296 | E153: ESSEY LES NANCY | F153: 54296 | G153: ESSEY LES NANCY
A154: JARVILLE LA MALGRANGE | B154: 200110 | C154: 100026 | D154: 54356 | E154: JARVILLE LA MALGRANGE | F154: 54356 | G154: JARVILLE LA MALGRANGE
A155: LUNEVILLE CARNOT | B155: 200110 | C155: 100026 | D155: 54426 | E155: LUNEVILLE CARNOT | F155: 54426 | G155: LUNEVILLE CARNOT
A156: LUNEVILLE CHATEAU | B156: 200110 | C156: 100026 | D156: 54431 | E156: LUNEVILLE CHATEAU | F156: 54431 | G156: LUNEVILLE CHATEAU
A157: NANCY JEAN JAURES | B157: 200110 | C157: 100026 | D157: 54471 | E157: NANCY JEAN JAURES | F157: 54471 | G157: NANCY JEAN JAURES
A158: NANCY ARTEM | B158: 200110 | C158: 100026 | D158: 54476 | E158: NANCY ARTEM | F158: 54476 | G158: NANCY ARTEM
A159: NANCY PLACE DOMBASLE | B159: 200110 | C159: 100026 | D159: 54481 | E159: NANCY PLACE DOMBASLE | F159: 54481 | G159: NANCY PLACE DOMBASLE
A160: NANCY POINT CENTRAL | B160: 200110 | C160: 100026 | D160: 54486 | E160: NANCY POINT CENTRAL | F160: 54486 | G160: NANCY POINT CENTRAL
A161: NANCY SAINT SEBASTIEN | B161: 200110 | C161: 100026 | D161: 54491 | E161: NANCY SAINT SEBASTIEN | F161: 54491 | G161: NANCY SAINT SEBASTIEN
A162: SAINT MAX | B162: 200110 | C162: 100026 | D162: 54601 | E162: SAINT MAX | F162: 54601 | G162: SAINT MAX
A163: SAINT NICOLAS DE PORT | B163: 200110 | C163: 100026 | D163: 54611 | E163: SAINT NICOLAS DE PORT | F163: 54611 | G163: SAINT NICOLAS DE PORT
A164: TOMBLAINE | B164: 200110 | C164: 100026 | D164: 54636 | E164: TOMBLAINE | F164: 54636 | G164: TOMBLAINE
A165: VANDOEUVRE LES NANCY | B165: 200110 | C165: 100026 | D165: 54671 | E165: VANDOEUVRE LES NANCY | F165: 54671 | G165: VANDOEUVRE LES NANCY
A166: Territoire_PONT_A_MOUSSON | B166: 200110 | C166: 100027 | F166: =C166 -> 100027 | G166: Territoire_PONT_A_MOUSSON
A167: BRIEY | B167: 200110 | C167: 100027 | D167: 54184 | E167: BRIEY | F167: 54184 | G167: BRIEY
A168: CHAMPIGNEULLES | B168: 200110 | C168: 100027 | D168: 54196 | E168: CHAMPIGNEULLES | F168: 54196 | G168: CHAMPIGNEULLES
A169: DIEULOUARD | B169: 200110 | C169: 100027 | D169: 54257 | E169: DIEULOUARD | F169: 54257 | G169: DIEULOUARD
A170: FROUARD | B170: 200110 | C170: 100027 | D170: 54321 | E170: FROUARD | F170: 54321 | G170: FROUARD
A171: JARNY | B171: 200110 | C171: 100027 | D171: 54355 | E171: JARNY | F171: 54355 | G171: JARNY
A172: JOEUF | B172: 200110 | C172: 100027 | D172: 54357 | E172: JOEUF | F172: 54357 | G172: JOEUF
A173: LAXOU LA SAPINIERE | B173: 200110 | C173: 100027 | D173: 54376 | E173: LAXOU LA SAPINIERE | F173: 54376 | G173: LAXOU LA SAPINIERE
A174: LAXOU ARISTIDE BRIAND | B174: 200110 | C174: 100027 | D174: 54381 | E174: LAXOU ARISTIDE BRIAND | F174: 54381 | G174: LAXOU ARISTIDE BRIAND
A175: LUDRES | B175: 200110 | C175: 100027 | D175: 54416 | E175: LUDRES | F175: 54416 | G175: LUDRES
A176: NANCY PLATEAU DE HAYE | B176: 200110 | C176: 100027 | D176: 54466 | E176: NANCY PLATEAU DE HAYE | F176: 54466 | G176: NANCY PLATEAU DE HAYE
A177: NANCY TROIS MAISONS | B177: 200110 | C177: 100027 | D177: 54496 | E177: NANCY TROIS MAISONS | F177: 54496 | G177: NANCY TROIS MAISONS
A178: CHALIGNY NEUVES MAISONS | B178: 200110 | C178: 100027 | D178: 54506 | E178: CHALIGNY NEUVES MAISONS | F178: 54506 | G178: CHALIGNY NEUVES MAISONS
A179: PAGNY SUR MOSELLE | B179: 200110 | C179: 100027 | D179: 54516 | E179: PAGNY SUR MOSELLE | F179: 54516 | G179: PAGNY SUR MOSELLE
A180: PIENNES | B180: 200110 | C180: 100027 | D180: 54525 | E180: PIENNES | F180: 54525 | G180: PIENNES
A181: POMPEY | B181: 200110 | C181: 100027 | D181: 54531 | E181: POMPEY | F181: 54531 | G181: POMPEY
A182: PONT A MOUSSON BREUIL | B182: 200110 | C182: 100027 | D182: 54533 | E182: PONT A MOUSSON BREUIL | F182: 54533 | G182: PONT A MOUSSON BREUIL
A183: PONT A MOUSSON CENTRALE | B183: 200110 | C183: 100027 | D183: 54535 | E183: PONT A MOUSSON CENTRALE | F183: 54535 | G183: PONT A MOUSSON CENTRALE
A184: TOUL REPUBLIQUE | B184: 200110 | C184: 100027 | D184: 54651 | E184: TOUL REPUBLIQUE | F184: 54651 | G184: TOUL REPUBLIQUE
A185: VEZELISE | B185: 200110 | C185: 100027 | D185: 54686 | E185: VEZELISE | F185: 54686 | G185: VEZELISE
A186: VILLERS GENERAL LECLERC | B186: 200110 | C186: 100027 | D186: 54696 | E186: VILLERS GENERAL LECLERC | F186: 54696 | G186: VILLERS GENERAL LECLERC
A187: Territoire_VERDUN | B187: 200110 | C187: 100031 | F187: =C187 -> 100031 | G187: Territoire_VERDUN
A188: LONGUYON | B188: 200110 | C188: 100031 | D188: 54412 | E188: LONGUYON | F188: 54412 | G188: LONGUYON
A189: LONGWY BAS | B189: 200110 | C189: 100031 | D189: 54413 | E189: LONGWY BAS | F189: 54413 | G189: LONGWY BAS
A190: LONGWY HAUT | B190: 200110 | C190: 100031 | D190: 54414 | E190: LONGWY HAUT | F190: 54414 | G190: LONGWY HAUT
A191: VILLERUPT | B191: 200110 | C191: 100031 | D191: 54700 | E191: VILLERUPT | F191: 54700 | G191: VILLERUPT
A192: BAR LE DUC | B192: 200110 | C192: 100031 | D192: 55151 | E192: BAR LE DUC | F192: 55151 | G192: BAR LE DUC
A193: COMMERCY | B193: 200110 | C193: 100031 | D193: 55231 | E193: COMMERCY | F193: 55231 | G193: COMMERCY
A194: ETAIN | B194: 200110 | C194: 100031 | D194: 55298 | E194: ETAIN | F194: 55298 | G194: ETAIN
A195: LIGNY EN BARROIS | B195: 200110 | C195: 100031 | D195: 55406 | E195: LIGNY EN BARROIS | F195: 55406 | G195: LIGNY EN BARROIS
A196: MONTMEDY | B196: 200110 | C196: 100031 | D196: 55456 | E196: MONTMEDY | F196: 55456 | G196: MONTMEDY
A197: REVIGNY SUR ORNAIN | B197: 200110 | C197: 100031 | D197: 55566 | E197: REVIGNY SUR ORNAIN | F197: 55566 | G197: REVIGNY SUR ORNAIN
A198: SAINT MIHIEL | B198: 200110 | C198: 100031 | D198: 55606 | E198: SAINT MIHIEL | F198: 55606 | G198: SAINT MIHIEL
A199: STENAY | B199: 200110 | C199: 100031 | D199: 55624 | E199: STENAY | F199: 55624 | G199: STENAY
A200: VAUCOULEURS | B200: 200110 | C200: 100031 | D200: 55676 | E200: VAUCOULEURS | F200: 55676 | G200: VAUCOULEURS
A201: VERDUN CENTRALE | B201: 200110 | C201: 100031 | D201: 55678 | E201: VERDUN CENTRALE | F201: 55678 | G201: VERDUN CENTRALE
A202: VERDUN MAZEL | B202: 200110 | C202: 100031 | D202: 55679 | E202: VERDUN MAZEL | F202: 55679 | G202: VERDUN MAZEL
A203: MOSELLE | B203: 200160 | F203: =B203 -> 200160 | G203: MOSELLE
A204: Territoire_MOSELLE_EST | B204: 200160 | C204: 100042 | F204: =C204 -> 100042 | G204: Territoire_MOSELLE_EST
A205: BEHREN LES FORBACH | B205: 200160 | C205: 100042 | D205: 57163 | E205: BEHREN LES FORBACH | F205: 57163 | G205: BEHREN LES FORBACH
A206: BITCHE | B206: 200160 | C206: 100042 | D206: 57165 | E206: BITCHE | F206: 57165 | G206: BITCHE
... 191 more rows

Sheet PNB BDD
C2: A sélectionner dans menu déroulant
B3: Direction commerciale
B4: Secteur | M4: Légende
B5: Agence | M5: Taux / durée lié a une convention
B7: =IF(C3="","CEGEE",IF(AND(C5="",C4=""),C3,IF(AND(C5="",C4<>""),C4,IF(C5="","""Sélectionneragence",C5)))) -> CEGEE | E7: PNB sur Activité Nouvelle
B9: Données arrêtées au : | C9: ='Indicateurs Cumulés'!$G$4 -> 2022-06-30
E10: Réalisations Mensuelles | J10: Réalisations Annuelles | P10: OBJECTIFS | V10: TAUX Réal. Objectif
E11: Volume | F11: Taux | G11: Durée | H11: PNB | J11: Volume | K11: Taux | L11: Durée | M11: PNB | N11: PNB / ETP perf. | P11: Volume | Q11: Taux | R11: Durée | S11: PNB | T11: PNB / ETP Cible | V11: Volume | W11: PNB annuel | X11: Ecart /obj. PNB/ETP
B12: Montants en k€
B14: COLLECTE (yc DAV) - Excédents | E14: =E15+E16++E32 -> -16,718 | H14: =H15+H16+H32 -> -296 | J14: =J15+J16++J32 -> 78,316 | M14: =M15+M16+M32 -> 11,040 | N14: =IF(ISERROR(M14/SUMIF('Indicateurs Cumulés'!$F:$F,$B$7,'Indicateurs Cumulés'!LU:LU)),"nc",M14/SUMIF('Indicateurs Cumulés'!$F:$F,$B$7,'Indicateurs Cumulés'!LU:LU)) -> 9.3 | P14: =P15+P16+P32 -> 0 | S14: =S15+S16+S32 ->  | T14: =IF(ISERROR(S14/SUMIF(objectifs!$F:$F,$B$7,objectifs!IC:IC)),"nc",S14/SUMIF(objectifs!$F:$F,$B$7,objectifs!IC:IC)) -> nc | V14: =IF(ISERROR(J14/P14),0,J14/P14) -> 0% | W14: =IF(ISERROR(M14/S14),0,M14/S14) -> 0% | X14: =IF(ISERROR(N14-(T14/12*MONTH($C$9))),"nc",N14-(T14/12*MONTH($C$9))) -> nc
B15: DAV Créditeurs - Variation d'EMJ mensuel | E15: =J15-SUMIF('Indicateurs Cumulés M-1'!$F:$F,$B$7,'Indicateurs Cumulés M-1'!GH:GH) -> 12,744 | F15: =K15 -> 1.00% | G15: =L15 -> 5.33 | H15: =(E15*F15*G15)/12 -> 57 | J15: =SUMIF('Indicateurs Cumulés'!$F:$F,$B$7,'Indicateurs Cumulés'!GH:GH) -> -8,676 | K15: ='Indicateurs Cumulés'!$GJ$367 -> 1.00% | L15: ='Indicateurs Cumulés'!$GK$367 -> 5.33 | M15: =J15*K15*L15*MONTH($C$9)/12 -> -231 | N15: =IF(ISERROR(M15/SUMIF('Indicateurs Cumulés'!$F:$F,$B$7,'Indicateurs Cumulés'!LU:LU)),"nc",M15/SUMIF('Indicateurs Cumulés'!$F:$F,$B$7,'Indicateurs Cumulés'!LU:LU)) -> -0.2 | P15: =SUMIF(objectifs!F:F,$B$7,objectifs!FF:FF) -> 0 | Q15: =objectifs!$FG$373 -> 1.00% | R15: =objectifs!$FH$373 -> 5.37 | S15: =P15*Q15*R15 -> 0 | T15: =IF(ISERROR(S15/SUMIF(objectifs!$F:$F,$B$7,objectifs!IC:IC)),"nc",S15/SUMIF(objectifs!$F:$F,$B$7,objectifs!IC:IC)) -> 0.0 | V15: =IF(ISERROR(J15/P15),0,J15/P15) -> 0% | W15: =IF(ISERROR(M15/S15),0,M15/S15) -> 0% | X15: =IF(ISERROR(N15-(T15/12*MONTH($C$9))),"nc",N15-(T15/12*MONTH($C$9))) -> -0.2
B16: Epargne Bilan | E16: =SUMIF('Indicateurs mensuels'!$F:$F,$B$7,'Indicateurs mensuels'!FV:FV) -> -22,750 | H16: =SUMIF('Indicateurs mensuels'!$F:$F,$B$7,'Indicateurs mensuels'!FW:FW) -> -622 | J16: =SUMIF('Indicateurs Cumulés'!$F:$F,$B$7,'Indicateurs Cumulés'!EP:EP) -> 84,493 | M16: =SUMIF('Indicateurs Cumulés'!$F:$F,$B$7,'Indicateurs Cumulés'!EQ:EQ) -> 7,789 | N16: =IF(ISERROR(M16/SUMIF('Indicateurs Cumulés'!$F:$F,$B$7,'Indicateurs Cumulés'!LU:LU)),"nc",M16/SUMIF('Indicateurs Cumulés'!$F:$F,$B$7,'Indicateurs Cumulés'!LU:LU)) -> 6.5 | P16: =SUMIF(objectifs!F:F,$B$7,objectifs!CH:CH)+SUMIF(objectifs!F:F,$B$7,objectifs!FB:FB) -> 0 | S16: =SUMIF(objectifs!F:F,$B$7,objectifs!CK:CK)+SUMIF(objectifs!F:F,$B$7,objectifs!FC:FC) -> 0 | T16: =IF(ISERROR(S16/SUMIF(objectifs!$F:$F,$B$7,objectifs!IC:IC)),"nc",S16/SUMIF(objectifs!$F:$F,$B$7,objectifs!IC:IC)) -> 0.0 | V16: =IF(ISERROR(J16/P16),0,J16/P16) -> 0% | W16: =IF(ISERROR(M16/S16),0,M16/S16) -> 0% | X16: =IF(ISERROR(N16-(T16/12*MONTH($C$9))),"nc",N16-(T16/12*MONTH($C$9))) -> 6.5
B17: Livret A | E17: =SUMIF('Indicateurs mensuels'!$F:$F,$B$7,'Indicateurs mensuels'!DB:DB) -> 6,716 | F17: =K17 -> 0.87% | G17: =L17 -> 5.38 | H17: =E17*F17*G17 -> 313 | J17: =SUMIF('Indicateurs Cumulés'!$F:$F,$B$7,'Indicateurs Cumulés'!CL:CL) -> 90,503 | K17: ='Indicateurs Cumulés'!$CM$367 -> 0.87% | L17: ='Indicateurs Cumulés'!$CN$367 -> 5.38 | M17: =SUMIF('Indicateurs Cumulés'!$F:$F,$B$7,'Indicateurs Cumulés'!CO:CO) -> 4,220 | N17: =IF(ISERROR(M17/SUMIF('Indicateurs Cumulés'!$F:$F,$B$7,'Indicateurs Cumulés'!LU:LU)),"nc",M17/SUMIF('Indicateurs Cumulés'!$F:$F,$B$7,'Indicateurs Cumulés'!LU:LU)) -> 3.5 | P17: =SUMIF(objectifs!F:F,$B$7,objectifs!CH:CH) -> 0 | Q17: =objectifs!$CI$373 -> 0.70% | R17: =objectifs!$CJ$373 -> 5.37 | S17: =P17*Q17*R17 -> 0 | T17: =IF(ISERROR(S17/SUMIF(objectifs!$F:$F,$B$7,objectifs!IC:IC)),"nc",S17/SUMIF(objectifs!$F:$F,$B$7,objectifs!IC:IC)) -> 0.0 | V17: =IF(ISERROR(J17/P17),0,J17/P17) -> 0% | W17: =IF(ISERROR(M17/S17),0,M17/S17) -> 0% | X17: 3.5
B18: LDDS | E18: =SUMIF('Indicateurs mensuels'!$F:$F,$B$7,'Indicateurs mensuels'!DV:DV) -> 5,909 | F18: =K18 -> 0.20% | G18: =L18 -> 5.38 | H18: 64 | J18: =SUMIF('Indicateurs Cumulés'!$F:$F,$B$7,'Indicateurs Cumulés'!DF:DF) -> 38,737 | K18: ='Indicateurs Cumulés'!$DG$367 -> 0.20% | L18: ='Indicateurs Cumulés'!$DH$367 -> 5.38 | M18: =SUMIF('Indicateurs Cumulés'!$F:$F,$B$7,'Indicateurs Cumulés'!DI:DI) -> 417 | N18: =IF(ISERROR(M18/SUMIF('Indicateurs Cumulés'!$F:$F,$B$7,'Indicateurs Cumulés'!LU:LU)),"nc",M18/SUMIF('Indicateurs Cumulés'!$F:$F,$B$7,'Indicateurs Cumulés'!LU:LU)) -> 0.4 | P18: =SUMIF(objectifs!F:F,$B$7,objectifs!DB:DB) -> 0 | Q18: =objectifs!$DC$373 -> 0.20% | R18: =objectifs!$DD$373 -> 5.37 | S18: =P18*Q18*R18 -> 0 | T18: =IF(ISERROR(S18/SUMIF(objectifs!$F:$F,$B$7,objectifs!IC:IC)),"nc",S18/SUMIF(objectifs!$F:$F,$B$7,objectifs!IC:IC)) -> 0.0 | V18: =IF(ISERROR(J18/P18),0,J18/P18) -> 0% | W18: =IF(ISERROR(M18/S18),0,M18/S18) -> 0% | X18: 0.4
B19: LEP | E19: =SUMIF('Indicateurs mensuels'!$F:$F,$B$7,'Indicateurs mensuels'!DR:DR) -> 2,858 | F19: 0.20% | G19: 5.38 | H19: 31 | J19: =SUMIF('Indicateurs Cumulés'!$F:$F,$B$7,'Indicateurs Cumulés'!DB:DB) -> 18,804 | K19: ='Indicateurs Cumulés'!$DC$367 -> 0.20% | L19: ='Indicateurs Cumulés'!$DD$367 -> 5.38 | M19: =SUMIF('Indicateurs Cumulés'!$F:$F,$B$7,'Indicateurs Cumulés'!DE:DE) -> 202 | N19: =IF(ISERROR(M19/SUMIF('Indicateurs Cumulés'!$F:$F,$B$7,'Indicateurs Cumulés'!LU:LU)),"nc",M19/SUMIF('Indicateurs Cumulés'!$F:$F,$B$7,'Indicateurs Cumulés'!LU:LU)) -> 0.2 | P19: =SUMIF(objectifs!F:F,$B$7,objectifs!CX:CX) -> 0 | Q19: =objectifs!$CY$373 -> 0.20% | R19: =objectifs!$CZ$373 -> 5.37 | S19: 0 | T19: =IF(ISERROR(S19/SUMIF(objectifs!$F:$F,$B$7,objectifs!IC:IC)),"nc",S19/SUMIF(objectifs!$F:$F,$B$7,objectifs!IC:IC)) -> 0.0 | V19: 0% | W19: 0% | X19: 0.2
B20: Livret B | E20: =SUMIF('Indicateurs mensuels'!$F:$F,$B$7,'Indicateurs mensuels'!DF:DF) -> 19,809 | F20: 0.88% | G20: 5.38 | H20: 938 | J20: =SUMIF('Indicateurs Cumulés'!$F:$F,$B$7,'Indicateurs Cumulés'!CP:CP) -> 109,118 | K20: ='Indicateurs Cumulés'!$CQ$367 -> 0.88% | L20: ='Indicateurs Cumulés'!$CR$367 -> 5.38 | M20: =SUMIF('Indicateurs Cumulés'!$F:$F,$B$7,'Indicateurs Cumulés'!CS:CS) -> 5,168 | N20: =IF(ISERROR(M20/SUMIF('Indicateurs Cumulés'!$F:$F,$B$7,'Indicateurs Cumulés'!LU:LU)),"nc",M20/SUMIF('Indicateurs Cumulés'!$F:$F,$B$7,'Indicateurs Cumulés'!LU:LU)) -> 4.3 | P20: =SUMIF(objectifs!F:F,$B$7,objectifs!CL:CL) -> 0 | Q20: =objectifs!$CM$373 -> 0.70% | R20: =objectifs!$CN$373 -> 5.37 | S20: 0 | T20: =IF(ISERROR(S20/SUMIF(objectifs!$F:$F,$B$7,objectifs!IC:IC)),"nc",S20/SUMIF(objectifs!$F:$F,$B$7,objectifs!IC:IC)) -> 0.0 | V20: 0% | W20: 0% | X20: 4.3
B21: Livret Jeune / Livret 10-12 | E21: =SUMIF('Indicateurs mensuels'!$F:$F,$B$7,'Indicateurs mensuels'!DZ:DZ) -> -204 | F21: 0.20% | G21: 5.26 | H21: -2 | J21: =SUMIF('Indicateurs Cumulés'!$F:$F,$B$7,'Indicateurs Cumulés'!DJ:DJ) -> -5,791 | K21: ='Indicateurs Cumulés'!$DK$367 -> 0.20% | L21: ='Indicateurs Cumulés'!$DL$367 -> 5.26 | M21: =SUMIF('Indicateurs Cumulés'!$F:$F,$B$7,'Indicateurs Cumulés'!DM:DM) -> -61 | N21: =IF(ISERROR(M21/SUMIF('Indicateurs Cumulés'!$F:$F,$B$7,'Indicateurs Cumulés'!LU:LU)),"nc",M21/SUMIF('Indicateurs Cumulés'!$F:$F,$B$7,'Indicateurs Cumulés'!LU:LU)) -> -0.1 | P21: =SUMIF(objectifs!F:F,$B$7,objectifs!DF:DF) -> 0 | Q21: =objectifs!$DG$373 -> 0.20% | R21: =objectifs!$DH$373 -> 5.37 | S21: 0 | T21: =IF(ISERROR(S21/SUMIF(objectifs!$F:$F,$B$7,objectifs!IC:IC)),"nc",S21/SUMIF(objectifs!$F:$F,$B$7,objectifs!IC:IC)) -> 0.0 | V21: 0% | W21: 0% | X21: -0.1
B22: Livret Grand prix | E22: =SUMIF('Indicateurs mensuels'!$F:$F,$B$7,'Indicateurs mensuels'!DN:DN) -> -2,598 | F22: 0.94% | G22: 5.38 | H22: -132 | J22: =SUMIF('Indicateurs Cumulés'!$F:$F,$B$7,'Indicateurs Cumulés'!CX:CX) -> -9,298 | K22: ='Indicateurs Cumulés'!$CY$367 -> 0.94% | L22: ='Indicateurs Cumulés'!$CZ$367 -> 5.38 | M22: =SUMIF('Indicateurs Cumulés'!$F:$F,$B$7,'Indicateurs Cumulés'!DA:DA) -> -472 | N22: =IF(ISERROR(M22/SUMIF('Indicateurs Cumulés'!$F:$F,$B$7,'Indicateurs Cumulés'!LU:LU)),"nc",M22/SUMIF('Indicateurs Cumulés'!$F:$F,$B$7,'Indicateurs Cumulés'!LU:LU)) -> -0.4 | P22: =SUMIF(objectifs!F:F,$B$7,objectifs!CT:CT) -> 0 | Q22: =objectifs!$CU$373 -> 0.70% | R22: =objectifs!$CV$373 -> 5.37 | S22: 0 | T22: =IF(ISERROR(S22/SUMIF(objectifs!$F:$F,$B$7,objectifs!IC:IC)),"nc",S22/SUMIF(objectifs!$F:$F,$B$7,objectifs!IC:IC)) -> 0.0
B23: Livret Grand Format | E23: =SUMIF('Indicateurs mensuels'!$F:$F,$B$7,'Indicateurs mensuels'!DJ:DJ) -> -713 | F23: 0.93% | G23: 5.38 | H23: -36 | J23: =SUMIF('Indicateurs Cumulés'!$F:$F,$B$7,'Indicateurs Cumulés'!CT:CT) -> -5,346 | K23: ='Indicateurs Cumulés'!$CU$367 -> 0.93% | L23: ='Indicateurs Cumulés'!$CV$367 -> 5.38 | M23: =SUMIF('Indicateurs Cumulés'!$F:$F,$B$7,'Indicateurs Cumulés'!CW:CW) -> -269 | N23: =IF(ISERROR(M23/SUMIF('Indicateurs Cumulés'!$F:$F,$B$7,'Indicateurs Cumulés'!LU:LU)),"nc",M23/SUMIF('Indicateurs Cumulés'!$F:$F,$B$7,'Indicateurs Cumulés'!LU:LU)) -> -0.2 | P23: 0 | Q23: 0.00% | R23: 0.00 | S23: 0 | T23: =IF(ISERROR(S23/SUMIF(objectifs!$F:$F,$B$7,objectifs!IC:IC)),"nc",S23/SUMIF(objectifs!$F:$F,$B$7,objectifs!IC:IC)) -> 0.0
B24: Compte Excédent Pro | E24: =SUMIF('Indicateurs mensuels'!$F:$F,$B$7,'Indicateurs mensuels'!HS:HS) -> 8,822 | F24: 0.88% | G24: 5.38 | H24: =SUMIF('Indicateurs mensuels'!$F:$F,$B$7,'Indicateurs mensuels'!HT:HT) -> 284 | J24: =SUMIF('Indicateurs Cumulés'!$F:$F,$B$7,'Indicateurs Cumulés'!GT:GT) -> -1,674 | K24: ='Indicateurs Cumulés'!$GT$3 -> 0.88% | L24: ='Indicateurs Cumulés'!$HC$3 -> 5.38 | M24: =SUMIF('Indicateurs Cumulés'!$F:$F,$B$7,'Indicateurs Cumulés'!HC:HC) -> -79 | N24: =IF(ISERROR(M24/SUMIF('Indicateurs Cumulés'!$F:$F,$B$7,'Indicateurs Cumulés'!LU:LU)),"nc",M24/SUMIF('Indicateurs Cumulés'!$F:$F,$B$7,'Indicateurs Cumulés'!LU:LU)) -> -0.1 | P24: =SUMIF(objectifs!F:F,$B$7,objectifs!CP:CP) -> 0 | Q24: =objectifs!$CQ$373 -> 0.60% | R24: =objectifs!$CR$373 -> 5.37 | S24: 0 | T24: =IF(ISERROR(S24/SUMIF(objectifs!$F:$F,$B$7,objectifs!IC:IC)),"nc",S24/SUMIF(objectifs!$F:$F,$B$7,objectifs!IC:IC)) -> 0.0 | V24: 0% | W24: 0% | X24: -0.1
B25: PEL | E25: =SUMIF('Indicateurs mensuels'!$F:$F,$B$7,'Indicateurs mensuels'!EP:EP) -> -20,685 | F25: 0.00% | G25: 8.36 | H25: 0 | J25: =SUMIF('Indicateurs Cumulés'!$F:$F,$B$7,'Indicateurs Cumulés'!DZ:DZ) -> -122,178 | K25: ='Indicateurs Cumulés'!$EA$367 -> 0.00% | L25: ='Indicateurs Cumulés'!$EB$367 -> 8.36 | M25: =SUMIF('Indicateurs Cumulés'!$F:$F,$B$7,'Indicateurs Cumulés'!EC:EC) -> 0 | N25: =IF(ISERROR(M25/SUMIF('Indicateurs Cumulés'!$F:$F,$B$7,'Indicateurs Cumulés'!LU:LU)),"nc",M25/SUMIF('Indicateurs Cumulés'!$F:$F,$B$7,'Indicateurs Cumulés'!LU:LU)) -> 0.0 | P25: =SUMIF(objectifs!F:F,$B$7,objectifs!DV:DV) -> 0 | Q25: =objectifs!$DW$373 -> 0.00% | R25: =objectifs!$DX$373 -> 8.50 | S25: 0 | T25: =IF(ISERROR(S25/SUMIF(objectifs!$F:$F,$B$7,objectifs!IC:IC)),"nc",S25/SUMIF(objectifs!$F:$F,$B$7,objectifs!IC:IC)) -> 0.0 | V25: 0% | W25: 0% | X25: 0
B26: CEL | E26: =SUMIF('Indicateurs mensuels'!$F:$F,$B$7,'Indicateurs mensuels'!ED:ED) -> 1,474 | F26: -0.02% | G26: 5.38 | H26: -1 | J26: =SUMIF('Indicateurs Cumulés'!$F:$F,$B$7,'Indicateurs Cumulés'!DN:DN) -> 6,815 | K26: ='Indicateurs Cumulés'!$DO$367 -> -0.02% | L26: ='Indicateurs Cumulés'!$DP$367 -> 5.38 | M26: =SUMIF('Indicateurs Cumulés'!$F:$F,$B$7,'Indicateurs Cumulés'!DQ:DQ) -> -6 | N26: =IF(ISERROR(M26/SUMIF('Indicateurs Cumulés'!$F:$F,$B$7,'Indicateurs Cumulés'!LU:LU)),"nc",M26/SUMIF('Indicateurs Cumulés'!$F:$F,$B$7,'Indicateurs Cumulés'!LU:LU)) -> -0.0 | P26: =SUMIF(objectifs!F:F,$B$7,objectifs!DJ:DJ) -> 0 | Q26: =objectifs!$DK$373 -> 0.30% | R26: =objectifs!$DL$373 -> 5.37 | S26: 0 | T26: =IF(ISERROR(S26/SUMIF(objectifs!$F:$F,$B$7,objectifs!IC:IC)),"nc",S26/SUMIF(objectifs!$F:$F,$B$7,objectifs!IC:IC)) -> 0.0
B27: PEP | E27: =SUMIF('Indicateurs mensuels'!$F:$F,$B$7,'Indicateurs mensuels'!ET:ET) -> -267 | F27: 0.00% | G27: 1.74 | H27: -0 | J27: =SUMIF('Indicateurs Cumulés'!$F:$F,$B$7,'Indicateurs Cumulés'!ED:ED) -> -432 | K27: ='Indicateurs Cumulés'!$EE$367 -> 0.00% | L27: ='Indicateurs Cumulés'!$EF$367 -> 1.74 | M27: =SUMIF('Indicateurs Cumulés'!$F:$F,$B$7,'Indicateurs Cumulés'!EG:EG) -> -0 | N27: =IF(ISERROR(M27/SUMIF('Indicateurs Cumulés'!$F:$F,$B$7,'Indicateurs Cumulés'!LU:LU)),"nc",M27/SUMIF('Indicateurs Cumulés'!$F:$F,$B$7,'Indicateurs Cumulés'!LU:LU)) -> -0.0 | P27: 0 | Q27: 0.00% | R27: 0.00 | S27: 0 | T27: =IF(ISERROR(S27/SUMIF(objectifs!$F:$F,$B$7,objectifs!IC:IC)),"nc",S27/SUMIF(objectifs!$F:$F,$B$7,objectifs!IC:IC)) -> 0.0
B28: SLR | E28: =SUMIF('Indicateurs mensuels'!$F:$F,$B$7,'Indicateurs mensuels'!EH:EH) -> -938 | F28: 0.22% | G28: 5.69 | H28: -12 | J28: =SUMIF('Indicateurs Cumulés'!$F:$F,$B$7,'Indicateurs Cumulés'!DR:DR) -> -3,734 | K28: ='Indicateurs Cumulés'!$DS$367 -> 0.22% | L28: ='Indicateurs Cumulés'!$DT$367 -> 5.69 | M28: =SUMIF('Indicateurs Cumulés'!$F:$F,$B$7,'Indicateurs Cumulés'!DU:DU) -> -46 | N28: =IF(ISERROR(M28/SUMIF('Indicateurs Cumulés'!$F:$F,$B$7,'Indicateurs Cumulés'!LU:LU)),"nc",M28/SUMIF('Indicateurs Cumulés'!$F:$F,$B$7,'Indicateurs Cumulés'!LU:LU)) -> -0.0 | P28: =SUMIF(objectifs!F:F,$B$7,objectifs!DR:DR) -> 0 | Q28: =objectifs!$DS$373 -> 0.10% | R28: =objectifs!$DT$373 -> 7.00 | S28: 0 | T28: =IF(ISERROR(S28/SUMIF(objectifs!$F:$F,$B$7,objectifs!IC:IC)),"nc",S28/SUMIF(objectifs!$F:$F,$B$7,objectifs!IC:IC)) -> 0.0
B29: DAT (Bons, CDN, CAT, TCN, …) | E29: =SUMIF('Indicateurs mensuels'!$F:$F,$B$7,'Indicateurs mensuels'!EL:EL) -> -1,632 | F29: 0.22% | G29: 5.69 | H29: -20 | J29: =SUMIF('Indicateurs Cumulés'!$F:$F,$B$7,'Indicateurs Cumulés'!DV:DV) -> -7,682 | K29: ='Indicateurs Cumulés'!$DW$367 -> 0.22% | L29: ='Indicateurs Cumulés'!$DX$367 -> 5.69 | M29: =SUMIF('Indicateurs Cumulés'!$F:$F,$B$7,'Indicateurs Cumulés'!DY:DY) -> -95 | N29: =IF(ISERROR(M29/SUMIF('Indicateurs Cumulés'!$F:$F,$B$7,'Indicateurs Cumulés'!LU:LU)),"nc",M29/SUMIF('Indicateurs Cumulés'!$F:$F,$B$7,'Indicateurs Cumulés'!LU:LU)) -> -0.1 | P29: =SUMIF(objectifs!F:F,$B$7,objectifs!DN:DN) -> 0 | Q29: =objectifs!$DO$373 -> 0.20% | R29: =objectifs!$DP$373 -> 9.00 | S29: 0 | T29: =IF(ISERROR(S29/SUMIF(objectifs!$F:$F,$B$7,objectifs!IC:IC)),"nc",S29/SUMIF(objectifs!$F:$F,$B$7,objectifs!IC:IC)) -> 0.0 | V29: 0% | W29: 0% | X29: -0.1
B30: Emprunt CTO | E30: =SUMIF('Indicateurs mensuels'!$F:$F,$B$7,'Indicateurs mensuels'!FN:FN) -> -125 | F30: 0.20% | G30: 8.00 | H30: -2 | J30: =SUMIF('Indicateurs Cumulés'!$F:$F,$B$7,'Indicateurs Cumulés'!EH:EH) -> 696 | K30: ='Indicateurs Cumulés'!$EI$367 -> 0.20% | L30: ='Indicateurs Cumulés'!$EJ$367 -> 8.00 | M30: =SUMIF('Indicateurs Cumulés'!$F:$F,$B$7,'Indicateurs Cumulés'!EK:EK) -> 11 | N30: =IF(ISERROR(M30/SUMIF('Indicateurs Cumulés'!$F:$F,$B$7,'Indicateurs Cumulés'!LU:LU)),"nc",M30/SUMIF('Indicateurs Cumulés'!$F:$F,$B$7,'Indicateurs Cumulés'!LU:LU)) -> 0.0 | P30: =SUMIF(objectifs!F:F,$B$7,objectifs!ET:ET) -> 0 | Q30: =objectifs!$EU$373 -> 0.20% | R30: =objectifs!$EV$373 -> 8.00 | S30: 0 | T30: =IF(ISERROR(S30/SUMIF(objectifs!$F:$F,$B$7,objectifs!IC:IC)),"nc",S30/SUMIF(objectifs!$F:$F,$B$7,objectifs!IC:IC)) -> 0.0 | V30: 0% | W30: 0% | X30: 0.0
B31: Parts sociales | E31: =SUMIF('Indicateurs mensuels'!$F:$F,$B$7,'Indicateurs mensuels'!FR:FR) -> -41,178 | F31: 1.00% | G31: 5.00 | H31: -2,059 | J31: =SUMIF('Indicateurs Cumulés'!$F:$F,$B$7,'Indicateurs Cumulés'!EL:EL) -> -24,047 | K31: ='Indicateurs Cumulés'!$EM$367 -> 1.00% | L31: ='Indicateurs Cumulés'!$EN$367 -> 5.00 | M31: =SUMIF('Indicateurs Cumulés'!$F:$F,$B$7,'Indicateurs Cumulés'!EO:EO) -> -1,202 | N31: =IF(ISERROR(M31/SUMIF('Indicateurs Cumulés'!$F:$F,$B$7,'Indicateurs Cumulés'!LU:LU)),"nc",M31/SUMIF('Indicateurs Cumulés'!$F:$F,$B$7,'Indicateurs Cumulés'!LU:LU)) -> -1.0 | P31: =SUMIF(objectifs!F:F,$B$7,objectifs!EX:EX) -> 0 | Q31: =objectifs!$EY$373 -> 1.00% | R31: =objectifs!$EZ$373 -> 5.00 | S31: 0 | T31: =IF(ISERROR(S31/SUMIF(objectifs!$F:$F,$B$7,objectifs!IC:IC)),"nc",S31/SUMIF(objectifs!$F:$F,$B$7,objectifs!IC:IC)) -> 0.0 | V31: 0% | W31: 0% | X31: -1.0
B32: Epargne Financière (Ass. vie - OPCVM - Autres val. mob.) | E32: =SUMIF('Indicateurs mensuels'!$F:$F,$B$7,'Indicateurs mensuels'!FX:FX) -> -6,712 | H32: =SUMIF('Indicateurs mensuels'!$F:$F,$B$7,'Indicateurs mensuels'!FY:FY) -> 270 | J32: =SUMIF('Indicateurs Cumulés'!$F:$F,$B$7,'Indicateurs Cumulés'!GF:GF) -> 2,499 | M32: =SUMIF('Indicateurs Cumulés'!$F:$F,$B$7,'Indicateurs Cumulés'!GG:GG) -> 3,483 | N32: =IF(ISERROR(M32/SUMIF('Indicateurs Cumulés'!$F:$F,$B$7,'Indicateurs Cumulés'!LU:LU)),"nc",M32/SUMIF('Indicateurs Cumulés'!$F:$F,$B$7,'Indicateurs Cumulés'!LU:LU)) -> 2.9 | P32: =SUMIF(objectifs!$F:$F,$B$7,objectifs!FD:FD) -> 0 | S32: =SUMIF(objectifs!$F:$F,$B$7,objectifs!FE:FE) ->  | T32: =IF(ISERROR(S32/SUMIF(objectifs!$F:$F,$B$7,objectifs!IC:IC)),"nc",S32/SUMIF(objectifs!$F:$F,$B$7,objectifs!IC:IC)) -> nc | V32: 0% | W32: 0% | X32: nc
B33: Ass. Vie sur flux (versements) | E33: =SUMIF('Indicateurs mensuels'!$F:$F,$B$7,'Indicateurs mensuels'!FB:FB)+SUMIF('Indicateurs mensuels'!$F:$F,$B$7,'Indicateurs mensuels'!GP:GP) -> 63,782 | F33: =H33/E33 -> 0.28% | G33: =L33 -> 1.00 | H33: =SUMIF('Indicateurs mensuels'!$F:$F,$B$7,'Indicateurs mensuels'!FE:FE)+SUMIF('Indicateurs mensuels'!$F:$F,$B$7,'Indicateurs mensuels'!GS:GS) -> 176 | J33: =SUMIF('Indicateurs Cumulés'!$F:$F,$B$7,'Indicateurs Cumulés'!FL:FL)+SUMIF('Indicateurs Cumulés'!$F:$F,$B$7,'Indicateurs Cumulés'!FP:FP) -> 533,373 | K33: =M33/J33 -> 0.18% | L33: ='Indicateurs Cumulés'!$FN$367 -> 1.00 | M33: =SUMIF('Indicateurs Cumulés'!$F:$F,$B$7,'Indicateurs Cumulés'!FO:FO)+SUMIF('Indicateurs Cumulés'!$F:$F,$B$7,'Indicateurs Cumulés'!FS:FS) -> 978 | N33: =IF(ISERROR(M33/SUMIF('Indicateurs Cumulés'!$F:$F,$B$7,'Indicateurs Cumulés'!LU:LU)),"nc",M33/SUMIF('Indicateurs Cumulés'!$F:$F,$B$7,'Indicateurs Cumulés'!LU:LU)) -> 0.8 | P33: =SUMIF(objectifs!$F:$F,$B$7,objectifs!EH:EH) ->  | Q33: =objectifs!$EI$373 -> 0.40% | R33: =objectifs!$EJ$373 -> 1.00 | S33: =P33*Q33*R33 ->  | T33: =IF(ISERROR(S33/SUMIF(objectifs!$F:$F,$B$7,objectifs!IC:IC)),"nc",S33/SUMIF(objectifs!$F:$F,$B$7,objectifs!IC:IC)) -> nc | V33: 0% | W33: 0% | X33: nc
B34: Ass. Vie sur encours (excédents) | E34: =SUMIF('Indicateurs mensuels'!$F:$F,$B$7,'Indicateurs mensuels'!EX:EX)+SUMIF('Indicateurs mensuels'!$F:$F,$B$7,'Indicateurs mensuels'!GL:GL) -> -18,660 | F34: =K34 -> 0.54% | G34: 8.00 | H34: =E34*F34*G34 -> -809 | J34: =SUMIF('Indicateurs Cumulés'!$F:$F,$B$7,'Indicateurs Cumulés'!ER:ER)+SUMIF('Indicateurs Cumulés'!$F:$F,$B$7,'Indicateurs Cumulés'!EV:EV) -> 3,801 | K34: ='Indicateurs Cumulés'!$ES$367 -> 0.54% | L34: ='Indicateurs Cumulés'!$ET$367 -> 8.00 | M34: =SUMIF('Indicateurs Cumulés'!$F:$F,$B$7,'Indicateurs Cumulés'!EU:EU)+SUMIF('Indicateurs Cumulés'!$F:$F,$B$7,'Indicateurs Cumulés'!EY:EY) -> 165 | N34: =IF(ISERROR(M34/SUMIF('Indicateurs Cumulés'!$F:$F,$B$7,'Indicateurs Cumulés'!LU:LU)),"nc",M34/SUMIF('Indicateurs Cumulés'!$F:$F,$B$7,'Indicateurs Cumulés'!LU:LU)) -> 0.1 | P34: =SUMIF(objectifs!$F:$F,$B$7,objectifs!ED:ED) -> 0 | Q34: =objectifs!$EE$373 -> 0.45% | R34: =objectifs!$EF$373 -> 8.00 | S34: 0 | T34: =IF(ISERROR(S34/SUMIF(objectifs!$F:$F,$B$7,objectifs!IC:IC)),"nc",S34/SUMIF(objectifs!$F:$F,$B$7,objectifs!IC:IC)) -> 0.0 | V34: 0% | W34: 0% | X34: 0.1
B35: Arbitrage (fonds € vers UC) | E35: =SUMIF('Indicateurs mensuels'!$F:$F,$B$7,'Indicateurs mensuels'!BQ:BQ) -> 6,721 | F35: =K35 -> 0.32% | G35: 8.00 | H35: =SUMIF('Indicateurs mensuels'!$F:$F,$B$7,'Indicateurs mensuels'!BR:BR) -> 173 | J35: =SUMIF('Indicateurs Cumulés'!$F:$F,$B$7,'Indicateurs Cumulés'!GB:GB) -> 46,395 | K35: ='Indicateurs Cumulés'!$GB$3 -> 0.32% | L35: =VLOOKUP($B$7,objectifs!$F$3:$AAB$391,127,FALSE) -> 8.00 | M35: =SUMIF('Indicateurs Cumulés'!$F:$F,$B$7,'Indicateurs Cumulés'!GC:GC) -> 1,196 | N35: =IF(ISERROR(M35/SUMIF('Indicateurs Cumulés'!$F:$F,$B$7,'Indicateurs Cumulés'!LU:LU)),"nc",M35/SUMIF('Indicateurs Cumulés'!$F:$F,$B$7,'Indicateurs Cumulés'!LU:LU)) -> 1.0 | P35: =SUMIF(objectifs!$F:$F,$B$7,objectifs!DZ:DZ) ->  | Q35: =objectifs!$EA$373 -> 0.25% | R35: =objectifs!$EB$373 -> 8.00 | T35: =IF(ISERROR(S35/SUMIF(objectifs!$F:$F,$B$7,objectifs!IC:IC)),"nc",S35/SUMIF(objectifs!$F:$F,$B$7,objectifs!IC:IC)) -> nc | V35: 0% | W35: 0% | X35: nc
B36: OPCVM sur flux (versements) | E36: =SUMIF('Indicateurs mensuels'!$F:$F,$B$7,'Indicateurs mensuels'!FJ:FJ)+SUMIF('Indicateurs mensuels'!$F:$F,$B$7,'Indicateurs mensuels'!GX:GX) -> 765 | F36: =K36 -> 0.40% | G36: 1.00 | H36: =E36*F36*G36 -> 3 | J36: =SUMIF('Indicateurs Cumulés'!$F:$F,$B$7,'Indicateurs Cumulés'!FT:FT)+SUMIF('Indicateurs Cumulés'!$F:$F,$B$7,'Indicateurs Cumulés'!FX:FX) -> 10,616 | K36: ='Indicateurs Cumulés'!$FU$367 -> 0.40% | L36: ='Indicateurs Cumulés'!$FV$367 -> 1.00 | M36: =SUMIF('Indicateurs Cumulés'!$F:$F,$B$7,'Indicateurs Cumulés'!FW:FW)+SUMIF('Indicateurs Cumulés'!$F:$F,$B$7,'Indicateurs Cumulés'!GA:GA) -> 42 | N36: =IF(ISERROR(M36/SUMIF('Indicateurs Cumulés'!$F:$F,$B$7,'Indicateurs Cumulés'!LU:LU)),"nc",M36/SUMIF('Indicateurs Cumulés'!$F:$F,$B$7,'Indicateurs Cumulés'!LU:LU)) -> 0.0 | P36: =SUMIF(objectifs!$F:$F,$B$7,objectifs!EP:EP) ->  | Q36: =objectifs!$EQ$373 -> 0.40% | R36: =objectifs!$ER$373 -> 1.00 | T36: =IF(ISERROR(S36/SUMIF(objectifs!$F:$F,$B$7,objectifs!IC:IC)),"nc",S36/SUMIF(objectifs!$F:$F,$B$7,objectifs!IC:IC)) -> nc | V36: 0% | W36: 0% | X36: nc
B37: OPCVM sur encours (excédents) | E37: =SUMIF('Indicateurs mensuels'!$F:$F,$B$7,'Indicateurs mensuels'!FF:FF)+SUMIF('Indicateurs mensuels'!$F:$F,$B$7,'Indicateurs mensuels'!GT:GT) -> -2,120 | F37: =H37/E37/G37 -> 0.80% | G37: 4.00 | H37: =SUMIF('Indicateurs mensuels'!$F:$F,$B$7,'Indicateurs mensuels'!FI:FI)+SUMIF('Indicateurs mensuels'!$F:$F,$B$7,'Indicateurs mensuels'!GW:GW) -> -68 | J37: =SUMIF('Indicateurs Cumulés'!$F:$F,$B$7,'Indicateurs Cumulés'!EZ:EZ)+SUMIF('Indicateurs Cumulés'!$F:$F,$B$7,'Indicateurs Cumulés'!FD:FD) -> -15,608 | K37: =M37/J37/L37 -> 0.80% | L37: ='Indicateurs Cumulés'!$FB$367 -> 4.00 | M37: =SUMIF('Indicateurs Cumulés'!$F:$F,$B$7,'Indicateurs Cumulés'!FC:FC)+SUMIF('Indicateurs Cumulés'!$F:$F,$B$7,'Indicateurs Cumulés'!FG:FG) -> -499 | N37: =IF(ISERROR(M37/SUMIF('Indicateurs Cumulés'!$F:$F,$B$7,'Indicateurs Cumulés'!LU:LU)),"nc",M37/SUMIF('Indicateurs Cumulés'!$F:$F,$B$7,'Indicateurs Cumulés'!LU:LU)) -> -0.4 | P37: =SUMIF(objectifs!$F:$F,$B$7,objectifs!EL:EL) -> 0 | Q37: =objectifs!$EM$373 -> 0.65% | R37: =objectifs!$EN$373 -> 5.00 | S37: 0 | T37: =IF(ISERROR(S37/SUMIF(objectifs!$F:$F,$B$7,objectifs!IC:IC)),"nc",S37/SUMIF(objectifs!$F:$F,$B$7,objectifs!IC:IC)) -> 0.0 | V37: 0% | W37: 0% | X37: -0.4
B38: FCP structurés (versements) | E38: =J38-SUMIF('Indicateurs Cumulés M-1'!$F:$F,$B$7,'Indicateurs Cumulés M-1'!GD:GD) -> 4,677 | F38: =K38 -> 2.50% | G38: 1.00 | H38: =E38*F38*G38 -> 117 | J38: =SUMIF('Indicateurs Cumulés'!$F:$F,$B$7,'Indicateurs Cumulés'!GD:GD) -> 35,460 | K38: ='Indicateurs Cumulés'!GD3 -> 2.50% | L38: ='Indicateurs Cumulés'!$FN$367 -> 1.00 | M38: =J38*K38*L38 -> 886 | N38: =IF(ISERROR(M38/SUMIF('Indicateurs Cumulés'!$F:$F,$B$7,'Indicateurs Cumulés'!LU:LU)),"nc",M38/SUMIF('Indicateurs Cumulés'!$F:$F,$B$7,'Indicateurs Cumulés'!LU:LU)) -> 0.7 | P38: =SUMIF(objectifs!$F:$F,$B$7,objectifs!BT:BT) ->  | Q38: =objectifs!$BU$373 -> 2.80% | R38: =objectifs!$BV$373 -> 1.00 | T38: =IF(ISERROR(S38/SUMIF(objectifs!$F:$F,$B$7,objectifs!IC:IC)),"nc",S38/SUMIF(objectifs!$F:$F,$B$7,objectifs!IC:IC)) -> nc | V38: =IF(ISERROR(J38/P38),0,J38/P38) -> 0% | W38: =IF(ISERROR(M38/S38),0,M38/S38) -> 0% | X38: nc
B39: Autres Valeurs mobilières (excédents) | E39: =SUMIF('Indicateurs mensuels'!$F:$F,$B$7,'Indicateurs mensuels'!HB:HB) -> 14,068 | F39: =K39 -> 1.00% | G39: 5.00 | H39: =E39*F39*G39 -> 703 | J39: =SUMIF('Indicateurs Cumulés'!$F:$F,$B$7,'Indicateurs Cumulés'!FH:FH) -> 14,306 | K39: ='Indicateurs Cumulés'!$FI$367 -> 1.00% | L39: ='Indicateurs Cumulés'!$FJ$367 -> 5.00 | M39: =SUMIF('Indicateurs Cumulés'!$F:$F,$B$7,'Indicateurs Cumulés'!FK:FK) -> 715 | N39: =IF(ISERROR(M39/SUMIF('Indicateurs Cumulés'!$F:$F,$B$7,'Indicateurs Cumulés'!LU:LU)),"nc",M39/SUMIF('Indicateurs Cumulés'!$F:$F,$B$7,'Indicateurs Cumulés'!LU:LU)) -> 0.6 | P39: =SUMIF(objectifs!$F:$F,$B$7,objectifs!FW:FW) -> 0 | Q39: =objectifs!$FO$373 -> 1.00% | R39: =objectifs!$FP$373 -> 5.00 | S39: 0 | T39: =IF(ISERROR(S39/SUMIF(objectifs!$F:$F,$B$7,objectifs!IC:IC)),"nc",S39/SUMIF(objectifs!$F:$F,$B$7,objectifs!IC:IC)) -> 0.0
B41: CREDIT à la CONSOMMATION - Eng. Nets (yc accessoires) | E41: =E42+E43 -> 69,989 | F41: =IF(ISERROR(H41/(E41*G41)),0,H41/(E41*G41)) -> 2.43% | G41: =SUMPRODUCT(G42:G43,E42:E43)/(E42+E43) -> 2.72 | H41: =H42+H43+H44+H45 -> 4,623 | J41: =J42+J43 -> 425,310 | K41: =IF(ISERROR(M41/(J41*L41)),0,M41/(J41*L41)) -> 3.18% | L41: =SUMPRODUCT(L42:L43,J42:J43)/(J42+J43) -> 2.70 | M41: =M42+M43+M44+M45 -> 36,427 | N41: =IF(ISERROR(M41/SUMIF('Indicateurs Cumulés'!$F:$F,$B$7,'Indicateurs Cumulés'!LU:LU)),"nc",M41/SUMIF('Indicateurs Cumulés'!$F:$F,$B$7,'Indicateurs Cumulés'!LU:LU)) -> 30.6 | P41: =P42+P43 -> 0 | Q41: =IF(ISERROR(S41/(P41*R41)),0,S41/(P41*R41)) -> 0.00% | R41: =IF(P41=0,0,SUMPRODUCT(R42:R43,P42:P43)/(P42+P43)) -> 0.00 | S41: =S42+S43+S44+S45 -> 0 | T41: =IF(ISERROR(S41/SUMIF(objectifs!$F:$F,$B$7,objectifs!IC:IC)),"nc",S41/SUMIF(objectifs!$F:$F,$B$7,objectifs!IC:IC)) -> 0.0 | V41: =IF(ISERROR(J41/P41),0,J41/P41) -> 0% | W41: =IF(ISERROR(M41/S41),0,M41/S41) -> 0% | X41: =IF(ISERROR(N41-(T41/12*MONTH($C$9))),"nc",N41-(T41/12*MONTH($C$9))) -> 30.6
B42: Crédit à la Consommation (marge hors accessoires) | E42: =SUMIF('Indicateurs mensuels'!$F:$F,$B$7,'Indicateurs mensuels'!L:L) -> 64,025 | F42: =SUMPRODUCT(('Indicateurs mensuels'!$F$4:$F$350=$B$7)*(('Indicateurs mensuels'!$L$4:$L$350)*('Indicateurs mensuels'!$M$4:$M$350)/E42)) -> 1.58% | G42: =SUMPRODUCT(('Indicateurs mensuels'!$F$4:$F$350=$B$7)*(('Indicateurs mensuels'!$L$4:$L$350)*('Indicateurs mensuels'!$N$4:$N$350)/E42)) -> 2.82 | H42: =E42*F42*G42 -> 2,851 | J42: =SUMIF('Indicateurs Cumulés'!$F:$F,$B$7,'Indicateurs Cumulés'!L:L) -> 393,194 | K42: =SUMPRODUCT(('Indicateurs Cumulés'!$F$4:$F$367=$B$7)*(('Indicateurs Cumulés'!$L$4:$L$367)*('Indicateurs Cumulés'!$M$4:$M$367)/J42)) -> 2.36% | L42: =SUMPRODUCT(('Indicateurs Cumulés'!$F$4:$F$367=$B$7)*(('Indicateurs Cumulés'!$L$4:$L$367)*('Indicateurs Cumulés'!$N$4:$N$367)/J42)) -> 2.79 | M42: =J42*K42*L42 -> 25,853 | N42: =IF(ISERROR(M42/SUMIF('Indicateurs Cumulés'!$F:$F,$B$7,'Indicateurs Cumulés'!LU:LU)),"nc",M42/SUMIF('Indicateurs Cumulés'!$F:$F,$B$7,'Indicateurs Cumulés'!LU:LU)) -> 22 | P42: =SUMIF(objectifs!$F:$F,$B$7,objectifs!L:L) -> 0 | Q42: =objectifs!$M$373 -> 3.05% | R42: =objectifs!$N$373 -> 2.50 | S42: =P42*Q42*R42 -> 0 | T42: =IF(ISERROR(S42/SUMIF(objectifs!$F:$F,$B$7,objectifs!IC:IC)),"nc",S42/SUMIF(objectifs!$F:$F,$B$7,objectifs!IC:IC)) -> 0.0 | V42: =IF(ISERROR(J42/P42),0,J42/P42) -> 0% | W42: =IF(ISERROR(M42/S42),0,M42/S42) -> 0% | X42: =IF(ISERROR(N42-(T42/12*MONTH($C$9))),"nc",N42-(T42/12*MONTH($C$9))) -> 21.7
B43: Crédit Revolving | E43: =SUMIF('Indicateurs mensuels'!$F:$F,$B$7,'Indicateurs mensuels'!H:H) -> 5,964 | F43: =SUMPRODUCT(('Indicateurs mensuels'!$F$4:$F$350=$B$7)*(('Indicateurs mensuels'!$H$4:$H$350)*('Indicateurs mensuels'!$I$4:$I$350)/E43)) -> 4.32% | G43: =SUMPRODUCT(('Indicateurs mensuels'!$F$4:$F$350=$B$7)*(('Indicateurs mensuels'!$H$4:$H$350)*('Indicateurs mensuels'!$J$4:$J$350)/E43)) -> 1.58 | H43: =E43*F43*G43 -> 407 | J43: =SUMIF('Indicateurs Cumulés'!$F:$F,$B$7,'Indicateurs Cumulés'!H:H) -> 32,117 | K43: =SUMPRODUCT(('Indicateurs Cumulés'!$F$4:$F$367=$B$7)*(('Indicateurs Cumulés'!$H$4:$H$367)*('Indicateurs Cumulés'!$I$4:$I$367)/J43)) -> 4.32% | L43: =SUMPRODUCT(('Indicateurs Cumulés'!$F$4:$F$367=$B$7)*(('Indicateurs Cumulés'!$H$4:$H$367)*('Indicateurs Cumulés'!$J$4:$J$367)/J43)) -> 1.58 | M43: =J43*K43*L43 -> 2,192 | N43: =IF(ISERROR(M43/SUMIF('Indicateurs Cumulés'!$F:$F,$B$7,'Indicateurs Cumulés'!LU:LU)),"nc",M43/SUMIF('Indicateurs Cumulés'!$F:$F,$B$7,'Indicateurs Cumulés'!LU:LU)) -> 1.8 | P43: =SUMIF(objectifs!$F:$F,$B$7,objectifs!H:H) -> 0 | Q43: =objectifs!$I$373 -> 4.32% | R43: =objectifs!$J$373 -> 1.60 | S43: =P43*Q43*R43 -> 0 | T43: =IF(ISERROR(S43/SUMIF(objectifs!$F:$F,$B$7,objectifs!IC:IC)),"nc",S43/SUMIF(objectifs!$F:$F,$B$7,objectifs!IC:IC)) -> 0.0 | V43: =IF(ISERROR(J43/P43),0,J43/P43) -> 0% | W43: =IF(ISERROR(M43/S43),0,M43/S43) -> 0% | X43: =IF(ISERROR(N43-(T43/12*MONTH($C$9))),"nc",N43-(T43/12*MONTH($C$9))) -> 1.8
B44: Frais de dossier | H44: =SUMIF('Indicateurs mensuels'!$F:$F,$B$7,'Indicateurs mensuels'!CV:CV) -> 228 | M44: =SUMIF('Indicateurs Cumulés'!$F:$F,$B$7,'Indicateurs Cumulés'!S:S) -> 1,376 | N44: =IF(ISERROR(M44/SUMIF('Indicateurs Cumulés'!$F:$F,$B$7,'Indicateurs Cumulés'!LU:LU)),"nc",M44/SUMIF('Indicateurs Cumulés'!$F:$F,$B$7,'Indicateurs Cumulés'!LU:LU)) -> 1.2 | S44: =SUMIF(objectifs!$F:$F,$B$7,objectifs!BO:BO) -> 0 | T44: =IF(ISERROR(S44/SUMIF(objectifs!$F:$F,$B$7,objectifs!IC:IC)),"nc",S44/SUMIF(objectifs!$F:$F,$B$7,objectifs!IC:IC)) -> 0.0 | W44: =IF(ISERROR(M44/S44),0,M44/S44) -> 0% | X44: =IF(ISERROR(N44-(T44/12*MONTH($C$9))),"nc",N44-(T44/12*MONTH($C$9))) -> 1.2
B45: Commissions ADE | E45: =SUMPRODUCT(('Indicateurs mensuels'!$F$4:$F$350=$B$7)*(('Indicateurs mensuels'!$L$4:$L$350)*('Indicateurs mensuels'!$HM$4:$HM$350)/E42)) -> 134.9% | F45: =SUMPRODUCT(('Indicateurs mensuels'!$F$4:$F$350=$B$7)*(('Indicateurs mensuels'!$L$4:$L$350)*('Indicateurs mensuels'!$HL$4:$HL$350)/E42)) -> 96.7% | H45: =SUMIF('Indicateurs mensuels'!$F:$F,$B$7,'Indicateurs mensuels'!HN:HN) -> 1,137 | J45: =SUMPRODUCT(('Indicateurs Cumulés'!$F$4:$F$367=$B$7)*(('Indicateurs Cumulés'!$L$4:$L$367)*('Indicateurs Cumulés'!$Q$4:$Q$367)/J42)) -> 134.6% | K45: =SUMPRODUCT(('Indicateurs Cumulés'!$F$4:$F$367=$B$7)*(('Indicateurs Cumulés'!$L$4:$L$367)*('Indicateurs Cumulés'!$P$4:$P$367)/J42)) -> 94.5% | M45: =SUMIF('Indicateurs Cumulés'!$F:$F,$B$7,'Indicateurs Cumulés'!R:R) -> 7,006 | N45: =IF(ISERROR(M45/SUMIF('Indicateurs Cumulés'!$F:$F,$B$7,'Indicateurs Cumulés'!LU:LU)),"nc",M45/SUMIF('Indicateurs Cumulés'!$F:$F,$B$7,'Indicateurs Cumulés'!LU:LU)) -> 5.9 | P45: =objectifs!$BK$373 -> 135% | Q45: =objectifs!$BJ$373 -> 95% | S45: =SUMIF(objectifs!$F:$F,$B$7,objectifs!BY:BY) -> 0 | T45: =IF(ISERROR(S45/SUMIF(objectifs!$F:$F,$B$7,objectifs!IC:IC)),"nc",S45/SUMIF(objectifs!$F:$F,$B$7,objectifs!IC:IC)) -> 0.0 | W45: =IF(ISERROR(M45/S45),0,M45/S45) -> 0% | X45: =IF(ISERROR(N45-(T45/12*MONTH($C$9))),"nc",N45-(T45/12*MONTH($C$9))) -> 5.9
B47: CREDIT IMMOBILIER - Eng. Nets (yc accessoires) | E47: =E48 -> 307,150 | F47: =IF(ISERROR(H47/(E47*G47)),0,H47/(E47*G47)) -> -0.92% | G47: =G48 -> 8.04 | H47: =SUM(H48:H53) -> -22,622 | J47: =J48 -> 1,566,761 | K47: =IF(ISERROR(M47/(J47*L47)),0,M47/(J47*L47)) -> -0.25% | L47: =L48 -> 7.90 | M47: =SUM(M48:M53) -> -30,600 | N47: =IF(ISERROR(M47/SUMIF('Indicateurs Cumulés'!$F:$F,$B$7,'Indicateurs Cumulés'!LU:LU)),"nc",M47/SUMIF('Indicateurs Cumulés'!$F:$F,$B$7,'Indicateurs Cumulés'!LU:LU)) -> -25.7 | P47: =P48 -> 0 | Q47: =IF(ISERROR(S47/(P47*R47)),0,S47/(P47*R47)) -> 0.00% | R47: =R48 -> 7.50 | S47: =SUM(S48:S53) -> 0 | T47: =IF(ISERROR(S47/SUMIF(objectifs!$F:$F,$B$7,objectifs!IC:IC)),"nc",S47/SUMIF(objectifs!$F:$F,$B$7,objectifs!IC:IC)) -> 0.0 | V47: =IF(ISERROR(J47/P47),0,J47/P47) -> 0% | W47: =IF(ISERROR(M47/S47),0,M47/S47) -> 0% | X47: =IF(ISERROR(N47-(T47/12*MONTH($C$9))),"nc",N47-(T47/12*MONTH($C$9))) -> -25.7
B48: Crédit Immobilier (marge hors accessoires) | E48: =SUMIF('Indicateurs mensuels'!$F:$F,$B$7,'Indicateurs mensuels'!P:P) -> 307,150 | F48: =IF(E48=0,0,SUMPRODUCT(('Indicateurs mensuels'!$F$4:$F$350=$B$7)*(('Indicateurs mensuels'!$P$4:$P$350)*('Indicateurs mensuels'!$R$4:$R$350)/E48))) -> -1.19% | G48: =IF(E48=0,0,SUMPRODUCT(('Indicateurs mensuels'!$F$4:$F$350=$B$7)*(('Indicateurs mensuels'!$P$4:$P$350)*('Indicateurs mensuels'!$S$4:$S$350)/E48))) -> 8.04 | H48: =E48*F48*G48 -> -29,442 | J48: =SUMIF('Indicateurs Cumulés'!$F:$F,$B$7,'Indicateurs Cumulés'!U:U) -> 1,566,761 | K48: =SUMPRODUCT(('Indicateurs Cumulés'!$F$4:$F$367=$B$7)*(('Indicateurs Cumulés'!$U$4:$U$367)*('Indicateurs Cumulés'!$V$4:$V$367)/J48)) -> -0.54% | L48: =SUMPRODUCT(('Indicateurs Cumulés'!$F$4:$F$367=$B$7)*(('Indicateurs Cumulés'!$U$4:$U$367)*('Indicateurs Cumulés'!$W$4:$W$367)/J48)) -> 7.90 | M48: =J48*K48*L48 -> -66,542 | N48: =IF(ISERROR(M48/SUMIF('Indicateurs Cumulés'!$F:$F,$B$7,'Indicateurs Cumulés'!LU:LU)),"nc",M48/SUMIF('Indicateurs Cumulés'!$F:$F,$B$7,'Indicateurs Cumulés'!LU:LU)) -> -55.9 | P48: =SUMIF(objectifs!$F:$F,$B$7,objectifs!O:O) -> 0 | Q48: =objectifs!$Q$373 -> 0.20% | R48: =objectifs!$R$373 -> 7.50 | S48: =P48*Q48*R48 -> 0 | T48: =IF(ISERROR(S48/SUMIF(objectifs!$F:$F,$B$7,objectifs!IC:IC)),"nc",S48/SUMIF(objectifs!$F:$F,$B$7,objectifs!IC:IC)) -> 0.0 | V48: =IF(ISERROR(J48/P48),0,J48/P48) -> 0% | W48: =IF(ISERROR(M48/S48),0,M48/S48) -> 0% | X48: =IF(ISERROR(N48-(T48/12*MONTH($C$9))),"nc",N48-(T48/12*MONTH($C$9))) -> -55.9
B49: Commissions ADE | E49: =IF(E48=0,0,SUMPRODUCT(('Indicateurs mensuels'!$F$4:$F$350=$B$7)*(('Indicateurs mensuels'!$P$4:$P$350)*('Indicateurs mensuels'!$CN$4:$CN$350)/E48))) -> 143.6% | F49: =IF(E48=0,0,SUMPRODUCT(('Indicateurs mensuels'!$F$4:$F$350=$B$7)*(('Indicateurs mensuels'!$P$4:$P$350)*('Indicateurs mensuels'!$CM$4:$CM$350)/E48))) -> 71.4% | H49: =SUMIF('Indicateurs mensuels'!$F:$F,$B$7,'Indicateurs mensuels'!CO:CO) -> 6,248 | J49: =SUMPRODUCT(('Indicateurs Cumulés'!$F$4:$F$367=$B$7)*(('Indicateurs Cumulés'!$U$4:$U$367)*('Indicateurs Cumulés'!$Z$4:$Z$367)/J48)) -> 141.6% | K49: =SUMPRODUCT(('Indicateurs Cumulés'!$F$4:$F$367=$B$7)*(('Indicateurs Cumulés'!$U$4:$U$367)*('Indicateurs Cumulés'!$Y$4:$Y$367)/J48)) -> 73.9% | M49: =SUMIF('Indicateurs Cumulés'!$F:$F,$B$7,'Indicateurs Cumulés'!AA:AA) -> 32,648 | N49: =IF(ISERROR(M49/SUMIF('Indicateurs Cumulés'!$F:$F,$B$7,'Indicateurs Cumulés'!LU:LU)),"nc",M49/SUMIF('Indicateurs Cumulés'!$F:$F,$B$7,'Indicateurs Cumulés'!LU:LU)) -> 27.4 | P49: =objectifs!$BI$373 -> 145% | Q49: =objectifs!$BH$373 -> 70% | S49: =SUMIF(objectifs!$F:$F,$B$7,objectifs!BX:BX) -> 0 | T49: =IF(ISERROR(S49/SUMIF(objectifs!$F:$F,$B$7,objectifs!IC:IC)),"nc",S49/SUMIF(objectifs!$F:$F,$B$7,objectifs!IC:IC)) -> 0.0 | W49: =IF(ISERROR(M49/S49),0,M49/S49) -> 0% | X49: =IF(ISERROR(N49-(T49/12*MONTH($C$9))),"nc",N49-(T49/12*MONTH($C$9))) -> 27.4
B50: Frais de dossier | H50: =SUMIF('Indicateurs mensuels'!$F:$F,$B$7,'Indicateurs mensuels'!CW:CW) -> 824 | M50: =SUMIF('Indicateurs Cumulés'!$F:$F,$B$7,'Indicateurs Cumulés'!AB:AB) -> 4,369 | N50: =IF(ISERROR(M50/SUMIF('Indicateurs Cumulés'!$F:$F,$B$7,'Indicateurs Cumulés'!LU:LU)),"nc",M50/SUMIF('Indicateurs Cumulés'!$F:$F,$B$7,'Indicateurs Cumulés'!LU:LU)) -> 3.7 | S50: =SUMIF(objectifs!$F:$F,$B$7,objectifs!BP:BP) -> 0 | T50: =IF(ISERROR(S50/SUMIF(objectifs!$F:$F,$B$7,objectifs!IC:IC)),"nc",S50/SUMIF(objectifs!$F:$F,$B$7,objectifs!IC:IC)) -> 0.0 | W50: =IF(ISERROR(M50/S50),0,M50/S50) -> 0% | X50: =IF(ISERROR(N50-(T50/12*MONTH($C$9))),"nc",N50-(T50/12*MONTH($C$9))) -> 3.7
B51: Commissions SACCEF | H51: =SUMIF('Indicateurs mensuels'!$F:$F,$B$7,'Indicateurs mensuels'!AI:AI) -> 520 | M51: =SUMIF('Indicateurs Cumulés'!$F:$F,$B$7,'Indicateurs Cumulés'!AC:AC) -> 2,817 | N51: =IF(ISERROR(M51/SUMIF('Indicateurs Cumulés'!$F:$F,$B$7,'Indicateurs Cumulés'!LU:LU)),"nc",M51/SUMIF('Indicateurs Cumulés'!$F:$F,$B$7,'Indicateurs Cumulés'!LU:LU)) -> 2.4 | S51: =SUMIF(objectifs!$F:$F,$B$7,objectifs!CA:CA) -> 0
B52: Bonus clients devenus BPe / JBPe via le crédit immobilier
B53: Commissions apporteurs d'affaires | H53: =M53-SUMIF('Indicateurs Cumulés M-1'!$F:$F,'PNB BDD'!$B$7,'Indicateurs Cumulés M-1'!AF:AF) -> -772 | M53: =SUMIF('Indicateurs Cumulés'!$F:$F,$B$7,'Indicateurs Cumulés'!AF:AF) -> -3,893 | N53: =IF(ISERROR(M53/SUMIF('Indicateurs Cumulés'!$F:$F,$B$7,'Indicateurs Cumulés'!LU:LU)),"nc",M53/SUMIF('Indicateurs Cumulés'!$F:$F,$B$7,'Indicateurs Cumulés'!LU:LU)) -> -3.3
B55: CREDIT MLT PRO - Eng. Nets (yc accessoires) | E55: =E56+E57 -> 43,279 | F55: =IF(ISERROR(H55/(E55*G55)),0,H55/(E55*G55)) -> -0.62% | G55: =IF(E55=0,0,SUMPRODUCT(G56:G57,E56:E57)/(E56+E57)) -> 5.34 | H55: =H56+H57+H58+H59 -> -1,427 | J55: =J56+J57 -> 213,872 | K55: =IF(ISERROR(M55/(J55*L55)),0,M55/(J55*L55)) -> -0.03% | L55: =IF(J55=0,0,SUMPRODUCT(L56:L57,J56:J57)/(J56+J57)) -> 5.19 | M55: =M56+M57+M58+M59 -> -381 | N55: =IF(ISERROR(M55/SUMIF('Indicateurs Cumulés'!$F:$F,$B$7,'Indicateurs Cumulés'!LU:LU)),"nc",M55/SUMIF('Indicateurs Cumulés'!$F:$F,$B$7,'Indicateurs Cumulés'!LU:LU)) -> -0.3 | P55: =P56+P57 -> 0 | Q55: =IF(ISERROR(S55/(P55*R55)),0,S55/(P55*R55)) -> 0.00% | R55: =IF(P55=0,0,SUMPRODUCT(R56:R57,P56:P57)/(P56+P57)) -> 0.00 | S55: =S56+S57+S58+S59 -> 0 | T55: =IF(ISERROR(S55/SUMIF(objectifs!$F:$F,$B$7,objectifs!IC:IC)),"nc",S55/SUMIF(objectifs!$F:$F,$B$7,objectifs!IC:IC)) -> 0.0 | V55: =IF(ISERROR(J55/P55),0,J55/P55) -> 0% | W55: =IF(ISERROR(M55/S55),0,M55/S55) -> 0% | X55: =IF(ISERROR(N55-(T55/12*MONTH($C$9))),"nc",N55-(T55/12*MONTH($C$9))) -> -0.3
B56: Crédit MLT (marge hors accessoires) | E56: =SUMIF('Indicateurs mensuels'!$F:$F,$B$7,'Indicateurs mensuels'!AA:AA) -> 40,784 | F56: =IF(E56=0,0,SUMPRODUCT(('Indicateurs mensuels'!$F$4:$F$350=$B$7)*(('Indicateurs mensuels'!$AA$4:$AA$350)*('Indicateurs mensuels'!$AB$4:$AB$350)/E56))) -> -0.78% | G56: =IF(E56=0,0,SUMPRODUCT(('Indicateurs mensuels'!$F$4:$F$350=$B$7)*(('Indicateurs mensuels'!$AA$4:$AA$350)*('Indicateurs mensuels'!$AC$4:$AC$350)/E56))) -> 5.51 | H56: =E56*F56*G56 -> -1,748 | J56: =SUMIF('Indicateurs Cumulés'!$F:$F,$B$7,'Indicateurs Cumulés'!AH:AH) -> 203,305 | K56: =IF(J56=0,0,SUMPRODUCT(('Indicateurs Cumulés'!$F$4:$F$367=$B$7)*(('Indicateurs Cumulés'!$AH$4:$AH$367)*('Indicateurs Cumulés'!$AI$4:$AI$367)/J56))) -> -0.19% | L56: =IF(J56=0,0,SUMPRODUCT(('Indicateurs Cumulés'!$F$4:$F$367=$B$7)*(('Indicateurs Cumulés'!$AH$4:$AH$367)*('Indicateurs Cumulés'!$AJ$4:$AJ$367)/J56))) -> 5.33 | M56: =J56*K56*L56 -> -2,066 | N56: =IF(ISERROR(M56/SUMIF('Indicateurs Cumulés'!$F:$F,$B$7,'Indicateurs Cumulés'!LU:LU)),"nc",M56/SUMIF('Indicateurs Cumulés'!$F:$F,$B$7,'Indicateurs Cumulés'!LU:LU)) -> -1.7 | P56: =SUMIF(objectifs!$F:$F,$B$7,objectifs!Y:Y) -> 0 | Q56: =objectifs!$Z$373 -> 0.40% | R56: =objectifs!$AA$373 -> 4.50 | S56: =P56*Q56*R56 -> 0 | T56: =IF(ISERROR(S56/SUMIF(objectifs!$F:$F,$B$7,objectifs!IC:IC)),"nc",S56/SUMIF(objectifs!$F:$F,$B$7,objectifs!IC:IC)) -> 0.0 | V56: =IF(ISERROR(J56/P56),0,J56/P56) -> 0% | W56: =IF(ISERROR(M56/S56),0,M56/S56) -> 0% | X56: =IF(ISERROR(N56-(T56/12*MONTH($C$9))),"nc",N56-(T56/12*MONTH($C$9))) -> -1.7
B57: Crédit Bail Mobilier | E57: =SUMIF('Indicateurs mensuels'!$F:$F,$B$7,'Indicateurs mensuels'!GH:GH) -> 2,495 | F57: =IF(E57=0,0,SUMPRODUCT(('Indicateurs mensuels'!$F$4:$F$350=$B$7)*(('Indicateurs mensuels'!$GH$4:$GH$350)*('Indicateurs mensuels'!$GI$4:$GI$350)/E57))) -> 0.53% | G57: =IF(E57=0,0,SUMPRODUCT(('Indicateurs mensuels'!$F$4:$F$350=$B$7)*(('Indicateurs mensuels'!$GH$4:$GH$350)*('Indicateurs mensuels'!$GJ$4:$GJ$350)/E57))) -> 2.54 | H57: =E57*F57*G57 -> 34 | J57: =SUMIF('Indicateurs Cumulés'!$F:$F,$B$7,'Indicateurs Cumulés'!AL:AL) -> 10,567 | K57: =IF(J57=0,0,SUMPRODUCT(('Indicateurs Cumulés'!$F$4:$F$367=$B$7)*(('Indicateurs Cumulés'!$AL$4:$AL$367)*('Indicateurs Cumulés'!$AM$4:$AM$367)/J57))) -> 0.58% | L57: =IF(J57=0,0,SUMPRODUCT(('Indicateurs Cumulés'!$F$4:$F$367=$B$7)*(('Indicateurs Cumulés'!$AL$4:$AL$367)*('Indicateurs Cumulés'!$AN$4:$AN$367)/J57))) -> 2.48 | M57: =J57*K57*L57 -> 152 | N57: =IF(ISERROR(M57/SUMIF('Indicateurs Cumulés'!$F:$F,$B$7,'Indicateurs Cumulés'!LU:LU)),"nc",M57/SUMIF('Indicateurs Cumulés'!$F:$F,$B$7,'Indicateurs Cumulés'!LU:LU)) -> 0.1 | P57: =SUMIF(objectifs!$F:$F,$B$7,objectifs!S:S) -> 0 | Q57: =objectifs!$T$373 -> 0.40% | R57: =objectifs!$U$373 -> 2.30 | S57: =P57*Q57*R57 -> 0 | T57: =IF(ISERROR(S57/SUMIF(objectifs!$F:$F,$B$7,objectifs!IC:IC)),"nc",S57/SUMIF(objectifs!$F:$F,$B$7,objectifs!IC:IC)) -> 0.0 | V57: =IF(ISERROR(J57/P57),0,J57/P57) -> 0% | W57: =IF(ISERROR(M57/S57),0,M57/S57) -> 0% | X57: =IF(ISERROR(N57-(T57/12*MONTH($C$9))),"nc",N57-(T57/12*MONTH($C$9))) -> 0.1
B58: Frais de dossier (yc CBM) | H58: =SUMIF('Indicateurs mensuels'!$F:$F,$B$7,'Indicateurs mensuels'!CS:CS)+SUMIF('Indicateurs mensuels'!$F:$F,$B$7,'Indicateurs mensuels'!CX:CX) -> 133 | M58: =SUMIF('Indicateurs Cumulés'!$F:$F,$B$7,'Indicateurs Cumulés'!AP:AP)+SUMIF('Indicateurs Cumulés'!$F:$F,$B$7,'Indicateurs Cumulés'!AQ:AQ) -> 613 | N58: =IF(ISERROR(M58/SUMIF('Indicateurs Cumulés'!$F:$F,$B$7,'Indicateurs Cumulés'!LU:LU)),"nc",M58/SUMIF('Indicateurs Cumulés'!$F:$F,$B$7,'Indicateurs Cumulés'!LU:LU)) -> 0.5 | S58: =SUMIF(objectifs!$F:$F,$B$7,objectifs!BS:BS) -> 0 | T58: =IF(ISERROR(S58/SUMIF(objectifs!$F:$F,$B$7,objectifs!IC:IC)),"nc",S58/SUMIF(objectifs!$F:$F,$B$7,objectifs!IC:IC)) -> 0.0 | W58: =IF(ISERROR(M58/S58),0,M58/S58) -> 0% | X58: =IF(ISERROR(N58-(T58/12*MONTH($C$9))),"nc",N58-(T58/12*MONTH($C$9))) -> 0.5
B59: Commissions ADE | E59: =IF(E56=0,0,SUMPRODUCT(('Indicateurs mensuels'!$F$4:$F$350=$B$7)*(('Indicateurs mensuels'!$AA$4:$AA$350)*('Indicateurs mensuels'!$HP$4:$HP$350)/E56))) -> 106.1% | F59: =IF(E56=0,0,SUMPRODUCT(('Indicateurs mensuels'!$F$4:$F$350=$B$7)*(('Indicateurs mensuels'!$AA$4:$AA$350)*('Indicateurs mensuels'!$HO$4:$HO$350)/E56))) -> 74.2% | H59: =SUMIF('Indicateurs mensuels'!$F:$F,$B$7,'Indicateurs mensuels'!HQ:HQ) -> 155 | J59: =IF(J56=0,0,SUMPRODUCT(('Indicateurs Cumulés'!$F$4:$F$367=$B$7)*(('Indicateurs Cumulés'!$AH$4:$AH$367)*('Indicateurs Cumulés'!$AS$4:$AS$367)/J56))) -> 112.5% | K59: =IF(J56=0,0,SUMPRODUCT(('Indicateurs Cumulés'!$F$4:$F$367=$B$7)*(('Indicateurs Cumulés'!$AH$4:$AH$367)*('Indicateurs Cumulés'!$AR$4:$AR$367)/J56))) -> 68.9% | M59: =SUMIF('Indicateurs Cumulés'!$F:$F,$B$7,'Indicateurs Cumulés'!AT:AT) -> 919 | N59: =IF(ISERROR(M59/SUMIF('Indicateurs Cumulés'!$F:$F,$B$7,'Indicateurs Cumulés'!LU:LU)),"nc",M59/SUMIF('Indicateurs Cumulés'!$F:$F,$B$7,'Indicateurs Cumulés'!LU:LU)) -> 0.8 | P59: =objectifs!$BM$373 -> 110% | Q59: =objectifs!$BL$373 -> 70% | S59: =SUMIF(objectifs!$F:$F,$B$7,objectifs!CB:CB) -> 0 | T59: =IF(ISERROR(S59/SUMIF(objectifs!$F:$F,$B$7,objectifs!IC:IC)),"nc",S59/SUMIF(objectifs!$F:$F,$B$7,objectifs!IC:IC)) -> 0.0 | W59: =IF(ISERROR(M59/S59),0,M59/S59) -> 0% | X59: =IF(ISERROR(N59-(T59/12*MONTH($C$9))),"nc",N59-(T59/12*MONTH($C$9))) -> 0.8
B61: BANCA - Ventes nettes | H61: =H62+H75+H82+H73+H74+H83+H89 -> 1,996 | M61: =M62+M75+M82+M73+M74+M83+M89 -> 10,283 | N61: =IF(ISERROR(M61/SUMIF('Indicateurs Cumulés'!$F:$F,$B$7,'Indicateurs Cumulés'!LU:LU)),"nc",M61/SUMIF('Indicateurs Cumulés'!$F:$F,$B$7,'Indicateurs Cumulés'!LU:LU)) -> 8.6 | P61: =P62+P75+P83+P74 ->  | Q61: =IF(ISERROR(S61/(P61*R61)*1000),0,S61/(P61*R61)*1000) -> 0 € | S61: =S62+S75+S83+S74 ->  | T61: =IF(ISERROR(S61/SUMIF(objectifs!$F:$F,$B$7,objectifs!IC:IC)),"nc",S61/SUMIF(objectifs!$F:$F,$B$7,objectifs!IC:IC)) -> nc | V61: =IF(ISERROR(J61/P61),0,J61/P61) -> 0% | W61: =IF(ISERROR(M61/S61),0,M61/S61) -> 0% | X61: =IF(ISERROR(N61-(T61/12*MONTH($C$9))),"nc",N61-(T61/12*MONTH($C$9))) -> nc
B62: Forfaits - Tarification | E62: =SUM(E63:E72) -> 924 | H62: =SUM(H63:I72) -> 522 | J62: =SUM(J63:J72) -> 2,790 | M62: =SUM(M63:M72) -> 1,657 | N62: =IF(ISERROR(M62/SUMIF('Indicateurs Cumulés'!$F:$F,$B$7,'Indicateurs Cumulés'!LU:LU)),"nc",M62/SUMIF('Indicateurs Cumulés'!$F:$F,$B$7,'Indicateurs Cumulés'!LU:LU)) -> 1.4 | P62: =SUMIF(objectifs!$F:$F,$B$7,objectifs!GD:GD)*0.95 ->  | Q62: =objectifs!$GD$3 -> 137 € | R62: =objectifs!$GE$3 -> 5.00 | S62: =P62*Q62*R62/1000 ->  | T62: =IF(ISERROR(S62/SUMIF(objectifs!$F:$F,$B$7,objectifs!IC:IC)),"nc",S62/SUMIF(objectifs!$F:$F,$B$7,objectifs!IC:IC)) -> nc | V62: =IF(ISERROR(J62/P62),0,J62/P62) -> 0% | W62: =IF(ISERROR(M62/S62),0,M62/S62) -> 0% | X62: =IF(ISERROR(N62-(T62/12*MONTH($C$9))),"nc",N62-(T62/12*MONTH($C$9))) -> nc
B63: Formule Initial famille | E63: =J63-SUMIF('Indicateurs Cumulés M-1'!$F:$F,$B$7,'Indicateurs Cumulés M-1'!HO:HO) -> 0 | F63: =K63 -> 135 € | G63: =L63 -> 5.00 | H63: =E63*F63*G63/1000 -> 0 | J63: =SUMIF('Indicateurs Cumulés'!$F:$F,$B$7,'Indicateurs Cumulés'!HO:HO) -> 8 | K63: ='Indicateurs Cumulés'!HO3 -> 135 € | L63: ='Indicateurs Cumulés'!$IK$3 -> 5.00 | M63: =J63*K63*L63/1000 -> 5 | N63: =IF(ISERROR(M63/SUMIF('Indicateurs Cumulés'!$F:$F,$B$7,'Indicateurs Cumulés'!LU:LU)),"nc",M63/SUMIF('Indicateurs Cumulés'!$F:$F,$B$7,'Indicateurs Cumulés'!LU:LU)) -> 0.0
B64: Formule Confort famille | E64: =J64-SUMIF('Indicateurs Cumulés M-1'!$F:$F,$B$7,'Indicateurs Cumulés M-1'!HP:HP) -> 357 | F64: 210 € | G64: 5.00 | H64: 374 | J64: =SUMIF('Indicateurs Cumulés'!$F:$F,$B$7,'Indicateurs Cumulés'!HP:HP) -> 2,543 | K64: ='Indicateurs Cumulés'!HP3 -> 210 € | L64: ='Indicateurs Cumulés'!$IK$3 -> 5.00 | M64: 2,666 | N64: =IF(ISERROR(M64/SUMIF('Indicateurs Cumulés'!$F:$F,$B$7,'Indicateurs Cumulés'!LU:LU)),"nc",M64/SUMIF('Indicateurs Cumulés'!$F:$F,$B$7,'Indicateurs Cumulés'!LU:LU)) -> 2.2
B65: Formule Optimal famille | E65: =J65-SUMIF('Indicateurs Cumulés M-1'!$F:$F,$B$7,'Indicateurs Cumulés M-1'!HQ:HQ) -> 214 | F65: 309 € | G65: 5.00 | H65: 331 | J65: =SUMIF('Indicateurs Cumulés'!$F:$F,$B$7,'Indicateurs Cumulés'!HQ:HQ) -> 1,343 | K65: ='Indicateurs Cumulés'!HQ3 -> 309 € | L65: ='Indicateurs Cumulés'!$IK$3 -> 5.00 | M65: 2,077 | N65: =IF(ISERROR(M65/SUMIF('Indicateurs Cumulés'!$F:$F,$B$7,'Indicateurs Cumulés'!LU:LU)),"nc",M65/SUMIF('Indicateurs Cumulés'!$F:$F,$B$7,'Indicateurs Cumulés'!LU:LU)) -> 1.7
B66: Formule Initial individuelle | E66: =J66-SUMIF('Indicateurs Cumulés M-1'!$F:$F,$B$7,'Indicateurs Cumulés M-1'!HL:HL) -> 234 | F66: 64 € | G66: 5.00 | H66: 75 | J66: =SUMIF('Indicateurs Cumulés'!$F:$F,$B$7,'Indicateurs Cumulés'!HL:HL) -> 2,013 | K66: ='Indicateurs Cumulés'!HL3 -> 64 € | L66: ='Indicateurs Cumulés'!$IK$3 -> 5.00 | M66: 649 | N66: =IF(ISERROR(M66/SUMIF('Indicateurs Cumulés'!$F:$F,$B$7,'Indicateurs Cumulés'!LU:LU)),"nc",M66/SUMIF('Indicateurs Cumulés'!$F:$F,$B$7,'Indicateurs Cumulés'!LU:LU)) -> 0.5
B67: Formule Confort individuelle | E67: =J67-SUMIF('Indicateurs Cumulés M-1'!$F:$F,$B$7,'Indicateurs Cumulés M-1'!HM:HM) -> 2,860 | F67: 104 € | G67: 5.00 | H67: 1,485 | J67: =SUMIF('Indicateurs Cumulés'!$F:$F,$B$7,'Indicateurs Cumulés'!HM:HM) -> 14,984 | K67: ='Indicateurs Cumulés'!HM3 -> 104 € | L67: ='Indicateurs Cumulés'!$IK$3 -> 5.00 | M67: 7,780 | N67: =IF(ISERROR(M67/SUMIF('Indicateurs Cumulés'!$F:$F,$B$7,'Indicateurs Cumulés'!LU:LU)),"nc",M67/SUMIF('Indicateurs Cumulés'!$F:$F,$B$7,'Indicateurs Cumulés'!LU:LU)) -> 6.5
B68: Formule Optimal individuelle | E68: =J68-SUMIF('Indicateurs Cumulés M-1'!$F:$F,$B$7,'Indicateurs Cumulés M-1'!HN:HN) -> 427 | F68: 197 € | G68: 5.00 | H68: 421 | J68: =SUMIF('Indicateurs Cumulés'!$F:$F,$B$7,'Indicateurs Cumulés'!HN:HN) -> 2,623 | K68: ='Indicateurs Cumulés'!HN3 -> 197 € | L68: ='Indicateurs Cumulés'!$IK$3 -> 5.00 | M68: 2,587 | N68: =IF(ISERROR(M68/SUMIF('Indicateurs Cumulés'!$F:$F,$B$7,'Indicateurs Cumulés'!LU:LU)),"nc",M68/SUMIF('Indicateurs Cumulés'!$F:$F,$B$7,'Indicateurs Cumulés'!LU:LU)) -> 2.2
B69: Bouquet liberté | E69: =J69-SUMIF('Indicateurs Cumulés M-1'!$F:$F,$B$7,'Indicateurs Cumulés M-1'!HH:HH) -> -3,224 | F69: =K69 -> 129 € | G69: 5.00 | H69: =E69*F69*G69/1000 -> -2,087 | J69: =SUMIF('Indicateurs Cumulés'!$F:$F,$B$7,'Indicateurs Cumulés'!HH:HH) -> -21,069 | K69: ='Indicateurs Cumulés'!$HH$3 -> 129 € | L69: ='Indicateurs Cumulés'!$IL$3 -> 5.00 | M69: =J69*K69*L69/1000 -> -13,636 | N69: =IF(ISERROR(M69/SUMIF('Indicateurs Cumulés'!$F:$F,$B$7,'Indicateurs Cumulés'!LU:LU)),"nc",M69/SUMIF('Indicateurs Cumulés'!$F:$F,$B$7,'Indicateurs Cumulés'!LU:LU)) -> -11.5
B70: Futéo / SOL 16-17 | E70: =J70-SUMIF('Indicateurs Cumulés M-1'!$F:$F,$B$7,'Indicateurs Cumulés M-1'!HI:HI) -> 206 | F70: 11 € | G70: 5.00 | H70: 11 | J70: =SUMIF('Indicateurs Cumulés'!$F:$F,$B$7,'Indicateurs Cumulés'!HI:HI) -> 1,242 | K70: ='Indicateurs Cumulés'!$HI$3 -> 11 € | L70: ='Indicateurs Cumulés'!$IM$3 -> 5.00 | M70: =J70*K70*L70/1000 -> 66 | N70: =IF(ISERROR(M70/SUMIF('Indicateurs Cumulés'!$F:$F,$B$7,'Indicateurs Cumulés'!LU:LU)),"nc",M70/SUMIF('Indicateurs Cumulés'!$F:$F,$B$7,'Indicateurs Cumulés'!LU:LU)) -> 0.1
B71: Satellis Essentiel / Essentiel + | E71: =J71-SUMIF('Indicateurs Cumulés M-1'!$F:$F,$B$7,'Indicateurs Cumulés M-1'!HJ:HJ) -> -129 | F71: 112 € | G71: 5.00 | H71: -72 | J71: =SUMIF('Indicateurs Cumulés'!$F:$F,$B$7,'Indicateurs Cumulés'!HJ:HJ) -> -754 | K71: ='Indicateurs Cumulés'!$HJ$3 -> 112 € | L71: ='Indicateurs Cumulés'!$IN$3 -> 5.00 | M71: =J71*K71*L71/1000 -> -422 | N71: =IF(ISERROR(M71/SUMIF('Indicateurs Cumulés'!$F:$F,$B$7,'Indicateurs Cumulés'!LU:LU)),"nc",M71/SUMIF('Indicateurs Cumulés'!$F:$F,$B$7,'Indicateurs Cumulés'!LU:LU)) -> -0.4
B72: Satellis Intégral | E72: =J72-SUMIF('Indicateurs Cumulés M-1'!$F:$F,$B$7,'Indicateurs Cumulés M-1'!HK:HK) -> -21 | F72: 163 € | G72: 5.00 | H72: -17 | J72: =SUMIF('Indicateurs Cumulés'!$F:$F,$B$7,'Indicateurs Cumulés'!HK:HK) -> -143 | K72: ='Indicateurs Cumulés'!$HK$3 -> 163 € | L72: ='Indicateurs Cumulés'!$IO$3 -> 5.00 | M72: =J72*K72*L72/1000 -> -117 | N72: =IF(ISERROR(M72/SUMIF('Indicateurs Cumulés'!$F:$F,$B$7,'Indicateurs Cumulés'!LU:LU)),"nc",M72/SUMIF('Indicateurs Cumulés'!$F:$F,$B$7,'Indicateurs Cumulés'!LU:LU)) -> -0.1
B73: Bonus Mobilité bancaire | E73: =J73-SUMIF('Indicateurs Cumulés M-1'!$F:$F,$B$7,'Indicateurs Cumulés M-1'!IJ:IJ) -> 0 | F73: =K73 -> 0 € | G73: =L73 -> 1.00 | H73: 0 | J73: =SUMIF('Indicateurs Cumulés'!$F:$F,$B$7,'Indicateurs Cumulés'!IJ:IJ) -> 0 | K73: =IF(ISERROR(M73/(J73*L73)*1000),0,M73/(J73*L73)*1000) -> 0 € | L73: 1.00 | M73: =SUMIF('Indicateurs Cumulés'!$F:$F,$B$7,'Indicateurs Cumulés'!JL:JL) -> 0 | N73: =IF(ISERROR(M73/SUMIF('Indicateurs Cumulés'!$F:$F,$B$7,'Indicateurs Cumulés'!LU:LU)),"nc",M73/SUMIF('Indicateurs Cumulés'!$F:$F,$B$7,'Indicateurs Cumulés'!LU:LU)) -> 0.0
B74: Options complémentaires sur Bouquet Liberté | E74: =J74-SUMIF('Indicateurs Cumulés M-1'!$F:$F,$B$7,'Indicateurs Cumulés M-1'!HR:HR) -> 0 | F74: =K74 -> 0 € | G74: =L74 -> 5.00 | H74: 0 | J74: =SUMIF('Indicateurs Cumulés'!$F:$F,$B$7,'Indicateurs Cumulés'!HR:HR) -> 0 | K74: =IF(ISERROR(M74/(J74*L74)*1000),0,M74/(J74*L74)*1000) -> 0 € | L74: ='Indicateurs Cumulés'!$IL$3 -> 5.00 | M74: =SUMIF('Indicateurs Cumulés'!$F:$F,$B$7,'Indicateurs Cumulés'!JK:JK) -> 0 | N74: =IF(ISERROR(M74/SUMIF('Indicateurs Cumulés'!$F:$F,$B$7,'Indicateurs Cumulés'!LU:LU)),"nc",M74/SUMIF('Indicateurs Cumulés'!$F:$F,$B$7,'Indicateurs Cumulés'!LU:LU)) -> 0.0 | P74: =SUMIF(objectifs!$F:$F,$B$7,objectifs!FL:FL) -> 0 | Q74: =objectifs!$FL$3 -> 15 € | R74: =objectifs!$FM$3 -> 5.00 | S74: =P74*Q74*R74/1000 -> 0 | T74: =IF(ISERROR(S74/SUMIF(objectifs!$F:$F,$B$7,objectifs!IC:IC)),"nc",S74/SUMIF(objectifs!$F:$F,$B$7,objectifs!IC:IC)) -> 0.0 | V74: =IF(ISERROR(J74/P74),0,J74/P74) -> 0% | W74: =IF(ISERROR(M74/S74),0,M74/S74) -> 0% | X74: =IF(ISERROR(N74-(T74/12*MONTH($C$9))),"nc",N74-(T74/12*MONTH($C$9))) -> 0
B75: Cartes - Tarification | E75: =SUM(E76:E81) -> 2,574 | H75: =SUM(H76:H81) -> 1,061 | J75: =SUM(J76:J81) -> 11,460 | M75: =SUM(M76:M81) -> 5,276 | N75: =IF(ISERROR(M75/SUMIF('Indicateurs Cumulés'!$F:$F,$B$7,'Indicateurs Cumulés'!LU:LU)),"nc",M75/SUMIF('Indicateurs Cumulés'!$F:$F,$B$7,'Indicateurs Cumulés'!LU:LU)) -> 4.4 | P75: =SUMIF(objectifs!$F:$F,$B$7,objectifs!GF:GF)*0.95 -> 0 | Q75: =objectifs!$GF$3 -> 98 € | R75: =objectifs!$GG$3 -> 5.00 | S75: =P75*Q75*R75/1000 -> 0 | T75: =IF(ISERROR(S75/SUMIF(objectifs!$F:$F,$B$7,objectifs!IC:IC)),"nc",S75/SUMIF(objectifs!$F:$F,$B$7,objectifs!IC:IC)) -> 0.0 | V75: =IF(ISERROR(J75/P75),0,J75/P75) -> 0% | W75: =IF(ISERROR(M75/S75),0,M75/S75) -> 0% | X75: =IF(ISERROR(N75-(T75/12*MONTH($C$9))),"nc",N75-(T75/12*MONTH($C$9))) -> 4.4
B76: Carte Infinite | E76: =J76-SUMIF('Indicateurs Cumulés M-1'!$F:$F,$B$7,'Indicateurs Cumulés M-1'!IC:IC) -> 14 | F76: =K76 -> 133 € | G76: =L76 -> 5.00 | H76: =E76*F76*G76/1000 -> 9 | J76: =SUMIF('Indicateurs Cumulés'!$F:$F,$B$7,'Indicateurs Cumulés'!IC:IC) -> 86 | K76: ='Indicateurs Cumulés'!$IC$3 -> 133 € | L76: ='Indicateurs Cumulés'!$JD$3 -> 5.00 | M76: =J76*K76*L76/1000 -> 57 | N76: =IF(ISERROR(M76/SUMIF('Indicateurs Cumulés'!$F:$F,$B$7,'Indicateurs Cumulés'!LU:LU)),"nc",M76/SUMIF('Indicateurs Cumulés'!$F:$F,$B$7,'Indicateurs Cumulés'!LU:LU)) -> 0.0
B77: Carte Platinum (yc izicarte) | E77: =J77-SUMIF('Indicateurs Cumulés M-1'!$F:$F,$B$7,'Indicateurs Cumulés M-1'!ID:ID) -> 35 | F77: =K77 -> 145 € | G77: 5.00 | H77: 25 | J77: =SUMIF('Indicateurs Cumulés'!$F:$F,$B$7,'Indicateurs Cumulés'!ID:ID) -> 177 | K77: ='Indicateurs Cumulés'!$ID$3 -> 145 € | L77: ='Indicateurs Cumulés'!$JE$3 -> 5.00 | M77: 128 | N77: =IF(ISERROR(M77/SUMIF('Indicateurs Cumulés'!$F:$F,$B$7,'Indicateurs Cumulés'!LU:LU)),"nc",M77/SUMIF('Indicateurs Cumulés'!$F:$F,$B$7,'Indicateurs Cumulés'!LU:LU)) -> 0.1
B78: Carte Premier (yc izicarte) | E78: =J78-SUMIF('Indicateurs Cumulés M-1'!$F:$F,$B$7,'Indicateurs Cumulés M-1'!IE:IE) -> 1,688 | F78: 96 € | G78: 5.00 | H78: 810 | J78: =SUMIF('Indicateurs Cumulés'!$F:$F,$B$7,'Indicateurs Cumulés'!IE:IE) -> 7,836 | K78: ='Indicateurs Cumulés'!$IE$3 -> 96 € | L78: ='Indicateurs Cumulés'!$JF$3 -> 5.00 | M78: 3,761 | N78: =IF(ISERROR(M78/SUMIF('Indicateurs Cumulés'!$F:$F,$B$7,'Indicateurs Cumulés'!LU:LU)),"nc",M78/SUMIF('Indicateurs Cumulés'!$F:$F,$B$7,'Indicateurs Cumulés'!LU:LU)) -> 3.2
B79: Carte Classic (yc izicarte) | E79: =J79-SUMIF('Indicateurs Cumulés M-1'!$F:$F,$B$7,'Indicateurs Cumulés M-1'!IF:IF) -> 1,518 | F79: 41 € | G79: 5.00 | H79: 309 | J79: =SUMIF('Indicateurs Cumulés'!$F:$F,$B$7,'Indicateurs Cumulés'!IF:IF) -> 12,958 | K79: ='Indicateurs Cumulés'!$IF$3 -> 41 € | L79: ='Indicateurs Cumulés'!$JG$3 -> 5.00 | M79: 2,639 | N79: =IF(ISERROR(M79/SUMIF('Indicateurs Cumulés'!$F:$F,$B$7,'Indicateurs Cumulés'!LU:LU)),"nc",M79/SUMIF('Indicateurs Cumulés'!$F:$F,$B$7,'Indicateurs Cumulés'!LU:LU)) -> 2.2
B80: Carte Sensea /Carte de retrait | E80: =J80-SUMIF('Indicateurs Cumulés M-1'!$F:$F,$B$7,'Indicateurs Cumulés M-1'!IG:IG) -> -678 | F80: 27 € | G80: 5.00 | H80: -93 | J80: =SUMIF('Indicateurs Cumulés'!$F:$F,$B$7,'Indicateurs Cumulés'!IG:IG) -> -9,587 | K80: ='Indicateurs Cumulés'!$IG$3 -> 27 € | L80: ='Indicateurs Cumulés'!$JH$3 -> 5.00 | M80: -1,310 | N80: =IF(ISERROR(M80/SUMIF('Indicateurs Cumulés'!$F:$F,$B$7,'Indicateurs Cumulés'!LU:LU)),"nc",M80/SUMIF('Indicateurs Cumulés'!$F:$F,$B$7,'Indicateurs Cumulés'!LU:LU)) -> -1.1
B81: Autres Cartes | E81: =J81-SUMIF('Indicateurs Cumulés M-1'!$F:$F,$B$7,'Indicateurs Cumulés M-1'!IH:IH) -> -3 | F81: 14 € | G81: 5.00 | H81: -0 | J81: =SUMIF('Indicateurs Cumulés'!$F:$F,$B$7,'Indicateurs Cumulés'!IH:IH) -> -10 | K81: ='Indicateurs Cumulés'!$IH$3 -> 14 € | L81: ='Indicateurs Cumulés'!$JI$3 -> 5.00 | M81: -1 | N81: =IF(ISERROR(M81/SUMIF('Indicateurs Cumulés'!$F:$F,$B$7,'Indicateurs Cumulés'!LU:LU)),"nc",M81/SUMIF('Indicateurs Cumulés'!$F:$F,$B$7,'Indicateurs Cumulés'!LU:LU)) -> -0.0
B82: Booster Cartes débit différé | E82: =J82-SUMIF('Indicateurs Cumulés M-1'!$F:$F,$B$7,'Indicateurs Cumulés M-1'!II:II) -> 0 | F82: =K82 -> 0 € | G82: 5.00 | H82: 0 | J82: =SUMIF('Indicateurs Cumulés'!$F:$F,$B$7,'Indicateurs Cumulés'!II:II) -> 0 | K82: =IF(ISERROR(M82/(J82*L82)*1000),0,M82/(J82*L82)*1000) -> 0 € | L82: =objectifs!$GG$3 -> 5.00 | M82: =SUMIF('Indicateurs Cumulés'!$F:$F,$B$7,'Indicateurs Cumulés'!JJ:JJ) -> 0 | N82: =IF(ISERROR(M82/SUMIF('Indicateurs Cumulés'!$F:$F,$B$7,'Indicateurs Cumulés'!LU:LU)),"nc",M82/SUMIF('Indicateurs Cumulés'!$F:$F,$B$7,'Indicateurs Cumulés'!LU:LU)) -> 0.0
B83: IARD & Prévoyance - Commissions | E83: =J83-(SUMIF('Indicateurs Cumulés M-1'!$F:$F,$B$7,'Indicateurs Cumulés M-1'!IA:IA) +SUMIF('Indicateurs Cumulés M-1'!$F:$F,$B$7,'Indicateurs Cumulés M-1'!HV:HV) +SUMIF('Indicateurs Cumulés M-1'!$F:$F,$B$7,'Indicateurs Cumulés M-1'!HS:HS) +SUMIF('Indicateurs Cumulés M-1'!$F:$F,$B$7,'Indicateurs Cumulés M-1'!HT:HT) +SUMIF('Indicateurs Cumulés M-1'!$F:$F,$B$7,'Indicateurs Cumulés M-1'!HU:HU) +SUMIF('Indicateurs Cumulés M-1'!$F:$F,$B$7,'Indicateurs Cumulés M-1'!HW:HW) +SUMIF('Indicateurs Cumulés M-1'!$F:$F,$B$7,'Indicateurs Cumulés M-1'!HX:HX) +SUMIF('Indicateurs Cumulés M-1'!$F:$F,$B$7,'Indicateurs Cumulés M-1'!HY:HY) +SUMIF('Indicateurs Cumulés M-1'!$F:$F,$B$7,'Indicateurs Cumulés M-1'!HZ:HZ) +SUMIF('Indicateurs Cumulés M-1'!$F:$F,$B$7,'Indicateurs Cumulés M-1'!IB:IB)) -> 2,314 | F83: =IF(ISERROR(H83/(E83*G83)*1000),0,H83/(E83*G83)*1000) -> 36 € | G83: =L83 -> 5.00 | H83: =M83-(SUMIF('Indicateurs Cumulés M-1'!$F:$F,$B$7,'Indicateurs Cumulés M-1'!IU:IU) +SUMIF('Indicateurs Cumulés M-1'!$F:$F,$B$7,'Indicateurs Cumulés M-1'!IZ:IZ) +SUMIF('Indicateurs Cumulés M-1'!$F:$F,$B$7,'Indicateurs Cumulés M-1'!IR:IR) +SUMIF('Indicateurs Cumulés M-1'!$F:$F,$B$7,'Indicateurs Cumulés M-1'!IS:IS) +SUMIF('Indicateurs Cumulés M-1'!$F:$F,$B$7,'Indicateurs Cumulés M-1'!IT:IT) +SUMIF('Indicateurs Cumulés M-1'!$F:$F,$B$7,'Indicateurs Cumulés M-1'!IV:IV) +SUMIF('Indicateurs Cumulés M-1'!$F:$F,$B$7,'Indicateurs Cumulés M-1'!IW:IW) +SUMIF('Indicateurs Cumulés M-1'!$F:$F,$B$7,'Indicateurs Cumulés M-1'!IX:IX) +SUMIF('Indicateurs Cumulés M-1'!$F:$F,$B$7,'Indicateurs Cumulés M-1'!IY:IY) +SUMIF('Indicateurs Cumulés M-1'!$F:$F,$B$7,'Indicateurs Cumulés M-1'!JA:JA)) -> 413 | J83: =SUMIF('Indicateurs Cumulés'!$F:$F,$B$7,'Indicateurs Cumulés'!HS:HS) +SUMIF('Indicateurs Cumulés'!$F:$F,$B$7,'Indicateurs Cumulés'!HT:HT) +SUMIF('Indicateurs Cumulés'!$F:$F,$B$7,'Indicateurs Cumulés'!HU:HU) +SUMIF('Indicateurs Cumulés'!$F:$F,$B$7,'Indicateurs Cumulés'!HV:HV) +SUMIF('Indicateurs Cumulés'!$F:$F,$B$7,'Indicateurs Cumulés'!HW:HW) +SUMIF('Indicateurs Cumulés'!$F:$F,$B$7,'Indicateurs Cumulés'!HX:HX) +SUMIF('Indicateurs Cumulés'!$F:$F,$B$7,'Indicateurs Cumulés'!HY:HY) +SUMIF('Indicateurs Cumulés'!$F:$F,$B$7,'Indicateurs Cumulés'!HZ:HZ) +SUMIF('Indicateurs Cumulés'!$F:$F,$B$7,'Indicateurs Cumulés'!IA:IA) +SUMIF('Indicateurs Cumulés'!$F:$F,$B$7,'Indicateurs Cumulés'!IB:IB) -> 17,099 | K83: =IF(ISERROR(M83/(J83*L83)*1000),0,M83/(J83*L83)*1000) -> 39 € | L83: =objectifs!$GI$3 -> 5.00 | M83: =SUMIF('Indicateurs Cumulés'!$F:$F,$B$7,'Indicateurs Cumulés'!IR:IR) +SUMIF('Indicateurs Cumulés'!$F:$F,$B$7,'Indicateurs Cumulés'!IS:IS) +SUMIF('Indicateurs Cumulés'!$F:$F,$B$7,'Indicateurs Cumulés'!IT:IT) +SUMIF('Indicateurs Cumulés'!$F:$F,$B$7,'Indicateurs Cumulés'!IU:IU) +SUMIF('Indicateurs Cumulés'!$F:$F,$B$7,'Indicateurs Cumulés'!IV:IV) +SUMIF('Indicateurs Cumulés'!$F:$F,$B$7,'Indicateurs Cumulés'!IW:IW) +SUMIF('Indicateurs Cumulés'!$F:$F,$B$7,'Indicateurs Cumulés'!IX:IX) +SUMIF('Indicateurs Cumulés'!$F:$F,$B$7,'Indicateurs Cumulés'!IY:IY) +SUMIF('Indicateurs Cumulés'!$F:$F,$B$7,'Indicateurs Cumulés'!IZ:IZ) +SUMIF('Indicateurs Cumulés'!$F:$F,$B$7,'Indicateurs Cumulés'!JA:JA) -> 3,351 | N83: =IF(ISERROR(M83/SUMIF('Indicateurs Cumulés'!$F:$F,$B$7,'Indicateurs Cumulés'!LU:LU)),"nc",M83/SUMIF('Indicateurs Cumulés'!$F:$F,$B$7,'Indicateurs Cumulés'!LU:LU)) -> 2.8 | P83: =SUMIF(objectifs!$F:$F,$B$7,objectifs!GH:GH)*0.95 -> 0 | Q83: =objectifs!$GH$3 -> 22 € | R83: =objectifs!$GI$3 -> 5.00 | S83: =P83*Q83*R83/1000 -> 0 | T83: =IF(ISERROR(S83/SUMIF(objectifs!$F:$F,$B$7,objectifs!IC:IC)),"nc",S83/SUMIF(objectifs!$F:$F,$B$7,objectifs!IC:IC)) -> 0.0 | V83: =IF(ISERROR(J83/P83),0,J83/P83) -> 0% | W83: =IF(ISERROR(M83/S83),0,M83/S83) -> 0% | X83: =IF(ISERROR(N83-(T83/12*MONTH($C$9))),"nc",N83-(T83/12*MONTH($C$9))) -> 2.8
B84: dont AUTO | E84: =J84-SUMIF('Indicateurs Cumulés M-1'!$F:$F,$B$7,'Indicateurs Cumulés M-1'!HS:HS) -> -53 | F84: =K84 -> 55 € | G84: 5.60 | H84: =E84*F84*G84/1000 -> -16 | J84: =SUMIF('Indicateurs Cumulés'!$F:$F,$B$7,'Indicateurs Cumulés'!HS:HS) -> 1,374 | K84: 55 € | L84: ='Indicateurs Cumulés'!$IR$3 -> 5.60 | M84: =SUMIF('Indicateurs Cumulés'!$F:$F,$B$7,'Indicateurs Cumulés'!IR:IR) -> 422 | N84: =IF(ISERROR(M84/SUMIF('Indicateurs Cumulés'!$F:$F,$B$7,'Indicateurs Cumulés'!LU:LU)),"nc",M84/SUMIF('Indicateurs Cumulés'!$F:$F,$B$7,'Indicateurs Cumulés'!LU:LU)) -> 0.4 | P84: =SUMIF(objectifs!$F:$F,$B$7,objectifs!HS:HS) -> 0 | Q84: =objectifs!$HS$3 -> 43 € | R84: =objectifs!$HT$3 -> 2.75 | S84: =P84*Q84*R84/1000 -> 0 | T84: =IF(ISERROR(S84/SUMIF(objectifs!$F:$F,$B$7,objectifs!IC:IC)),"nc",S84/SUMIF(objectifs!$F:$F,$B$7,objectifs!IC:IC)) -> 0.0 | V84: =IF(ISERROR(J84/P84),0,J84/P84) -> 0% | W84: =IF(ISERROR(M84/S84),0,M84/S84) -> 0% | X84: =IF(ISERROR(N84-(T84/12*MONTH($C$9))),"nc",N84-(T84/12*MONTH($C$9))) -> 0.4
B85: dont MRH | E85: =J85-SUMIF('Indicateurs Cumulés M-1'!$F:$F,$B$7,'Indicateurs Cumulés M-1'!HT:HT) -> 618 | F85: 33 € | G85: 8.10 | H85: =E85*F85*G85/1000 -> 167 | J85: =SUMIF('Indicateurs Cumulés'!$F:$F,$B$7,'Indicateurs Cumulés'!HT:HT) -> 3,714 | K85: 33 € | L85: ='Indicateurs Cumulés'!$IS$3 -> 8.10 | M85: =SUMIF('Indicateurs Cumulés'!$F:$F,$B$7,'Indicateurs Cumulés'!IS:IS) -> 1,006 | N85: =IF(ISERROR(M85/SUMIF('Indicateurs Cumulés'!$F:$F,$B$7,'Indicateurs Cumulés'!LU:LU)),"nc",M85/SUMIF('Indicateurs Cumulés'!$F:$F,$B$7,'Indicateurs Cumulés'!LU:LU)) -> 0.8 | P85: =SUMIF(objectifs!$F:$F,$B$7,objectifs!HU:HU) -> 0 | Q85: =objectifs!$HU$3 -> 25 € | R85: =objectifs!$HV$3 -> 3.96 | S85: =P85*Q85*R85/1000 -> 0 | T85: =IF(ISERROR(S85/SUMIF(objectifs!$F:$F,$B$7,objectifs!IC:IC)),"nc",S85/SUMIF(objectifs!$F:$F,$B$7,objectifs!IC:IC)) -> 0.0 | V85: =IF(ISERROR(J85/P85),0,J85/P85) -> 0% | W85: =IF(ISERROR(M85/S85),0,M85/S85) -> 0% | X85: =IF(ISERROR(N85-(T85/12*MONTH($C$9))),"nc",N85-(T85/12*MONTH($C$9))) -> 0.8
B86: dont GAV | E86: =J86-SUMIF('Indicateurs Cumulés M-1'!$F:$F,$B$7,'Indicateurs Cumulés M-1'!HV:HV) -> 202 | F86: 23 € | G86: 12.50 | H86: =E86*F86*G86/1000 -> 57 | J86: =SUMIF('Indicateurs Cumulés'!$F:$F,$B$7,'Indicateurs Cumulés'!HV:HV) -> 1,975 | K86: 23 € | L86: ='Indicateurs Cumulés'!$IU$3 -> 12.50 | M86: =SUMIF('Indicateurs Cumulés'!$F:$F,$B$7,'Indicateurs Cumulés'!IU:IU) -> 561 | N86: =IF(ISERROR(M86/SUMIF('Indicateurs Cumulés'!$F:$F,$B$7,'Indicateurs Cumulés'!LU:LU)),"nc",M86/SUMIF('Indicateurs Cumulés'!$F:$F,$B$7,'Indicateurs Cumulés'!LU:LU)) -> 0.5
B87: dont ESO | E87: =J87-SUMIF('Indicateurs Cumulés M-1'!$F:$F,$B$7,'Indicateurs Cumulés M-1'!HY:HY) -> 77 | F87: 14 € | G87: 7.00 | H87: =E87*F87*G87/1000 -> 8 | J87: =SUMIF('Indicateurs Cumulés'!$F:$F,$B$7,'Indicateurs Cumulés'!HY:HY) -> 501 | K87: 14 € | L87: ='Indicateurs Cumulés'!$IX$3 -> 7.00 | M87: =SUMIF('Indicateurs Cumulés'!$F:$F,$B$7,'Indicateurs Cumulés'!IX:IX) -> 49 | N87: =IF(ISERROR(M87/SUMIF('Indicateurs Cumulés'!$F:$F,$B$7,'Indicateurs Cumulés'!LU:LU)),"nc",M87/SUMIF('Indicateurs Cumulés'!$F:$F,$B$7,'Indicateurs Cumulés'!LU:LU)) -> 0.0
B88: dont Sécur Famille | E88: =J88-SUMIF('Indicateurs Cumulés M-1'!$F:$F,$B$7,'Indicateurs Cumulés M-1'!HZ:HZ) -> 1,189 | F88: 19 € | G88: 6.00 | H88: =E88*F88*G88/1000 -> 137 | J88: =SUMIF('Indicateurs Cumulés'!$F:$F,$B$7,'Indicateurs Cumulés'!HZ:HZ) -> 7,303 | K88: 19 € | L88: ='Indicateurs Cumulés'!$IY$3 -> 6.00 | M88: =SUMIF('Indicateurs Cumulés'!$F:$F,$B$7,'Indicateurs Cumulés'!IY:IY) -> 841 | N88: =IF(ISERROR(M88/SUMIF('Indicateurs Cumulés'!$F:$F,$B$7,'Indicateurs Cumulés'!LU:LU)),"nc",M88/SUMIF('Indicateurs Cumulés'!$F:$F,$B$7,'Indicateurs Cumulés'!LU:LU)) -> 0.7 | P88: =SUMIF(objectifs!$F:$F,$B$7,objectifs!ID:ID) -> 0 | Q88: =+objectifs!$ID$3 -> 19 € | R88: =+objectifs!$IE$3 -> 6.00 | S88: =P88*Q88*R88/1000 -> 0 | T88: =IF(ISERROR(S88/SUMIF(objectifs!$F:$F,$B$7,objectifs!IC:IC)),"nc",S88/SUMIF(objectifs!$F:$F,$B$7,objectifs!IC:IC)) -> 0.0 | V88: =IF(ISERROR(J88/P88),0,J88/P88) -> 0% | W88: =IF(ISERROR(M88/S88),0,M88/S88) -> 0% | X88: =IF(ISERROR(N88-(T88/12*MONTH($C$9))),"nc",N88-(T88/12*MONTH($C$9))) -> 0.7
B91: BANCA PRO - Ventes nettes | E91: =SUM(E92:E98) -> 442 | H91: =SUM(H92:H98) -> 952 | J91: =SUM(J92:J97) -> 2,898 | M91: =SUM(M92:M98) -> 2,393 | N91: =IF(ISERROR(M91/SUMIF('Indicateurs Cumulés'!$F:$F,$B$7,'Indicateurs Cumulés'!LU:LU)),"nc",M91/SUMIF('Indicateurs Cumulés'!$F:$F,$B$7,'Indicateurs Cumulés'!LU:LU)) -> 2.0 | P91: =SUM(P92:P98) -> 0 | S91: =SUM(S92:S98) ->  | T91: =IF(ISERROR(S91/SUMIF(objectifs!$F:$F,$B$7,objectifs!IC:IC)),"nc",S91/SUMIF(objectifs!$F:$F,$B$7,objectifs!IC:IC)) -> nc | V91: =IF(ISERROR(J91/P91),0,J91/P91) -> 0% | W91: =IF(ISERROR(M91/S91),0,M91/S91) -> 0% | X91: =IF(ISERROR(N91-(T91/12*MONTH($C$9))),"nc",N91-(T91/12*MONTH($C$9))) -> nc
B92: Forfaits PRO - Tarification | E92: =J92-SUMIF('Indicateurs Cumulés M-1'!$F:$F,$B$7,'Indicateurs Cumulés M-1'!KC:KC)-SUMIF('Indicateurs Cumulés M-1'!$F:$F,$B$7,'Indicateurs Cumulés M-1'!KE:KE) -> 146 | F92: =K92 -> -13 € | G92: =L92 -> 5.00 | H92: =E92*F92*G92/1000 -> -9 | J92: =SUMIF('Indicateurs Cumulés'!$F:$F,$B$7,'Indicateurs Cumulés'!KC:KC) +SUMIF('Indicateurs Cumulés'!$F:$F,$B$7,'Indicateurs Cumulés'!KE:KE) -> 799 | K92: =IF(ISERROR(M92/(J92*L92)*1000),0,M92/(J92*L92)*1000) -> -13 € | L92: =objectifs!$HF$3 -> 5.00 | M92: =SUMIF('Indicateurs Cumulés'!$F:$F,$B$7,'Indicateurs Cumulés'!KN:KN)+SUMIF('Indicateurs Cumulés'!$F:$F,$B$7,'Indicateurs Cumulés'!KP:KP) -> -50 | N92: =IF(ISERROR(M92/SUMIF('Indicateurs Cumulés'!$F:$F,$B$7,'Indicateurs Cumulés'!LU:LU)),"nc",M92/SUMIF('Indicateurs Cumulés'!$F:$F,$B$7,'Indicateurs Cumulés'!LU:LU)) -> -0.0 | P92: =SUMIF(objectifs!$F:$F,$B$7,objectifs!GZ:GZ)+SUMIF(objectifs!$F:$F,$B$7,objectifs!HB:HB) -> 0 | Q92: =IF(ISERROR(S92/(P92*R92)*1000),0,S92/(P92*R92)*1000) -> 0 € | R92: =objectifs!$HF$3 -> 5.00 | S92: =SUMIF(objectifs!$F:$F,$B$7,objectifs!HF:HF)+SUMIF(objectifs!$F:$F,$B$7,objectifs!HH:HH) -> 0 | T92: =IF(ISERROR(S92/SUMIF(objectifs!$F:$F,$B$7,objectifs!IC:IC)),"nc",S92/SUMIF(objectifs!$F:$F,$B$7,objectifs!IC:IC)) -> 0.0 | V92: 0% | W92: 0% | X92: -0.0
B93: Cartes PRO - Tarification | E93: =J93-SUMIF('Indicateurs Cumulés M-1'!$F:$F,$B$7,'Indicateurs Cumulés M-1'!KD:KD) -SUMIF('Indicateurs Cumulés M-1'!$F:$F,$B$7,'Indicateurs Cumulés M-1'!KF:KF) -SUMIF('Indicateurs Cumulés M-1'!$F:$F,$B$7,'Indicateurs Cumulés M-1'!KG:KG) -> 148 | F93: 37 € | G93: 5.00 | H93: 27 | J93: =SUMIF('Indicateurs Cumulés'!$F:$F,$B$7,'Indicateurs Cumulés'!KD:KD) +SUMIF('Indicateurs Cumulés'!$F:$F,$B$7,'Indicateurs Cumulés'!KF:KF) +SUMIF('Indicateurs Cumulés'!$F:$F,$B$7,'Indicateurs Cumulés'!KG:KG) -> 902 | K93: 37 € | L93: =objectifs!$HG$3 -> 5.00 | M93: =SUMIF('Indicateurs Cumulés'!$F:$F,$B$7,'Indicateurs Cumulés'!KO:KO)+SUMIF('Indicateurs Cumulés'!$F:$F,$B$7,'Indicateurs Cumulés'!KQ:KQ)+SUMIF('Indicateurs Cumulés'!$F:$F,$B$7,'Indicateurs Cumulés'!KR:KR) -> 165 | N93: =IF(ISERROR(M93/SUMIF('Indicateurs Cumulés'!$F:$F,$B$7,'Indicateurs Cumulés'!LU:LU)),"nc",M93/SUMIF('Indicateurs Cumulés'!$F:$F,$B$7,'Indicateurs Cumulés'!LU:LU)) -> 0.1 | P93: =SUMIF(objectifs!$F:$F,$B$7,objectifs!HA:HA)+SUMIF(objectifs!$F:$F,$B$7,objectifs!HC:HC)+SUMIF(objectifs!$F:$F,$B$7,objectifs!HD:HD) -> 0 | Q93: 0 € | R93: =objectifs!$HG$3 -> 5.00 | S93: =SUMIF(objectifs!$F:$F,$B$7,objectifs!HG:HG)+SUMIF(objectifs!$F:$F,$B$7,objectifs!HI:HI)+SUMIF(objectifs!$F:$F,$B$7,objectifs!HJ:HJ) -> 0 | T93: =IF(ISERROR(S93/SUMIF(objectifs!$F:$F,$B$7,objectifs!IC:IC)),"nc",S93/SUMIF(objectifs!$F:$F,$B$7,objectifs!IC:IC)) -> 0.0 | V93: 0% | W93: 0% | X93: 0.1
B94: AUTO PRO (ventes brutes) - Commissions | E94: =J94-SUMIF('Indicateurs Cumulés M-1'!$F:$F,$B$7,'Indicateurs Cumulés M-1'!KI:KI) -> 10 | F94: 204 € | G94: 2.75 | H94: 6 | J94: =SUMIF('Indicateurs Cumulés'!$F:$F,$B$7,'Indicateurs Cumulés'!KI:KI) -> 75 | K94: 204 € | L94: =objectifs!$HZ$3 -> 2.75 | M94: =SUMIF('Indicateurs Cumulés'!$F:$F,$B$7,'Indicateurs Cumulés'!KT:KT) -> 42 | N94: =IF(ISERROR(M94/SUMIF('Indicateurs Cumulés'!$F:$F,$B$7,'Indicateurs Cumulés'!LU:LU)),"nc",M94/SUMIF('Indicateurs Cumulés'!$F:$F,$B$7,'Indicateurs Cumulés'!LU:LU)) -> 0.0 | P94: =SUMIF(objectifs!$F:$F,$B$7,objectifs!HW:HW) -> 0 | Q94: 0 € | R94: =objectifs!$HZ$3 -> 2.75 | S94: =SUMIF(objectifs!$F:$F,$B$7,objectifs!HZ:HZ) -> 0 | T94: =IF(ISERROR(S94/SUMIF(objectifs!$F:$F,$B$7,objectifs!IC:IC)),"nc",S94/SUMIF(objectifs!$F:$F,$B$7,objectifs!IC:IC)) -> 0.0 | V94: 0% | W94: 0% | X94: 0.0
B95: Multirisque PRO (ventes brutes) - Commissions | E95: =J95-SUMIF('Indicateurs Cumulés M-1'!$F:$F,$B$7,'Indicateurs Cumulés M-1'!KJ:KJ) -> 15 | F95: 62 € | G95: 3.96 | H95: 4 | J95: =SUMIF('Indicateurs Cumulés'!$F:$F,$B$7,'Indicateurs Cumulés'!KJ:KJ) -> 86 | K95: 62 € | L95: =objectifs!$IA$3 -> 3.96 | M95: =SUMIF('Indicateurs Cumulés'!$F:$F,$B$7,'Indicateurs Cumulés'!KU:KU) -> 21 | N95: =IF(ISERROR(M95/SUMIF('Indicateurs Cumulés'!$F:$F,$B$7,'Indicateurs Cumulés'!LU:LU)),"nc",M95/SUMIF('Indicateurs Cumulés'!$F:$F,$B$7,'Indicateurs Cumulés'!LU:LU)) -> 0.0 | P95: =SUMIF(objectifs!$F:$F,$B$7,objectifs!HX:HX) -> 0 | Q95: 0 € | R95: =objectifs!$IA$3 -> 3.96 | S95: =SUMIF(objectifs!$F:$F,$B$7,objectifs!IA:IA) -> 0 | T95: =IF(ISERROR(S95/SUMIF(objectifs!$F:$F,$B$7,objectifs!IC:IC)),"nc",S95/SUMIF(objectifs!$F:$F,$B$7,objectifs!IC:IC)) -> 0.0 | V95: 0% | W95: 0% | X95: 0.0
B96: Autres - Commissions | E96: =J96-SUMIF('Indicateurs Cumulés M-1'!$F:$F,$B$7,'Indicateurs Cumulés M-1'!KH:KH) -SUMIF('Indicateurs Cumulés M-1'!$F:$F,$B$7,'Indicateurs Cumulés M-1'!KK:KK) -SUMIF('Indicateurs Cumulés M-1'!$F:$F,$B$7,'Indicateurs Cumulés M-1'!KL:KL) -> 125 | F96: 112 € | G96: 5.00 | H96: 70 | J96: =SUMIF('Indicateurs Cumulés'!$F:$F,$B$7,'Indicateurs Cumulés'!KH:KH) +SUMIF('Indicateurs Cumulés'!$F:$F,$B$7,'Indicateurs Cumulés'!KK:KK) +SUMIF('Indicateurs Cumulés'!$F:$F,$B$7,'Indicateurs Cumulés'!KL:KL) -> 912 | K96: 112 € | L96: =objectifs!$HK$3 -> 5.00 | M96: =SUMIF('Indicateurs Cumulés'!$F:$F,$B$7,'Indicateurs Cumulés'!KS:KS) +SUMIF('Indicateurs Cumulés'!$F:$F,$B$7,'Indicateurs Cumulés'!KV:KV) +SUMIF('Indicateurs Cumulés'!$F:$F,$B$7,'Indicateurs Cumulés'!KW:KW) -> 511 | N96: =IF(ISERROR(M96/SUMIF('Indicateurs Cumulés'!$F:$F,$B$7,'Indicateurs Cumulés'!LU:LU)),"nc",M96/SUMIF('Indicateurs Cumulés'!$F:$F,$B$7,'Indicateurs Cumulés'!LU:LU)) -> 0.4 | P96: =SUMIF(objectifs!$F:$F,$B$7,objectifs!HE:HE) -> 0 | Q96: 0 € | R96: =objectifs!$HK$3 -> 5.00 | S96: =SUMIF(objectifs!$F:$F,$B$7,objectifs!HK:HK) -> 0 | T96: =IF(ISERROR(S96/SUMIF(objectifs!$F:$F,$B$7,objectifs!IC:IC)),"nc",S96/SUMIF(objectifs!$F:$F,$B$7,objectifs!IC:IC)) -> 0.0 | V96: 0% | W96: 0% | X96: 0.4
B97: Contrats monétiques actifs - Commissions | E97: =J97-SUMIF('Indicateurs Cumulés M-1'!$F:$F,$B$7,'Indicateurs Cumulés M-1'!KM:KM) -> -2 | F97: 100 € | G97: 5.00 | H97: -1 | J97: =SUMIF('Indicateurs Cumulés'!$F:$F,$B$7,'Indicateurs Cumulés'!KM:KM) -> 124 | K97: 100 € | L97: =objectifs!$IB$3 -> 5.00 | M97: =SUMIF('Indicateurs Cumulés'!$F:$F,$B$7,'Indicateurs Cumulés'!KX:KX) -> 62 | N97: =IF(ISERROR(M97/SUMIF('Indicateurs Cumulés'!$F:$F,$B$7,'Indicateurs Cumulés'!LU:LU)),"nc",M97/SUMIF('Indicateurs Cumulés'!$F:$F,$B$7,'Indicateurs Cumulés'!LU:LU)) -> 0.1 | P97: =SUMIF(objectifs!$F:$F,$B$7,objectifs!HY:HY) -> 0 | Q97: 0 € | R97: =objectifs!$IB$3 -> 5.00 | S97: =SUMIF(objectifs!$F:$F,$B$7,objectifs!IB:IB) -> 0 | T97: =IF(ISERROR(S97/SUMIF(objectifs!$F:$F,$B$7,objectifs!IC:IC)),"nc",S97/SUMIF(objectifs!$F:$F,$B$7,objectifs!IC:IC)) -> 0.0 | V97: 0% | W97: 0% | X97: 0.1
B98: Commisions de mouvement | H98: =M98-SUMIF('Indicateurs Cumulés M-1'!$F:$F,$B$7,'Indicateurs Cumulés M-1'!KY:KY) -> 856 | M98: =SUMIF('Indicateurs Cumulés'!$F:$F,$B$7,'Indicateurs Cumulés'!KY:KY) -> 1,642 | N98: =IF(ISERROR(M98/SUMIF('Indicateurs Cumulés'!$F:$F,$B$7,'Indicateurs Cumulés'!LU:LU)),"nc",M98/SUMIF('Indicateurs Cumulés'!$F:$F,$B$7,'Indicateurs Cumulés'!LU:LU)) -> 1.4 | S98: =SUMIF(objectifs!$F:$F,$B$7,objectifs!HM:HM) ->  | T98: =IF(ISERROR(S98/SUMIF(objectifs!$F:$F,$B$7,objectifs!IC:IC)),"nc",S98/SUMIF(objectifs!$F:$F,$B$7,objectifs!IC:IC)) -> nc | V98: 0% | W98: 0% | X98: nc
B100: BANCA PRO Relation privée - Ventes nettes | E100: =SUM(E101:E103) -> 38 | H100: =SUM(H101:H103) -> 22 | J100: =SUM(J101:J103) -> -14 | M100: =SUM(M101:M103) -> 29 | N100: =IF(ISERROR(M100/SUMIF('Indicateurs Cumulés'!$F:$F,$B$7,'Indicateurs Cumulés'!LU:LU)),"nc",M100/SUMIF('Indicateurs Cumulés'!$F:$F,$B$7,'Indicateurs Cumulés'!LU:LU)) -> 0.0 | P100: =SUM(P101:P103) ->  | Q100: =IF(ISERROR(S100/(P100*R100)*1000),0,S100/(P100*R100)*1000) -> 0 € | R100: =IF(ISERROR(SUMPRODUCT(R101:R103,P101:P103)/SUMPRODUCT(P101:P103)),0,SUMPRODUCT(R101:R103,P101:P103)/SUMPRODUCT(P101:P103)) -> 0.00 | S100: =SUM(S101:S103) ->  | T100: =IF(ISERROR(S100/SUMIF(objectifs!$F:$F,$B$7,objectifs!IC:IC)),"nc",S100/SUMIF(objectifs!$F:$F,$B$7,objectifs!IC:IC)) -> nc | V100: =IF(ISERROR(J100/P100),0,J100/P100) -> 0% | W100: =IF(ISERROR(M100/S100),0,M100/S100) -> 0% | X100: =IF(ISERROR(N100-(T100/12*MONTH($C$9))),"nc",N100-(T100/12*MONTH($C$9))) -> nc
B101: Forfaits - Tarification | E101: =J101-(SUMIF('Indicateurs Cumulés M-1'!$F:$F,$B$7,'Indicateurs Cumulés M-1'!JS:JS) +SUMIF('Indicateurs Cumulés M-1'!$F:$F,$B$7,'Indicateurs Cumulés M-1'!JT:JT) +SUMIF('Indicateurs Cumulés M-1'!$F:$F,$B$7,'Indicateurs Cumulés M-1'!JN:JN) +SUMIF('Indicateurs Cumulés M-1'!$F:$F,$B$7,'Indicateurs Cumulés M-1'!JO:JO) +SUMIF('Indicateurs Cumulés M-1'!$F:$F,$B$7,'Indicateurs Cumulés M-1'!JP:JP) +SUMIF('Indicateurs Cumulés M-1'!$F:$F,$B$7,'Indicateurs Cumulés M-1'!JQ:JQ) +SUMIF('Indicateurs Cumulés M-1'!$F:$F,$B$7,'Indicateurs Cumulés M-1'!JR:JR)) -> -31 | F101: =K101 -> 129 € | G101: 5.00 | H101: =E101*F101*G101/1000 -> -20 | J101: =SUMIF('Indicateurs Cumulés'!$F:$F,$B$7,'Indicateurs Cumulés'!JN:JN) +SUMIF('Indicateurs Cumulés'!$F:$F,$B$7,'Indicateurs Cumulés'!JO:JO) +SUMIF('Indicateurs Cumulés'!$F:$F,$B$7,'Indicateurs Cumulés'!JP:JP) +SUMIF('Indicateurs Cumulés'!$F:$F,$B$7,'Indicateurs Cumulés'!JQ:JQ) +SUMIF('Indicateurs Cumulés'!$F:$F,$B$7,'Indicateurs Cumulés'!JR:JR) +SUMIF('Indicateurs Cumulés'!$F:$F,$B$7,'Indicateurs Cumulés'!JS:JS) +SUMIF('Indicateurs Cumulés'!$F:$F,$B$7,'Indicateurs Cumulés'!JT:JT) -> -336 | K101: ='Indicateurs Cumulés'!HH3 -> 129 € | L101: =objectifs!$GE$3 -> 5.00 | M101: =SUMIF('Indicateurs Cumulés'!$F:$F,$B$7,'Indicateurs Cumulés'!JW:JW) +SUMIF('Indicateurs Cumulés'!$F:$F,$B$7,'Indicateurs Cumulés'!JX:JX) +SUMIF('Indicateurs Cumulés'!$F:$F,$B$7,'Indicateurs Cumulés'!JY:JY) -> -95 | N101: =IF(ISERROR(M101/SUMIF('Indicateurs Cumulés'!$F:$F,$B$7,'Indicateurs Cumulés'!LU:LU)),"nc",M101/SUMIF('Indicateurs Cumulés'!$F:$F,$B$7,'Indicateurs Cumulés'!LU:LU)) -> -0.1 | P101: =SUMIF(objectifs!$F:$F,$B$7,objectifs!GD:GD)*5% ->  | Q101: =objectifs!$GD$3 -> 137 € | R101: =objectifs!$GE$3 -> 5.00 | S101: =P101*Q101*R101/1000 ->  | T101: =IF(ISERROR(S101/SUMIF(objectifs!$F:$F,$B$7,objectifs!IC:IC)),"nc",S101/SUMIF(objectifs!$F:$F,$B$7,objectifs!IC:IC)) -> nc | V101: =IF(ISERROR(J101/P101),0,J101/P101) -> 0% | W101: =IF(ISERROR(M101/S101),0,M101/S101) -> 0% | X101: =IF(ISERROR(N101-(T101/12*MONTH($C$9))),"nc",N101-(T101/12*MONTH($C$9))) -> nc
B102: Cartes - Tarification | E102: =J102-SUMIF('Indicateurs Cumulés M-1'!$F:$F,$B$7,'Indicateurs Cumulés M-1'!JU:JU) -> 94 | F102: 96 € | G102: 5.00 | H102: =E102*F102*G102/1000 -> 45 | J102: =SUMIF('Indicateurs Cumulés'!$F:$F,$B$7,'Indicateurs Cumulés'!JU:JU) -> 241 | K102: ='Indicateurs Cumulés'!JU3 -> 96 € | L102: =objectifs!$GG$3 -> 5.00 | M102: =SUMIF('Indicateurs Cumulés'!$F:$F,$B$7,'Indicateurs Cumulés'!JZ:JZ) -> 116 | N102: =IF(ISERROR(M102/SUMIF('Indicateurs Cumulés'!$F:$F,$B$7,'Indicateurs Cumulés'!LU:LU)),"nc",M102/SUMIF('Indicateurs Cumulés'!$F:$F,$B$7,'Indicateurs Cumulés'!LU:LU)) -> 0.1 | P102: =SUMIF(objectifs!$F:$F,$B$7,objectifs!GF:GF)*5% -> 0 | Q102: =objectifs!$GF$3 -> 98 € | R102: =objectifs!$GG$3 -> 5.00 | S102: =P102*Q102*R102/1000 -> 0 | T102: =IF(ISERROR(S102/SUMIF(objectifs!$F:$F,$B$7,objectifs!IC:IC)),"nc",S102/SUMIF(objectifs!$F:$F,$B$7,objectifs!IC:IC)) -> 0.0 | V102: =IF(ISERROR(J102/P102),0,J102/P102) -> 0% | W102: =IF(ISERROR(M102/S102),0,M102/S102) -> 0% | X102: =IF(ISERROR(N102-(T102/12*MONTH($C$9))),"nc",N102-(T102/12*MONTH($C$9))) -> 0.1
B103: IARD & Prévoyance - Commissions | E103: =J103-SUMIF('Indicateurs Cumulés M-1'!$F:$F,$B$7,'Indicateurs Cumulés M-1'!JV:JV) -> -25 | F103: 22 € | G103: 5.00 | H103: =E103*F103*G103/1000 -> -3 | J103: =SUMIF('Indicateurs Cumulés'!$F:$F,$B$7,'Indicateurs Cumulés'!JV:JV) -> 81 | K103: ='Indicateurs Cumulés'!JV3 -> 22 € | L103: =objectifs!$GI$3 -> 5.00 | M103: =SUMIF('Indicateurs Cumulés'!$F:$F,$B$7,'Indicateurs Cumulés'!KA:KA) -> 9 | N103: =IF(ISERROR(M103/SUMIF('Indicateurs Cumulés'!$F:$F,$B$7,'Indicateurs Cumulés'!LU:LU)),"nc",M103/SUMIF('Indicateurs Cumulés'!$F:$F,$B$7,'Indicateurs Cumulés'!LU:LU)) -> 0.0 | P103: =SUMIF(objectifs!$F:$F,$B$7,objectifs!GH:GH)*5% -> 0 | Q103: =objectifs!$GH$3 -> 22 € | R103: =objectifs!$GI$3 -> 5.00 | S103: =P103*Q103*R103/1000 -> 0 | T103: =IF(ISERROR(S103/SUMIF(objectifs!$F:$F,$B$7,objectifs!IC:IC)),"nc",S103/SUMIF(objectifs!$F:$F,$B$7,objectifs!IC:IC)) -> 0.0 | V103: =IF(ISERROR(J103/P103),0,J103/P103) -> 0% | W103: =IF(ISERROR(M103/S103),0,M103/S103) -> 0% | X103: =IF(ISERROR(N103-(T103/12*MONTH($C$9))),"nc",N103-(T103/12*MONTH($C$9))) -> 0.0
B105: AUTRES | H105: =H106+H110 -> -76 | M105: =M106+M110 -> -777 | N105: =IF(ISERROR(M105/SUMIF('Indicateurs Cumulés'!$F:$F,$B$7,'Indicateurs Cumulés'!LU:LU)),"nc",M105/SUMIF('Indicateurs Cumulés'!$F:$F,$B$7,'Indicateurs Cumulés'!LU:LU)) -> -0.7 | S105: =S106+S110 ->  | T105: =IF(ISERROR(S105/SUMIF(objectifs!$F:$F,$B$7,objectifs!IC:IC)),"nc",S105/SUMIF(objectifs!$F:$F,$B$7,objectifs!IC:IC)) -> nc | W105: =IF(ISERROR(M105/S105),0,M105/S105) -> 0% | X105: =IF(ISERROR(N105-(T105/12*MONTH($C$9))),"nc",N105-(T105/12*MONTH($C$9))) -> nc
B106: Remises commerciales | H106: =M106-SUMIF('Indicateurs Cumulés M-1'!$F:$F,$B$7,'Indicateurs Cumulés M-1'!LA:LA) -> -292 | M106: =SUMIF('Indicateurs Cumulés'!$F:$F,$B$7,'Indicateurs Cumulés'!LA:LA) -> -2,295 | N106: =IF(ISERROR(M106/SUMIF('Indicateurs Cumulés'!$F:$F,$B$7,'Indicateurs Cumulés'!LU:LU)),"nc",M106/SUMIF('Indicateurs Cumulés'!$F:$F,$B$7,'Indicateurs Cumulés'!LU:LU)) -> -1.9 | S106: =SUMIF(objectifs!$F:$F,$B$7,objectifs!FU:FU) -> -5,200 | T106: =IF(ISERROR(S106/SUMIF(objectifs!$F:$F,$B$7,objectifs!IC:IC)),"nc",S106/SUMIF(objectifs!$F:$F,$B$7,objectifs!IC:IC)) -> -3.4 | W106: 44% | X106: -0.2
B107: dont hors MAD | N107: =IF(ISERROR(M107/SUMIF('Indicateurs Cumulés'!$F:$F,$B$7,'Indicateurs Cumulés'!LU:LU)),"nc",M107/SUMIF('Indicateurs Cumulés'!$F:$F,$B$7,'Indicateurs Cumulés'!LU:LU)) -> 0.0 | T107: =IF(ISERROR(S107/SUMIF(objectifs!$F:$F,$B$7,objectifs!IC:IC)),"nc",S107/SUMIF(objectifs!$F:$F,$B$7,objectifs!IC:IC)) -> 0.0 | W107: 0% | X107: 0
B108: dont MAD | N108: =IF(ISERROR(M108/SUMIF('Indicateurs Cumulés'!$F:$F,$B$7,'Indicateurs Cumulés'!LU:LU)),"nc",M108/SUMIF('Indicateurs Cumulés'!$F:$F,$B$7,'Indicateurs Cumulés'!LU:LU)) -> 0.0 | T108: =IF(ISERROR(S108/SUMIF(objectifs!$F:$F,$B$7,objectifs!IC:IC)),"nc",S108/SUMIF(objectifs!$F:$F,$B$7,objectifs!IC:IC)) -> 0.0 | W108: 0% | X108: 0
B109: dont PRO | H109: =M109 -> 465 | M109: =VLOOKUP($B$7,'Indicateurs Cumulés'!$F$3:$NI$384,73,FALSE) -> 465 | N109: =IF(ISERROR(M109/SUMIF('Indicateurs Cumulés'!$F:$F,$B$7,'Indicateurs Cumulés'!LU:LU)),"nc",M109/SUMIF('Indicateurs Cumulés'!$F:$F,$B$7,'Indicateurs Cumulés'!LU:LU)) -> 0.4 | T109: =IF(ISERROR(S109/SUMIF(objectifs!$F:$F,$B$7,objectifs!IC:IC)),"nc",S109/SUMIF(objectifs!$F:$F,$B$7,objectifs!IC:IC)) -> 0.0 | W109: 0% | X109: 0.4
B110: Commissions immobilières | H110: =M110-SUMIF('Indicateurs Cumulés M-1'!$F:$F,$B$7,'Indicateurs Cumulés M-1'!MC:MC) -> 217 | M110: =SUMIF('Indicateurs Cumulés'!$F:$F,$B$7,'Indicateurs Cumulés'!LC:LC) +SUMIF('Indicateurs Cumulés'!$F:$F,$B$7,'Indicateurs Cumulés'!LF:LF) +SUMIF('Indicateurs Cumulés'!$F:$F,$B$7,'Indicateurs Cumulés'!LD:LD) +SUMIF('Indicateurs Cumulés'!$F:$F,$B$7,'Indicateurs Cumulés'!LE:LE) -> 1,518 | N110: =IF(ISERROR(M110/SUMIF('Indicateurs Cumulés'!$F:$F,$B$7,'Indicateurs Cumulés'!LU:LU)),"nc",M110/SUMIF('Indicateurs Cumulés'!$F:$F,$B$7,'Indicateurs Cumulés'!LU:LU)) -> 1.3 | S110: =SUMIF(objectifs!$F:$F,$B$7,objectifs!FY:FY) ->  | T110: =IF(ISERROR(S110/SUMIF(objectifs!$F:$F,$B$7,objectifs!IC:IC)),"nc",S110/SUMIF(objectifs!$F:$F,$B$7,objectifs!IC:IC)) -> nc | W110: 0% | X110: nc
B112: PNB BDD sur Activité Nouvelle | H112: =H14+H41+H47+H61+H105+H55+H91+H100 -> -16,827 | M112: =M14+M41+M47+M61+M105+M55+M91+M100 -> 28,414 | N112: =IF(ISERROR(M112/SUMIF('Indicateurs Cumulés'!$F:$F,$B$7,'Indicateurs Cumulés'!LU:LU)),"nc",M112/SUMIF('Indicateurs Cumulés'!$F:$F,$B$7,'Indicateurs Cumulés'!LU:LU)) -> 23.9 | S112: =S14+S41+S47+S61+S105+S55+S91+S100 ->  | T112: =IF(ISERROR(S112/SUMIF(objectifs!$F:$F,$B$7,objectifs!IC:IC)),"nc",S112/SUMIF(objectifs!$F:$F,$B$7,objectifs!IC:IC)) -> nc | W112: =IF(ISERROR(M112/S112),0,M112/S112) -> 0.0% | X112: =IF(ISERROR(N112-(T112/12*MONTH($C$9))),"nc",N112-(T112/12*MONTH($C$9))) -> nc
B114: BONUS DIGITAL | E114: Volume | F114: Montant | G114: Durée | H114: PNB | J114: Volume | K114: Montant | L114: Durée | M114: PNB | N114: PNB / ETP perf. | P114: Volume | Q114: Montant | R114: Durée | S114: PNB | T114: PNB / ETP Cible | V114: Volume | W114: PNB annuel | X114: Ecart /obj. PNB/ETP
B115: Nombre de SED finalisées (en brut) | E115: =J115-SUMIF('Indicateurs Cumulés M-1'!$F:$F,$B$7,'Indicateurs Cumulés M-1'!LI:LI)*0 -> 0 | F115: =K115 -> 10 € | G115: 1.00 | H115: =+E115*F115*G115/1000 -> 0 | J115: =SUMIF('Indicateurs Cumulés'!$F:$F,$B$7,'Indicateurs Cumulés'!LI:LI) -> 0 | K115: 10 € | L115: 1.00 | M115: =SUMIF('Indicateurs Cumulés'!$F:$F,$B$7,'Indicateurs Cumulés'!LO:LO) -> 0 | N115: =IF(ISERROR(M115/SUMIF('Indicateurs Cumulés'!$F:$F,$B$7,'Indicateurs Cumulés'!LU:LU)),"nc",M115/SUMIF('Indicateurs Cumulés'!$F:$F,$B$7,'Indicateurs Cumulés'!LU:LU)) -> 0.0
B116: Evolution stock de clients équipés E-documents | E116: =J116-SUMIF('Indicateurs Cumulés M-1'!$F:$F,$B$7,'Indicateurs Cumulés M-1'!LK:LK)*0 -> 0 | F116: 10 € | G116: 5.00 | H116: =+E116*F116*G116/1000 -> 0 | J116: =SUMIF('Indicateurs Cumulés'!$F:$F,$B$7,'Indicateurs Cumulés'!LK:LK) -> 0 | K116: 10 € | L116: 5.00 | M116: =SUMIF('Indicateurs Cumulés'!$F:$F,$B$7,'Indicateurs Cumulés'!LQ:LQ) -> 0 | N116: =IF(ISERROR(M116/SUMIF('Indicateurs Cumulés'!$F:$F,$B$7,'Indicateurs Cumulés'!LU:LU)),"nc",M116/SUMIF('Indicateurs Cumulés'!$F:$F,$B$7,'Indicateurs Cumulés'!LU:LU)) -> 0.0
B117: Evolution stock de clients avec Opt-in-mail et tél. | E117: =J117-SUMIF('Indicateurs Cumulés M-1'!$F:$F,$B$7,'Indicateurs Cumulés M-1'!LL:LL)*0 -> 0 | F117: 5 € | G117: 3.00 | H117: =+E117*F117*G117/1000 -> 0 | J117: =SUMIF('Indicateurs Cumulés'!$F:$F,$B$7,'Indicateurs Cumulés'!LL:LL) -> 0 | K117: 5 € | L117: 3.00 | M117: =SUMIF('Indicateurs Cumulés'!$F:$F,$B$7,'Indicateurs Cumulés'!LR:LR) -> 0 | N117: =IF(ISERROR(M117/SUMIF('Indicateurs Cumulés'!$F:$F,$B$7,'Indicateurs Cumulés'!LU:LU)),"nc",M117/SUMIF('Indicateurs Cumulés'!$F:$F,$B$7,'Indicateurs Cumulés'!LU:LU)) -> 0.0
B119: PNB sur Bonus digital | H119: =SUM(H115:H118) -> 0 | M119: =SUM(M115:M118) -> 0 | N119: =IF(ISERROR(M119/SUMIF('Indicateurs Cumulés'!$F:$F,$B$7,'Indicateurs Cumulés'!LU:LU)),"nc",M119/SUMIF('Indicateurs Cumulés'!$F:$F,$B$7,'Indicateurs Cumulés'!LU:LU)) -> 0.0
B121: PNB Part variable | H121: =H119+H112 -> -16,827 | M121: =+M112+M119 -> 28,414 | N121: =IF(ISERROR(M121/SUMIF('Indicateurs Cumulés'!$F:$F,$B$7,'Indicateurs Cumulés'!LU:LU)),"nc",M121/SUMIF('Indicateurs Cumulés'!$F:$F,$B$7,'Indicateurs Cumulés'!LU:LU)) -> 23.9 | S121: =+S112+S119 ->  | T121: =IF(ISERROR(S121/SUMIF(objectifs!$F:$F,$B$7,objectifs!IC:IC)),"nc",S121/SUMIF(objectifs!$F:$F,$B$7,objectifs!IC:IC)) -> nc | W121: =IF(ISERROR(M121/S121),0,M121/S121) -> 0.0% | X121: =IF(ISERROR(N121-(T121/12*MONTH($C$9))),"nc",N121-(T121/12*MONTH($C$9))) -> nc
B124: COLLECTE PRO (yc DAV) - Excédents | E124: =SUM(E125:E128) -> 8,335 | H124: =SUM(H125:H128) -> 326 | J124: =SUM(J125:J128) -> 3,275 | M124: =SUM(M125:M128) -> 423 | N124: =IF(ISERROR(M124/SUMIF('Indicateurs Cumulés'!$F:$F,$B$7,'Indicateurs Cumulés'!LU:LU)),"nc",M124/SUMIF('Indicateurs Cumulés'!$F:$F,$B$7,'Indicateurs Cumulés'!LU:LU)) -> 0.4 | P124: =SUM(P125:P128) ->  | S124: =SUM(S125:S128) ->  | T124: =IF(ISERROR(S124/SUMIF(objectifs!$F:$F,$B$7,objectifs!IC:IC)),"nc",S124/SUMIF(objectifs!$F:$F,$B$7,objectifs!IC:IC)) -> nc | V124: =IF(ISERROR(J124/P124),0,J124/P124) -> 0% | W124: =IF(ISERROR(M124/S124),0,M124/S124) -> 0% | X124: =IF(ISERROR(N124-(T124/12*MONTH($C$9))),"nc",N124-(T124/12*MONTH($C$9))) -> nc
B125: DAV Créditeurs PRO - Variation d'EMJ mensuel | E125: =J125-SUMIF('Indicateurs Cumulés M-1'!$F:$F,$B$7,'Indicateurs Cumulés M-1'!GV:GV) -> 2,112 | F125: =K125 -> 0.90% | G125: 8.83 | H125: =(E125*F125*G125)/12 -> 14 | J125: =SUMIF('Indicateurs Cumulés'!$F:$F,$B$7,'Indicateurs Cumulés'!GV:GV) -> -18,310 | K125: ='Indicateurs Cumulés'!$GV$3 -> 0.90% | L125: ='Indicateurs Cumulés'!$HE$3 -> 8.83 | M125: =(J125*K125*L125)*MONTH($C$9)/12 -> -731 | N125: =IF(ISERROR(M125/SUMIF('Indicateurs Cumulés'!$F:$F,$B$7,'Indicateurs Cumulés'!LU:LU)),"nc",M125/SUMIF('Indicateurs Cumulés'!$F:$F,$B$7,'Indicateurs Cumulés'!LU:LU)) -> -0.6 | P125: =SUMIF(objectifs!$F:$F,$B$7,objectifs!GQ:GQ) ->  | Q125: =objectifs!$FG$373 -> 1.00% | R125: =objectifs!$FH$373 -> 5.37 | S125: =P125*Q125*R125 ->  | T125: =IF(ISERROR(S125/SUMIF(objectifs!$F:$F,$B$7,objectifs!IC:IC)),"nc",S125/SUMIF(objectifs!$F:$F,$B$7,objectifs!IC:IC)) -> nc | V125: =IF(ISERROR(J125/P125),0,J125/P125) -> 0% | W125: =IF(ISERROR(M125/S125),0,M125/S125) -> 0% | X125: =IF(ISERROR(N125-(T125/12*MONTH($C$9))),"nc",N125-(T125/12*MONTH($C$9))) -> nc
B126: Compte Excédent Pro | E126: =SUMIF('Indicateurs mensuels'!$F:$F,$B$7,'Indicateurs mensuels'!HS:HS) -> 8,822 | F126: 0.88% | G126: 5.38 | H126: =E126*F126*G126 -> 418 | J126: =SUMIF('Indicateurs Cumulés'!$F:$F,$B$7,'Indicateurs Cumulés'!GT:GT) -> -1,674 | K126: ='Indicateurs Cumulés'!$GT$3 -> 0.88% | L126: ='Indicateurs Cumulés'!$HC$3 -> 5.38 | M126: =SUMIF('Indicateurs Cumulés'!$F:$F,$B$7,'Indicateurs Cumulés'!HC:HC) -> -79 | N126: =IF(ISERROR(M126/SUMIF('Indicateurs Cumulés'!$F:$F,$B$7,'Indicateurs Cumulés'!LU:LU)),"nc",M126/SUMIF('Indicateurs Cumulés'!$F:$F,$B$7,'Indicateurs Cumulés'!LU:LU)) -> -0.1 | P126: =SUMIF(objectifs!$F:$F,$B$7,objectifs!GO:GO) -> 0 | Q126: =objectifs!$CQ$373 -> 0.60% | R126: =objectifs!$CR$373 -> 5.37 | S126: =P126*Q126*R126 -> 0 | T126: =IF(ISERROR(S126/SUMIF(objectifs!$F:$F,$B$7,objectifs!IC:IC)),"nc",S126/SUMIF(objectifs!$F:$F,$B$7,objectifs!IC:IC)) -> 0.0 | V126: =IF(ISERROR(J126/P126),0,J126/P126) -> 0% | W126: =IF(ISERROR(M126/S126),0,M126/S126) -> 0% | X126: =IF(ISERROR(N126-(T126/12*MONTH($C$9))),"nc",N126-(T126/12*MONTH($C$9))) -> -0.1
B127: Assurance Vie | E127: =SUMIF('Indicateurs mensuels'!$F:$F,$B$7,'Indicateurs mensuels'!BX:BX) -> 986 | F127: 0.54% | G127: 8.00 | H127: =E127*F127*G127 -> 43 | J127: =SUMIF('Indicateurs Cumulés'!$F:$F,$B$7,'Indicateurs Cumulés'!GR:GR) -> 9,065 | K127: ='Indicateurs Cumulés'!$GR$3 -> 0.54% | L127: ='Indicateurs Cumulés'!$HA$3 -> 8.00 | M127: =SUMIF('Indicateurs Cumulés'!$F:$F,$B$7,'Indicateurs Cumulés'!HA:HA) -> 393 | N127: =IF(ISERROR(M127/SUMIF('Indicateurs Cumulés'!$F:$F,$B$7,'Indicateurs Cumulés'!LU:LU)),"nc",M127/SUMIF('Indicateurs Cumulés'!$F:$F,$B$7,'Indicateurs Cumulés'!LU:LU)) -> 0.3 | P127: =SUMIF(objectifs!$F:$F,$B$7,objectifs!GN:GN) -> 0 | Q127: =objectifs!$EE$373 -> 0.45% | R127: =objectifs!$EF$373 -> 8.00 | S127: =P127*Q127*R127 -> 0 | T127: =IF(ISERROR(S127/SUMIF(objectifs!$F:$F,$B$7,objectifs!IC:IC)),"nc",S127/SUMIF(objectifs!$F:$F,$B$7,objectifs!IC:IC)) -> 0.0 | V127: =IF(ISERROR(J127/P127),0,J127/P127) -> 0% | W127: =IF(ISERROR(M127/S127),0,M127/S127) -> 0% | X127: =IF(ISERROR(N127-(T127/12*MONTH($C$9))),"nc",N127-(T127/12*MONTH($C$9))) -> 0.3
B128: Autres | E128: =SUMIF('Indicateurs mensuels'!$F:$F,$B$7,'Indicateurs mensuels'!HU:HU) +SUMIF('Indicateurs mensuels'!$F:$F,$B$7,'Indicateurs mensuels'!HV:HV) +SUMIF('Indicateurs mensuels'!$F:$F,$B$7,'Indicateurs mensuels'!HW:HW) +SUMIF('Indicateurs mensuels'!$F:$F,$B$7,'Indicateurs mensuels'!HX:HX) -> -3,585 | H128: =SUMIF('Indicateurs mensuels'!$F:$F,$B$7,'Indicateurs mensuels'!HY:HY) -> -149 | J128: =SUMIF('Indicateurs Cumulés'!$F:$F,$B$7,'Indicateurs Cumulés'!GN:GN) +SUMIF('Indicateurs Cumulés'!$F:$F,$B$7,'Indicateurs Cumulés'!GP:GP) +SUMIF('Indicateurs Cumulés'!$F:$F,$B$7,'Indicateurs Cumulés'!GU:GU) +SUMIF('Indicateurs Cumulés'!$F:$F,$B$7,'Indicateurs Cumulés'!GS:GS) -> 14,193 | M128: =SUMIF('Indicateurs Cumulés'!$F:$F,$B$7,'Indicateurs Cumulés'!GX:GX)+SUMIF('Indicateurs Cumulés'!$F:$F,$B$7,'Indicateurs Cumulés'!GY:GY) +SUMIF('Indicateurs Cumulés'!$F:$F,$B$7,'Indicateurs Cumulés'!HD:HD)+SUMIF('Indicateurs Cumulés'!$F:$F,$B$7,'Indicateurs Cumulés'!HB:HB) -> 840 | N128: =IF(ISERROR(M128/SUMIF('Indicateurs Cumulés'!$F:$F,$B$7,'Indicateurs Cumulés'!LU:LU)),"nc",M128/SUMIF('Indicateurs Cumulés'!$F:$F,$B$7,'Indicateurs Cumulés'!LU:LU)) -> 0.7 | P128: =SUMIF(objectifs!$F:$F,$B$7,objectifs!GP:GP) -> 0 | Q128: =objectifs!$CM$373 -> 0.70% | R128: =objectifs!$CN$373 -> 5.37 | S128: =P128*Q128*R128 -> 0 | T128: =IF(ISERROR(S128/SUMIF(objectifs!$F:$F,$B$7,objectifs!IC:IC)),"nc",S128/SUMIF(objectifs!$F:$F,$B$7,objectifs!IC:IC)) -> 0.0 | V128: =IF(ISERROR(J128/P128),0,J128/P128) -> 0% | W128: =IF(ISERROR(M128/S128),0,M128/S128) -> 0% | X128: =IF(ISERROR(N128-(T128/12*MONTH($C$9))),"nc",N128-(T128/12*MONTH($C$9))) -> 0.7
B130: CREDIT à la CONSOMMATION PRO - Eng. Nets (yc accessoires) | E130: =E131 -> 4,489 | F130: =IF(ISERROR(H130/(E130*G130)),0,H130/(E130*G130)) -> 1.75% | G130: =G131 -> 2.74 | H130: =H131+H132+H133 -> 215 | J130: =J131 -> 25,222 | K130: =IF(ISERROR(M130/(J130*L130)),0,M130/(J130*L130)) -> 2.57% | L130: =L131 -> 2.88 | M130: =M131+M132+M133 -> 1,863 | N130: =IF(ISERROR(M130/SUMIF('Indicateurs Cumulés'!$F:$F,$B$7,'Indicateurs Cumulés'!LU:LU)),"nc",M130/SUMIF('Indicateurs Cumulés'!$F:$F,$B$7,'Indicateurs Cumulés'!LU:LU)) -> 1.6 | P130: =P131 ->  | Q130: =IF(ISERROR(S130/(P130*R130)),0,S130/(P130*R130)) -> 0.00% | R130: =R131 -> 2.50 | S130: =S131+S132+S133 ->  | T130: =IF(ISERROR(S130/SUMIF(objectifs!$F:$F,$B$7,objectifs!IC:IC)),"nc",S130/SUMIF(objectifs!$F:$F,$B$7,objectifs!IC:IC)) -> nc | V130: =IF(ISERROR(J130/P130),0,J130/P130) -> 0% | W130: =IF(ISERROR(M130/S130),0,M130/S130) -> 0% | X130: =IF(ISERROR(N130-(T130/12*MONTH($C$9))),"nc",N130-(T130/12*MONTH($C$9))) -> nc
B131: Crédit à la Consommation (marge hors accessoires) | E131: =SUMIF('Indicateurs mensuels'!$F:$F,$B$7,'Indicateurs mensuels'!U:U) -> 4,489 | F131: =IF(E131=0,0,SUMPRODUCT(('Indicateurs mensuels'!$F$4:$F$350=$B$7)*(('Indicateurs mensuels'!$U$4:$U$350)*('Indicateurs mensuels'!$V$4:$V$350)/E131))) -> 1.11% | G131: =IF(E131=0,0,SUMPRODUCT(('Indicateurs mensuels'!$F$4:$F$350=$B$7)*(('Indicateurs mensuels'!$U$4:$U$350)*('Indicateurs mensuels'!$W$4:$W$350)/E131))) -> 2.74 | H131: =E131*F131*G131 -> 136 | J131: =SUMIF('Indicateurs Cumulés'!$F:$F,$B$7,'Indicateurs Cumulés'!AV:AV) -> 25,222 | K131: =IF(J131=0,0,SUMPRODUCT(('Indicateurs Cumulés'!$F$4:$F$367=$B$7)*(('Indicateurs Cumulés'!$AV$4:$AV$367)*('Indicateurs Cumulés'!$AW$4:$AW$367)/J131))) -> 1.91% | L131: =IF(J131=0,0,SUMPRODUCT(('Indicateurs Cumulés'!$F$4:$F$367=$B$7)*(('Indicateurs Cumulés'!$AV$4:$AV$367)*('Indicateurs Cumulés'!$AX$4:$AX$367)/J131))) -> 2.88 | M131: =J131*K131*L131 -> 1,390 | N131: =IF(ISERROR(M131/SUMIF('Indicateurs Cumulés'!$F:$F,$B$7,'Indicateurs Cumulés'!LU:LU)),"nc",M131/SUMIF('Indicateurs Cumulés'!$F:$F,$B$7,'Indicateurs Cumulés'!LU:LU)) -> 1.2 | P131: =SUMIF(objectifs!$F:$F,$B$7,objectifs!L:L)*objectifs!$L$375/objectifs!$L$373 ->  | Q131: =objectifs!$M$373 -> 3.05% | R131: =objectifs!$N$373 -> 2.50 | S131: =P131*Q131*R131 ->  | T131: =IF(ISERROR(S131/SUMIF(objectifs!$F:$F,$B$7,objectifs!IC:IC)),"nc",S131/SUMIF(objectifs!$F:$F,$B$7,objectifs!IC:IC)) -> nc | V131: =IF(ISERROR(J131/P131),0,J131/P131) -> 0% | W131: =IF(ISERROR(M131/S131),0,M131/S131) -> 0% | X131: =IF(ISERROR(N131-(T131/12*MONTH($C$9))),"nc",N131-(T131/12*MONTH($C$9))) -> nc
B132: Frais de dossier | H132: =M132-SUMIF('Indicateurs Cumulés M-1'!$F:$F,$B$7,'Indicateurs Cumulés M-1'!AY:AY) -> 15 | M132: =SUMIF('Indicateurs Cumulés'!$F:$F,$B$7,'Indicateurs Cumulés'!AY:AY) -> 79 | N132: =IF(ISERROR(M132/SUMIF('Indicateurs Cumulés'!$F:$F,$B$7,'Indicateurs Cumulés'!LU:LU)),"nc",M132/SUMIF('Indicateurs Cumulés'!$F:$F,$B$7,'Indicateurs Cumulés'!LU:LU)) -> 0.1 | S132: =SUMIF(objectifs!$F:$F,$B$7,objectifs!BO:BO)*objectifs!$L$375/objectifs!$L$373 ->  | T132: =IF(ISERROR(S132/SUMIF(objectifs!$F:$F,$B$7,objectifs!IC:IC)),"nc",S132/SUMIF(objectifs!$F:$F,$B$7,objectifs!IC:IC)) -> nc | W132: =IF(ISERROR(M132/S132),0,M132/S132) -> 0% | X132: =IF(ISERROR(N132-(T132/12*MONTH($C$9))),"nc",N132-(T132/12*MONTH($C$9))) -> nc
B133: Commissions ADE | E133: =IF(E131=0,0,SUMPRODUCT(('Indicateurs mensuels'!$F$4:$F$350=$B$7)*(('Indicateurs mensuels'!$U$4:$U$350)*('Indicateurs mensuels'!$CQ$4:$CQ$350)/E131))) -> 134.6% | F133: =IF(E131=0,0,SUMPRODUCT(('Indicateurs mensuels'!$F$4:$F$350=$B$7)*(('Indicateurs mensuels'!$U$4:$U$350)*('Indicateurs mensuels'!$CP$4:$CP$350)/E131))) -> 93.6% | H133: =M133-SUMIF('Indicateurs Cumulés M-1'!$F:$F,$B$7,'Indicateurs Cumulés M-1'!BB:BB) -> 64 | J133: =IF(J131=0,0,SUMPRODUCT(('Indicateurs Cumulés'!$F$4:$F$367=$B$7)*(('Indicateurs Cumulés'!$AV$4:$AV$367)*('Indicateurs Cumulés'!$BA$4:$BA$367)/J130))) -> 138.1% | K133: =IF(J131=0,0,SUMPRODUCT(('Indicateurs Cumulés'!$F$4:$F$367=$B$7)*(('Indicateurs Cumulés'!$AV$4:$AV$367)*('Indicateurs Cumulés'!$AZ$4:$AZ$367)/J131))) -> 93.6% | M133: =SUMIF('Indicateurs Cumulés'!$F:$F,$B$7,'Indicateurs Cumulés'!BB:BB) -> 394 | N133: =IF(ISERROR(M133/SUMIF('Indicateurs Cumulés'!$F:$F,$B$7,'Indicateurs Cumulés'!LU:LU)),"nc",M133/SUMIF('Indicateurs Cumulés'!$F:$F,$B$7,'Indicateurs Cumulés'!LU:LU)) -> 0.3 | P133: =P45 -> 135% | Q133: =Q45 -> 95% | S133: =SUMIF(objectifs!$F:$F,$B$7,objectifs!BY:BY)*objectifs!$L$375/objectifs!$L$373 ->  | T133: =IF(ISERROR(S133/SUMIF(objectifs!$F:$F,$B$7,objectifs!IC:IC)),"nc",S133/SUMIF(objectifs!$F:$F,$B$7,objectifs!IC:IC)) -> nc | W133: =IF(ISERROR(M133/S133),0,M133/S133) -> 0% | X133: =IF(ISERROR(N133-(T133/12*MONTH($C$9))),"nc",N133-(T133/12*MONTH($C$9))) -> nc
B135: CREDIT IMMOBILIER PRO - Eng. Nets (yc accessoires) | E135: =E136 -> 17,030 | F135: =IF(ISERROR(H135/(E135*G135)),0,H135/(E135*G135)) -> -0.97% | G135: =G136 -> 8.10 | H135: =H136+H137+H138+H139 -> -1,337 | J135: =J136 -> 95,464 | K135: =IF(ISERROR(M135/(J135*L135)),0,M135/(J135*L135)) -> -0.22% | L135: =L136 -> 7.53 | M135: =M136+M137+M138+M139 -> -1,558 | N135: =IF(ISERROR(M135/SUMIF('Indicateurs Cumulés'!$F:$F,$B$7,'Indicateurs Cumulés'!LU:LU)),"nc",M135/SUMIF('Indicateurs Cumulés'!$F:$F,$B$7,'Indicateurs Cumulés'!LU:LU)) -> -1.3 | P135: =P136 ->  | Q135: =IF(ISERROR(S135/(P135*R135)),0,S135/(P135*R135)) -> 0.00% | R135: =R136 -> 7.50 | S135: =S136+S137+S138+S139 ->  | T135: =IF(ISERROR(S135/SUMIF(objectifs!$F:$F,$B$7,objectifs!IC:IC)),"nc",S135/SUMIF(objectifs!$F:$F,$B$7,objectifs!IC:IC)) -> nc | V135: =IF(ISERROR(J135/P135),0,J135/P135) -> 0% | W135: =IF(ISERROR(M135/S135),0,M135/S135) -> 0% | X135: =IF(ISERROR(N135-(T135/12*MONTH($C$9))),"nc",N135-(T135/12*MONTH($C$9))) -> nc
B136: Crédit Immobilier (marge hors accessoires) | E136: =SUMIF('Indicateurs mensuels'!$F:$F,$B$7,'Indicateurs mensuels'!X:X) -> 17,030 | F136: =IF(E136=0,0,SUMPRODUCT(('Indicateurs mensuels'!$F$4:$F$350=$B$7)*(('Indicateurs mensuels'!$X$4:$X$350)*('Indicateurs mensuels'!$Y$4:$Y$350)/E136))) -> -1.26% | G136: =IF(E136=0,0,SUMPRODUCT(('Indicateurs mensuels'!$F$4:$F$350=$B$7)*(('Indicateurs mensuels'!$X$4:$X$350)*('Indicateurs mensuels'!$Z$4:$Z$350)/E136))) -> 8.10 | H136: =E136*F136*G136 -> -1,731 | J136: =SUMIF('Indicateurs Cumulés'!$F:$F,$B$7,'Indicateurs Cumulés'!BD:BD) -> 95,464 | K136: =IF(J136=0,0,SUMPRODUCT(('Indicateurs Cumulés'!$F$4:$F$367=$B$7)*(('Indicateurs Cumulés'!$BD$4:$BD$367)*('Indicateurs Cumulés'!$BE$4:$BE$367)/J136))) -> -0.55% | L136: =IF(J136=0,0,SUMPRODUCT(('Indicateurs Cumulés'!$F$4:$F$367=$B$7)*(('Indicateurs Cumulés'!$BD$4:$BD$367)*('Indicateurs Cumulés'!$BF$4:$BF$367)/J136))) -> 7.53 | M136: =J136*K136*L136 -> -3,940 | N136: =IF(ISERROR(M136/SUMIF('Indicateurs Cumulés'!$F:$F,$B$7,'Indicateurs Cumulés'!LU:LU)),"nc",M136/SUMIF('Indicateurs Cumulés'!$F:$F,$B$7,'Indicateurs Cumulés'!LU:LU)) -> -3.3 | P136: =SUMIF(objectifs!$F:$F,$B$7,objectifs!O:O)*objectifs!$O$375/objectifs!$O$373 ->  | Q136: =objectifs!$Q$373 -> 0.20% | R136: =objectifs!$R$373 -> 7.50 | S136: =P136*Q136*R136 ->  | T136: =IF(ISERROR(S136/SUMIF(objectifs!$F:$F,$B$7,objectifs!IC:IC)),"nc",S136/SUMIF(objectifs!$F:$F,$B$7,objectifs!IC:IC)) -> nc | V136: =IF(ISERROR(J136/P136),0,J136/P136) -> 0% | W136: =IF(ISERROR(M136/S136),0,M136/S136) -> 0% | X136: =IF(ISERROR(N136-(T136/12*MONTH($C$9))),"nc",N136-(T136/12*MONTH($C$9))) -> nc
B137: Frais de dossier | H137: =M137-SUMIF('Indicateurs Cumulés M-1'!$F:$F,$B$7,'Indicateurs Cumulés M-1'!BG:BG) -> 41 | M137: =SUMIF('Indicateurs Cumulés'!$F:$F,$B$7,'Indicateurs Cumulés'!BG:BG) -> 223 | N137: =IF(ISERROR(M137/SUMIF('Indicateurs Cumulés'!$F:$F,$B$7,'Indicateurs Cumulés'!LU:LU)),"nc",M137/SUMIF('Indicateurs Cumulés'!$F:$F,$B$7,'Indicateurs Cumulés'!LU:LU)) -> 0.2 | S137: =SUMIF(objectifs!$F:$F,$B$7,objectifs!BP:BP)*objectifs!$O$375/objectifs!$O$373 ->  | T137: =IF(ISERROR(S137/SUMIF(objectifs!$F:$F,$B$7,objectifs!IC:IC)),"nc",S137/SUMIF(objectifs!$F:$F,$B$7,objectifs!IC:IC)) -> nc | W137: =IF(ISERROR(M137/S137),0,M137/S137) -> 0% | X137: =IF(ISERROR(N137-(T137/12*MONTH($C$9))),"nc",N137-(T137/12*MONTH($C$9))) -> nc
B138: Commissions ADE | E138: =IF(E136=0,0,SUMPRODUCT(('Indicateurs mensuels'!$F$4:$F$350=$B$7)*(('Indicateurs mensuels'!$X$4:$X$350)*('Indicateurs mensuels'!$CK$4:$CK$350)/E136))) -> 137.4% | F138: =IF(E136=0,0,SUMPRODUCT(('Indicateurs mensuels'!$F$4:$F$350=$B$7)*(('Indicateurs mensuels'!$X$4:$X$350)*('Indicateurs mensuels'!$CJ$4:$CJ$350)/E136))) -> 73.0% | H138: =M138-SUMIF('Indicateurs Cumulés M-1'!$F:$F,$B$7,'Indicateurs Cumulés M-1'!BJ:BJ) -> 328 | J138: =IF(J136=0,0,SUMPRODUCT(('Indicateurs Cumulés'!$F$4:$F$367=$B$7)*(('Indicateurs Cumulés'!$BD$4:$BD$367)*('Indicateurs Cumulés'!$BI$4:$BI$367)/J136))) -> 143.6% | K138: =IF(J136=0,0,SUMPRODUCT(('Indicateurs Cumulés'!$F$4:$F$367=$B$7)*(('Indicateurs Cumulés'!$BD$4:$BD$367)*('Indicateurs Cumulés'!$BH$4:$BH$367)/J136))) -> 76.1% | M138: =SUMIF('Indicateurs Cumulés'!$F:$F,$B$7,'Indicateurs Cumulés'!BJ:BJ) -> 2,007 | N138: =IF(ISERROR(M138/SUMIF('Indicateurs Cumulés'!$F:$F,$B$7,'Indicateurs Cumulés'!LU:LU)),"nc",M138/SUMIF('Indicateurs Cumulés'!$F:$F,$B$7,'Indicateurs Cumulés'!LU:LU)) -> 1.7 | P138: =P49 -> 145% | Q138: =Q49 -> 70% | S138: =SUMIF(objectifs!$F:$F,$B$7,objectifs!BX:BX)*objectifs!$O$375/objectifs!$O$373 ->  | T138: =IF(ISERROR(S138/SUMIF(objectifs!$F:$F,$B$7,objectifs!IC:IC)),"nc",S138/SUMIF(objectifs!$F:$F,$B$7,objectifs!IC:IC)) -> nc | W138: =IF(ISERROR(M138/S138),0,M138/S138) -> 0% | X138: =IF(ISERROR(N138-(T138/12*MONTH($C$9))),"nc",N138-(T138/12*MONTH($C$9))) -> nc
B139: Commissions SACCEF | H139: =M139-SUMIF('Indicateurs Cumulés M-1'!$F:$F,$B$7,'Indicateurs Cumulés M-1'!BK:BK) -> 26 | M139: =SUMIF('Indicateurs Cumulés'!$F:$F,$B$7,'Indicateurs Cumulés'!BK:BK) -> 152 | N139: =IF(ISERROR(M139/SUMIF('Indicateurs Cumulés'!$F:$F,$B$7,'Indicateurs Cumulés'!LU:LU)),"nc",M139/SUMIF('Indicateurs Cumulés'!$F:$F,$B$7,'Indicateurs Cumulés'!LU:LU)) -> 0.1 | S139: =SUMIF(objectifs!$F:$F,$B$7,objectifs!CA:CA)*objectifs!$O$375/objectifs!$O$373 ->  | T139: =IF(ISERROR(S139/SUMIF(objectifs!$F:$F,$B$7,objectifs!IC:IC)),"nc",S139/SUMIF(objectifs!$F:$F,$B$7,objectifs!IC:IC)) -> nc | W139: =IF(ISERROR(M139/S139),0,M139/S139) -> 0% | X139: =IF(ISERROR(N139-(T139/12*MONTH($C$9))),"nc",N139-(T139/12*MONTH($C$9))) -> nc
B141: CREDIT MLT PRO - Eng. Nets (yc accessoires) | E141: =E142+E143 -> 43,279 | F141: =IF(ISERROR(H141/(E141*G141)),0,H141/(E141*G141)) -> -0.62% | G141: =IF(E141=0,0,SUMPRODUCT(G142:G143,E142:E143)/(E142+E143)) -> 5.34 | H141: =H142+H143+H144+H145 -> -1,427 | J141: =J142+J143 -> 213,872 | K141: =IF(ISERROR(M141/(J141*L141)),0,M141/(J141*L141)) -> -0.03% | L141: =IF(J141=0,0,SUMPRODUCT(L142:L143,J142:J143)/(J142+J143)) -> 5.19 | M141: =M142+M143+M144+M145 -> -381 | N141: =IF(ISERROR(M141/SUMIF('Indicateurs Cumulés'!$F:$F,$B$7,'Indicateurs Cumulés'!LU:LU)),"nc",M141/SUMIF('Indicateurs Cumulés'!$F:$F,$B$7,'Indicateurs Cumulés'!LU:LU)) -> -0.3 | P141: =P142+P143 -> 0 | Q141: =IF(ISERROR(S141/(P141*R141)),0,S141/(P141*R141)) -> 0.00% | R141: =IF(P141=0,0,SUMPRODUCT(R142:R143,P142:P143)/(P142+P143)) -> 0.00 | S141: =S142+S143+S144+S145 -> 0 | T141: =IF(ISERROR(S141/SUMIF(objectifs!$F:$F,$B$7,objectifs!IC:IC)),"nc",S141/SUMIF(objectifs!$F:$F,$B$7,objectifs!IC:IC)) -> 0.0 | V141: =IF(ISERROR(J141/P141),0,J141/P141) -> 0% | W141: =IF(ISERROR(M141/S141),0,M141/S141) -> 0% | X141: =IF(ISERROR(N141-(T141/12*MONTH($C$9))),"nc",N141-(T141/12*MONTH($C$9))) -> -0.3
B142: Crédit MLT (marge hors accessoires) | E142: =SUMIF('Indicateurs mensuels'!$F:$F,$B$7,'Indicateurs mensuels'!AA:AA) -> 40,784 | F142: =IF(E142=0,0,SUMPRODUCT(('Indicateurs mensuels'!$F$4:$F$350=$B$7)*(('Indicateurs mensuels'!$AA$4:$AA$350)*('Indicateurs mensuels'!$AB$4:$AB$350)/E142))) -> -0.78% | G142: =IF(E142=0,0,SUMPRODUCT(('Indicateurs mensuels'!$F$4:$F$350=$B$7)*(('Indicateurs mensuels'!$AA$4:$AA$350)*('Indicateurs mensuels'!$AC$4:$AC$350)/E142))) -> 5.51 | H142: =E142*F142*G142 -> -1,748 | J142: =SUMIF('Indicateurs Cumulés'!$F:$F,$B$7,'Indicateurs Cumulés'!AH:AH) -> 203,305 | K142: =IF(J142=0,0,SUMPRODUCT(('Indicateurs Cumulés'!$F$4:$F$367=$B$7)*(('Indicateurs Cumulés'!$AH$4:$AH$367)*('Indicateurs Cumulés'!$AI$4:$AI$367)/J142))) -> -0.19% | L142: =IF(J142=0,0,SUMPRODUCT(('Indicateurs Cumulés'!$F$4:$F$367=$B$7)*(('Indicateurs Cumulés'!$AH$4:$AH$367)*('Indicateurs Cumulés'!$AJ$4:$AJ$367)/J142))) -> 5.33 | M142: =J142*K142*L142 -> -2,066 | N142: =IF(ISERROR(M142/SUMIF('Indicateurs Cumulés'!$F:$F,$B$7,'Indicateurs Cumulés'!LU:LU)),"nc",M142/SUMIF('Indicateurs Cumulés'!$F:$F,$B$7,'Indicateurs Cumulés'!LU:LU)) -> -1.7 | P142: =SUMIF(objectifs!$F:$F,$B$7,objectifs!Y:Y) -> 0 | Q142: =objectifs!$Z$373 -> 0.40% | R142: =objectifs!$AA$373 -> 4.50 | S142: =P142*Q142*R142 -> 0 | T142: =IF(ISERROR(S142/SUMIF(objectifs!$F:$F,$B$7,objectifs!IC:IC)),"nc",S142/SUMIF(objectifs!$F:$F,$B$7,objectifs!IC:IC)) -> 0.0 | V142: =IF(ISERROR(J142/P142),0,J142/P142) -> 0% | W142: =IF(ISERROR(M142/S142),0,M142/S142) -> 0% | X142: =IF(ISERROR(N142-(T142/12*MONTH($C$9))),"nc",N142-(T142/12*MONTH($C$9))) -> -1.7
B143: Crédit Bail Mobilier | E143: =SUMIF('Indicateurs mensuels'!$F:$F,$B$7,'Indicateurs mensuels'!GH:GH) -> 2,495 | F143: =IF(E143=0,0,SUMPRODUCT(('Indicateurs mensuels'!$F$4:$F$350=$B$7)*(('Indicateurs mensuels'!$GH$4:$GH$350)*('Indicateurs mensuels'!$GI$4:$GI$350)/E143))) -> 0.53% | G143: =IF(E143=0,0,SUMPRODUCT(('Indicateurs mensuels'!$F$4:$F$350=$B$7)*(('Indicateurs mensuels'!$GH$4:$GH$350)*('Indicateurs mensuels'!$GJ$4:$GJ$350)/E143))) -> 2.54 | H143: =E143*F143*G143 -> 34 | J143: =SUMIF('Indicateurs Cumulés'!$F:$F,$B$7,'Indicateurs Cumulés'!AL:AL) -> 10,567 | K143: =IF(J143=0,0,SUMPRODUCT(('Indicateurs Cumulés'!$F$4:$F$367=$B$7)*(('Indicateurs Cumulés'!$AL$4:$AL$367)*('Indicateurs Cumulés'!$AM$4:$AM$367)/J143))) -> 0.58% | L143: =IF(J143=0,0,SUMPRODUCT(('Indicateurs Cumulés'!$F$4:$F$367=$B$7)*(('Indicateurs Cumulés'!$AL$4:$AL$367)*('Indicateurs Cumulés'!$AN$4:$AN$367)/J143))) -> 2.48 | M143: =J143*K143*L143 -> 152 | N143: =IF(ISERROR(M143/SUMIF('Indicateurs Cumulés'!$F:$F,$B$7,'Indicateurs Cumulés'!LU:LU)),"nc",M143/SUMIF('Indicateurs Cumulés'!$F:$F,$B$7,'Indicateurs Cumulés'!LU:LU)) -> 0.1 | P143: =SUMIF(objectifs!$F:$F,$B$7,objectifs!S:S) -> 0 | Q143: =objectifs!$T$373 -> 0.40% | R143: =objectifs!$U$373 -> 2.30 | S143: =P143*Q143*R143 -> 0 | T143: =IF(ISERROR(S143/SUMIF(objectifs!$F:$F,$B$7,objectifs!IC:IC)),"nc",S143/SUMIF(objectifs!$F:$F,$B$7,objectifs!IC:IC)) -> 0.0 | V143: =IF(ISERROR(J143/P143),0,J143/P143) -> 0% | W143: =IF(ISERROR(M143/S143),0,M143/S143) -> 0% | X143: =IF(ISERROR(N143-(T143/12*MONTH($C$9))),"nc",N143-(T143/12*MONTH($C$9))) -> 0.1
B144: Frais de dossier (yc CBM) | H144: =SUMIF('Indicateurs mensuels'!$F:$F,$B$7,'Indicateurs mensuels'!CS:CS)+SUMIF('Indicateurs mensuels'!$F:$F,$B$7,'Indicateurs mensuels'!CX:CX) -> 133 | M144: =SUMIF('Indicateurs Cumulés'!$F:$F,$B$7,'Indicateurs Cumulés'!AP:AP)+SUMIF('Indicateurs Cumulés'!$F:$F,$B$7,'Indicateurs Cumulés'!AQ:AQ) -> 613 | N144: =IF(ISERROR(M144/SUMIF('Indicateurs Cumulés'!$F:$F,$B$7,'Indicateurs Cumulés'!LU:LU)),"nc",M144/SUMIF('Indicateurs Cumulés'!$F:$F,$B$7,'Indicateurs Cumulés'!LU:LU)) -> 0.5 | S144: =SUMIF(objectifs!$F:$F,$B$7,objectifs!BS:BS) -> 0 | T144: =IF(ISERROR(S144/SUMIF(objectifs!$F:$F,$B$7,objectifs!IC:IC)),"nc",S144/SUMIF(objectifs!$F:$F,$B$7,objectifs!IC:IC)) -> 0.0 | W144: =IF(ISERROR(M144/S144),0,M144/S144) -> 0% | X144: =IF(ISERROR(N144-(T144/12*MONTH($C$9))),"nc",N144-(T144/12*MONTH($C$9))) -> 0.5
B145: Commissions ADE | E145: =IF(E142=0,0,SUMPRODUCT(('Indicateurs mensuels'!$F$4:$F$350=$B$7)*(('Indicateurs mensuels'!$AA$4:$AA$350)*('Indicateurs mensuels'!$HP$4:$HP$350)/E142))) -> 106.1% | F145: =IF(E142=0,0,SUMPRODUCT(('Indicateurs mensuels'!$F$4:$F$350=$B$7)*(('Indicateurs mensuels'!$AA$4:$AA$350)*('Indicateurs mensuels'!$HO$4:$HO$350)/E142))) -> 74.2% | H145: =SUMIF('Indicateurs mensuels'!$F:$F,$B$7,'Indicateurs mensuels'!HQ:HQ) -> 155 | J145: =IF(J142=0,0,SUMPRODUCT(('Indicateurs Cumulés'!$F$4:$F$367=$B$7)*(('Indicateurs Cumulés'!$AH$4:$AH$367)*('Indicateurs Cumulés'!$AS$4:$AS$367)/J142))) -> 112.5% | K145: =IF(J142=0,0,SUMPRODUCT(('Indicateurs Cumulés'!$F$4:$F$367=$B$7)*(('Indicateurs Cumulés'!$AH$4:$AH$367)*('Indicateurs Cumulés'!$AR$4:$AR$367)/J142))) -> 68.9% | M145: =SUMIF('Indicateurs Cumulés'!$F:$F,$B$7,'Indicateurs Cumulés'!AT:AT) -> 919 | N145: =IF(ISERROR(M145/SUMIF('Indicateurs Cumulés'!$F:$F,$B$7,'Indicateurs Cumulés'!LU:LU)),"nc",M145/SUMIF('Indicateurs Cumulés'!$F:$F,$B$7,'Indicateurs Cumulés'!LU:LU)) -> 0.8 | P145: =P59 -> 110% | Q145: =Q59 -> 70% | S145: =SUMIF(objectifs!$F:$F,$B$7,objectifs!CB:CB) -> 0 | T145: =IF(ISERROR(S145/SUMIF(objectifs!$F:$F,$B$7,objectifs!IC:IC)),"nc",S145/SUMIF(objectifs!$F:$F,$B$7,objectifs!IC:IC)) -> 0.0 | W145: =IF(ISERROR(M145/S145),0,M145/S145) -> 0% | X145: =IF(ISERROR(N145-(T145/12*MONTH($C$9))),"nc",N145-(T145/12*MONTH($C$9))) -> 0.8
B147: BANCA PRO - Ventes nettes | E147: =SUM(E148:E154) -> 442 | H147: =SUM(H148:H154) -> 952 | J147: =SUM(J148:J154) -> 2,898 | M147: =SUM(M148:M154) -> 2,393 | N147: =IF(ISERROR(M147/SUMIF('Indicateurs Cumulés'!$F:$F,$B$7,'Indicateurs Cumulés'!LU:LU)),"nc",M147/SUMIF('Indicateurs Cumulés'!$F:$F,$B$7,'Indicateurs Cumulés'!LU:LU)) -> 2.0 | P147: =SUM(P148:P154) -> 0 | S147: =SUM(S148:S154) ->  | T147: =IF(ISERROR(S147/SUMIF(objectifs!$F:$F,$B$7,objectifs!IC:IC)),"nc",S147/SUMIF(objectifs!$F:$F,$B$7,objectifs!IC:IC)) -> nc | V147: =IF(ISERROR(J147/P147),0,J147/P147) -> 0% | W147: =IF(ISERROR(M147/S147),0,M147/S147) -> 0% | X147: =IF(ISERROR(N147-(T147/12*MONTH($C$9))),"nc",N147-(T147/12*MONTH($C$9))) -> nc
B148: Forfaits PRO - Tarification | E148: =E92 -> 146 | F148: -13 € | G148: 5.00 | H148: -9 | J148: =SUMIF('Indicateurs Cumulés'!$F:$F,$B$7,'Indicateurs Cumulés'!KC:KC)+SUMIF('Indicateurs Cumulés'!$F:$F,$B$7,'Indicateurs Cumulés'!KE:KE) -> 799 | K148: =IF(ISERROR(M148/(J148*L148)*1000),0,M148/(J148*L148)*1000) -> -13 € | L148: =objectifs!$HF$3 -> 5.00 | M148: =SUMIF('Indicateurs Cumulés'!$F:$F,$B$7,'Indicateurs Cumulés'!KN:KN)+SUMIF('Indicateurs Cumulés'!$F:$F,$B$7,'Indicateurs Cumulés'!KP:KP) -> -50 | N148: =IF(ISERROR(M148/SUMIF('Indicateurs Cumulés'!$F:$F,$B$7,'Indicateurs Cumulés'!LU:LU)),"nc",M148/SUMIF('Indicateurs Cumulés'!$F:$F,$B$7,'Indicateurs Cumulés'!LU:LU)) -> -0.0 | P148: =SUMIF(objectifs!$F:$F,$B$7,objectifs!GZ:GZ)+SUMIF(objectifs!$F:$F,$B$7,objectifs!HB:HB) -> 0 | Q148: =IF(ISERROR(S148/(P148*R148)*1000),0,S148/(P148*R148)*1000) -> 0 € | R148: =objectifs!$HF$3 -> 5.00 | S148: =SUMIF(objectifs!$F:$F,$B$7,objectifs!HF:HF)+SUMIF(objectifs!$F:$F,$B$7,objectifs!HH:HH) -> 0 | T148: =IF(ISERROR(S148/SUMIF(objectifs!$F:$F,$B$7,objectifs!IC:IC)),"nc",S148/SUMIF(objectifs!$F:$F,$B$7,objectifs!IC:IC)) -> 0.0 | V148: 0% | W148: 0% | X148: -0.0
B149: Cartes PRO - Tarification | E149: 148 | F149: 37 € | G149: 5.00 | H149: 27 | J149: =SUMIF('Indicateurs Cumulés'!$F:$F,$B$7,'Indicateurs Cumulés'!KD:KD) +SUMIF('Indicateurs Cumulés'!$F:$F,$B$7,'Indicateurs Cumulés'!KF:KF) +SUMIF('Indicateurs Cumulés'!$F:$F,$B$7,'Indicateurs Cumulés'!KG:KG) -> 902 | K149: 37 € | L149: =objectifs!$HG$3 -> 5.00 | M149: =SUMIF('Indicateurs Cumulés'!$F:$F,$B$7,'Indicateurs Cumulés'!KO:KO)+SUMIF('Indicateurs Cumulés'!$F:$F,$B$7,'Indicateurs Cumulés'!KQ:KQ)+SUMIF('Indicateurs Cumulés'!$F:$F,$B$7,'Indicateurs Cumulés'!KR:KR) -> 165 | N149: =IF(ISERROR(M149/SUMIF('Indicateurs Cumulés'!$F:$F,$B$7,'Indicateurs Cumulés'!LU:LU)),"nc",M149/SUMIF('Indicateurs Cumulés'!$F:$F,$B$7,'Indicateurs Cumulés'!LU:LU)) -> 0.1 | P149: =SUMIF(objectifs!$F:$F,$B$7,objectifs!HA:HA)+SUMIF(objectifs!$F:$F,$B$7,objectifs!HC:HC)+SUMIF(objectifs!$F:$F,$B$7,objectifs!HD:HD) -> 0 | Q149: 0 € | R149: =objectifs!$HG$3 -> 5.00 | S149: =SUMIF(objectifs!$F:$F,$B$7,objectifs!HG:HG)+SUMIF(objectifs!$F:$F,$B$7,objectifs!HI:HI)+SUMIF(objectifs!$F:$F,$B$7,objectifs!HJ:HJ) -> 0 | T149: =IF(ISERROR(S149/SUMIF(objectifs!$F:$F,$B$7,objectifs!IC:IC)),"nc",S149/SUMIF(objectifs!$F:$F,$B$7,objectifs!IC:IC)) -> 0.0 | V149: 0% | W149: 0% | X149: 0.1
B150: AUTO PRO (ventes brutes) - Commissions | E150: 10 | F150: 204 € | G150: 2.75 | H150: 6 | J150: =SUMIF('Indicateurs Cumulés'!$F:$F,$B$7,'Indicateurs Cumulés'!KI:KI) -> 75 | K150: 204 € | L150: =objectifs!$HZ$3 -> 2.75 | M150: =SUMIF('Indicateurs Cumulés'!$F:$F,$B$7,'Indicateurs Cumulés'!KT:KT) -> 42 | N150: =IF(ISERROR(M150/SUMIF('Indicateurs Cumulés'!$F:$F,$B$7,'Indicateurs Cumulés'!LU:LU)),"nc",M150/SUMIF('Indicateurs Cumulés'!$F:$F,$B$7,'Indicateurs Cumulés'!LU:LU)) -> 0.0 | P150: =SUMIF(objectifs!$F:$F,$B$7,objectifs!HW:HW) -> 0 | Q150: 0 € | R150: =objectifs!$HZ$3 -> 2.75 | S150: =SUMIF(objectifs!$F:$F,$B$7,objectifs!HZ:HZ) -> 0 | T150: =IF(ISERROR(S150/SUMIF(objectifs!$F:$F,$B$7,objectifs!IC:IC)),"nc",S150/SUMIF(objectifs!$F:$F,$B$7,objectifs!IC:IC)) -> 0.0 | V150: 0% | W150: 0% | X150: 0.0
B151: Multirisque PRO (ventes brutes) - Commissions | E151: 15 | F151: 62 € | G151: 3.96 | H151: 4 | J151: =SUMIF('Indicateurs Cumulés'!$F:$F,$B$7,'Indicateurs Cumulés'!KJ:KJ) -> 86 | K151: 62 € | L151: =objectifs!$IA$3 -> 3.96 | M151: =SUMIF('Indicateurs Cumulés'!$F:$F,$B$7,'Indicateurs Cumulés'!KU:KU) -> 21 | N151: =IF(ISERROR(M151/SUMIF('Indicateurs Cumulés'!$F:$F,$B$7,'Indicateurs Cumulés'!LU:LU)),"nc",M151/SUMIF('Indicateurs Cumulés'!$F:$F,$B$7,'Indicateurs Cumulés'!LU:LU)) -> 0.0 | P151: =SUMIF(objectifs!$F:$F,$B$7,objectifs!HX:HX) -> 0 | Q151: 0 € | R151: =objectifs!$IA$3 -> 3.96 | S151: =SUMIF(objectifs!$F:$F,$B$7,objectifs!IA:IA) -> 0 | T151: =IF(ISERROR(S151/SUMIF(objectifs!$F:$F,$B$7,objectifs!IC:IC)),"nc",S151/SUMIF(objectifs!$F:$F,$B$7,objectifs!IC:IC)) -> 0.0 | V151: 0% | W151: 0% | X151: 0.0
B152: Autres - Commissions | E152: 125 | F152: 112 € | G152: 5.00 | H152: 70 | J152: =SUMIF('Indicateurs Cumulés'!$F:$F,$B$7,'Indicateurs Cumulés'!KH:KH) +SUMIF('Indicateurs Cumulés'!$F:$F,$B$7,'Indicateurs Cumulés'!KK:KK) +SUMIF('Indicateurs Cumulés'!$F:$F,$B$7,'Indicateurs Cumulés'!KL:KL) -> 912 | K152: 112 € | L152: =objectifs!$HK$3 -> 5.00 | M152: =SUMIF('Indicateurs Cumulés'!$F:$F,$B$7,'Indicateurs Cumulés'!KS:KS) +SUMIF('Indicateurs Cumulés'!$F:$F,$B$7,'Indicateurs Cumulés'!KV:KV) +SUMIF('Indicateurs Cumulés'!$F:$F,$B$7,'Indicateurs Cumulés'!KW:KW) -> 511 | N152: =IF(ISERROR(M152/SUMIF('Indicateurs Cumulés'!$F:$F,$B$7,'Indicateurs Cumulés'!LU:LU)),"nc",M152/SUMIF('Indicateurs Cumulés'!$F:$F,$B$7,'Indicateurs Cumulés'!LU:LU)) -> 0.4 | P152: =SUMIF(objectifs!$F:$F,$B$7,objectifs!HE:HE) -> 0 | Q152: 0 € | R152: =objectifs!$HK$3 -> 5.00 | S152: =SUMIF(objectifs!$F:$F,$B$7,objectifs!HK:HK) -> 0 | T152: =IF(ISERROR(S152/SUMIF(objectifs!$F:$F,$B$7,objectifs!IC:IC)),"nc",S152/SUMIF(objectifs!$F:$F,$B$7,objectifs!IC:IC)) -> 0.0 | V152: 0% | W152: 0% | X152: 0.4
B153: Contrats monétiques actifs - Commissions | E153: -2 | F153: 100 € | G153: 5.00 | H153: -1 | J153: =SUMIF('Indicateurs Cumulés'!$F:$F,$B$7,'Indicateurs Cumulés'!KM:KM) -> 124 | K153: 100 € | L153: =objectifs!$IB$3 -> 5.00 | M153: =SUMIF('Indicateurs Cumulés'!$F:$F,$B$7,'Indicateurs Cumulés'!KX:KX) -> 62 | N153: =IF(ISERROR(M153/SUMIF('Indicateurs Cumulés'!$F:$F,$B$7,'Indicateurs Cumulés'!LU:LU)),"nc",M153/SUMIF('Indicateurs Cumulés'!$F:$F,$B$7,'Indicateurs Cumulés'!LU:LU)) -> 0.1 | P153: =SUMIF(objectifs!$F:$F,$B$7,objectifs!HY:HY) -> 0 | Q153: 0 € | R153: =objectifs!$IB$3 -> 5.00 | S153: =SUMIF(objectifs!$F:$F,$B$7,objectifs!IB:IB) -> 0 | T153: =IF(ISERROR(S153/SUMIF(objectifs!$F:$F,$B$7,objectifs!IC:IC)),"nc",S153/SUMIF(objectifs!$F:$F,$B$7,objectifs!IC:IC)) -> 0.0 | V153: 0% | W153: 0% | X153: 0.1
B154: Commisions de mouvement | H154: =H98 -> 856 | M154: =SUMIF('Indicateurs Cumulés'!$F:$F,$B$7,'Indicateurs Cumulés'!KY:KY) -> 1,642 | N154: =IF(ISERROR(M154/SUMIF('Indicateurs Cumulés'!$F:$F,$B$7,'Indicateurs Cumulés'!LU:LU)),"nc",M154/SUMIF('Indicateurs Cumulés'!$F:$F,$B$7,'Indicateurs Cumulés'!LU:LU)) -> 1.4 | S154: =SUMIF(objectifs!$F:$F,$B$7,objectifs!HM:HM) ->  | T154: =IF(ISERROR(S154/SUMIF(objectifs!$F:$F,$B$7,objectifs!IC:IC)),"nc",S154/SUMIF(objectifs!$F:$F,$B$7,objectifs!IC:IC)) -> nc | V154: 0% | W154: 0% | X154: nc
B156: BANCA PRO Relation privée - Ventes nettes | E156: =SUM(E157:E159) -> 38 | H156: =SUM(H157:H159) -> 22 | J156: =SUM(J157:J159) -> -14 | M156: =SUM(M157:M159) -> 29 | N156: =IF(ISERROR(M156/SUMIF('Indicateurs Cumulés'!$F:$F,$B$7,'Indicateurs Cumulés'!LU:LU)),"nc",M156/SUMIF('Indicateurs Cumulés'!$F:$F,$B$7,'Indicateurs Cumulés'!LU:LU)) -> 0.0 | P156: =SUM(P157:P159) ->  | Q156: =IF(ISERROR(S156/(P156*R156)*1000),0,S156/(P156*R156)*1000) -> 0 € | R156: =IF(ISERROR(SUMPRODUCT(R157:R159,P157:P159)/SUMPRODUCT(P157:P159)),0,SUMPRODUCT(R157:R159,P157:P159)/SUMPRODUCT(P157:P159)) -> 0.00 | S156: =SUM(S157:S159) ->  | T156: =IF(ISERROR(S156/SUMIF(objectifs!$F:$F,$B$7,objectifs!IC:IC)),"nc",S156/SUMIF(objectifs!$F:$F,$B$7,objectifs!IC:IC)) -> nc | V156: =IF(ISERROR(J156/P156),0,J156/P156) -> 0% | W156: =IF(ISERROR(M156/S156),0,M156/S156) -> 0% | X156: =IF(ISERROR(N156-(T156/12*MONTH($C$9))),"nc",N156-(T156/12*MONTH($C$9))) -> nc
B157: Forfaits - Tarification | E157: =E101 -> -31 | F157: 129 € | G157: 5.00 | H157: -20 | J157: =SUMIF('Indicateurs Cumulés'!$F:$F,$B$7,'Indicateurs Cumulés'!JN:JN) +SUMIF('Indicateurs Cumulés'!$F:$F,$B$7,'Indicateurs Cumulés'!JO:JO) +SUMIF('Indicateurs Cumulés'!$F:$F,$B$7,'Indicateurs Cumulés'!JP:JP) +SUMIF('Indicateurs Cumulés'!$F:$F,$B$7,'Indicateurs Cumulés'!JQ:JQ) +SUMIF('Indicateurs Cumulés'!$F:$F,$B$7,'Indicateurs Cumulés'!JR:JR) +SUMIF('Indicateurs Cumulés'!$F:$F,$B$7,'Indicateurs Cumulés'!JS:JS) +SUMIF('Indicateurs Cumulés'!$F:$F,$B$7,'Indicateurs Cumulés'!JT:JT) -> -336 | K157: =K101 -> 129 € | L157: =objectifs!$GE$3 -> 5.00 | M157: =SUMIF('Indicateurs Cumulés'!$F:$F,$B$7,'Indicateurs Cumulés'!JW:JW) +SUMIF('Indicateurs Cumulés'!$F:$F,$B$7,'Indicateurs Cumulés'!JX:JX) +SUMIF('Indicateurs Cumulés'!$F:$F,$B$7,'Indicateurs Cumulés'!JY:JY) -> -95 | N157: =IF(ISERROR(M157/SUMIF('Indicateurs Cumulés'!$F:$F,$B$7,'Indicateurs Cumulés'!LU:LU)),"nc",M157/SUMIF('Indicateurs Cumulés'!$F:$F,$B$7,'Indicateurs Cumulés'!LU:LU)) -> -0.1 | P157: =SUMIF(objectifs!$F:$F,$B$7,objectifs!GD:GD)*5% ->  | Q157: =objectifs!$GD$3 -> 137 € | R157: =objectifs!$GE$3 -> 5.00 | S157: =P157*Q157*R157/1000 ->  | T157: =IF(ISERROR(S157/SUMIF(objectifs!$F:$F,$B$7,objectifs!IC:IC)),"nc",S157/SUMIF(objectifs!$F:$F,$B$7,objectifs!IC:IC)) -> nc | V157: =IF(ISERROR(J157/P157),0,J157/P157) -> 0% | W157: =IF(ISERROR(M157/S157),0,M157/S157) -> 0% | X157: =IF(ISERROR(N157-(T157/12*MONTH($C$9))),"nc",N157-(T157/12*MONTH($C$9))) -> nc
B158: Cartes - Tarification | E158: 94 | F158: 96 € | G158: 5.00 | H158: 45 | J158: =SUMIF('Indicateurs Cumulés'!$F:$F,$B$7,'Indicateurs Cumulés'!JU:JU) -> 241 | K158: =K102 -> 96 € | L158: =objectifs!$GG$3 -> 5.00 | M158: =SUMIF('Indicateurs Cumulés'!$F:$F,$B$7,'Indicateurs Cumulés'!JZ:JZ) -> 116 | N158: =IF(ISERROR(M158/SUMIF('Indicateurs Cumulés'!$F:$F,$B$7,'Indicateurs Cumulés'!LU:LU)),"nc",M158/SUMIF('Indicateurs Cumulés'!$F:$F,$B$7,'Indicateurs Cumulés'!LU:LU)) -> 0.1 | P158: =SUMIF(objectifs!$F:$F,$B$7,objectifs!GF:GF)*5% -> 0 | Q158: =objectifs!$GF$3 -> 98 € | R158: =objectifs!$GG$3 -> 5.00 | S158: =P158*Q158*R158/1000 -> 0 | T158: =IF(ISERROR(S158/SUMIF(objectifs!$F:$F,$B$7,objectifs!IC:IC)),"nc",S158/SUMIF(objectifs!$F:$F,$B$7,objectifs!IC:IC)) -> 0.0 | V158: =IF(ISERROR(J158/P158),0,J158/P158) -> 0% | W158: =IF(ISERROR(M158/S158),0,M158/S158) -> 0% | X158: =IF(ISERROR(N158-(T158/12*MONTH($C$9))),"nc",N158-(T158/12*MONTH($C$9))) -> 0.1
B159: IARD & Prévoyance - Commissions | E159: -25 | F159: 22 € | G159: 5.00 | H159: -3 | J159: =SUMIF('Indicateurs Cumulés'!$F:$F,$B$7,'Indicateurs Cumulés'!JV:JV) -> 81 | K159: =K103 -> 22 € | L159: =objectifs!$GI$3 -> 5.00 | M159: =SUMIF('Indicateurs Cumulés'!$F:$F,$B$7,'Indicateurs Cumulés'!KA:KA) -> 9 | N159: =IF(ISERROR(M159/SUMIF('Indicateurs Cumulés'!$F:$F,$B$7,'Indicateurs Cumulés'!LU:LU)),"nc",M159/SUMIF('Indicateurs Cumulés'!$F:$F,$B$7,'Indicateurs Cumulés'!LU:LU)) -> 0.0 | P159: =SUMIF(objectifs!$F:$F,$B$7,objectifs!GH:GH)*5% -> 0 | Q159: =objectifs!$GH$3 -> 22 € | R159: =objectifs!$GI$3 -> 5.00 | S159: =P159*Q159*R159/1000 -> 0 | T159: =IF(ISERROR(S159/SUMIF(objectifs!$F:$F,$B$7,objectifs!IC:IC)),"nc",S159/SUMIF(objectifs!$F:$F,$B$7,objectifs!IC:IC)) -> 0.0 | V159: =IF(ISERROR(J159/P159),0,J159/P159) -> 0% | W159: =IF(ISERROR(M159/S159),0,M159/S159) -> 0% | X159: =IF(ISERROR(N159-(T159/12*MONTH($C$9))),"nc",N159-(T159/12*MONTH($C$9))) -> 0.0
B161: AUTRES | H161: =M161 -> 0 | M161: 0 | N161: =IF(ISERROR(M161/SUMIF('Indicateurs Cumulés'!$F:$F,$B$7,'Indicateurs Cumulés'!LU:LU)),"nc",M161/SUMIF('Indicateurs Cumulés'!$F:$F,$B$7,'Indicateurs Cumulés'!LU:LU)) -> 0.0 | S161: =VLOOKUP($B$7,objectifs!$F$3:$AAB$391,172,FALSE)*objectifs!$FU$375/objectifs!$FU$373 -> -700 | T161: =IF(ISERROR(S161/SUMIF(objectifs!$F:$F,$B$7,objectifs!IC:IC)),"nc",S161/SUMIF(objectifs!$F:$F,$B$7,objectifs!IC:IC)) -> -0.5 | W161: =IF(ISERROR(M161/S161),0,M161/S161) -> 0% | X161: =IF(ISERROR(N161-(T161/12*MONTH($C$9))),"nc",N161-(T161/12*MONTH($C$9))) -> 0.2
B163: ZOOM PNB PRO* sur Activité Nouvelle | H163: =H156+H124+H130+H135+H141+H147+H161 -> -1,248 | M163: =M156+M124+M130+M135+M141+M147+M161 -> 2,770 | N163: =IF(ISERROR(M163/SUMIF('Indicateurs Cumulés'!$F:$F,$B$7,'Indicateurs Cumulés'!LU:LU)),"nc",M163/SUMIF('Indicateurs Cumulés'!$F:$F,$B$7,'Indicateurs Cumulés'!LU:LU)) -> 2.3 | S163: =S156+S124+S130+S135+S141+S147+S161 ->  | T163: =IF(ISERROR(S163/SUMIF(objectifs!$F:$F,$B$7,objectifs!IC:IC)),"nc",S163/SUMIF(objectifs!$F:$F,$B$7,objectifs!IC:IC)) -> nc | W163: =IF(ISERROR(M163/S163),0,M163/S163) -> 0.0% | X163: =IF(ISERROR(N163-(T163/12*MONTH($C$9))),"nc",N163-(T163/12*MONTH($C$9))) -> nc
B164: * y compris relation privée du pro

Sheet Indicateurs Cumulés
C1: 1 | D1: 2 | E1: 3 | F1: 4 | G1: 5 | H1: 6 | I1: 7 | J1: 8 | K1: 9 | L1: 10 | M1: 11 | N1: 12 | O1: 13 | P1: 14 | Q1: 15 | R1: 16 | S1: 17 | T1: 18 | U1: 19 | V1: 20 | W1: 21 | Y1: 22 | Z1: 23 | AA1: 24 | AB1: 25 | AC1: 26 | AD1: 27 | AE1: 28 | AF1: 29 | AG1: 30 | AH1: 31 | AI1: 32 | AJ1: 33 | AL1: 34 | AM1: 35 | AN1: 36 | AO1: 37 | AP1: 38 | AQ1: 39 | AR1: 40 | AS1: 41 | AT1: 42 | AU1: 43 | AV1: 44 | AW1: 45 | AX1: 46 | AY1: 47 | AZ1: 48 | BA1: 49 | BB1: 50 | BC1: 51 | BD1: 52 | BE1: 53 | BF1: 54 | BG1: 55 | BH1: 56 | BI1: 57 | BJ1: 58 | BK1: 59 | BL1: 60 | BM1: 61 | BN1: 62 | BO1: 63 | BP1: 64 | BQ1: 65 | BR1: 66 | BS1: 67 | BT1: 68 | BU1: 69 | BV1: 70 | BW1: 71 | BX1: 72 | BY1: 73 | BZ1: 74 | CA1: 75 | CB1: 76 | CC1: 77 | CD1: 78 | CE1: 79 | CF1: 80 | CG1: 81 | CH1: 82 | CI1: 83 | CJ1: 84 | CK1: 85 | CL1: 86 | CM1: 87 | CN1: 88 | CO1: 89 | CP1: 90 | CQ1: 91 | CR1: 92 | CS1: 93 | CT1: 94 | CU1: 95 | CV1: 96 | CW1: 97 | CX1: 98 | CY1: 99 | CZ1: 100 | DA1: 101 | DB1: 102 | DC1: 103 | DD1: 104 | DE1: 105 | DF1: 106 | DG1: 107 | DH1: 108 | DI1: 109 | DJ1: 110 | DK1: 111 | DL1: 112 | DM1: 113 | DN1: 114 | DO1: 115 | DP1: 116 | DQ1: 117 | DR1: 118 | DS1: 119 | DT1: 120 | DU1: 121 | DV1: 122 | DW1: 123 | DX1: 124 | DY1: 125 | DZ1: 126 | EA1: 127 | EB1: 128 | EC1: 129 | ED1: 130 | EE1: 131 | EF1: 132 | EG1: 133 | EH1: 134 | EI1: 135 | EJ1: 136 | EK1: 137 | EL1: 138 | EM1: 139 | EN1: 140 | EO1: 141 | EP1: 142 | EQ1: 143 | ER1: 144 | ES1: 145 | ET1: 146 | EU1: 147 | EV1: 148 | EW1: 149 | EX1: 150 | EY1: 151 | EZ1: 152 | FA1: 153 | FB1: 154 | FC1: 155 | FD1: 156 | FE1: 157 | FF1: 158 | FG1: 159 | FH1: 160 | FI1: 161 | FJ1: 162 | FK1: 163 | FL1: 164 | FM1: 165 | FN1: 166 | FO1: 167 | FP1: 168 | FQ1: 169 | FR1: 170 | FS1: 171 | FT1: 172 | FU1: 173 | FV1: 174 | FW1: 175 | FX1: 176 | FY1: 177 | FZ1: 178 | GA1: 179 | GB1: 180 | GC1: 181 | GD1: 182 | GE1: 183 | GF1: 184 | GG1: 185 | GH1: 186 | GI1: 187 | GJ1: 188 | GK1: 189 | GL1: 190 | GM1: 191 | GN1: 192 | GO1: 193 | GP1: 194 | GQ1: 195 | GR1: 196 | GS1: 197 | GT1: 198 | GU1: 199 | GV1: 200 | GW1: 201 | GX1: 202 | GY1: 203 | GZ1: 204 | HA1: 205 | HB1: 206 | HC1: 207 | HD1: 208 | HE1: 209 | HF1: 210 | HG1: 220 | HH1: 220 | HI1: 220 | HJ1: 220 | HK1: 220 | HL1: 220 | HM1: 223 | HN1: 225 | HO1: 226 | HP1: 227 | HQ1: 228 | HR1: 191 | HS1: 229 | HT1: 230 | HU1: 231 | HV1: 232 | HW1: 233 | HY1: 234 | HZ1: 235 | IA1: 267 | IB1: 311 | IC1: 240 | ID1: 241 | IE1: 242 | IF1: 243 | IG1: 83 | IH1: 244 | II1: 306 | IJ1: 81 | IK1: 310 | IL1: 252 | IM1: 253 | IN1: 254 | IO1: 255 | IP1: 300 | IQ1: 299 | IR1: 245 | IS1: 246 | IT1: 247 | IU1: 248 | IV1: 249 | IX1: 250 | IY1: 251 | IZ1: 268 | JA1: 312 | JB1: 69 | JC1: 70 | JD1: 256 | JE1: 257 | JF1: 258 | JG1: 259 | JH1: 84 | JI1: 260 | JJ1: 307 | JK1: 192 | JL1: 82 | JM1: 261 | JN1: 315 | JO1: 301 | JP1: 302 | JQ1: 303 | JR1: 62 | JS1: 63 | JT1: 64 | JU1: 317 | JV1: 319 | JW1: 316 | JX1: 106 | JY1: 193 | JZ1: 318 | KA1: 320 | KB1: 326 | KC1: 285 | KD1: 286 | KE1: 287 | KF1: 288 | KG1: 289 | KH1: 290 | KI1: 75 | KJ1: 77 | KM1: 79 | KN1: 291 | KO1: 292 | KP1: 293 | KQ1: 294 | KR1: 295 | KS1: 296 | KT1: 76 | KU1: 78 | KX1: 80 | KY1: 298 | KZ1: 297 | LA1: 218 | LB1: 219 | LC1: 222 | LD1: 263 | LE1: 264 | LF1: 308 | LG1: 325 | LH1: 328 | LI1: 329 | LJ1: 330 | LK1: 331 | LL1: 332 | LM1: 333 | LN1: 334 | LO1: 335 | LP1: 336 | LQ1: 337 | LR1: 338 | LS1: 339 | LT1: 56 | LU1: 224 | LV1: 313 | LW1: 314 | LX1: 327 | LY1: 321 | LZ1: 322
A2: Id_UC | B2: Id_groupe | C2: Id_PV | D2: Lib_PV | E2: Id_Agence | F2: Lib_Agence | G2: DATE Financements Revolving | H2: Fin Revolving | I2: Tx marg Revolving | J2: DVMA Revolving | K2: DATE CRED | L2: volumes conso BDD | M2: Tx marg conso BDD | N2: DVMA Conso BDD | O2: Marge | P2: taux de pénétration DES PRET CONSO BDD | Q2: QUOTITE ASSUREE CONSO BDD | R2: PNB CNP CONSO BDD | S2: FDD CONSO MARCHE BDD | T2: PNB Crédit CONSO (yc revolving) | U2: volumes immo BDD | V2: Tx marg immo BDD | W2: DVMA Immo BDD | X2: Marge | Y2: taux de pénétration DES PRET IMMO | Z2: QUOTITE ASSUREE IMMO | AA2: PNB CNP IMMO BDD | AB2: FDD Immo BDD | AC2: CAUTION Immo BDD | AD2: Bonus Bancarisation Crédit Immo | AE2: Bonus Bancarisation PNB Crédit Immo | AF2: Comm apporteurs d'affaires BDD | AG2: PNB Crédit IMMO | AH2: volumes Equip | AI2: Tx marg Equip | AJ2: DVMA EQUIP | AK2: Marge | AL2: Volumes Crédit Bail BDD | AM2: Tx marg Crédit Bail BDD | AN2: DVMA Crédit Bail BDD | AO2: PNB Crédit Bail BDD | AP2: FDD EQUIP MARCHE BDD | AQ2: FDD CB Marché PRO | AR2: taux de pénétration DES PRET MLT agences | AS2: QUOTITE ASSUREE MLT agences | AT2: PNB CNP MLT agences | AU2: PNB Crédit MLT | AV2: volumes conso PRO | AW2: Tx marg conso PRO | AX2: DVMA Conso PRO | AY2: FDD CONSO MARCHE PRO | AZ2: taux de pénétration DES PRET CONSO PRO | BA2: QUOTITE ASSUREE CONSO PRO | BB2: PNB CNP CONSO PRO | BC2: zoom PNB Crédit CONSO PRO | BD2: volumes immo PRO | BE2: Tx marg immo PRO | BF2: DVMA Immo PRO | BG2: FDD IMMO MARCHE PRO | BH2: QUOTITE ASSUREE IMMO PRO | BI2: Tx pénétration IMMO PRO | BJ2: PNB CNP IMMO PRO | BK2: CAUTION IMMO PRO | BL2: zoom PNB Crédit IMMO PRO | BM2: PNB TOTAL CREDITS | BN2: DATE ASSVIE | BO2: Flux IT | BP2: com IT | BQ2: Tx com IT | BR2: Flux N3D | BS2: dont Flux N3D UC | BT2: % flux N3D en UC | BU2: com N3D | BV2: Tx com N3D | BW2: Flux N+ et NP | BX2: dont Flux N+ et NP UC | BY2: %Flux N+ et NP en UC | BZ2: com N+ et NP | CA2: Tx com N+ et NP | CB2: Flux Autres Ecu Vie | CC2: dont Flux Autres Ecu Vie UC | CD2: % Flux Autres Ecu Vie UC | CE2: com Autres Ecu Vie | CF2: Tx com Autres Ecu Vie | CG2: Flux total ECUVIE | CH2: dont total ECUVIE en UC | CI2: % total ECUVIE en UC | CJ2: com total ECUVIE | CK2: TX com total ECUVIE | CL2: Volumes LA BDD | CM2: Tx marg LA BDD | CN2: DVMA LA BDD | CO2: PNB LA BDD | CP2: Volumes LB BDD | CQ2: Tx marg LB BDD | CR2: DVMA LB BDD | CS2: PNB LB BDD | CT2: Volumes LGF BDD | CU2: Tx marg LGF BDD | CV2: DVMA LGF BDD | CW2: PNB LGF BDD | CX2: Volumes LGP BDD | CY2: Tx marg LGP BDD | CZ2: DVMA LGP BDD | DA2: PNB LGP BDD | DB2: Volumes LEP BDD | DC2: Tx marg LEP BDD | DD2: DVMA LEP BDD | DE2: PNB LEP BDD | DF2: Volumes LDD BDD | DG2: Tx marg LDD BDD | DH2: DVMA LDD BDD | DI2: PNB LDD BDD | DJ2: Volumes LJ (yc 10-12) BDD | DK2: Tx marg LJ (yc 10-12) BDD | DL2: DVMA LJ (yc 10-12) BDD | DM2: PNB LJ (yc 10-12) BDD | DN2: Volumes CEL BDD | DO2: Tx marg CEL BDD | DP2: DVMA CEL BDD | DQ2: PNB CEL BDD | DR2: Volumes SLR BDD | DS2: Tx marg SLR BDD | DT2: DVMA SLR BDD | DU2: PNB SLR BDD | DV2: Volumes DAT BDD | DW2: Tx marg DAT BDD | DX2: DVMA DAT BDD | DY2: PNB DAT BDD | DZ2: Volumes PEL BDD | EA2: Tx marg PEL BDD | EB2: DVMA PEL BDD | EC2: PNB PEL BDD | ED2: Volumes PEP BDD | EE2: Tx marg PEP BDD | EF2: DVMA PEP BDD | EG2: PNB PEP BDD | EH2: Volumes Emprunt BDD | EI2: Tx marg Emprunt BDD | EJ2: DVMA Emprunt BDD | EK2: PNB Emprunt BDD | EL2: Volumes PS BDD | EM2: Tx marg PS BDD | EN2: DVMA PS BDD | EO2: PNB PS BDD | EP2: Volumes Epargne Bilan BDD | EQ2: PNB Epargne Bilan BDD | ER2: Volumes Ass Vie encours BDD | ES2: Tx marg Ass Vie encours BDD | ET2: DVMA Ass Vie encours BDD | EU2: PNB Ass Vie encours BDD | EV2: Volumes Ass Vie BP1818 encours | EW2: Tx marg Ass Vie BP1818 encours | EX2: DVMA Ass Vie BP1818 encours | EY2: PNB Ass Vie BP1818 encours | EZ2: Volumes OPCVM encours BDD | FA2: Tx marg OPCVM encours BDD | FB2: DVMA OPCVM encours BDD | FC2: PNBOPCVM encours BDD | FD2: Volumes OPCVM BP1818 encours | FE2: Tx marg OPCVM BP1818 encours | FF2: DVMA OPCVM BP1818 encours | FG2: PNB OPCVM BP1818 encours | FH2: Volumes Autres Val MOB | FI2: Tx marg Autres Val MOB | FJ2: DVMA Autres Val MOB | FK2: PNB Autres Val MOB | FL2: Volumes Ass Vie flux BDD | FM2: Tx marg Ass Vie flux BDD | FN2: DVMA Ass Vie flux BDD | FO2: PNB Ass Vie flux BDD | FP2: Volumes Ass Vie BP1818 flux | FQ2: Tx marg Ass Vie BP1818 flux | FR2: DVMA Ass Vie BP1818 flux | FS2: PNB Ass Vie BP1818 flux | FT2: Volumes OPCVM Verst BDD | FU2: Tx marg OPCVM Verst BDD | FV2: DVMA OPCVM verst BDD | FW2: PNB OPCVM flux BDD | FX2: Volumes OPCVM BP1818 Verst | FY2: Tx marg OPCVM BP1818 Verst | FZ2: DVMA OPCVM BP1818 Verst | GA2: PNB OPCVM BP1818 flux | GB2: Arbitrage fonds € vers UC Volume | GC2: Arbitrage fonds € vers UC PNB | GD2: FCP structurés (versements) | GE2: FCP structurés PNB | GF2: Volumes Epargne Financière BDD | GG2: PNB Epargne Financière BDD | GH2: Volumes CDD créditeurs BDD hors plafond | GI2: Volumes CDD créditeurs BDD plafond (+150% et -50%) | GJ2: Tx marg CDD créditeurs BDD | GK2: DVMA CDD créditeurs BDD | GL2: PNB CDD créditeurs BDD | GM2: PNB TOTAL COLLECTE | GN2: Volumes DAT PRO | GO2: Tx marg DAT PRO | GP2: Volumes PS PRO | GQ2: Volumes Ass Vie flux PRO | GR2: Volumes Ass Vie encours PRO | GS2: Volumes PEL PRO | GT2: Volumes CE PRO | GU2: Volumes Autre Epargne PRO | GV2: Volumes CDD créditeurs PRO hors plafond | GW2: Volumes CDD créditeurs PRO plafond (+150% et -50%) | GX2: PNB DAT PRO | GY2: PNB PS PRO | GZ2: PNB Ass Vie flux PRO | HA2: PNB Ass Vie encours PRO | HB2: PNB PEL PRO | HC2: PNB CE PRO | HD2: PNB Autre Epargne PRO | HE2: PNB CDD créditeurs PRO | HF2: PNB PRO Collecte yc DAV | HH2: BOUQUET LIBERTE | HI2: Futéo / SOL 16-17 / Jeune / Autonomie | HJ2: Satellis Essentiel / Essentiel + | HK2: Satellis Intégral | HL2: Formule individuelle initial | HM2: Formule individuelle confort | HN2: Formule individuelle optimal | HO2: Formule famille initial | HP2: Formule famille confort | HQ2: Formule famille optimal | HR2: Options complémentaires BL > 2e | HS2: Auto Part | HT2: MRH Part | HU2: Santé Part | HV2: GAV Part | HW2: PJ Part | HX2: GU Part | HY2: ESO Part | HZ2: GF Part | IA2: Assistance Vie | IB2: Prévoyance du locataire | IC2: Carte Infinite | ID2: Carte Platinum (yc izicarte) | IE2: Carte visa premier (yc izicarte) | IF2: Carte visa classique (yc izicarte) | IG2: Carte Senséa | IH2: Autres Cartes | II2: CARTE dd ventes nettes | IJ2: Contrats Mobilité bancaire | IK2: Bouquet liberté HDG | IL2: Bouquet liberté Autres | IM2: Futéo / SOL 16-17 / Jeune / Autonomie | IN2: Satellis Essentiel / Essentiel + | IO2: Satellis Intégral | IP2: PNB formules Famille BDD | IQ2: PNB formules Individuelles BDD | IR2: Auto | IS2: MRH | IT2: Santé | IU2: GAV | IV2: PJ | IW2: GU | IX2: ESO | IY2: GF | IZ2: Assistance Vie | JA2: Prévoyance du locataire | JB2: Booster IARD Auto | JC2: Booster IARD MRH | JD2: Carte Infinite | JE2: Carte Platinum (yc izicarte) | JF2: Carte visa premier (yc izicarte) | JG2: Carte visa classique (yc izicarte) | JH2: PNB cartes Senséa | JI2: Autres Cartes | JJ2: PNB CARTE débit dif bonus de 40€ x 5 ans par carte nette | JK2: PNB option | JL2: Bonus Mobilité bancaire | JM2: PNB BANCA PART | JN2: Forfaits Part PRO | JO2: FORMULE INDIVIDUELLE INITIAL PRO | JP2: FORMULE INDIVIDUELLE CONFORT PRO | JQ2: FORMULE INDIVIDUELLE OPTIMAL PRO | JR2: FORMULE FAMILLE INITIAL PRO | JS2: FORMULE FAMILLE CONFORT PRO | JT2: FORMULE FAMILLE OPTIMAL PRO | JU2: Cartes Part PRO | JV2: IARD Part PRO | JW2: PNB Forfaits Part PRO | JX2: PNB FORMULE FAMILLE PRO | JY2: PNB FORMULE INDIVIDUELLE PRO | JZ2: PNB Cartes Part PRO | KA2: PNB IARD Part PRO | KB2: PNB BANCA part du PRO | KC2: Ventes nettes Libre Convergence Labelis | KD2: Business Platinum | KE2: Auto entrepreneur | KF2: Business | KG2: Business Gold | KH2: PAP | KI2: Auto PRO Volume | KJ2: Multi risque PRO Volume | KK2: BOX OFFICE | KL2: PRO TG | KM2: Contrats monétiques actif PRO | KN2: PNB Libre Convergence | KO2: Business Platinum | KP2: Auto entrepreneur | KQ2: Business | KR2: Business Gold | KS2: PAP | KT2: Auto PRO PNB | KU2: MRH PRO PNB | KV2: BOX OFFICE | KW2: PRO TG | KX2: Contrats monétiques actif PRO PNB | KY2: com mouv | KZ2: PNB PRO Banca | LA2: Volumes Remises | LB2: Volumes Facturé | LC2: I selection PNB | LD2: Domitys Volumes (taux pour calcul PNB) | LE2: CFI PNB SCPI | LF2: CILOGER PNB | LG2: PNB TOTAL AUTRES | LI2: Nombre de SED finalisées (en brut) | LK2: Evolution stock de clients équipés E-documents | LL2: Evolution stock de clients avec Opt-in-mail et tél. | LO2: Nombre de SED finalisées (en brut) PNB | LQ2: Evolution stock de clients équipés E-documents PNB | LR2: Evolution stock de clients avec Opt-in-mail et tél. PNB | LT2: Id Ecureuil Vie | LU2: ETP Performance | LV2: PNB TOTAL hors digital | LW2: PNB PRO | LX2: PNB TOTAL / ETP | LY2: PNB TOTAL (Hors booster) | LZ2: PNB TOTAL (Hors booster) / ETP | MA2: PV Bernard L. | MC2: PNB comm immobilières
G3: 2022-06-30 | AA3: 1.00 | AE3: 1,000 € | BJ3: =AA3 -> 1.00 | CM3: ='Zoom Collecte'!$B$5 -> 0.87% | CN3: ='Zoom Collecte'!$C$5 -> 5.38 | CQ3: ='Zoom Collecte'!$B$6 -> 0.88% | CR3: ='Zoom Collecte'!$C$6 -> 5.38 | CU3: ='Zoom Collecte'!$B$8 -> 0.93% | CV3: ='Zoom Collecte'!$C$8 -> 5.38 | CY3: ='Zoom Collecte'!$B$9 -> 0.94% | CZ3: ='Zoom Collecte'!$C$9 -> 5.38 | DC3: ='Zoom Collecte'!$B$10 -> 0.20% | DD3: ='Zoom Collecte'!$C$10 -> 5.38 | DG3: ='Zoom Collecte'!$B$11 -> 0.20% | DH3: ='Zoom Collecte'!$C$11 -> 5.38 | DK3: ='Zoom Collecte'!$B$12 -> 0.20% | DL3: ='Zoom Collecte'!$C$12 -> 5.26 | DO3: ='Zoom Collecte'!$B$15 -> -0.02% | DP3: ='Zoom Collecte'!$C$15 -> 5.38 | DS3: ='Zoom Collecte'!$B$13 -> 0.22% | DT3: ='Zoom Collecte'!$C$13 -> 5.69 | DW3: ='Zoom Collecte'!$B$13 -> 0.22% | DX3: ='Zoom Collecte'!$C$13 -> 5.69 | EA3: ='Zoom Collecte'!$B$16 -> 0.00% | EB3: ='Zoom Collecte'!$C$16 -> 8.36 | EE3: ='Zoom Collecte'!$B$17 -> 0.00% | EF3: ='Zoom Collecte'!$C$17 -> 1.74 | EI3: ='Zoom Collecte'!$B$18 -> 0.20% | EJ3: ='Zoom Collecte'!$C$18 -> 8.00 | EM3: ='Zoom Collecte'!$B$19 -> 1.00% | EN3: ='Zoom Collecte'!$C$19 -> 5.00 | ES3: ='Zoom Collecte'!$B$20 -> 0.54% | ET3: ='Zoom Collecte'!$C$20 -> 8.00 | EW3: ='Zoom Collecte'!$B$20 -> 0.54% | EX3: ='Zoom Collecte'!$C$20 -> 8.00 | FA3: ='Zoom Collecte'!$B$23 -> 0.80% | FB3: ='Zoom Collecte'!$C$23 -> 4.00 | FE3: ='Zoom Collecte'!$B$23 -> 0.80% | FF3: ='Zoom Collecte'!$C$23 -> 4.00 | FI3: ='Zoom Collecte'!$B$25 -> 1.00% | FJ3: ='Zoom Collecte'!$C$25 -> 5.00 | FU3: ='Zoom Collecte'!$B$24 -> 0.40% | FV3: ='Zoom Collecte'!$C$24 -> 1.00 | FY3: ='Zoom Collecte'!$B$24 -> 0.40% | FZ3: ='Zoom Collecte'!$C$24 -> 1.00 | GB3: ='Zoom Collecte'!$B$22 -> 0.32% | GC3: ='Zoom Collecte'!$C$22 -> 8.00 | GD3: ='Zoom Collecte'!$B$26 -> 2.50% | GE3: ='Zoom Collecte'!$C$26 -> 1.00 | GN3: ='Zoom Collecte'!$B$13 -> 0.22% | GP3: ='Zoom Collecte'!$B$19 -> 1.00% | GR3: ='Zoom Collecte'!B20 -> 0.54% | GS3: ='Zoom Collecte'!$B$16 -> 0.00% | GT3: ='Zoom Collecte'!$B$7 -> 0.88% | GU3: ='Zoom Collecte'!$B$6 -> 0.88% | GV3: ='Zoom Collecte'!B4 -> 0.90% | GX3: ='Zoom Collecte'!$C$13 -> 5.69 | GY3: ='Zoom Collecte'!$C$19 -> 5.00 | HA3: ='Zoom Collecte'!$C$20 -> 8.00 | HB3: ='Zoom Collecte'!$C$16 -> 8.36 | HC3: ='Zoom Collecte'!$C$6 -> 5.38 | HD3: ='Zoom Collecte'!$C$6 -> 5.38 | HE3: ='Zoom Collecte'!$C$4 -> 8.83 | HH3: 129 € | HI3: 11 € | HJ3: 112 € | HK3: 163 € | HL3: 64 € | HM3: 104 € | HN3: 197 € | HO3: 135 € | HP3: 210 € | HQ3: 309 € | HS3: ='Zoom Collecte'!$C$34 -> 55 € | HT3: ='Zoom Collecte'!$C$35 -> 33 € | HU3: ='Zoom Collecte'!$C$39 -> 77 € | HV3: ='Zoom Collecte'!$C$36 -> 23 € | HW3: ='Zoom Collecte'!$C$37 -> 10 € | HX3: ='Zoom Collecte'!C40 -> 3 € | HY3: ='Zoom Collecte'!C41 -> 14 € | HZ3: ='Zoom Collecte'!C42 -> 19 € | IA3: ='Zoom Collecte'!C43 -> 45 € | IB3: ='Zoom Collecte'!C44 -> 20 € | IC3: 133 € | ID3: 145 € | IE3: 96 € | IF3: 41 € | IG3: 27 € | IH3: 14 € | IK3: 5.00 | IL3: 5.00 | IM3: 5.00 | IN3: 5.00 | IO3: 5.00 | IP3: 5.00 | IQ3: 5.00 | IR3: =+'Zoom Collecte'!D34 -> 5.60 | IS3: =+'Zoom Collecte'!D35 -> 8.10 | IT3: =+'Zoom Collecte'!D39 -> 6.30 | IU3: =+'Zoom Collecte'!D36 -> 12.50 | IV3: =+'Zoom Collecte'!D37 -> 13.30 | IW3: =+'Zoom Collecte'!D40 -> 6.00 | IX3: =+'Zoom Collecte'!D41 -> 7.00 | IY3: =+'Zoom Collecte'!D42 -> 6.00 | IZ3: =+'Zoom Collecte'!D43 -> 10.00 | JA3: =+'Zoom Collecte'!D44 -> 5.00 | JB3: 0 € | JC3: =JB3 -> 0 € | JD3: 5.00 | JE3: 5.00 | JF3: 5.00 | JG3: 5.00 | JH3: 5.00 | JI3: 5.00 | JL3: 200 € | JN3: 129 € | JO3: =$HL$3 -> 64 € | JP3: =$HM$3 -> 104 € | JQ3: =$HN$3 -> 197 € | JR3: =HO3 -> 135 € | JS3: =HP3 -> 210 € | JT3: =HQ3 -> 309 € | JU3: 96 € | JV3: 22 € | JW3: 5.00 | JX3: 5.00 | JY3: 5.00 | JZ3: 5.00 | KA3: 5.00 | KC3: 0 € | KD3: 222 € | KE3: 135 € | KF3: 42 € | KG3: 0 € | KH3: ='Zoom Collecte'!C50 -> 18 € | KI3: ='Zoom Collecte'!C48 -> 100 € | KJ3: ='Zoom Collecte'!C49 -> 30 € | KK3: 185 € | KL3: =+(46+72)/2 -> 59 € | KM3: ='Zoom Collecte'!C51 -> 100 € | KN3: 5.00 | KO3: 5.00 | KP3: 5.00 | KQ3: 5.00 | KR3: 5.00 | KS3: 5.00 | KT3: ='Zoom Collecte'!D48 -> 5.60 | KU3: ='Zoom Collecte'!D49 -> 8.10 | KV3: 5.00 | KW3: =(5.64+8.17)/2 -> 6.91 | KX3: ='Zoom Collecte'!D51 -> 5.00 | LD3: 4.00% | LE3: 2.00% | LF3: 4.00% | LH3: 5.00 | LI3: 1.00 | LJ3: 1.00 | LK3: 5.00 | LL3: 3.00 | LM3: 5.00 | LN3: 15 € | LO3: 10 € | LP3: 3 € | LQ3: 10 € | LR3: 5 € | LS3: 1 €
A4: 105006 | B4: 200262 | C4: 6 | D4: STRASBOURG NEUDORF | E4: 6 | F4: STRASBOURG NEUDORF | G4: =$G$3 -> 2022-06-30 | H4: 121 | I4: 4.32% | J4: 1.58 | K4: 2022-06-30 | L4: 1,750 | M4: 1.72% | N4: 2.96 | O4: =L4*M4*N4 -> 89 | P4: 100.00% | Q4: 143.96% | R4: 35 | S4: 1 | T4: =(H4*I4*J4)+O4+R4+S4 -> 133 | U4: 8,486 | V4: -0.80% | W4: 7.95 | X4: =U4*V4*W4 -> -542 | Y4: 51.07% | Z4: 151.63% | AA4: 181 | AB4: 18 | AC4: 16.1 | AF4: =-IF(ISERROR(VLOOKUP($C4,#REF!,2,FALSE)),0,VLOOKUP($C4,#REF!,2,FALSE)/1000) -> 0 | AG4: =(U4*V4*W4)+AB4+AC4+AA4+AE4+AF4 -> -327 | AH4: 165 | AI4: -0.83% | AJ4: 3.23 | AK4: =AH4*AI4*AJ4 -> -4 | AL4: 30 | AM4: 1.51% | AN4: 1.93 | AO4: =AL4*AM4*AN4 -> 1 | AP4: 0.5 | AQ4: 0.15 | AR4: 0.00% | AS4: 0.00% | AT4: 0 | AU4: =(AH4*AI4*AJ4)+AQ4+AT4+AO4+AP4 -> -3 | AV4: 284 | AW4: 1.05% | AX4: 3.09 | AY4: 0 | AZ4: 100.00% | BA4: 117.95% | BB4: 6 | BC4: =(AV4*AW4*AX4)+AY4+BB4 -> 16 | BD4: 180 | BE4: -0.74% | BF4: 7.68 | BG4: 0 | BH4: 0.00% | BI4: 0.00% | BJ4: 1 | BK4: 0 | BL4: =(BD4*BE4*BF4)+BJ4+BK4+BG4 -> -9 | BM4: =AG4+T4+AU4 -> -197 | BN4: 202206 | BO4: 0 | BP4: 0 | BQ4: =IF(ISERROR(BP4/BO4),0,BP4/BO4) -> 0.00% | BR4: 466.12 | BS4: 55.43 | BT4: =IF(ISERROR(BS4/BR4),0,BS4/BR4) -> 12% | BU4: 2.96 | BV4: =IF(ISERROR(BU4/BR4),0,BU4/BR4) -> 0.63% | BW4: 2,731.18 | BX4: 472.77 | BY4: =IF(ISERROR(BX4/BW4),0,BX4/BW4) -> 17.3% | BZ4: 1.45 | CA4: =IF(ISERROR(BZ4/BW4),0,BZ4/BW4) -> 0.05% | CB4: 80.21 | CC4: 2.08 | CD4: =IF(ISERROR(CC4/CB4),0,CC4/CB4) -> 2.59% | CE4: 0.74 | CF4: =IF(ISERROR(CE4/CB4),0,CE4/CB4) -> 0.93% | CG4: 3,277.51 | CH4: 530.28 | CI4: =IF(ISERROR(CH4/CG4),0,CH4/CG4) -> 16.2% | CJ4: 5.15 | CK4: =IF(ISERROR(CJ4/CG4),0,CJ4/CG4) -> 0.16% | CL4: 492 | CM4: ='Zoom Collecte'!$B$5 -> 0.87% | CN4: ='Zoom Collecte'!$C$5 -> 5.38 | CO4: 17 | CP4: 991 | CQ4: ='Zoom Collecte'!$B$6 -> 0.88% | CR4: ='Zoom Collecte'!$C$6 -> 5.38 | CS4: =CP4*CQ4*CR4 -> 47 | CT4: -18 | CU4: ='Zoom Collecte'!$B$8 -> 0.93% | CV4: ='Zoom Collecte'!$C$8 -> 5.38 | CW4: =CT4*CU4*CV4 -> -1 | CX4: 77 | CY4: ='Zoom Collecte'!$B$9 -> 0.94% | CZ4: ='Zoom Collecte'!$C$9 -> 5.38 | DA4: =CX4*CY4*CZ4 -> 4 | DB4: 231 | DC4: ='Zoom Collecte'!$B$10 -> 0.20% | DD4: ='Zoom Collecte'!$C$10 -> 5.38 | DE4: =DB4*DC4*DD4 -> 2 | DF4: 193 | DG4: ='Zoom Collecte'!$B$11 -> 0.20% | DH4: ='Zoom Collecte'!$C$11 -> 5.38 | DI4: =DF4*DG4*DH4 -> 2 | DJ4: -9 | DK4: ='Zoom Collecte'!$B$12 -> 0.20% | DL4: ='Zoom Collecte'!$C$12 -> 5.26 | DM4: =DJ4*DK4*DL4 -> -0 | DN4: 44 | DO4: ='Zoom Collecte'!$B$15 -> -0.02% | DP4: ='Zoom Collecte'!$C$15 -> 5.38 | DQ4: =DN4*DO4*DP4 -> -0 | DR4: -6 | DS4: ='Zoom Collecte'!$B$13 -> 0.22% | DT4: ='Zoom Collecte'!$C$13 -> 5.69 | DU4: =DR4*DS4*DT4 -> -0 | DV4: -80 | DW4: =DW$367 -> 0.22% | DX4: 5.69 | DY4: =DV4*DW4*DX4 -> -1 | DZ4: -853 | EA4: ='Zoom Collecte'!$B$16 -> 0.00% | EB4: ='Zoom Collecte'!$C$16 -> 8.36 | EC4: =DZ4*EA4*EB4 -> 0 | ED4: -12 | EE4: ='Zoom Collecte'!$B$17 -> 0.00% | EF4: ='Zoom Collecte'!$C$17 -> 1.74 | EG4: =ED4*EE4*EF4 -> -0 | EH4: -5 | EI4: ='Zoom Collecte'!$B$18 -> 0.20% | EJ4: ='Zoom Collecte'!$C$18 -> 8.00 | EK4: =EH4*EI4*EJ4 -> -0 | EL4: -517 | EM4: ='Zoom Collecte'!$B$19 -> 1.00% | EN4: ='Zoom Collecte'!$C$19 -> 5.00 | EO4: =EL4*EM4*EN4 -> -26 | EP4: =CL4+CP4+CT4+CX4+DB4+DF4+DJ4+DN4+DV4+DZ4+ED4+EH4+EL4+DR4+GT4 -> 979 | EQ4: =CO4+CS4+CW4+DA4+DE4+DI4+DM4+DQ4+DU4+DY4+EC4+EG4+EK4+EO4+HC4 -> 66 | ER4: -960 | ES4: ='Zoom Collecte'!$B$20 -> 0.54% | ET4: ='Zoom Collecte'!$C$20 -> 8.00 | EU4: =ER4*ES4*ET4 -> -42 | EV4: -95 | EW4: =EW$367 -> 0.54% | EX4: 8.00 | EY4: =EV4*EW4*EX4 -> -4 | EZ4: -111 | FA4: ='Zoom Collecte'!$B$23 -> 0.80% | FB4: ='Zoom Collecte'!$C$23 -> 4.00 | FC4: =EZ4*FA4*FB4 -> -4 | FD4: 8 | FE4: ='Zoom Collecte'!$B$23 -> 0.80% | FF4: ='Zoom Collecte'!$C$23 -> 4.00 | FG4: =FD4*FE4*FF4 -> 0 | FH4: -15 | FI4: ='Zoom Collecte'!$B$25 -> 1.00% | FJ4: ='Zoom Collecte'!$C$25 -> 5.00 | FK4: =FH4*FI4*FJ4 -> -1 | FL4: 2,547 | FM4: =CK4 -> 0.16% | FN4: =FN$367 -> 1.00 | FO4: =FL4*FM4*FN4 -> 4 | FP4: 0 | FQ4: =FM4 -> 0.16% | FR4: =FR$367 -> 1.00 | FS4: =FP4*FQ4*FR4 -> 0 | FT4: 9 | FU4: ='Zoom Collecte'!$B$24 -> 0.40% | FV4: ='Zoom Collecte'!$C$24 -> 1.00 | FW4: =FT4*FU4*FV4 -> 0 | FX4: 8 | FY4: ='Zoom Collecte'!$B$24 -> 0.40% | FZ4: ='Zoom Collecte'!$C$24 -> 1.00 | GA4: =FX4*FY4*FZ4 -> 0 | GB4: 191 | GC4: =GB4*$GB$3*$GC$3 -> 5 | GD4: 223 | GE4: =GD4*$GD$3*$GE$3 -> 6 | GF4: =ER4+EZ4+EV4+FD4+FH4 -> -1,173 | GG4: =EU4+FO4+FC4+FW4+EY4+FS4+FG4+GA4+FK4+GC4+GE4 -> -35 | GH4: 356 | GI4: =(IF(ISERROR(IF(VLOOKUP($C4,'Indicateurs Cumulés'!$C$3:$HL$553,186,FALSE)/(VLOOKUP($C4,objectifs!$C$3:$AAB$559,158,FALSE))>=1.5,(VLOOKUP($C4,objectifs!$C$3:$AAB$559,158,FALSE))*1.5,IF(VLOOKUP($C4,'Indicateurs Cumulés'!$C$3:$HL$553,186,FALSE)/(VLOOKUP($C4,objectifs!$C$3:$AAB$559,158,FALSE))<=-0.5,(VLOOKUP($C4,objectifs!$C$3:$AAB$559,158,FALSE))*-0.5,VLOOKUP($C4,'Indicateurs Cumulés'!$C$3:$HL$553,186,FALSE)))),VLOOKUP($C4,'Indicateurs Cumulés'!$C$3:$HL$553,186,FALSE),IF(VLOOKUP($C4,'Indicateurs Cumulés'!$C$3:$HL$553,186,FALSE)/(VLOOKUP($C4,objectifs!$C$3:$AAB$559,158,FALSE))>=1.5,(VLOOKUP($C4,objectifs!$C$3:$AAB$559,158,FALSE))*1.5,IF(VLOOKUP($C4,'Indicateurs Cumulés'!$C$3:$HL$553,186,FALSE)/(VLOOKUP($C4,objectifs!$C$3:$AAB$559,158,FALSE))<=-0.5,(VLOOKUP($C4,objectifs!$C$3:$AAB$559,158,FALSE))*-0.5,VLOOKUP($C4,'Indicateurs Cumulés'!$C$3:$HL$553,186,FALSE)))))*0 -> 0 | GJ4: =GJ$367 -> 1.00% | GK4: 5.33 | GL4: =GH4*GJ4*GK4*MONTH($G$3)/12 -> 9 | GM4: =(EQ4+GG4+GL4) -> 40 | GN4: -0 | GO4: =$DW$367 -> 0.22% | GP4: -166 | GR4: -67 | GS4: 35 | GT4: 450 | GU4: 135 | GV4: -336 | GW4: =IF(ISERROR(IF(VLOOKUP($C4,'Indicateurs Cumulés'!$C$3:$HL$553,200,FALSE)/(VLOOKUP($C4,objectifs!$C$3:$AAB$559,162,FALSE))>=1.5,(VLOOKUP($C4,objectifs!$C$3:$AAB$559,162,FALSE))*1.5,IF(VLOOKUP($C4,'Indicateurs Cumulés'!$C$3:$HL$553,200,FALSE)/(VLOOKUP($C4,objectifs!$C$3:$AAB$559,162,FALSE))<=-0.5,(VLOOKUP($C4,objectifs!$C$3:$AAB$559,162,FALSE))*-0.5,VLOOKUP($C4,'Indicateurs Cumulés'!$C$3:$HL$553,200,FALSE)))),VLOOKUP($C4,'Indicateurs Cumulés'!$C$3:$HL$553,200,FALSE),IF(VLOOKUP($C4,'Indicateurs Cumulés'!$C$3:$HL$553,200,FALSE)/(VLOOKUP($C4,objectifs!$C$3:$AAB$559,162,FALSE))>=1.5,(VLOOKUP($C4,objectifs!$C$3:$AAB$559,162,FALSE))*1.5,IF(VLOOKUP($C4,'Indicateurs Cumulés'!$C$3:$HL$553,200,FALSE)/(VLOOKUP($C4,objectifs!$C$3:$AAB$559,162,FALSE))<=-0.5,(VLOOKUP($C4,objectifs!$C$3:$AAB$559,162,FALSE))*-0.5,VLOOKUP($C4,'Indicateurs Cumulés'!$C$3:$HL$553,200,FALSE)))) -> 8 | GX4: =GN4*$GN$3*$GX$3 -> -0 | GY4: =GP4*$GP$3*$GY$3 -> -8 | HA4: =GR4*$GR$3*$HA$3 -> -3 | HB4: =GS4*$GS$3*$HB$3 -> 0 | HC4: =GT4*$GT$3*$HC$3 -> 21 | HD4: =GU4*$GU$3*$HD$3 -> 6 | HE4: =GV4*$GV$3*$HE$3*MONTH($G$3)/12 -> -13 | HF4: =GX4+GY4+GZ4+HA4+HC4+HD4+HE4+HB4 -> 3 | HH4: -98 | HI4: 12 | HJ4: -8 | HK4: 0 | HL4: 44 | HM4: 57 | HN4: 11 | HO4: 0 | HP4: 14 | HQ4: 4 | HR4: 0 | HS4: -11 | HT4: 9 | HU4: 5 | HV4: 13 | HW4: 6 | HX4: -8 | HY4: 0 | HZ4: 45 | IA4: 1 | IB4: 0 | IC4: 2 | ID4: 0 | IE4: 38 | IF4: 83 | IG4: -52 | IH4: -1 | II4: 0 | IK4: =HG4*$HG$3*$IK$3/1000 -> 0 | IL4: =HH4*IL$3*HH$3/1000 -> -63 | IM4: =HI4*IM$3*HI$3/1000 -> 1 | IN4: =HJ4*IN$3*HJ$3/1000 -> -4 | IO4: =HK4*IO$3*HK$3/1000 -> 0 | IP4: =(HO4*$HO$3+HP4*$HP$3+HQ4*$HQ$3)*5/1000 -> 21 | IQ4: =(HL4*$HL$3+HM4*$HM$3+HN4*$HN$3)*5/1000 -> 55 | IR4: =HS4*IR$3*HS$3/1000 -> -3 | IS4: =HT4*IS$3*HT$3/1000 -> 2 | IT4: =HU4*IT$3*HU$3/1000 -> 2 | IU4: =HV4*IU$3*HV$3/1000 -> 4 | IV4: =HW4*IV$3*HW$3/1000 -> 1 | IW4: =HX4*IW$3*HX$3/1000 -> -0 | IX4: =HY4*IX$3*HY$3/1000 -> 0 | IY4: =HZ4*IY$3*HZ$3/1000 -> 5 | IZ4: =IA4*IA$3*IZ$3/1000 -> 0 | JA4: =IB4*$IB$3*$JA$3/1000 -> 0 | JB4: =HS4*$JB$3*$IL$3/1000 -> 0 | JC4: =HT4*$JC$3*$IL$3/1000 -> 0 | JD4: =IC4*JD$3*IC$3/1000 -> 1 | JE4: =ID4*JE$3*ID$3/1000 -> 0 | JF4: =IE4*JF$3*IE$3/1000 -> 18 | JG4: =IF4*JG$3*IF$3/1000 -> 17 | JH4: =(IG4*$IG$3*$JH$3)/1000 -> -7 | JI4: =IH4*JI$3*IH$3/1000 -> -0 | JJ4: =II4*$JJ$3*$JF$3/1000 -> 0 | JK4: =HR4*$HR$3*$JK$3/1000 -> 0 | JL4: =+IJ4*$JL$3/1000 -> 0 | JM4: =SUM(IK4:JL4) -> 49 | JN4: -4 | JO4: 2 | JP4: 2 | JQ4: 1 | JS4: 0 | JT4: 0 | JU4: 0 | JV4: 5 | JW4: =JN4*$JN$3*$JW$3/1000 -> -3 | JX4: =(JR4*JR$3+JS4*$JS$3+JT4*$JT$3)*$JX$3/1000 -> 0 | JY4: =(JO4*JO$3+JP4*$JP$3+JQ4*$JQ$3)*$JY$3/1000 -> 3 | JZ4: =JU4*$JU$3*$JZ$3/1000 -> 0 | KA4: =JV4*$JV$3*$KA$3/1000 -> 1 | KB4: =SUM(JW4:KA4) -> 1 | KC4: 5 | KD4: 0 | KE4: 0 | KF4: 0 | KG4: 3 | KH4: 0 | KI4: 2 | KJ4: 0 | KK4: 2 | KL4: 4 | KM4: 5 | KN4: =KC4*KN$3*KC$3/1000 -> 0 | KO4: =KD4*KO$3*KD$3/1000 -> 0 | KP4: =KE4*KP$3*KE$3/1000 -> 0 | KQ4: =KF4*KQ$3*KF$3/1000 -> 0 | KR4: =KG4*KR$3*KG$3/1000 -> 0 | KS4: =KH4*KS$3*KH$3/1000 -> 0 | KT4: =KI4*$KI$3*$KT$3/1000 -> 1 | KU4: =KJ4*$KJ$3*$KU$3/1000 -> 0 | KV4: =KK4*$KK$3*$KV$3/1000 -> 2 | KW4: =KL4*$KL$3*$KW$3/1000 -> 2 | KX4: =KM4*$KM$3*$KX$3/1000 -> 3 | KY4: 11 | KZ4: =SUM(KN4:KY4) -> 18 | LA4: -11 | LB4: 316 | LC4: 0 | LD4: 0 | LE4: 0 | LF4: 5 | LG4: =LA4+LC4+LD4+LE4+LF4 -> -5 | LN4: =IF(LH4<0,0,LH4*$LH$3*$LN$3/1000) -> 0.0 | LO4: =IF(LI4<0,0,LI4*$LI$3*$LO$3/1000) -> 0.0 | LP4: =IF(LJ4<0,0,LJ4*$LJ$3*$LP$3/1000) -> 0.0 | LQ4: =IF(LK4<0,0,LK4*$LK$3*$LQ$3/1000) -> 0.0 | LR4: =IF(LL4<0,0,LL4*$LL$3*$LR$3/1000) -> 0.0 | LS4: =IF(LM4<0,0,LM4*$LM$3*$LS$3/1000) -> 0.0 | LT4: =C4 -> 6 | LU4: 0.0 | LV4: =(H4*I4*J4+O4+R4+S4+U4*V4*W4+AA4+AB4+AC4+AE4+AF4+AH4*AI4*AJ4+AO4+AP4+AQ4+AT4)*1 +(CO4+CS4+CW4+DA4+DE4+DI4+DM4+DQ4+DU4+DY4+EC4+EG4+EK4+EO4+EU4+EY4+FC4+FG4+FK4+FO4+FS4+FW4+GA4+GC4+GE4+GL4+HC4)*1 +SUM(IK4:JL4)*1 +SUM(KN4:KY4)*1 +SUM(JW4:KA4)*1 +(LC4+LD4+LE4+LF4+LA4)*1 -> -95 | LW4: =(AH4*AI4*AJ4+AO4+AP4+AQ4+AT4+AV4*AW4*AX4+AY4+BB4+BD4*BE4*BF4+BG4+BJ4+BK4)*1+SUM(GX4:HE4)*1+SUM(JW4:KA4)*1+SUM(KN4:KY4)*1 -> 25 | LX4: =IF(LU4=0,0,LV4/LU4) -> 0.00 | LY4: =LV4-JJ4-JB4-JC4-JL4-AE4 -> -95 | LZ4: =IF(LU4=0,0,LY4/LU4) -> 0.0 | MA4: =LV4+SUM(LN4:LS4) -> -95 | MC4: =LC4+LD4+LE4+LF4 -> 5.3
A5: 105101 | B5: 200262 | C5: 7 | D5: ILLKIRCH CENTRE | E5: 7 | F5: ILLKIRCH CENTRE | G5: =$G$3 -> 2022-06-30 | H5: 204 | I5: 4.32% | J5: 1.58 | K5: 2022-06-30 | L5: 2,249 | M5: 2.46% | N5: 2.98 | O5: =L5*M5*N5 -> 165 | P5: 99.18% | Q5: 133.90% | R5: 39 | S5: 9 | T5: =(H5*I5*J5)+O5+R5+S5 -> 227 | U5: 10,468 | V5: -0.76% | W5: 8.03 | X5: -641 | Y5: 52.99% | Z5: 137.87% | AA5: 190 | AB5: 32 | AC5: 22.1 | AF5: -27 | AG5: =(U5*V5*W5)+AB5+AC5+AA5+AE5+AF5 -> -424 | AH5: 1,917 | AI5: -0.66% | AJ5: 5.44 | AK5: =AH5*AI5*AJ5 -> -69 | AL5: 26 | AM5: 0.98% | AN5: 1.48 | AO5: 0 | AP5: 4.9 | AQ5: 0.10 | AR5: 0.00% | AS5: 0.00% | AT5: 2 | AU5: =(AH5*AI5*AJ5)+AQ5+AT5+AO5+AP5 -> -61 | AV5: 171 | AW5: 1.61% | AX5: 2.95 | AY5: 1 | AZ5: 100.00% | BA5: 112.87% | BB5: 2 | BC5: 11 | BD5: 2,324 | BE5: -0.63% | BF5: 8.17 | BG5: 7 | BH5: 132.43% | BI5: 52.50% | BJ5: 40 | BK5: 5 | BL5: -68 | BM5: -258 | BN5: 202206 | BO5: 0 | BP5: 0 | BQ5: =IF(ISERROR(BP5/BO5),0,BP5/BO5) -> 0.00% | BR5: 654.40 | BS5: 142.57 | BT5: 22% | BU5: 2.62 | BV5: 0.40% | BW5: 4,673.01 | BX5: 1,242.14 | BY5: 26.6% | BZ5: 1.85 | CA5: 0.04% | CB5: 133.45 | CC5: 4.79 | CD5: 3.59% | CE5: 1.57 | CF5: 1.18% | CG5: 5,460.86 | CH5: 1,389.51 | CI5: 25.4% | CJ5: 6.04 | CK5: 0.11% | CL5: 244 | CM5: ='Zoom Collecte'!$B$5 -> 0.87% | CN5: ='Zoom Collecte'!$C$5 -> 5.38 | CO5: =CL5*CM5*CN5 -> 11 | CP5: -326 | CQ5: =CQ$367 -> 0.88% | CR5: 5.38 | CS5: =CP5*CQ5*CR5 -> -15 | CT5: -69 | CU5: ='Zoom Collecte'!$B$8 -> 0.93% | CV5: ='Zoom Collecte'!$C$8 -> 5.38 | CW5: =CT5*CU5*CV5 -> -3 | CX5: -151 | CY5: ='Zoom Collecte'!$B$9 -> 0.94% | CZ5: ='Zoom Collecte'!$C$9 -> 5.38 | DA5: =CX5*CY5*CZ5 -> -8 | DB5: 16 | DC5: ='Zoom Collecte'!$B$10 -> 0.20% | DD5: ='Zoom Collecte'!$C$10 -> 5.38 | DE5: =DB5*DC5*DD5 -> 0 | DF5: 112 | DG5: ='Zoom Collecte'!$B$11 -> 0.20% | DH5: ='Zoom Collecte'!$C$11 -> 5.38 | DI5: =DF5*DG5*DH5 -> 1 | DJ5: -78 | DK5: ='Zoom Collecte'!$B$12 -> 0.20% | DL5: ='Zoom Collecte'!$C$12 -> 5.26 | DM5: =DJ5*DK5*DL5 -> -1 | DN5: 24 | DO5: ='Zoom Collecte'!$B$15 -> -0.02% | DP5: ='Zoom Collecte'!$C$15 -> 5.38 | DQ5: =DN5*DO5*DP5 -> -0 | DR5: -56 | DS5: ='Zoom Collecte'!$B$13 -> 0.22% | DT5: ='Zoom Collecte'!$C$13 -> 5.69 | DU5: =DR5*DS5*DT5 -> -1 | DV5: -571 | DW5: 0.22% | DX5: 5.69 | DY5: =DV5*DW5*DX5 -> -7 | DZ5: -1,422 | EA5: ='Zoom Collecte'!$B$16 -> 0.00% | EB5: ='Zoom Collecte'!$C$16 -> 8.36 | EC5: =DZ5*EA5*EB5 -> 0 | ED5: -2 | EE5: ='Zoom Collecte'!$B$17 -> 0.00% | EF5: ='Zoom Collecte'!$C$17 -> 1.74 | EG5: =ED5*EE5*EF5 -> -0 | EH5: 16 | EI5: ='Zoom Collecte'!$B$18 -> 0.20% | EJ5: ='Zoom Collecte'!$C$18 -> 8.00 | EK5: =EH5*EI5*EJ5 -> 0 | EL5: -266 | EM5: ='Zoom Collecte'!$B$19 -> 1.00% | EN5: ='Zoom Collecte'!$C$19 -> 5.00 | EO5: =EL5*EM5*EN5 -> -13 | EP5: -2,512 | EQ5: =CO5+CS5+CW5+DA5+DE5+DI5+DM5+DQ5+DY5+EC5+EG5+EK5+EO5+DU5+HC5 -> -35 | ER5: 699 | ES5: ='Zoom Collecte'!$B$20 -> 0.54% | ET5: ='Zoom Collecte'!$C$20 -> 8.00 | EU5: =ER5*ES5*ET5 -> 30 | EV5: -19 | EW5: 0.54% | EX5: 8.00 | EY5: =EV5*EW5*EX5 -> -1 | EZ5: -50 | FA5: ='Zoom Collecte'!$B$23 -> 0.80% | FB5: ='Zoom Collecte'!$C$23 -> 4.00 | FC5: =EZ5*FA5*FB5 -> -2 | FD5: -23 | FE5: ='Zoom Collecte'!$B$23 -> 0.80% | FF5: ='Zoom Collecte'!$C$23 -> 4.00 | FG5: =FD5*FE5*FF5 -> -1 | FH5: 236 | FI5: ='Zoom Collecte'!$B$25 -> 1.00% | FJ5: ='Zoom Collecte'!$C$25 -> 5.00 | FK5: 12 | FL5: 5,401 | FM5: 0.11% | FN5: 1.00 | FO5: =FL5*FM5*FN5 -> 6 | FP5: 0 | FQ5: 0.11% | FR5: 1.00 | FS5: =FP5*FQ5*FR5 -> 0 | FT5: 35 | FU5: ='Zoom Collecte'!$B$24 -> 0.40% | FV5: ='Zoom Collecte'!$C$24 -> 1.00 | FW5: =FT5*FU5*FV5 -> 0 | FX5: 0 | FY5: ='Zoom Collecte'!$B$24 -> 0.40% | FZ5: ='Zoom Collecte'!$C$24 -> 1.00 | GA5: 0 | GB5: 452 | GC5: =GB5*$GB$3*$GC$3 -> 12 | GD5: 514 | GE5: =IF(ISERROR(GD5*$GD$3*$GE$3),0,GD5*$GD$3*$GE$3) -> 13 | GF5: 844 | GG5: 70 | GH5: -88 | GI5: =(IF(ISERROR(IF(VLOOKUP($C5,'Indicateurs Cumulés'!$C$3:$HL$553,186,FALSE)/(VLOOKUP($C5,objectifs!$C$3:$AAB$559,158,FALSE))>=1.5,(VLOOKUP($C5,objectifs!$C$3:$AAB$559,158,FALSE))*1.5,IF(VLOOKUP($C5,'Indicateurs Cumulés'!$C$3:$HL$553,186,FALSE)/(VLOOKUP($C5,objectifs!$C$3:$AAB$559,158,FALSE))<=-0.5,(VLOOKUP($C5,objectifs!$C$3:$AAB$559,158,FALSE))*-0.5,VLOOKUP($C5,'Indicateurs Cumulés'!$C$3:$HL$553,186,FALSE)))),VLOOKUP($C5,'Indicateurs Cumulés'!$C$3:$HL$553,186,FALSE),IF(VLOOKUP($C5,'Indicateurs Cumulés'!$C$3:$HL$553,186,FALSE)/(VLOOKUP($C5,objectifs!$C$3:$AAB$559,158,FALSE))>=1.5,(VLOOKUP($C5,objectifs!$C$3:$AAB$559,158,FALSE))*1.5,IF(VLOOKUP($C5,'Indicateurs Cumulés'!$C$3:$HL$553,186,FALSE)/(VLOOKUP($C5,objectifs!$C$3:$AAB$559,158,FALSE))<=-0.5,(VLOOKUP($C5,objectifs!$C$3:$AAB$559,158,FALSE))*-0.5,VLOOKUP($C5,'Indicateurs Cumulés'!$C$3:$HL$553,186,FALSE)))))*0 -> 0 | GJ5: 1.00% | GK5: 5.33 | GL5: =GH5*GJ5*GK5*MONTH($G$3)/12 -> -2 | GM5: =(EQ5+GG5+GL5) -> 33 | GN5: -101 | GO5: 0.22% | GP5: -132 | GR5: 41 | GS5: -97 | GT5: 18 | GU5: -136 | GV5: 209 | GW5: =IF(ISERROR(IF(VLOOKUP($C5,'Indicateurs Cumulés'!$C$3:$HL$553,200,FALSE)/(VLOOKUP($C5,objectifs!$C$3:$AAB$559,162,FALSE))>=1.5,(VLOOKUP($C5,objectifs!$C$3:$AAB$559,162,FALSE))*1.5,IF(VLOOKUP($C5,'Indicateurs Cumulés'!$C$3:$HL$553,200,FALSE)/(VLOOKUP($C5,objectifs!$C$3:$AAB$559,162,FALSE))<=-0.5,(VLOOKUP($C5,objectifs!$C$3:$AAB$559,162,FALSE))*-0.5,VLOOKUP($C5,'Indicateurs Cumulés'!$C$3:$HL$553,200,FALSE)))),VLOOKUP($C5,'Indicateurs Cumulés'!$C$3:$HL$553,200,FALSE),IF(VLOOKUP($C5,'Indicateurs Cumulés'!$C$3:$HL$553,200,FALSE)/(VLOOKUP($C5,objectifs!$C$3:$AAB$559,162,FALSE))>=1.5,(VLOOKUP($C5,objectifs!$C$3:$AAB$559,162,FALSE))*1.5,IF(VLOOKUP($C5,'Indicateurs Cumulés'!$C$3:$HL$553,200,FALSE)/(VLOOKUP($C5,objectifs!$C$3:$AAB$559,162,FALSE))<=-0.5,(VLOOKUP($C5,objectifs!$C$3:$AAB$559,162,FALSE))*-0.5,VLOOKUP($C5,'Indicateurs Cumulés'!$C$3:$HL$553,200,FALSE)))) -> 8 | GX5: -1 | GY5: -7 | HA5: 2 | HB5: 0 | HC5: 1 | HD5: -6 | HE5: 8 | HF5: -3 | HH5: -167 | HI5: 3 | HJ5: -14 | HK5: -4 | HL5: 22 | HM5: 81 | HN5: 19 | HO5: 1 | HP5: 8 | HQ5: 29 | HR5: 0 | HS5: 41 | HT5: 27 | HU5: 2 | HV5: 80 | HW5: 0 | HX5: -6 | HY5: -3 | HZ5: 92 | IA5: 1 | IB5: -1 | IC5: 1 | ID5: -5 | IE5: 34 | IF5: 50 | IG5: -25 | IH5: 0 | II5: 0 | IK5: 0 | IL5: -108 | IM5: 0 | IN5: -8 | IO5: -3 | IP5: 54 | IQ5: 68 | IR5: 13 | IS5: 7 | IT5: 1 | IU5: 23 | IV5: 0 | IW5: =HX5*IW$3*HX$3/1000 -> -0 | IX5: -0 | IY5: 11 | IZ5: 0 | JA5: -0 | JB5: 0 | JC5: 0 | JD5: 1 | JE5: -4 | JF5: 16 | JG5: 10 | JH5: -3 | JI5: 0 | JJ5: 0 | JK5: 0 | JL5: 0 | JM5: 77 | JN5: -16 | JO5: 1 | JP5: 0 | JQ5: -2 | JS5: 0 | JT5: 6 | JU5: 9 | JV5: 9 | JW5: -10 | JX5: 9 | JY5: -2 | JZ5: 4 | KA5: 1 | KB5: 3 | KC5: 10 | KD5: 0 | KE5: 0 | KF5: 13 | KG5: 1 | KH5: 0 | KI5: 0 | KJ5: -1 | KK5: 2 | KL5: 7 | KM5: 7 | KN5: 0 | KO5: 0 | KP5: 0 | KQ5: 3 | KR5: 0 | KS5: 0 | KT5: 0 | KU5: -0 | KV5: =KK5*$KK$3*$KV$3/1000 -> 2 | KW5: =KL5*$KL$3*$KW$3/1000 -> 3 | KX5: 4 | KY5: 13 | KZ5: 24 | LA5: -23 | LB5: 389 | LC5: 0 | LD5: 0 | LE5: 0 | LF5: 14 | LG5: =LA5+LC5+LD5+LE5+LF5 -> -10 | LN5: 0.0 | LO5: 0.0 | LP5: 0.0 | LQ5: 0.0 | LR5: 0.0 | LS5: 0.0 | LT5: =C5 -> 7 | LU5: 0.0 | LV5: =(H5*I5*J5+O5+R5+S5+U5*V5*W5+AA5+AB5+AC5+AE5+AF5+AH5*AI5*AJ5+AO5+AP5+AQ5+AT5)*1 +(CO5+CS5+CW5+DA5+DE5+DI5+DM5+DQ5+DU5+DY5+EC5+EG5+EK5+EO5+EU5+EY5+FC5+FG5+FK5+FO5+FS5+FW5+GA5+GC5+GE5+GL5+HC5)*1 +SUM(IK5:JL5)*1 +SUM(KN5:KY5)*1 +SUM(JW5:KA5)*1 +(LC5+LD5+LE5+LF5+LA5)*1 -> -132 | LW5: -96 | LX5: =IF(LU5=0,0,LV5/LU5) -> 0.00 | LY5: -132 | LZ5: 0.0 | MA5: =LV5+SUM(LN5:LS5) -> -132 | MC5: =LC5+LD5+LE5+LF5 -> 13.7
A6: 105101 | B6: 200262 | C6: 8 | D6: FEGERSHEIM | E6: 8 | F6: FEGERSHEIM | G6: 2022-06-30 | H6: 43 | I6: 4.32% | J6: 1.58 | K6: 2022-06-30 | L6: 839 | M6: 1.73% | N6: 2.87 | O6: 42 | P6: 93.98% | Q6: 127.95% | R6: 15 | S6: 3 | T6: 62 | U6: 1,716 | V6: -0.75% | W6: 8.28 | X6: -106 | Y6: 31.38% | Z6: 177.26% | AA6: 24 | AB6: 4 | AC6: 2.2 | AF6: -6 | AG6: -82 | AH6: 0 | AI6: 0.00% | AJ6: 0 | AK6: 0 | AL6: 100 | AM6: 0.96% | AN6: 1.48 | AO6: 1 | AP6: 0 | AQ6: 0.27 | AR6: 0.00% | AS6: 0.00% | AT6: 0 | AU6: 2 | AV6: 0 | AW6: 0.00% | AX6: 0 | AY6: 0 | AZ6: 0.00% | BA6: 0.00% | BB6: 0 | BC6: 0 | BD6: 99 | BE6: -0.90% | BF6: 7.68 | BG6: 1 | BH6: 0.00% | BI6: 0.00% | BJ6: 0 | BK6: 0 | BL6: -6 | BM6: -18 | BN6: 202206 | BO6: 1.60 | BP6: 0.02 | BQ6: 1.20% | BR6: 470.76 | BS6: 91.03 | BT6: 19% | BU6: 1.75 | BV6: 0.37% | BW6: 1,484.62 | BX6: 235.11 | BY6: 15.8% | BZ6: 1.01 | CA6: 0.07% | CB6: 37.21 | CC6: 1.40 | CD6: 3.75% | CE6: 0.37 | CF6: 1.00% | CG6: 1,994.19 | CH6: 327.54 | CI6: 16.4% | CJ6: 3.15 | CK6: 0.16% | CL6: 500 | CM6: ='Zoom Collecte'!$B$5 -> 0.87% | CN6: ='Zoom Collecte'!$C$5 -> 5.38 | CO6: 23 | CP6: 553 | CQ6: 0.88% | CR6: 5.38 | CS6: 26 | CT6: -23 | CU6: ='Zoom Collecte'!$B$8 -> 0.93% | CV6: ='Zoom Collecte'!$C$8 -> 5.38 | CW6: -1 | CX6: -68 | CY6: ='Zoom Collecte'!$B$9 -> 0.94% | CZ6: ='Zoom Collecte'!$C$9 -> 5.38 | DA6: -3 | DB6: -63 | DC6: ='Zoom Collecte'!$B$10 -> 0.20% | DD6: ='Zoom Collecte'!$C$10 -> 5.38 | DE6: -1 | DF6: 196 | DG6: ='Zoom Collecte'!$B$11 -> 0.20% | DH6: ='Zoom Collecte'!$C$11 -> 5.38 | DI6: 2 | DJ6: -21 | DK6: ='Zoom Collecte'!$B$12 -> 0.20% | DL6: ='Zoom Collecte'!$C$12 -> 5.26 | DM6: -0 | DN6: 1 | DO6: ='Zoom Collecte'!$B$15 -> -0.02% | DP6: ='Zoom Collecte'!$C$15 -> 5.38 | DQ6: -0 | DR6: -15 | DS6: ='Zoom Collecte'!$B$13 -> 0.22% | DT6: ='Zoom Collecte'!$C$13 -> 5.69 | DU6: -0 | DV6: -30 | DW6: 0.22% | DX6: 5.69 | DY6: -0 | DZ6: -530 | EA6: ='Zoom Collecte'!$B$16 -> 0.00% | EB6: ='Zoom Collecte'!$C$16 -> 8.36 | EC6: 0 | ED6: 0 | EE6: ='Zoom Collecte'!$B$17 -> 0.00% | EF6: ='Zoom Collecte'!$C$17 -> 1.74 | EG6: 0 | EH6: 0 | EI6: ='Zoom Collecte'!$B$18 -> 0.20% | EJ6: ='Zoom Collecte'!$C$18 -> 8.00 | EK6: 0 | EL6: -330 | EM6: ='Zoom Collecte'!$B$19 -> 1.00% | EN6: ='Zoom Collecte'!$C$19 -> 5.00 | EO6: -16 | EP6: 57 | EQ6: 24 | ER6: 295 | ES6: ='Zoom Collecte'!$B$20 -> 0.54% | ET6: ='Zoom Collecte'!$C$20 -> 8.00 | EU6: 13 | EV6: -116 | EW6: 0.54% | EX6: 8.00 | EY6: -5 | EZ6: -160 | FA6: ='Zoom Collecte'!$B$23 -> 0.80% | FB6: ='Zoom Collecte'!$C$23 -> 4.00 | FC6: -5 | FD6: 0 | FE6: ='Zoom Collecte'!$B$23 -> 0.80% | FF6: ='Zoom Collecte'!$C$23 -> 4.00 | FG6: 0 | FH6: 20 | FI6: ='Zoom Collecte'!$B$25 -> 1.00% | FJ6: ='Zoom Collecte'!$C$25 -> 5.00 | FK6: 1 | FL6: 1,695 | FM6: 0.16% | FN6: 1.00 | FO6: 3 | FP6: 0 | FQ6: 0.16% | FR6: 1.00 | FS6: 0 | FT6: 14 | FU6: ='Zoom Collecte'!$B$24 -> 0.40% | FV6: ='Zoom Collecte'!$C$24 -> 1.00 | FW6: 0 | FX6: 0 | FY6: ='Zoom Collecte'!$B$24 -> 0.40% | FZ6: ='Zoom Collecte'!$C$24 -> 1.00 | GA6: 0 | GB6: 21 | GC6: 1 | GD6: 63 | GE6: 2 | GF6: 38 | GG6: 8 | GH6: -357 | GI6: =(IF(ISERROR(IF(VLOOKUP($C6,'Indicateurs Cumulés'!$C$3:$HL$553,186,FALSE)/(VLOOKUP($C6,objectifs!$C$3:$AAB$559,158,FALSE))>=1.5,(VLOOKUP($C6,objectifs!$C$3:$AAB$559,158,FALSE))*1.5,IF(VLOOKUP($C6,'Indicateurs Cumulés'!$C$3:$HL$553,186,FALSE)/(VLOOKUP($C6,objectifs!$C$3:$AAB$559,158,FALSE))<=-0.5,(VLOOKUP($C6,objectifs!$C$3:$AAB$559,158,FALSE))*-0.5,VLOOKUP($C6,'Indicateurs Cumulés'!$C$3:$HL$553,186,FALSE)))),VLOOKUP($C6,'Indicateurs Cumulés'!$C$3:$HL$553,186,FALSE),IF(VLOOKUP($C6,'Indicateurs Cumulés'!$C$3:$HL$553,186,FALSE)/(VLOOKUP($C6,objectifs!$C$3:$AAB$559,158,FALSE))>=1.5,(VLOOKUP($C6,objectifs!$C$3:$AAB$559,158,FALSE))*1.5,IF(VLOOKUP($C6,'Indicateurs Cumulés'!$C$3:$HL$553,186,FALSE)/(VLOOKUP($C6,objectifs!$C$3:$AAB$559,158,FALSE))<=-0.5,(VLOOKUP($C6,objectifs!$C$3:$AAB$559,158,FALSE))*-0.5,VLOOKUP($C6,'Indicateurs Cumulés'!$C$3:$HL$553,186,FALSE)))))*0 -> 0 | GJ6: 1.00% | GK6: 5.33 | GL6: -10 | GM6: 23 | GN6: -10 | GO6: 0.22% | GP6: -250 | GR6: 2 | GS6: -16 | GT6: -113 | GU6: -76 | GV6: -100 | GW6: =IF(ISERROR(IF(VLOOKUP($C6,'Indicateurs Cumulés'!$C$3:$HL$553,200,FALSE)/(VLOOKUP($C6,objectifs!$C$3:$AAB$559,162,FALSE))>=1.5,(VLOOKUP($C6,objectifs!$C$3:$AAB$559,162,FALSE))*1.5,IF(VLOOKUP($C6,'Indicateurs Cumulés'!$C$3:$HL$553,200,FALSE)/(VLOOKUP($C6,objectifs!$C$3:$AAB$559,162,FALSE))<=-0.5,(VLOOKUP($C6,objectifs!$C$3:$AAB$559,162,FALSE))*-0.5,VLOOKUP($C6,'Indicateurs Cumulés'!$C$3:$HL$553,200,FALSE)))),VLOOKUP($C6,'Indicateurs Cumulés'!$C$3:$HL$553,200,FALSE),IF(VLOOKUP($C6,'Indicateurs Cumulés'!$C$3:$HL$553,200,FALSE)/(VLOOKUP($C6,objectifs!$C$3:$AAB$559,162,FALSE))>=1.5,(VLOOKUP($C6,objectifs!$C$3:$AAB$559,162,FALSE))*1.5,IF(VLOOKUP($C6,'Indicateurs Cumulés'!$C$3:$HL$553,200,FALSE)/(VLOOKUP($C6,objectifs!$C$3:$AAB$559,162,FALSE))<=-0.5,(VLOOKUP($C6,objectifs!$C$3:$AAB$559,162,FALSE))*-0.5,VLOOKUP($C6,'Indicateurs Cumulés'!$C$3:$HL$553,200,FALSE)))) -> -3 | GX6: -0 | GY6: -12 | HA6: 0 | HB6: 0 | HC6: -5 | HD6: -4 | HE6: -4 | HF6: -25 | HH6: -63 | HI6: -1 | HJ6: -1 | HK6: 0 | HL6: -2 | HM6: 50 | HN6: 1 | HO6: 0 | HP6: 7 | HQ6: 7 | HR6: 0 | HS6: 5 | HT6: 5 | HU6: -1 | HV6: 7 | HW6: -6 | HX6: -2 | HY6: 1 | HZ6: 13 | IA6: 2 | IB6: 0 | IC6: 1 | ID6: 3 | IE6: 18 | IF6: 2 | IG6: -8 | IH6: 0 | II6: 0 | IK6: 0 | IL6: -41 | IM6: -0 | IN6: -1 | IO6: 0 | IP6: 18 | IQ6: 26 | IR6: 2 | IS6: 1 | IT6: -0 | IU6: 2 | IV6: -1 | IW6: -0 | IX6: 0 | IY6: 1 | IZ6: 1 | JA6: 0 | JB6: 0 | JC6: 0 | JD6: 1 | JE6: 2 | JF6: 9 | JG6: 0 | JH6: -1 | JI6: 0 | JJ6: 0 | JK6: 0 | JL6: 0 | JM6: 20 | JN6: -1 | JO6: 0 | JP6: 0 | JQ6: 1 | JS6: 0 | JT6: 0 | JU6: -2 | JV6: 2 | JW6: -1 | JX6: 0 | JY6: 1 | JZ6: -1 | KA6: 0 | KB6: -0 | KC6: -2 | KD6: 0 | KE6: 0 | KF6: -3 | KG6: 0 | KH6: 0 | KI6: 0 | KJ6: 0 | KK6: 0 | KL6: 0 | KM6: 0 | KN6: 0 | KO6: 0 | KP6: 0 | KQ6: -1 | KR6: 0 | KS6: 0 | KT6: 0 | KU6: 0 | KV6: 0 | KW6: 0 | KX6: 0 | KY6: 2 | KZ6: 1 | LA6: -9 | LB6: 138 | LC6: 0 | LD6: 0 | LE6: 0 | LF6: 4 | LG6: -5 | LN6: 0.0 | LO6: 0.0 | LP6: 0.0 | LQ6: 0.0 | LR6: 0.0 | LS6: 0.0 | LT6: 8 | LU6: 0.0 | LV6: 20 | LW6: -29 | LX6: 0.00 | LY6: 20 | LZ6: 0.0 | MA6: 20 | MC6: 3.6
A7: 105006 | B7: 200262 | C7: 10 | D7: STRASBOURG MEINAU | E7: 10 | F7: STRASBOURG MEINAU | G7: 2022-06-30 | H7: 83 | I7: 4.32% | J7: 1.58 | K7: 2022-06-30 | L7: 1,493 | M7: 2.17% | N7: 3.06 | O7: 99 | P7: 92.57% | Q7: 129.67% | R7: 23 | S7: 4 | T7: 132 | U7: 2,631 | V7: -0.63% | W7: 7.02 | X7: =U7*V7*W7 -> -117 | Y7: 57.51% | Z7: 183.99% | AA7: 67 | AB7: 6 | AC7: 3.97 | AF7: -3 | AG7: -43 | AH7: 60 | AI7: -0.36% | AJ7: 2.83 | AK7: -1 | AL7: 0 | AM7: 0.00% | AN7: 0 | AO7: 0 | AP7: 0.3 | AQ7: 0.00 | AR7: 0.00% | AS7: 0.00% | AT7: 0 | AU7: -0 | AV7: 73 | AW7: 1.88% | AX7: 2.89 | AY7: 0 | AZ7: 100.00% | BA7: 191.78% | BB7: 1 | BC7: 5 | BD7: 161 | BE7: -0.84% | BF7: 9.00 | BG7: 1 | BH7: 200.00% | BI7: 100.00% | BJ7: 9 | BK7: 0 | BL7: -2 | BM7: 89 | BN7: 202206 | BO7: 1.50 | BP7: 0.02 | BQ7: 1.20% | BR7: 204.60 | BS7: 40.30 | BT7: 20% | BU7: 1.02 | BV7: 0.50% | BW7: 1,816.77 | BX7: 289.86 | BY7: 16.0% | BZ7: 4.71 | CA7: 0.26% | CB7: 48.02 | CC7: 1.51 | CD7: 3.15% | CE7: 0.45 | CF7: 0.93% | CG7: 2,070.90 | CH7: 331.67 | CI7: 16.0% | CJ7: 6.20 | CK7: 0.30% | CL7: 175 | CM7: ='Zoom Collecte'!$B$5 -> 0.87% | CN7: ='Zoom Collecte'!$C$5 -> 5.38 | CO7: 8 | CP7: 451 | CQ7: 0.88% | CR7: 5.38 | CS7: 21 | CT7: -31 | CU7: ='Zoom Collecte'!$B$8 -> 0.93% | CV7: ='Zoom Collecte'!$C$8 -> 5.38 | CW7: -2 | CX7: -39 | CY7: ='Zoom Collecte'!$B$9 -> 0.94% | CZ7: ='Zoom Collecte'!$C$9 -> 5.38 | DA7: -2 | DB7: 80 | DC7: ='Zoom Collecte'!$B$10 -> 0.20% | DD7: ='Zoom Collecte'!$C$10 -> 5.38 | DE7: 1 | DF7: 108 | DG7: ='Zoom Collecte'!$B$11 -> 0.20% | DH7: ='Zoom Collecte'!$C$11 -> 5.38 | DI7: 1 | DJ7: -9 | DK7: ='Zoom Collecte'!$B$12 -> 0.20% | DL7: ='Zoom Collecte'!$C$12 -> 5.26 | DM7: -0 | DN7: 25 | DO7: ='Zoom Collecte'!$B$15 -> -0.02% | DP7: ='Zoom Collecte'!$C$15 -> 5.38 | DQ7: -0 | DR7: -11 | DS7: ='Zoom Collecte'!$B$13 -> 0.22% | DT7: ='Zoom Collecte'!$C$13 -> 5.69 | DU7: -0 | DV7: -11 | DW7: 0.22% | DX7: 5.69 | DY7: -0 | DZ7: -661 | EA7: ='Zoom Collecte'!$B$16 -> 0.00% | EB7: ='Zoom Collecte'!$C$16 -> 8.36 | EC7: 0 | ED7: 0 | EE7: ='Zoom Collecte'!$B$17 -> 0.00% | EF7: ='Zoom Collecte'!$C$17 -> 1.74 | EG7: 0 | EH7: 0 | EI7: ='Zoom Collecte'!$B$18 -> 0.20% | EJ7: ='Zoom Collecte'!$C$18 -> 8.00 | EK7: 0 | EL7: -136 | EM7: ='Zoom Collecte'!$B$19 -> 1.00% | EN7: ='Zoom Collecte'!$C$19 -> 5.00 | EO7: -7 | EP7: -161 | EQ7: 16 | ER7: 347 | ES7: ='Zoom Collecte'!$B$20 -> 0.54% | ET7: ='Zoom Collecte'!$C$20 -> 8.00 | EU7: 15 | EV7: -4 | EW7: 0.54% | EX7: 8.00 | EY7: -0 | EZ7: -108 | FA7: ='Zoom Collecte'!$B$23 -> 0.80% | FB7: ='Zoom Collecte'!$C$23 -> 4.00 | FC7: -3 | FD7: 0 | FE7: ='Zoom Collecte'!$B$23 -> 0.80% | FF7: ='Zoom Collecte'!$C$23 -> 4.00 | FG7: 0 | FH7: 204 | FI7: ='Zoom Collecte'!$B$25 -> 1.00% | FJ7: ='Zoom Collecte'!$C$25 -> 5.00 | FK7: 10 | FL7: 1,992 | FM7: 0.30% | FN7: 1.00 | FO7: 6 | FP7: 0 | FQ7: 0.30% | FR7: 1.00 | FS7: 0 | FT7: 6 | FU7: ='Zoom Collecte'!$B$24 -> 0.40% | FV7: ='Zoom Collecte'!$C$24 -> 1.00 | FW7: 0 | FX7: 0 | FY7: ='Zoom Collecte'!$B$24 -> 0.40% | FZ7: ='Zoom Collecte'!$C$24 -> 1.00 | GA7: 0 | GB7: 4 | GC7: 0 | GD7: 134 | GE7: 3 | GF7: 440 | GG7: 31 | GH7: -412 | GI7: =(IF(ISERROR(IF(VLOOKUP($C7,'Indicateurs Cumulés'!$C$3:$HL$553,186,FALSE)/(VLOOKUP($C7,objectifs!$C$3:$AAB$559,158,FALSE))>=1.5,(VLOOKUP($C7,objectifs!$C$3:$AAB$559,158,FALSE))*1.5,IF(VLOOKUP($C7,'Indicateurs Cumulés'!$C$3:$HL$553,186,FALSE)/(VLOOKUP($C7,objectifs!$C$3:$AAB$559,158,FALSE))<=-0.5,(VLOOKUP($C7,objectifs!$C$3:$AAB$559,158,FALSE))*-0.5,VLOOKUP($C7,'Indicateurs Cumulés'!$C$3:$HL$553,186,FALSE)))),VLOOKUP($C7,'Indicateurs Cumulés'!$C$3:$HL$553,186,FALSE),IF(VLOOKUP($C7,'Indicateurs Cumulés'!$C$3:$HL$553,186,FALSE)/(VLOOKUP($C7,objectifs!$C$3:$AAB$559,158,FALSE))>=1.5,(VLOOKUP($C7,objectifs!$C$3:$AAB$559,158,FALSE))*1.5,IF(VLOOKUP($C7,'Indicateurs Cumulés'!$C$3:$HL$553,186,FALSE)/(VLOOKUP($C7,objectifs!$C$3:$AAB$559,158,FALSE))<=-0.5,(VLOOKUP($C7,objectifs!$C$3:$AAB$559,158,FALSE))*-0.5,VLOOKUP($C7,'Indicateurs Cumulés'!$C$3:$HL$553,186,FALSE)))))*0 -> 0 | GJ7: 1.00% | GK7: 5.33 | GL7: -11 | GM7: 36 | GN7: -1 | GO7: 0.22% | GP7: 1 | GR7: -1 | GS7: 2 | GT7: -102 | GU7: 24 | GV7: -65 | GW7: =IF(ISERROR(IF(VLOOKUP($C7,'Indicateurs Cumulés'!$C$3:$HL$553,200,FALSE)/(VLOOKUP($C7,objectifs!$C$3:$AAB$559,162,FALSE))>=1.5,(VLOOKUP($C7,objectifs!$C$3:$AAB$559,162,FALSE))*1.5,IF(VLOOKUP($C7,'Indicateurs Cumulés'!$C$3:$HL$553,200,FALSE)/(VLOOKUP($C7,objectifs!$C$3:$AAB$559,162,FALSE))<=-0.5,(VLOOKUP($C7,objectifs!$C$3:$AAB$559,162,FALSE))*-0.5,VLOOKUP($C7,'Indicateurs Cumulés'!$C$3:$HL$553,200,FALSE)))),VLOOKUP($C7,'Indicateurs Cumulés'!$C$3:$HL$553,200,FALSE),IF(VLOOKUP($C7,'Indicateurs Cumulés'!$C$3:$HL$553,200,FALSE)/(VLOOKUP($C7,objectifs!$C$3:$AAB$559,162,FALSE))>=1.5,(VLOOKUP($C7,objectifs!$C$3:$AAB$559,162,FALSE))*1.5,IF(VLOOKUP($C7,'Indicateurs Cumulés'!$C$3:$HL$553,200,FALSE)/(VLOOKUP($C7,objectifs!$C$3:$AAB$559,162,FALSE))<=-0.5,(VLOOKUP($C7,objectifs!$C$3:$AAB$559,162,FALSE))*-0.5,VLOOKUP($C7,'Indicateurs Cumulés'!$C$3:$HL$553,200,FALSE)))) -> -3 | GX7: -0 | GY7: 0 | HA7: -0 | HB7: 0 | HC7: -5 | HD7: 1 | HE7: -3 | HF7: -6 | HH7: -41 | HI7: -1 | HJ7: -3 | HK7: -1 | HL7: -4 | HM7: 36 | HN7: 6 | HO7: 0 | HP7: 3 | HQ7: 5 | HR7: 0 | HS7: 8 | HT7: 9 | HU7: 0 | HV7: 26 | HW7: 2 | HX7: -16 | HY7: 0 | HZ7: 45 | IA7: 1 | IB7: 0 | IC7: 2 | ID7: -1 | IE7: -11 | IF7: 46 | IG7: -28 | IH7: 0 | II7: 0 | IK7: 0 | IL7: -27 | IM7: -0 | IN7: -2 | IO7: -1 | IP7: 11 | IQ7: 23 | IR7: 2 | IS7: 2 | IT7: 0 | IU7: 7 | IV7: 0 | IW7: -0 | IX7: 0 | IY7: 5 | IZ7: 0 | JA7: 0 | JB7: 0 | JC7: 0 | JD7: 1 | JE7: -1 | JF7: -5 | JG7: 9 | JH7: -4 | JI7: 0 | JJ7: 0 | JK7: 0 | JL7: 0 | JM7: 24 | JN7: -3 | JO7: -3 | JP7: -2 | JQ7: 0 | JS7: 2 | JT7: 0 | JU7: 1 | JV7: -1 | JW7: -2 | JX7: 2 | JY7: -2 | JZ7: 0 | KA7: -0 | KB7: -1 | KC7: 1 | KD7: 0 | KE7: 3 | KF7: 5 | KG7: -1 | KH7: 0 | KI7: 1 | KJ7: 0 | KK7: 0 | KL7: 1 | KM7: 1 | KN7: 0 | KO7: 0 | KP7: 2 | KQ7: 1 | KR7: 0 | KS7: 0 | KT7: 1 | KU7: 0 | KV7: 0 | KW7: 0 | KX7: 1 | KY7: 3 | KZ7: 7 | LA7: -8 | LB7: 181 | LC7: 0 | LD7: 0 | LE7: 0 | LF7: 5 | LG7: -3 | LN7: 0.0 | LO7: 0.0 | LP7: 0.0 | LQ7: 0.0 | LR7: 0.0 | LS7: 0.0 | LT7: 10 | LU7: 0.0 | LV7: 152 | LW7: 3 | LX7: 0.00 | LY7: 152 | LZ7: 0.0 | MA7: 152 | MC7: 5.2
A8: 105006 | B8: 200262 | C8: 12 | D8: STRASBOURG STOCKFELD | E8: 6 | F8: STRASBOURG NEUDORF | G8: 2022-06-30 | H8: 35 | I8: 4.32% | J8: 1.58 | K8: 2022-06-30 | L8: 666 | M8: 2.68% | N8: 2.56 | O8: 46 | P8: 100.00% | Q8: 115.09% | R8: 11 | S8: 1 | T8: 61 | U8: 442 | V8: -0.40% | W8: 9.00 | X8: -16 | Y8: 67.91% | Z8: 200.00% | AA8: 12 | AB8: 1 | AC8: 1.0 | AF8: -1 | AG8: -3 | AH8: 0 | AI8: 0.00% | AJ8: 0 | AK8: 0 | AL8: 0 | AM8: 0.00% | AN8: 0 | AO8: 0 | AP8: 0 | AQ8: 0.00 | AR8: 0.00% | AS8: 0.00% | AT8: 0 | AU8: 0 | AV8: 50 | AW8: 1.03% | AX8: 2.70 | AY8: 0 | AZ8: 100.00% | BA8: 100.00% | BB8: 0 | BC8: 2 | BD8: 0 | BE8: 0.00% | BF8: 0 | BG8: 0 | BH8: 0.00% | BI8: 0.00% | BJ8: 0 | BK8: 0 | BL8: 0 | BM8: 57 | BN8: 202206 | BO8: 0 | BP8: 0 | BQ8: 0.00% | BR8: 0 | BS8: 0 | BT8: 0% | BU8: 0 | BV8: 0.00% | BW8: 0 | BX8: 0 | BY8: 0.0% | BZ8: 0 | CA8: 0.00% | CB8: 0 | CC8: 0 | CD8: 0.00% | CE8: 0 | CF8: 0.00% | CG8: 0 | CH8: 0 | CI8: 0.0% | CJ8: 0 | CK8: 0.00% | CL8: 42 | CM8: ='Zoom Collecte'!$B$5 -> 0.87% | CN8: ='Zoom Collecte'!$C$5 -> 5.38 | CO8: 2 | CP8: -55 | CQ8: 0.88% | CR8: 5.38 | CS8: -3 | CT8: 5 | CU8: ='Zoom Collecte'!$B$8 -> 0.93% | CV8: ='Zoom Collecte'!$C$8 -> 5.38 | CW8: 0 | CX8: -0 | CY8: ='Zoom Collecte'!$B$9 -> 0.94% | CZ8: ='Zoom Collecte'!$C$9 -> 5.38 | DA8: -0 | DB8: 63 | DC8: ='Zoom Collecte'!$B$10 -> 0.20% | DD8: ='Zoom Collecte'!$C$10 -> 5.38 | DE8: 1 | DF8: 99 | DG8: ='Zoom Collecte'!$B$11 -> 0.20% | DH8: ='Zoom Collecte'!$C$11 -> 5.38 | DI8: 1 | DJ8: -9 | DK8: ='Zoom Collecte'!$B$12 -> 0.20% | DL8: ='Zoom Collecte'!$C$12 -> 5.26 | DM8: -0 | DN8: -4 | DO8: ='Zoom Collecte'!$B$15 -> -0.02% | DP8: ='Zoom Collecte'!$C$15 -> 5.38 | DQ8: 0 | DR8: 3 | DS8: ='Zoom Collecte'!$B$13 -> 0.22% | DT8: ='Zoom Collecte'!$C$13 -> 5.69 | DU8: 0 | DV8: -11 | DW8: 0.22% | DX8: 5.69 | DY8: -0 | DZ8: -469 | EA8: ='Zoom Collecte'!$B$16 -> 0.00% | EB8: ='Zoom Collecte'!$C$16 -> 8.36 | EC8: 0 | ED8: 0 | EE8: ='Zoom Collecte'!$B$17 -> 0.00% | EF8: ='Zoom Collecte'!$C$17 -> 1.74 | EG8: 0 | EH8: 0 | EI8: ='Zoom Collecte'!$B$18 -> 0.20% | EJ8: ='Zoom Collecte'!$C$18 -> 8.00 | EK8: 0 | EL8: 38 | EM8: ='Zoom Collecte'!$B$19 -> 1.00% | EN8: ='Zoom Collecte'!$C$19 -> 5.00 | EO8: 2 | EP8: -340 | EQ8: 1 | ER8: 206 | ES8: ='Zoom Collecte'!$B$20 -> 0.54% | ET8: ='Zoom Collecte'!$C$20 -> 8.00 | EU8: 9 | EV8: 0 | EW8: 0.54% | EX8: 8.00 | EY8: 0 | EZ8: -16 | FA8: ='Zoom Collecte'!$B$23 -> 0.80% | FB8: ='Zoom Collecte'!$C$23 -> 4.00 | FC8: -1 | FD8: 0 | FE8: ='Zoom Collecte'!$B$23 -> 0.80% | FF8: ='Zoom Collecte'!$C$23 -> 4.00 | FG8: 0 | FH8: 8 | FI8: ='Zoom Collecte'!$B$25 -> 1.00% | FJ8: ='Zoom Collecte'!$C$25 -> 5.00 | FK8: 0 | FL8: 839 | FM8: 0.00% | FN8: 1.00 | FO8: 0 | FP8: 0 | FQ8: 0.00% | FR8: 1.00 | FS8: 0 | FT8: 3 | FU8: ='Zoom Collecte'!$B$24 -> 0.40% | FV8: ='Zoom Collecte'!$C$24 -> 1.00 | FW8: 0 | FX8: 0 | FY8: ='Zoom Collecte'!$B$24 -> 0.40% | FZ8: ='Zoom Collecte'!$C$24 -> 1.00 | GA8: 0 | GB8: 0 | GC8: 0 | GD8: 61 | GE8: 2 | GF8: 198 | GG8: 10 | GH8: 147 | GI8: =(IF(ISERROR(IF(VLOOKUP($C8,'Indicateurs Cumulés'!$C$3:$HL$553,186,FALSE)/(VLOOKUP($C8,objectifs!$C$3:$AAB$559,158,FALSE))>=1.5,(VLOOKUP($C8,objectifs!$C$3:$AAB$559,158,FALSE))*1.5,IF(VLOOKUP($C8,'Indicateurs Cumulés'!$C$3:$HL$553,186,FALSE)/(VLOOKUP($C8,objectifs!$C$3:$AAB$559,158,FALSE))<=-0.5,(VLOOKUP($C8,objectifs!$C$3:$AAB$559,158,FALSE))*-0.5,VLOOKUP($C8,'Indicateurs Cumulés'!$C$3:$HL$553,186,FALSE)))),VLOOKUP($C8,'Indicateurs Cumulés'!$C$3:$HL$553,186,FALSE),IF(VLOOKUP($C8,'Indicateurs Cumulés'!$C$3:$HL$553,186,FALSE)/(VLOOKUP($C8,objectifs!$C$3:$AAB$559,158,FALSE))>=1.5,(VLOOKUP($C8,objectifs!$C$3:$AAB$559,158,FALSE))*1.5,IF(VLOOKUP($C8,'Indicateurs Cumulés'!$C$3:$HL$553,186,FALSE)/(VLOOKUP($C8,objectifs!$C$3:$AAB$559,158,FALSE))<=-0.5,(VLOOKUP($C8,objectifs!$C$3:$AAB$559,158,FALSE))*-0.5,VLOOKUP($C8,'Indicateurs Cumulés'!$C$3:$HL$553,186,FALSE)))))*0 -> 0 | GJ8: 1.00% | GK8: 5.33 | GL8: 4 | GM8: 15 | GN8: 0 | GO8: 0.22% | GP8: -0 | GR8: -27 | GS8: 1 | GT8: -41 | GU8: -7 | GV8: 237 | GW8: =IF(ISERROR(IF(VLOOKUP($C8,'Indicateurs Cumulés'!$C$3:$HL$553,200,FALSE)/(VLOOKUP($C8,objectifs!$C$3:$AAB$559,162,FALSE))>=1.5,(VLOOKUP($C8,objectifs!$C$3:$AAB$559,162,FALSE))*1.5,IF(VLOOKUP($C8,'Indicateurs Cumulés'!$C$3:$HL$553,200,FALSE)/(VLOOKUP($C8,objectifs!$C$3:$AAB$559,162,FALSE))<=-0.5,(VLOOKUP($C8,objectifs!$C$3:$AAB$559,162,FALSE))*-0.5,VLOOKUP($C8,'Indicateurs Cumulés'!$C$3:$HL$553,200,FALSE)))),VLOOKUP($C8,'Indicateurs Cumulés'!$C$3:$HL$553,200,FALSE),IF(VLOOKUP($C8,'Indicateurs Cumulés'!$C$3:$HL$553,200,FALSE)/(VLOOKUP($C8,objectifs!$C$3:$AAB$559,162,FALSE))>=1.5,(VLOOKUP($C8,objectifs!$C$3:$AAB$559,162,FALSE))*1.5,IF(VLOOKUP($C8,'Indicateurs Cumulés'!$C$3:$HL$553,200,FALSE)/(VLOOKUP($C8,objectifs!$C$3:$AAB$559,162,FALSE))<=-0.5,(VLOOKUP($C8,objectifs!$C$3:$AAB$559,162,FALSE))*-0.5,VLOOKUP($C8,'Indicateurs Cumulés'!$C$3:$HL$553,200,FALSE)))) -> -3 | GX8: 0 | GY8: -0 | HA8: -1 | HB8: 0 | HC8: -2 | HD8: -0 | HE8: 9 | HF8: 6 | HH8: -57 | HI8: 1 | HJ8: -3 | HK8: -1 | HL8: 28 | HM8: 55 | HN8: -1 | HO8: 0 | HP8: 3 | HQ8: 0 | HR8: 0 | HS8: 18 | HT8: 16 | HU8: 2 | HV8: 18 | HW8: -5 | HX8: -5 | HY8: 3 | HZ8: 19 | IA8: 1 | IB8: 0 | IC8: 0 | ID8: 0 | IE8: -6 | IF8: 61 | IG8: -31 | IH8: 0 | II8: 0 | IK8: 0 | IL8: -37 | IM8: 0 | IN8: -2 | IO8: -1 | IP8: 3 | IQ8: 37 | IR8: 6 | IS8: 4 | IT8: 1 | IU8: 5 | IV8: -1 | IW8: -0 | IX8: 0 | IY8: 2 | IZ8: 0 | JA8: 0 | JB8: 0 | JC8: 0 | JD8: 0 | JE8: 0 | JF8: -3 | JG8: 12 | JH8: -4 | JI8: 0 | JJ8: 0 | JK8: 0 | JL8: 0 | JM8: 24 | JN8: -2 | JO8: 2 | JP8: 0 | JQ8: 0 | JS8: 1 | JT8: 0 | JU8: 2 | JV8: -2 | JW8: -1 | JX8: 1 | JY8: 1 | JZ8: 1 | KA8: -0 | KB8: 1 | KC8: -2 | KD8: 0 | KE8: 0 | KF8: -2 | KG8: 0 | KH8: 0 | KI8: 0 | KJ8: 0 | KK8: 0 | KL8: 0 | KM8: 1 | KN8: 0 | KO8: 0 | KP8: 0 | KQ8: -0 | KR8: 0 | KS8: 0 | KT8: 0 | KU8: 0 | KV8: 0 | KW8: 0 | KX8: 1 | KY8: 1 | KZ8: 1 | LA8: -4 | LB8: 114 | LC8: 0 | LD8: 0 | LE8: 0 | LF8: 0 | LG8: -4 | LN8: 0.0 | LO8: 0.0 | LP8: 0.0 | LQ8: 0.0 | LR8: 0.0 | LS8: 0.0 | LT8: 12 | LU8: 0.0 | LV8: 95 | LW8: 10 | LX8: 0.00 | LY8: 95 | LZ8: 0.0 | MA8: 95 | MC8: 0.0
A9: 105101 | B9: 200262 | C9: 13 | D9: ILLKIRCH NORD | E9: 7 | F9: ILLKIRCH CENTRE | G9: 2022-06-30 | H9: 0 | I9: 0.00% | J9: 0 | K9: 2022-06-30 | L9: 0 | M9: 0.00% | N9: 0 | O9: =L9*M9*N9 -> 0 | P9: 0.00% | Q9: 0.00% | R9: 0 | S9: 0 | T9: =(H9*I9*J9)+O9+R9+S9 -> 0 | U9: 0 | V9: 0.00% | W9: 0 | X9: =U9*V9*W9 -> 0 | Y9: 0.00% | Z9: 0.00% | AA9: 0 | AB9: 0 | AC9: 0 | AF9: 0 | AG9: =(U9*V9*W9)+AB9+AC9+AA9+AE9+AF9 -> 0 | AH9: 0 | AI9: 0.00% | AJ9: 0 | AK9: =AH9*AI9*AJ9 -> 0 | AL9: 0 | AM9: 0.00% | AN9: 0 | AO9: =AL9*AM9*AN9 -> 0 | AP9: 0 | AQ9: 0.00 | AR9: 0.00% | AS9: 0.00% | AT9: 0 | AU9: =(AH9*AI9*AJ9)+AQ9+AT9+AO9+AP9 -> 0 | AV9: 0 | AW9: 0.00% | AX9: 0 | AY9: 0 | AZ9: 0.00% | BA9: 0.00% | BB9: 0 | BC9: =(AV9*AW9*AX9)+AY9+BB9 -> 0 | BD9: 0 | BE9: 0.00% | BF9: 0 | BG9: 0 | BH9: 0.00% | BI9: 0.00% | BJ9: 0 | BK9: 0 | BL9: =(BD9*BE9*BF9)+BJ9+BK9+BG9 -> 0 | BM9: =AG9+T9+AU9 -> 0 | BN9: 202206 | BO9: 0 | BP9: 0 | BQ9: =IF(ISERROR(BP9/BO9),0,BP9/BO9) -> 0.00% | BR9: 0 | BS9: 0 | BT9: =IF(ISERROR(BS9/BR9),0,BS9/BR9) -> 0% | BU9: 0 | BV9: =IF(ISERROR(BU9/BR9),0,BU9/BR9) -> 0.00% | BW9: 0 | BX9: 0 | BY9: =IF(ISERROR(BX9/BW9),0,BX9/BW9) -> 0.0% | BZ9: 0 | CA9: =IF(ISERROR(BZ9/BW9),0,BZ9/BW9) -> 0.00% | CB9: 0 | CC9: 0 | CD9: =IF(ISERROR(CC9/CB9),0,CC9/CB9) -> 0.00% | CE9: 0 | CF9: =IF(ISERROR(CE9/CB9),0,CE9/CB9) -> 0.00% | CG9: 0 | CH9: 0 | CI9: =IF(ISERROR(CH9/CG9),0,CH9/CG9) -> 0.0% | CJ9: 0 | CK9: =IF(ISERROR(CJ9/CG9),0,CJ9/CG9) -> 0.00% | CL9: 0 | CM9: ='Zoom Collecte'!$B$5 -> 0.87% | CN9: ='Zoom Collecte'!$C$5 -> 5.38 | CO9: =CL9*CM9*CN9 -> 0 | CP9: 0 | CQ9: 0.88% | CR9: 5.38 | CS9: =CP9*CQ9*CR9 -> 0 | CT9: 0 | CU9: ='Zoom Collecte'!$B$8 -> 0.93% | CV9: ='Zoom Collecte'!$C$8 -> 5.38 | CW9: =CT9*CU9*CV9 -> 0 | CX9: 0 | CY9: ='Zoom Collecte'!$B$9 -> 0.94% | CZ9: ='Zoom Collecte'!$C$9 -> 5.38 | DA9: =CX9*CY9*CZ9 -> 0 | DB9: 0 | DC9: ='Zoom Collecte'!$B$10 -> 0.20% | DD9: ='Zoom Collecte'!$C$10 -> 5.38 | DE9: =DB9*DC9*DD9 -> 0 | DF9: 0 | DG9: ='Zoom Collecte'!$B$11 -> 0.20% | DH9: ='Zoom Collecte'!$C$11 -> 5.38 | DI9: =DF9*DG9*DH9 -> 0 | DJ9: 0 | DK9: ='Zoom Collecte'!$B$12 -> 0.20% | DL9: ='Zoom Collecte'!$C$12 -> 5.26 | DM9: =DJ9*DK9*DL9 -> 0 | DN9: 0 | DO9: ='Zoom Collecte'!$B$15 -> -0.02% | DP9: ='Zoom Collecte'!$C$15 -> 5.38 | DQ9: =DN9*DO9*DP9 -> 0 | DR9: 0 | DS9: ='Zoom Collecte'!$B$13 -> 0.22% | DT9: ='Zoom Collecte'!$C$13 -> 5.69 | DU9: =DR9*DS9*DT9 -> 0 | DV9: 0 | DW9: 0.22% | DX9: 5.69 | DY9: =DV9*DW9*DX9 -> 0 | DZ9: 0 | EA9: ='Zoom Collecte'!$B$16 -> 0.00% | EB9: ='Zoom Collecte'!$C$16 -> 8.36 | EC9: =DZ9*EA9*EB9 -> 0 | ED9: 0 | EE9: ='Zoom Collecte'!$B$17 -> 0.00% | EF9: ='Zoom Collecte'!$C$17 -> 1.74 | EG9: =ED9*EE9*EF9 -> 0 | EH9: 0 | EI9: ='Zoom Collecte'!$B$18 -> 0.20% | EJ9: ='Zoom Collecte'!$C$18 -> 8.00 | EK9: =EH9*EI9*EJ9 -> 0 | EL9: 0 | EM9: ='Zoom Collecte'!$B$19 -> 1.00% | EN9: ='Zoom Collecte'!$C$19 -> 5.00 | EO9: =EL9*EM9*EN9 -> 0 | EP9: =CL9+CP9+CT9+CX9+DB9+DF9+DJ9+DN9+DV9+DZ9+ED9+EH9+EL9+DR9+GT9 -> 0 | EQ9: =CO9+CS9+CW9+DA9+DE9+DI9+DM9+DQ9+DY9+EC9+EG9+EK9+EO9+DU9+HC9 -> 0 | ER9: 0 | ES9: ='Zoom Collecte'!$B$20 -> 0.54% | ET9: ='Zoom Collecte'!$C$20 -> 8.00 | EU9: =ER9*ES9*ET9 -> 0 | EV9: 0 | EW9: 0.54% | EX9: 8.00 | EY9: =EV9*EW9*EX9 -> 0 | EZ9: 0 | FA9: ='Zoom Collecte'!$B$23 -> 0.80% | FB9: ='Zoom Collecte'!$C$23 -> 4.00 | FC9: =EZ9*FA9*FB9 -> 0 | FD9: 0 | FE9: ='Zoom Collecte'!$B$23 -> 0.80% | FF9: ='Zoom Collecte'!$C$23 -> 4.00 | FG9: =FD9*FE9*FF9 -> 0 | FH9: 0 | FI9: ='Zoom Collecte'!$B$25 -> 1.00% | FJ9: ='Zoom Collecte'!$C$25 -> 5.00 | FK9: =FH9*FI9*FJ9 -> 0 | FL9: 0 | FM9: =CK9 -> 0.00% | FN9: 1.00 | FO9: =FL9*FM9*FN9 -> 0 | FP9: 0 | FQ9: =FM9 -> 0.00% | FR9: 1.00 | FS9: =FP9*FQ9*FR9 -> 0 | FT9: 0 | FU9: ='Zoom Collecte'!$B$24 -> 0.40% | FV9: ='Zoom Collecte'!$C$24 -> 1.00 | FW9: =FT9*FU9*FV9 -> 0 | FX9: 0 | FY9: ='Zoom Collecte'!$B$24 -> 0.40% | FZ9: ='Zoom Collecte'!$C$24 -> 1.00 | GA9: =FX9*FY9*FZ9 -> 0 | GB9: 0 | GC9: =GB9*$GB$3*$GC$3 -> 0 | GD9: 0 | GE9: =IF(ISERROR(GD9*$GD$3*$GE$3),0,GD9*$GD$3*$GE$3) -> 0 | GF9: =ER9+EZ9+EV9+FD9+FH9 -> 0 | GG9: =EU9+FO9+FC9+FW9+EY9+FS9+FG9+GA9+FK9+GC9+GE9 -> 0 | GH9: 0 | GI9: =(IF(ISERROR(IF(VLOOKUP($C9,'Indicateurs Cumulés'!$C$3:$HL$553,186,FALSE)/(VLOOKUP($C9,objectifs!$C$3:$AAB$559,158,FALSE))>=1.5,(VLOOKUP($C9,objectifs!$C$3:$AAB$559,158,FALSE))*1.5,IF(VLOOKUP($C9,'Indicateurs Cumulés'!$C$3:$HL$553,186,FALSE)/(VLOOKUP($C9,objectifs!$C$3:$AAB$559,158,FALSE))<=-0.5,(VLOOKUP($C9,objectifs!$C$3:$AAB$559,158,FALSE))*-0.5,VLOOKUP($C9,'Indicateurs Cumulés'!$C$3:$HL$553,186,FALSE)))),VLOOKUP($C9,'Indicateurs Cumulés'!$C$3:$HL$553,186,FALSE),IF(VLOOKUP($C9,'Indicateurs Cumulés'!$C$3:$HL$553,186,FALSE)/(VLOOKUP($C9,objectifs!$C$3:$AAB$559,158,FALSE))>=1.5,(VLOOKUP($C9,objectifs!$C$3:$AAB$559,158,FALSE))*1.5,IF(VLOOKUP($C9,'Indicateurs Cumulés'!$C$3:$HL$553,186,FALSE)/(VLOOKUP($C9,objectifs!$C$3:$AAB$559,158,FALSE))<=-0.5,(VLOOKUP($C9,objectifs!$C$3:$AAB$559,158,FALSE))*-0.5,VLOOKUP($C9,'Indicateurs Cumulés'!$C$3:$HL$553,186,FALSE)))))*0 -> 0 | GJ9: 1.00% | GK9: 5.33 | GL9: =GH9*GJ9*GK9*MONTH($G$3)/12 -> 0 | GM9: =(EQ9+GG9+GL9) -> 0 | GN9: 0 | GO9: 0.22% | GP9: 0 | GR9: 0 | GS9: 0 | GT9: 0 | GU9: 0 | GV9: 0 | GW9: =IF(ISERROR(IF(VLOOKUP($C9,'Indicateurs Cumulés'!$C$3:$HL$553,200,FALSE)/(VLOOKUP($C9,objectifs!$C$3:$AAB$559,162,FALSE))>=1.5,(VLOOKUP($C9,objectifs!$C$3:$AAB$559,162,FALSE))*1.5,IF(VLOOKUP($C9,'Indicateurs Cumulés'!$C$3:$HL$553,200,FALSE)/(VLOOKUP($C9,objectifs!$C$3:$AAB$559,162,FALSE))<=-0.5,(VLOOKUP($C9,objectifs!$C$3:$AAB$559,162,FALSE))*-0.5,VLOOKUP($C9,'Indicateurs Cumulés'!$C$3:$HL$553,200,FALSE)))),VLOOKUP($C9,'Indicateurs Cumulés'!$C$3:$HL$553,200,FALSE),IF(VLOOKUP($C9,'Indicateurs Cumulés'!$C$3:$HL$553,200,FALSE)/(VLOOKUP($C9,objectifs!$C$3:$AAB$559,162,FALSE))>=1.5,(VLOOKUP($C9,objectifs!$C$3:$AAB$559,162,FALSE))*1.5,IF(VLOOKUP($C9,'Indicateurs Cumulés'!$C$3:$HL$553,200,FALSE)/(VLOOKUP($C9,objectifs!$C$3:$AAB$559,162,FALSE))<=-0.5,(VLOOKUP($C9,objectifs!$C$3:$AAB$559,162,FALSE))*-0.5,VLOOKUP($C9,'Indicateurs Cumulés'!$C$3:$HL$553,200,FALSE)))) -> 0 | GX9: =GN9*$GN$3*$GX$3 -> 0 | GY9: =GP9*$GP$3*$GY$3 -> 0 | HA9: =GR9*$GR$3*$HA$3 -> 0 | HB9: =GS9*$GS$3*$HB$3 -> 0 | HC9: =GT9*$GT$3*$HC$3 -> 0 | HD9: =GU9*$GU$3*$HD$3 -> 0 | HE9: =GV9*$GV$3*$HE$3*MONTH($G$3)/12 -> 0 | HF9: =GX9+GY9+GZ9+HA9+HC9+HD9+HE9+HB9 -> 0 | HH9: 0 | HI9: 0 | HJ9: 0 | HK9: 0 | HL9: 0 | HM9: 0 | HN9: 0 | HO9: 0 | HP9: 0 | HQ9: 0 | HR9: 0 | HS9: 0 | HT9: 0 | HU9: 0 | HV9: 0 | HW9: 0 | HX9: 0 | HY9: 0 | HZ9: 0 | IA9: 0 | IB9: 0 | IC9: 0 | ID9: 0 | IE9: 0 | IF9: 0 | IG9: 0 | IH9: 0 | II9: 0 | IK9: =HG9*$HG$3*$IK$3/1000 -> 0 | IL9: =HH9*IL$3*HH$3/1000 -> 0 | IM9: =HI9*IM$3*HI$3/1000 -> 0 | IN9: =HJ9*IN$3*HJ$3/1000 -> 0 | IO9: =HK9*IO$3*HK$3/1000 -> 0 | IP9: =(HO9*$HO$3+HP9*$HP$3+HQ9*$HQ$3)*5/1000 -> 0 | IQ9: =(HL9*$HL$3+HM9*$HM$3+HN9*$HN$3)*5/1000 -> 0 | IR9: =HS9*IR$3*HS$3/1000 -> 0 | IS9: =HT9*IS$3*HT$3/1000 -> 0 | IT9: =HU9*IT$3*HU$3/1000 -> 0 | IU9: =HV9*IU$3*HV$3/1000 -> 0 | IV9: =HW9*IV$3*HW$3/1000 -> 0 | IW9: =HX9*IW$3*HX$3/1000 -> 0 | IX9: =HY9*IX$3*HY$3/1000 -> 0 | IY9: =HZ9*IY$3*HZ$3/1000 -> 0 | IZ9: =IA9*IA$3*IZ$3/1000 -> 0 | JA9: =IB9*$IB$3*$JA$3/1000 -> 0 | JB9: =HS9*$JB$3*$IL$3/1000 -> 0 | JC9: =HT9*$JC$3*$IL$3/1000 -> 0 | JD9: =IC9*JD$3*IC$3/1000 -> 0 | JE9: =ID9*JE$3*ID$3/1000 -> 0 | JF9: =IE9*JF$3*IE$3/1000 -> 0 | JG9: =IF9*JG$3*IF$3/1000 -> 0 | JH9: =(IG9*$IG$3*$JH$3)/1000 -> 0 | JI9: =IH9*JI$3*IH$3/1000 -> 0 | JJ9: =II9*$JJ$3*$JF$3/1000 -> 0 | JK9: =HR9*$HR$3*$JK$3/1000 -> 0 | JL9: =+IJ9*$JL$3/1000 -> 0 | JM9: =SUM(IK9:JL9) -> 0 | JN9: 0 | JO9: 0 | JP9: 0 | JQ9: 0 | JS9: 0 | JT9: 0 | JU9: 0 | JV9: 0 | JW9: =JN9*$JN$3*$JW$3/1000 -> 0 | JX9: =(JR9*JR$3+JS9*$JS$3+JT9*$JT$3)*$JX$3/1000 -> 0 | JY9: =(JO9*JO$3+JP9*$JP$3+JQ9*$JQ$3)*$JY$3/1000 -> 0 | JZ9: =JU9*$JU$3*$JZ$3/1000 -> 0 | KA9: =JV9*$JV$3*$KA$3/1000 -> 0 | KB9: =SUM(JW9:KA9) -> 0 | KC9: 0 | KD9: 0 | KE9: 0 | KF9: 0 | KG9: 0 | KH9: 0 | KI9: 0 | KJ9: 0 | KK9: 0 | KL9: 0 | KM9: 0 | KN9: =KC9*KN$3*KC$3/1000 -> 0 | KO9: =KD9*KO$3*KD$3/1000 -> 0 | KP9: =KE9*KP$3*KE$3/1000 -> 0 | KQ9: =KF9*KQ$3*KF$3/1000 -> 0 | KR9: =KG9*KR$3*KG$3/1000 -> 0 | KS9: =KH9*KS$3*KH$3/1000 -> 0 | KT9: =KI9*$KI$3*$KT$3/1000 -> 0 | KU9: =KJ9*$KJ$3*$KU$3/1000 -> 0 | KV9: =KK9*$KK$3*$KV$3/1000 -> 0 | KW9: =KL9*$KL$3*$KW$3/1000 -> 0 | KX9: =KM9*$KM$3*$KX$3/1000 -> 0 | KY9: 0 | KZ9: =SUM(KN9:KY9) -> 0 | LA9: 0 | LB9: 0 | LC9: 0 | LD9: 0 | LE9: 0 | LF9: 0 | LG9: 0 | LN9: =IF(LH9<0,0,LH9*$LH$3*$LN$3/1000) -> 0.0 | LO9: =IF(LI9<0,0,LI9*$LI$3*$LO$3/1000) -> 0.0 | LP9: =IF(LJ9<0,0,LJ9*$LJ$3*$LP$3/1000) -> 0.0 | LQ9: =IF(LK9<0,0,LK9*$LK$3*$LQ$3/1000) -> 0.0 | LR9: =IF(LL9<0,0,LL9*$LL$3*$LR$3/1000) -> 0.0 | LS9: =IF(LM9<0,0,LM9*$LM$3*$LS$3/1000) -> 0.0 | LT9: 13 | LU9: 0.0 | LV9: 0 | LW9: =(AH9*AI9*AJ9+AO9+AP9+AQ9+AT9+AV9*AW9*AX9+AY9+BB9+BD9*BE9*BF9+BG9+BJ9+BK9)*1+SUM(GX9:HE9)*1+SUM(JW9:KA9)*1+SUM(KN9:KY9)*1 -> 0 | LX9: =IF(LU9=0,0,LV9/LU9) -> 0.00 | LY9: =LV9-JJ9-JB9-JC9-JL9-AE9 -> 0 | LZ9: =IF(LU9=0,0,LY9/LU9) -> 0.0 | MA9: =LV9+SUM(LN9:LS9) -> 0 | MC9: 0.0
A10: 105101 | B10: 200262 | C10: 15 | D10: LINGOLSHEIM | E10: 15 | F10: LINGOLSHEIM | G10: 2022-06-30 | H10: 100 | I10: 4.32% | J10: 1.58 | K10: 2022-06-30 | L10: 850 | M10: 2.57% | N10: 2.67 | O10: 58 | P10: 97.03% | Q10: 132.54% | R10: 13 | S10: 4 | T10: 83 | U10: 2,117 | V10: -0.55% | W10: 6.79 | X10: -79 | Y10: 87.96% | Z10: 158.20% | AA10: 63 | AB10: 5 | AC10: 3.5 | AF10: -4 | AG10: -12 | AH10: 449 | AI10: 1.12% | AJ10: 3.13 | AK10: 16 | AL10: 0 | AM10: 0.00% | AN10: 0 | AO10: 0 | AP10: 1.2 | AQ10: 0.00 | AR10: 100.00% | AS10: 100.00% | AT10: 2 | AU10: 19 | AV10: 23 | AW10: 3.42% | AX10: 3.13 | AY10: 0 | AZ10: 100.00% | BA10: 100.00% | BB10: 0 | BC10: 3 | BD10: 135 | BE10: -1.15% | BF10: 5.74 | BG10: 1 | BH10: 144.44% | BI10: 100.00% | BJ10: 3 | BK10: 0 | BL10: -5 | BM10: 90 | BN10: 202206 | BO10: 0 | BP10: 0 | BQ10: 0.00% | BR10: 376.15 | BS10: 82.26 | BT10: 22% | BU10: 1.02 | BV10: 0.27% | BW10: 1,502.12 | BX10: 260.09 | BY10: 17.3% | BZ10: 0.20 | CA10: 0.01% | CB10: 156.35 | CC10: 31.74 | CD10: 20.30% | CE10: 0.76 | CF10: 0.49% | CG10: 2,034.62 | CH10: 374.09 | CI10: 18.4% | CJ10: 1.98 | CK10: 0.10% | CL10: 109 | CM10: ='Zoom Collecte'!$B$5 -> 0.87% | CN10: ='Zoom Collecte'!$C$5 -> 5.38 | CO10: 5 | CP10: 764 | CQ10: 0.88% | CR10: 5.38 | CS10: 36 | CT10: 4 | CU10: ='Zoom Collecte'!$B$8 -> 0.93% | CV10: ='Zoom Collecte'!$C$8 -> 5.38 | CW10: 0 | CX10: -269 | CY10: ='Zoom Collecte'!$B$9 -> 0.94% | CZ10: ='Zoom Collecte'!$C$9 -> 5.38 | DA10: -14 | DB10: 72 | DC10: ='Zoom Collecte'!$B$10 -> 0.20% | DD10: ='Zoom Collecte'!$C$10 -> 5.38 | DE10: 1 | DF10: 80 | DG10: ='Zoom Collecte'!$B$11 -> 0.20% | DH10: ='Zoom Collecte'!$C$11 -> 5.38 | DI10: 1 | DJ10: -7 | DK10: ='Zoom Collecte'!$B$12 -> 0.20% | DL10: ='Zoom Collecte'!$C$12 -> 5.26 | DM10: -0 | DN10: 42 | DO10: ='Zoom Collecte'!$B$15 -> -0.02% | DP10: ='Zoom Collecte'!$C$15 -> 5.38 | DQ10: -0 | DR10: -1 | DS10: ='Zoom Collecte'!$B$13 -> 0.22% | DT10: ='Zoom Collecte'!$C$13 -> 5.69 | DU10: -0 | DV10: -239 | DW10: 0.22% | DX10: 5.69 | DY10: -3 | DZ10: -412 | EA10: ='Zoom Collecte'!$B$16 -> 0.00% | EB10: ='Zoom Collecte'!$C$16 -> 8.36 | EC10: 0 | ED10: 0 | EE10: ='Zoom Collecte'!$B$17 -> 0.00% | EF10: ='Zoom Collecte'!$C$17 -> 1.74 | EG10: 0 | EH10: 0 | EI10: ='Zoom Collecte'!$B$18 -> 0.20% | EJ10: ='Zoom Collecte'!$C$18 -> 8.00 | EK10: 0 | EL10: -61 | EM10: ='Zoom Collecte'!$B$19 -> 1.00% | EN10: ='Zoom Collecte'!$C$19 -> 5.00 | EO10: -3 | EP10: 81 | EQ10: 23 | ER10: -292 | ES10: ='Zoom Collecte'!$B$20 -> 0.54% | ET10: ='Zoom Collecte'!$C$20 -> 8.00 | EU10: -13 | EV10: -9 | EW10: 0.54% | EX10: 8.00 | EY10: -0 | EZ10: -72 | FA10: ='Zoom Collecte'!$B$23 -> 0.80% | FB10: ='Zoom Collecte'!$C$23 -> 4.00 | FC10: -2 | FD10: 0 | FE10: ='Zoom Collecte'!$B$23 -> 0.80% | FF10: ='Zoom Collecte'!$C$23 -> 4.00 | FG10: 0 | FH10: 117 | FI10: ='Zoom Collecte'!$B$25 -> 1.00% | FJ10: ='Zoom Collecte'!$C$25 -> 5.00 | FK10: 6 | FL10: 1,669 | FM10: 0.10% | FN10: 1.00 | FO10: 2 | FP10: 0 | FQ10: 0.10% | FR10: 1.00 | FS10: 0 | FT10: 8 | FU10: ='Zoom Collecte'!$B$24 -> 0.40% | FV10: ='Zoom Collecte'!$C$24 -> 1.00 | FW10: 0 | FX10: 0 | FY10: ='Zoom Collecte'!$B$24 -> 0.40% | FZ10: ='Zoom Collecte'!$C$24 -> 1.00 | GA10: 0 | GB10: 164 | GC10: 4 | GD10: 146 | GE10: 4 | GF10: -258 | GG10: -0 | GH10: -440 | GI10: =(IF(ISERROR(IF(VLOOKUP($C10,'Indicateurs Cumulés'!$C$3:$HL$553,186,FALSE)/(VLOOKUP($C10,objectifs!$C$3:$AAB$559,158,FALSE))>=1.5,(VLOOKUP($C10,objectifs!$C$3:$AAB$559,158,FALSE))*1.5,IF(VLOOKUP($C10,'Indicateurs Cumulés'!$C$3:$HL$553,186,FALSE)/(VLOOKUP($C10,objectifs!$C$3:$AAB$559,158,FALSE))<=-0.5,(VLOOKUP($C10,objectifs!$C$3:$AAB$559,158,FALSE))*-0.5,VLOOKUP($C10,'Indicateurs Cumulés'!$C$3:$HL$553,186,FALSE)))),VLOOKUP($C10,'Indicateurs Cumulés'!$C$3:$HL$553,186,FALSE),IF(VLOOKUP($C10,'Indicateurs Cumulés'!$C$3:$HL$553,186,FALSE)/(VLOOKUP($C10,objectifs!$C$3:$AAB$559,158,FALSE))>=1.5,(VLOOKUP($C10,objectifs!$C$3:$AAB$559,158,FALSE))*1.5,IF(VLOOKUP($C10,'Indicateurs Cumulés'!$C$3:$HL$553,186,FALSE)/(VLOOKUP($C10,objectifs!$C$3:$AAB$559,158,FALSE))<=-0.5,(VLOOKUP($C10,objectifs!$C$3:$AAB$559,158,FALSE))*-0.5,VLOOKUP($C10,'Indicateurs Cumulés'!$C$3:$HL$553,186,FALSE)))))*0 -> 0 | GJ10: 1.00% | GK10: 5.33 | GL10: -12 | GM10: 12 | GN10: 0 | GO10: 0.22% | GP10: -14 | GR10: 45 | GS10: -110 | GT10: -1 | GU10: 158 | GV10: -41 | GW10: =IF(ISERROR(IF(VLOOKUP($C10,'Indicateurs Cumulés'!$C$3:$HL$553,200,FALSE)/(VLOOKUP($C10,objectifs!$C$3:$AAB$559,162,FALSE))>=1.5,(VLOOKUP($C10,objectifs!$C$3:$AAB$559,162,FALSE))*1.5,IF(VLOOKUP($C10,'Indicateurs Cumulés'!$C$3:$HL$553,200,FALSE)/(VLOOKUP($C10,objectifs!$C$3:$AAB$559,162,FALSE))<=-0.5,(VLOOKUP($C10,objectifs!$C$3:$AAB$559,162,FALSE))*-0.5,VLOOKUP($C10,'Indicateurs Cumulés'!$C$3:$HL$553,200,FALSE)))),VLOOKUP($C10,'Indicateurs Cumulés'!$C$3:$HL$553,200,FALSE),IF(VLOOKUP($C10,'Indicateurs Cumulés'!$C$3:$HL$553,200,FALSE)/(VLOOKUP($C10,objectifs!$C$3:$AAB$559,162,FALSE))>=1.5,(VLOOKUP($C10,objectifs!$C$3:$AAB$559,162,FALSE))*1.5,IF(VLOOKUP($C10,'Indicateurs Cumulés'!$C$3:$HL$553,200,FALSE)/(VLOOKUP($C10,objectifs!$C$3:$AAB$559,162,FALSE))<=-0.5,(VLOOKUP($C10,objectifs!$C$3:$AAB$559,162,FALSE))*-0.5,VLOOKUP($C10,'Indicateurs Cumulés'!$C$3:$HL$553,200,FALSE)))) -> -1 | GX10: 0 | GY10: -1 | HA10: 2 | HB10: 0 | HC10: -0 | HD10: 7 | HE10: -2 | HF10: 7 | HH10: -59 | HI10: 9 | HJ10: 0 | HK10: -4 | HL10: 5 | HM10: 34 | HN10: 0 | HO10: 0 | HP10: 8 | HQ10: 2 | HR10: 0 | HS10: -3 | HT10: -11 | HU10: -1 | HV10: 2 | HW10: -6 | HX10: -10 | HY10: 1 | HZ10: -4 | IA10: 0 | IB10: 0 | IC10: -1 | ID10: 1 | IE10: -1 | IF10: 38 | IG10: -25 | IH10: -1 | II10: 0 | IK10: 0 | IL10: -38 | IM10: 0 | IN10: 0 | IO10: -3 | IP10: 11 | IQ10: 19 | IR10: -1 | IS10: -3 | IT10: -0 | IU10: 1 | IV10: -1 | IW10: -0 | IX10: 0 | IY10: -0 | IZ10: 0 | JA10: 0 | JB10: 0 | JC10: 0 | JD10: -1 | JE10: 1 | JF10: -0 | JG10: 8 | JH10: -3 | JI10: -0 | JJ10: 0 | JK10: 0 | JL10: 0 | JM10: -12 | JN10: -5 | JO10: 0 | JP10: -1 | JQ10: -2 | JS10: 1 | JT10: 0 | JU10: -4 | JV10: -2 | JW10: -3 | JX10: 1 | JY10: -2 | JZ10: -2 | KA10: -0 | KB10: -7 | KC10: 3 | KD10: 0 | KE10: -2 | KF10: 3 | KG10: 0 | KH10: 0 | KI10: 0 | KJ10: 0 | KK10: 0 | KL10: 0 | KM10: 3 | KN10: 0 | KO10: 0 | KP10: -1 | KQ10: 1 | KR10: 0 | KS10: 0 | KT10: 0 | KU10: 0 | KV10: 0 | KW10: 0 | KX10: 2 | KY10: 5 | KZ10: 6 | LA10: -9 | LB10: 220 | LC10: 0 | LD10: 0 | LE10: 0 | LF10: 0 | LG10: -9 | LN10: 0.0 | LO10: 0.0 | LP10: 0.0 | LQ10: 0.0 | LR10: 0.0 | LS10: 0.0 | LT10: 15 | LU10: 0.0 | LV10: 81 | LW10: 23 | LX10: 0.00 | LY10: 81 | LZ10: 0.0 | MA10: 81 | MC10: 0.0
A11: 105006 | B11: 200262 | C11: 18 | D11: ESPACE MESANGE | E11: 43 | F11: STRASBOURG HALLES | G11: =$G$3 -> 2022-06-30 | H11: 0 | I11: 0.00% | J11: 0 | K11: 2022-06-30 | L11: 100 | M11: 1.84% | N11: 3.45 | O11: =L11*M11*N11 -> 6 | P11: 100.00% | Q11: 100.00% | R11: 1 | S11: 0 | T11: =(H11*I11*J11)+O11+R11+S11 -> 7 | U11: 566 | V11: -0.02% | W11: 6.94 | X11: =U11*V11*W11 -> -1 | Y11: 25.29% | Z11: 200.51% | AA11: 0 | AB11: 1 | AC11: 0.6 | AF11: 0 | AG11: =(U11*V11*W11)+AB11+AC11+AA11+AE11+AF11 -> 0 | AH11: 2,054 | AI11: 0.19% | AJ11: 5.66 | AK11: =AH11*AI11*AJ11 -> 22 | AL11: 0 | AM11: 0.00% | AN11: 0 | AO11: =AL11*AM11*AN11 -> 0 | AP11: 4.7 | AQ11: 0.00 | AR11: 0.00% | AS11: 0.00% | AT11: 0 | AU11: =(AH11*AI11*AJ11)+AQ11+AT11+AO11+AP11 -> 27 | AV11: 100 | AW11: 1.84% | AX11: 3.45 | AY11: 0 | AZ11: 100.00% | BA11: 100.00% | BB11: 1 | BC11: =(AV11*AW11*AX11)+AY11+BB11 -> 7 | BD11: 568 | BE11: -0.02% | BF11: 6.94 | BG11: 1 | BH11: 200.50% | BI11: 25.41% | BJ11: 0 | BK11: 1 | BL11: =(BD11*BE11*BF11)+BJ11+BK11+BG11 -> 1 | BM11: =AG11+T11+AU11 -> 34 | BN11: 202206 | BO11: 0 | BP11: 0 | BQ11: =IF(ISERROR(BP11/BO11),0,BP11/BO11) -> 0.00% | BR11: 0 | BS11: 0 | BT11: =IF(ISERROR(BS11/BR11),0,BS11/BR11) -> 0% | BU11: 0 | BV11: =IF(ISERROR(BU11/BR11),0,BU11/BR11) -> 0.00% | BW11: 0 | BX11: 0 | BY11: =IF(ISERROR(BX11/BW11),0,BX11/BW11) -> 0.0% | BZ11: 0 | CA11: =IF(ISERROR(BZ11/BW11),0,BZ11/BW11) -> 0.00% | CB11: 0 | CC11: 0 | CD11: =IF(ISERROR(CC11/CB11),0,CC11/CB11) -> 0.00% | CE11: 0 | CF11: =IF(ISERROR(CE11/CB11),0,CE11/CB11) -> 0.00% | CG11: 0 | CH11: 0 | CI11: =IF(ISERROR(CH11/CG11),0,CH11/CG11) -> 0.0% | CJ11: 0 | CK11: =IF(ISERROR(CJ11/CG11),0,CJ11/CG11) -> 0.00% | CL11: 74 | CM11: ='Zoom Collecte'!$B$5 -> 0.87% | CN11: ='Zoom Collecte'!$C$5 -> 5.38 | CO11: =CL11*CM11*CN11 -> 3 | CP11: -128 | CQ11: 0.88% | CR11: 5.38 | CS11: =CP11*CQ11*CR11 -> -6 | CT11: -0 | CU11: ='Zoom Collecte'!$B$8 -> 0.93% | CV11: ='Zoom Collecte'!$C$8 -> 5.38 | CW11: =CT11*CU11*CV11 -> -0 | CX11: -0 | CY11: ='Zoom Collecte'!$B$9 -> 0.94% | CZ11: ='Zoom Collecte'!$C$9 -> 5.38 | DA11: =CX11*CY11*CZ11 -> -0 | DB11: -1 | DC11: ='Zoom Collecte'!$B$10 -> 0.20% | DD11: ='Zoom Collecte'!$C$10 -> 5.38 | DE11: =DB11*DC11*DD11 -> -0 | DF11: -7 | DG11: ='Zoom Collecte'!$B$11 -> 0.20% | DH11: ='Zoom Collecte'!$C$11 -> 5.38 | DI11: =DF11*DG11*DH11 -> -0 | DJ11: 3 | DK11: ='Zoom Collecte'!$B$12 -> 0.20% | DL11: ='Zoom Collecte'!$C$12 -> 5.26 | DM11: =DJ11*DK11*DL11 -> 0 | DN11: 14 | DO11: ='Zoom Collecte'!$B$15 -> -0.02% | DP11: ='Zoom Collecte'!$C$15 -> 5.38 | DQ11: =DN11*DO11*DP11 -> -0 | DR11: 0 | DS11: ='Zoom Collecte'!$B$13 -> 0.22% | DT11: ='Zoom Collecte'!$C$13 -> 5.69 | DU11: =DR11*DS11*DT11 -> 0 | DV11: -140 | DW11: 0.22% | DX11: 5.69 | DY11: =DV11*DW11*DX11 -> -2 | DZ11: -55 | EA11: ='Zoom Collecte'!$B$16 -> 0.00% | EB11: ='Zoom Collecte'!$C$16 -> 8.36 | EC11: =DZ11*EA11*EB11 -> 0 | ED11: 0 | EE11: ='Zoom Collecte'!$B$17 -> 0.00% | EF11: ='Zoom Collecte'!$C$17 -> 1.74 | EG11: =ED11*EE11*EF11 -> 0 | EH11: 0 | EI11: ='Zoom Collecte'!$B$18 -> 0.20% | EJ11: ='Zoom Collecte'!$C$18 -> 8.00 | EK11: =EH11*EI11*EJ11 -> 0 | EL11: 33 | EM11: ='Zoom Collecte'!$B$19 -> 1.00% | EN11: ='Zoom Collecte'!$C$19 -> 5.00 | EO11: =EL11*EM11*EN11 -> 2 | EP11: =CL11+CP11+CT11+CX11+DB11+DF11+DJ11+DN11+DV11+DZ11+ED11+EH11+EL11+DR11+GT11 -> -511 | EQ11: =CO11+CS11+CW11+DA11+DE11+DI11+DM11+DQ11+DY11+EC11+EG11+EK11+EO11+DU11+HC11 -> -17 | ER11: 93 | ES11: ='Zoom Collecte'!$B$20 -> 0.54% | ET11: ='Zoom Collecte'!$C$20 -> 8.00 | EU11: =ER11*ES11*ET11 -> 4 | EV11: 2 | EW11: 0.54% | EX11: 8.00 | EY11: =EV11*EW11*EX11 -> 0 | EZ11: 4 | FA11: ='Zoom Collecte'!$B$23 -> 0.80% | FB11: ='Zoom Collecte'!$C$23 -> 4.00 | FC11: =EZ11*FA11*FB11 -> 0 | FD11: 0 | FE11: ='Zoom Collecte'!$B$23 -> 0.80% | FF11: ='Zoom Collecte'!$C$23 -> 4.00 | FG11: =FD11*FE11*FF11 -> 0 | FH11: 126 | FI11: ='Zoom Collecte'!$B$25 -> 1.00% | FJ11: ='Zoom Collecte'!$C$25 -> 5.00 | FK11: =FH11*FI11*FJ11 -> 6 | FL11: 393 | FM11: =CK11 -> 0.00% | FN11: 1.00 | FO11: =FL11*FM11*FN11 -> 0 | FP11: 2 | FQ11: =FM11 -> 0.00% | FR11: 1.00 | FS11: =FP11*FQ11*FR11 -> 0 | FT11: 4 | FU11: ='Zoom Collecte'!$B$24 -> 0.40% | FV11: ='Zoom Collecte'!$C$24 -> 1.00 | FW11: =FT11*FU11*FV11 -> 0 | FX11: 0 | FY11: ='Zoom Collecte'!$B$24 -> 0.40% | FZ11: ='Zoom Collecte'!$C$24 -> 1.00 | GA11: =FX11*FY11*FZ11 -> 0 | GB11: 3 | GC11: =GB11*$GB$3*$GC$3 -> 0 | GD11: 21 | GE11: =IF(ISERROR(GD11*$GD$3*$GE$3),0,GD11*$GD$3*$GE$3) -> 1 | GF11: =ER11+EZ11+EV11+FD11+FH11 -> 224 | GG11: =EU11+FO11+FC11+FW11+EY11+FS11+FG11+GA11+FK11+GC11+GE11 -> 11 | GH11: -5,623 | GI11: =(IF(ISERROR(IF(VLOOKUP($C11,'Indicateurs Cumulés'!$C$3:$HL$553,186,FALSE)/(VLOOKUP($C11,objectifs!$C$3:$AAB$559,158,FALSE))>=1.5,(VLOOKUP($C11,objectifs!$C$3:$AAB$559,158,FALSE))*1.5,IF(VLOOKUP($C11,'Indicateurs Cumulés'!$C$3:$HL$553,186,FALSE)/(VLOOKUP($C11,objectifs!$C$3:$AAB$559,158,FALSE))<=-0.5,(VLOOKUP($C11,objectifs!$C$3:$AAB$559,158,FALSE))*-0.5,VLOOKUP($C11,'Indicateurs Cumulés'!$C$3:$HL$553,186,FALSE)))),VLOOKUP($C11,'Indicateurs Cumulés'!$C$3:$HL$553,186,FALSE),IF(VLOOKUP($C11,'Indicateurs Cumulés'!$C$3:$HL$553,186,FALSE)/(VLOOKUP($C11,objectifs!$C$3:$AAB$559,158,FALSE))>=1.5,(VLOOKUP($C11,objectifs!$C$3:$AAB$559,158,FALSE))*1.5,IF(VLOOKUP($C11,'Indicateurs Cumulés'!$C$3:$HL$553,186,FALSE)/(VLOOKUP($C11,objectifs!$C$3:$AAB$559,158,FALSE))<=-0.5,(VLOOKUP($C11,objectifs!$C$3:$AAB$559,158,FALSE))*-0.5,VLOOKUP($C11,'Indicateurs Cumulés'!$C$3:$HL$553,186,FALSE)))))*0 -> 0 | GJ11: 1.00% | GK11: 5.33 | GL11: =GH11*GJ11*GK11*MONTH($G$3)/12 -> -150 | GM11: =(EQ11+GG11+GL11) -> -156 | GN11: -130 | GO11: 0.22% | GP11: 0 | GR11: 282 | GS11: 23 | GT11: -302 | GU11: 10 | GV11: -3,542 | GW11: =IF(ISERROR(IF(VLOOKUP($C11,'Indicateurs Cumulés'!$C$3:$HL$553,200,FALSE)/(VLOOKUP($C11,objectifs!$C$3:$AAB$559,162,FALSE))>=1.5,(VLOOKUP($C11,objectifs!$C$3:$AAB$559,162,FALSE))*1.5,IF(VLOOKUP($C11,'Indicateurs Cumulés'!$C$3:$HL$553,200,FALSE)/(VLOOKUP($C11,objectifs!$C$3:$AAB$559,162,FALSE))<=-0.5,(VLOOKUP($C11,objectifs!$C$3:$AAB$559,162,FALSE))*-0.5,VLOOKUP($C11,'Indicateurs Cumulés'!$C$3:$HL$553,200,FALSE)))),VLOOKUP($C11,'Indicateurs Cumulés'!$C$3:$HL$553,200,FALSE),IF(VLOOKUP($C11,'Indicateurs Cumulés'!$C$3:$HL$553,200,FALSE)/(VLOOKUP($C11,objectifs!$C$3:$AAB$559,162,FALSE))>=1.5,(VLOOKUP($C11,objectifs!$C$3:$AAB$559,162,FALSE))*1.5,IF(VLOOKUP($C11,'Indicateurs Cumulés'!$C$3:$HL$553,200,FALSE)/(VLOOKUP($C11,objectifs!$C$3:$AAB$559,162,FALSE))<=-0.5,(VLOOKUP($C11,objectifs!$C$3:$AAB$559,162,FALSE))*-0.5,VLOOKUP($C11,'Indicateurs Cumulés'!$C$3:$HL$553,200,FALSE)))) -> -3 | GX11: =GN11*$GN$3*$GX$3 -> -2 | GY11: =GP11*$GP$3*$GY$3 -> 0 | HA11: =GR11*$GR$3*$HA$3 -> 12 | HB11: =GS11*$GS$3*$HB$3 -> 0 | HC11: =GT11*$GT$3*$HC$3 -> -14 | HD11: =GU11*$GU$3*$HD$3 -> 0 | HE11: =GV11*$GV$3*$HE$3*MONTH($G$3)/12 -> -141 | HF11: =GX11+GY11+GZ11+HA11+HC11+HD11+HE11+HB11 -> -145 | HH11: -2 | HI11: 0 | HJ11: 0 | HK11: -1 | HL11: 3 | HM11: 0 | HN11: 1 | HO11: 0 | HP11: 0 | HQ11: 0 | HR11: 0 | HS11: 0 | HT11: 2 | HU11: 0 | HV11: 1 | HW11: 0 | HX11: 0 | HY11: -1 | HZ11: 0 | IA11: 0 | IB11: 0 | IC11: 0 | ID11: 0 | IE11: -5 | IF11: 2 | IG11: 0 | IH11: 0 | II11: 0 | IK11: =HG11*$HG$3*$IK$3/1000 -> 0 | IL11: =HH11*IL$3*HH$3/1000 -> -1 | IM11: =HI11*IM$3*HI$3/1000 -> 0 | IN11: =HJ11*IN$3*HJ$3/1000 -> 0 | IO11: =HK11*IO$3*HK$3/1000 -> -1 | IP11: =(HO11*$HO$3+HP11*$HP$3+HQ11*$HQ$3)*5/1000 -> 0 | IQ11: =(HL11*$HL$3+HM11*$HM$3+HN11*$HN$3)*5/1000 -> 2 | IR11: =HS11*IR$3*HS$3/1000 -> 0 | IS11: 1 | IT11: 0 | IU11: 0 | IV11: 0 | IW11: 0 | IX11: -0 | IY11: 0 | IZ11: =IA11*IA$3*IZ$3/1000 -> 0 | JA11: =IB11*$IB$3*$JA$3/1000 -> 0 | JB11: =HS11*$JB$3*$IL$3/1000 -> 0 | JC11: =HT11*$JC$3*$IL$3/1000 -> 0 | JD11: =IC11*JD$3*IC$3/1000 -> 0 | JE11: =ID11*JE$3*ID$3/1000 -> 0 | JF11: =IE11*JF$3*IE$3/1000 -> -2 | JG11: =IF11*JG$3*IF$3/1000 -> 0 | JH11: =(IG11*$IG$3*$JH$3)/1000 -> 0 | JI11: =IH11*JI$3*IH$3/1000 -> 0 | JJ11: =II11*$JJ$3*$JF$3/1000 -> 0 | JK11: =HR11*$HR$3*$JK$3/1000 -> 0 | JL11: =+IJ11*$JL$3/1000 -> 0 | JM11: =SUM(IK11:JL11) -> -1 | JN11: -1 | JO11: 0 | JP11: 0 | JQ11: 1 | JS11: 0 | JT11: 1 | JU11: 4 | JV11: 0 | JW11: =JN11*$JN$3*$JW$3/1000 -> -1 | JX11: =(JR11*JR$3+JS11*$JS$3+JT11*$JT$3)*$JX$3/1000 -> 2 | JY11: =(JO11*JO$3+JP11*$JP$3+JQ11*$JQ$3)*$JY$3/1000 -> 1 | JZ11: =JU11*$JU$3*$JZ$3/1000 -> 2 | KA11: =JV11*$JV$3*$KA$3/1000 -> 0 | KB11: =SUM(JW11:KA11) -> 4 | KC11: 7 | KD11: -2 | KE11: 0 | KF11: 10 | KG11: -1 | KH11: 0 | KI11: 1 | KJ11: -1 | KK11: 0 | KL11: 1 | KM11: -8 | KN11: =KC11*KN$3*KC$3/1000 -> 0 | KO11: -2 | KP11: 0 | KQ11: 2 | KR11: 0 | KS11: 0 | KT11: =KI11*$KI$3*$KT$3/1000 -> 1 | KU11: =KJ11*$KJ$3*$KU$3/1000 -> -0 | KV11: =KK11*$KK$3*$KV$3/1000 -> 0 | KW11: =KL11*$KL$3*$KW$3/1000 -> 0 | KX11: =KM11*$KM$3*$KX$3/1000 -> -4 | KY11: 18 | KZ11: =SUM(KN11:KY11) -> 14 | LA11: -3 | LB11: 113 | LC11: 0 | LD11: 0 | LE11: 0 | LF11: 0 | LG11: -3 | LN11: =IF(LH11<0,0,LH11*$LH$3*$LN$3/1000) -> 0.0 | LO11: =IF(LI11<0,0,LI11*$LI$3*$LO$3/1000) -> 0.0 | LP11: =IF(LJ11<0,0,LJ11*$LJ$3*$LP$3/1000) -> 0.0 | LQ11: =IF(LK11<0,0,LK11*$LK$3*$LQ$3/1000) -> 0.0 | LR11: =IF(LL11<0,0,LL11*$LL$3*$LR$3/1000) -> 0.0 | LS11: =IF(LM11<0,0,LM11*$LM$3*$LS$3/1000) -> 0.0 | LT11: 18 | LU11: 0.0 | LV11: -108 | LW11: =(AH11*AI11*AJ11+AO11+AP11+AQ11+AT11+AV11*AW11*AX11+AY11+BB11+BD11*BE11*BF11+BG11+BJ11+BK11)*1+SUM(GX11:HE11)*1+SUM(JW11:KA11)*1+SUM(KN11:KY11)*1 -> -92 | LY11: -108 | MA11: =LV11+SUM(LN11:LS11) -> -108 | MC11: 0.0
A12: 105006 | B12: 200262 | C12: 19 | D12: STRASBOURG ANVERS | E12: 19 | F12: STRASBOURG ANVERS | G12: 2022-06-30 | H12: 68 | I12: 4.32% | J12: 1.58 | K12: 2022-06-30 | L12: 1,762 | M12: 1.35% | N12: 3.10 | O12: 74 | P12: 100.00% | Q12: 126.62% | R12: 27 | S12: 11 | T12: 116 | U12: 12,346 | V12: -0.57% | W12: 8.01 | X12: -563 | Y12: 58.49% | Z12: 138.84% | AA12: 278 | AB12: 25 | AC12: 24.2 | AF12: -33 | AG12: -269 | AH12: 1,311 | AI12: -0.85% | AJ12: 6.42 | AK12: -71 | AL12: 61 | AM12: 1.33% | AN12: 2.37 | AO12: 2 | AP12: 2.9 | AQ12: 0.28 | AR12: 100.00% | AS12: 100.00% | AT12: 6 | AU12: -60 | AV12: 135 | AW12: 2.21% | AX12: 3.10 | AY12: 1 | AZ12: 100.00% | BA12: 144.37% | BB12: 2 | BC12: 12 | BD12: 1,117 | BE12: -0.42% | BF12: 8.77 | BG12: 2 | BH12: 100.00% | BI12: 47.45% | BJ12: 19 | BK12: 2 | BL12: -18 | BM12: -212 | BN12: 202206 | BO12: 0 | BP12: 0 | BQ12: 0.00% | BR12: 310.80 | BS12: 34.61 | BT12: 11% | BU12: 2.56 | BV12: 0.82% | BW12: 1,534.22 | BX12: 74.13 | BY12: 4.8% | BZ12: 0.68 | CA12: 0.04% | CB12: 75.41 | CC12: 2.81 | CD12: 3.73% | CE12: 0.60 | CF12: 0.79% | CG12: 1,920.43 | CH12: 111.55 | CI12: 5.8% | CJ12: 3.83 | CK12: 0.20% | CL12: 60 | CM12: ='Zoom Collecte'!$B$5 -> 0.87% | CN12: ='Zoom Collecte'!$C$5 -> 5.38 | CO12: 3 | CP12: 1,218 | CQ12: 0.88% | CR12: 5.38 | CS12: 58 | CT12: -39 | CU12: ='Zoom Collecte'!$B$8 -> 0.93% | CV12: ='Zoom Collecte'!$C$8 -> 5.38 | CW12: -2 | CX12: 198 | CY12: ='Zoom Collecte'!$B$9 -> 0.94% | CZ12: ='Zoom Collecte'!$C$9 -> 5.38 | DA12: 10 | DB12: 87 | DC12: ='Zoom Collecte'!$B$10 -> 0.20% | DD12: ='Zoom Collecte'!$C$10 -> 5.38 | DE12: 1 | DF12: 189 | DG12: ='Zoom Collecte'!$B$11 -> 0.20% | DH12: ='Zoom Collecte'!$C$11 -> 5.38 | DI12: 2 | DJ12: -32 | DK12: ='Zoom Collecte'!$B$12 -> 0.20% | DL12: ='Zoom Collecte'!$C$12 -> 5.26 | DM12: -0 | DN12: -96 | DO12: ='Zoom Collecte'!$B$15 -> -0.02% | DP12: ='Zoom Collecte'!$C$15 -> 5.38 | DQ12: 0 | DR12: -7 | DS12: ='Zoom Collecte'!$B$13 -> 0.22% | DT12: ='Zoom Collecte'!$C$13 -> 5.69 | DU12: -0 | DV12: -105 | DW12: 0.22% | DX12: 5.69 | DY12: -1 | DZ12: -680 | EA12: ='Zoom Collecte'!$B$16 -> 0.00% | EB12: ='Zoom Collecte'!$C$16 -> 8.36 | EC12: 0 | ED12: 0 | EE12: ='Zoom Collecte'!$B$17 -> 0.00% | EF12: ='Zoom Collecte'!$C$17 -> 1.74 | EG12: 0 | EH12: 0 | EI12: ='Zoom Collecte'!$B$18 -> 0.20% | EJ12: ='Zoom Collecte'!$C$18 -> 8.00 | EK12: 0 | EL12: 15 | EM12: ='Zoom Collecte'!$B$19 -> 1.00% | EN12: ='Zoom Collecte'!$C$19 -> 5.00 | EO12: 1 | EP12: 249 | EQ12: 44 | ER12: -697 | ES12: ='Zoom Collecte'!$B$20 -> 0.54% | ET12: ='Zoom Collecte'!$C$20 -> 8.00 | EU12: -30 | EV12: -23 | EW12: 0.54% | EX12: 8.00 | EY12: -1 | EZ12: -90 | FA12: ='Zoom Collecte'!$B$23 -> 0.80% | FB12: ='Zoom Collecte'!$C$23 -> 4.00 | FC12: -3 | FD12: 0 | FE12: ='Zoom Collecte'!$B$23 -> 0.80% | FF12: ='Zoom Collecte'!$C$23 -> 4.00 | FG12: 0 | FH12: 346 | FI12: ='Zoom Collecte'!$B$25 -> 1.00% | FJ12: ='Zoom Collecte'!$C$25 -> 5.00 | FK12: 17 | FL12: 1,527 | FM12: 0.20% | FN12: 1.00 | FO12: 3 | FP12: 0 | FQ12: 0.20% | FR12: 1.00 | FS12: 0 | FT12: 20 | FU12: ='Zoom Collecte'!$B$24 -> 0.40% | FV12: ='Zoom Collecte'!$C$24 -> 1.00 | FW12: 0 | FX12: 0 | FY12: ='Zoom Collecte'!$B$24 -> 0.40% | FZ12: ='Zoom Collecte'!$C$24 -> 1.00 | GA12: 0 | GB12: 83 | GC12: 2 | GD12: 66 | GE12: 2 | GF12: -465 | GG12: -10 | GH12: -309 | GI12: =(IF(ISERROR(IF(VLOOKUP($C12,'Indicateurs Cumulés'!$C$3:$HL$553,186,FALSE)/(VLOOKUP($C12,objectifs!$C$3:$AAB$559,158,FALSE))>=1.5,(VLOOKUP($C12,objectifs!$C$3:$AAB$559,158,FALSE))*1.5,IF(VLOOKUP($C12,'Indicateurs Cumulés'!$C$3:$HL$553,186,FALSE)/(VLOOKUP($C12,objectifs!$C$3:$AAB$559,158,FALSE))<=-0.5,(VLOOKUP($C12,objectifs!$C$3:$AAB$559,158,FALSE))*-0.5,VLOOKUP($C12,'Indicateurs Cumulés'!$C$3:$HL$553,186,FALSE)))),VLOOKUP($C12,'Indicateurs Cumulés'!$C$3:$HL$553,186,FALSE),IF(VLOOKUP($C12,'Indicateurs Cumulés'!$C$3:$HL$553,186,FALSE)/(VLOOKUP($C12,objectifs!$C$3:$AAB$559,158,FALSE))>=1.5,(VLOOKUP($C12,objectifs!$C$3:$AAB$559,158,FALSE))*1.5,IF(VLOOKUP($C12,'Indicateurs Cumulés'!$C$3:$HL$553,186,FALSE)/(VLOOKUP($C12,objectifs!$C$3:$AAB$559,158,FALSE))<=-0.5,(VLOOKUP($C12,objectifs!$C$3:$AAB$559,158,FALSE))*-0.5,VLOOKUP($C12,'Indicateurs Cumulés'!$C$3:$HL$553,186,FALSE)))))*0 -> 0 | GJ12: 1.00% | GK12: 5.33 | GL12: -8 | GM12: 26 | GN12: -0 | GO12: 0.22% | GP12: -28 | GR12: -156 | GS12: -40 | GT12: -561 | GU12: 246 | GV12: -438 | GW12: =IF(ISERROR(IF(VLOOKUP($C12,'Indicateurs Cumulés'!$C$3:$HL$553,200,FALSE)/(VLOOKUP($C12,objectifs!$C$3:$AAB$559,162,FALSE))>=1.5,(VLOOKUP($C12,objectifs!$C$3:$AAB$559,162,FALSE))*1.5,IF(VLOOKUP($C12,'Indicateurs Cumulés'!$C$3:$HL$553,200,FALSE)/(VLOOKUP($C12,objectifs!$C$3:$AAB$559,162,FALSE))<=-0.5,(VLOOKUP($C12,objectifs!$C$3:$AAB$559,162,FALSE))*-0.5,VLOOKUP($C12,'Indicateurs Cumulés'!$C$3:$HL$553,200,FALSE)))),VLOOKUP($C12,'Indicateurs Cumulés'!$C$3:$HL$553,200,FALSE),IF(VLOOKUP($C12,'Indicateurs Cumulés'!$C$3:$HL$553,200,FALSE)/(VLOOKUP($C12,objectifs!$C$3:$AAB$559,162,FALSE))>=1.5,(VLOOKUP($C12,objectifs!$C$3:$AAB$559,162,FALSE))*1.5,IF(VLOOKUP($C12,'Indicateurs Cumulés'!$C$3:$HL$553,200,FALSE)/(VLOOKUP($C12,objectifs!$C$3:$AAB$559,162,FALSE))<=-0.5,(VLOOKUP($C12,objectifs!$C$3:$AAB$559,162,FALSE))*-0.5,VLOOKUP($C12,'Indicateurs Cumulés'!$C$3:$HL$553,200,FALSE)))) -> -3 | GX12: -0 | GY12: -1 | HA12: -7 | HB12: 0 | HC12: -27 | HD12: 12 | HE12: -18 | HF12: -41 | HH12: -57 | HI12: 1 | HJ12: 0 | HK12: -1 | HL12: 1 | HM12: 37 | HN12: 16 | HO12: 0 | HP12: 15 | HQ12: 9 | HR12: 0 | HS12: 10 | HT12: 22 | HU12: -2 | HV12: 1 | HW12: -1 | HX12: 15 | HY12: 1 | HZ12: 44 | IA12: 1 | IB12: 0 | IC12: 2 | ID12: -1 | IE12: 37 | IF12: 56 | IG12: -19 | IH12: 0 | II12: 0 | IK12: 0 | IL12: -37 | IM12: 0 | IN12: 0 | IO12: -1 | IP12: 30 | IQ12: 35 | IR12: 3 | IS12: 6 | IT12: -1 | IU12: 0 | IV12: -0 | IW12: 0 | IX12: 0 | IY12: 5 | IZ12: 0 | JA12: 0 | JB12: 0 | JC12: 0 | JD12: 1 | JE12: -1 | JF12: 18 | JG12: 11 | JH12: -3 | JI12: 0 | JJ12: 0 | JK12: 0 | JL12: 0 | JM12: 69 | JN12: -6 | JO12: 1 | JP12: 0 | JQ12: -1 | JS12: 1 | JT12: 2 | JU12: 5 | JV12: 0 | JW12: -4 | JX12: 4 | JY12: -1 | JZ12: 2 | KA12: 0 | KB12: 2 | KC12: 0 | KD12: 1 | KE12: 2 | KF12: 2 | KG12: 3 | KH12: 0 | KI12: 4 | KJ12: 2 | KK12: 0 | KL12: 1 | KM12: 4 | KN12: 0 | KO12: 1 | KP12: 1 | KQ12: 0 | KR12: 0 | KS12: 0 | KT12: 2 | KU12: 0 | KV12: 0 | KW12: 0 | KX12: 2 | KY12: 13 | KZ12: 21 | LA12: -14 | LB12: 283 | LC12: 0 | LD12: 0 | LE12: 0 | LF12: 0 | LG12: -14 | LN12: 0.0 | LO12: 0.0 | LP12: 0.0 | LQ12: 0.0 | LR12: 0.0 | LS12: 0.0 | LT12: 19 | LU12: 0.0 | LV12: -109 | LW12: -84 | LX12: 0.00 | LY12: -109 | LZ12: 0.0 | MA12: -109 | MC12: 0.0
A13: 105006 | B13: 200262 | C13: 20 | D13: STRASBOURG ROBERTSAU | E13: 20 | F13: STRASBOURG ROBERTSAU | G13: 2022-06-30 | H13: 89 | I13: 4.32% | J13: 1.58 | K13: 2022-06-30 | L13: 1,406 | M13: 1.58% | N13: 2.86 | O13: 64 | P13: 93.36% | Q13: 123.88% | R13: 25 | S13: 2 | T13: 97 | U13: 4,472 | V13: -0.66% | W13: 7.18 | X13: -213 | Y13: 65.78% | Z13: 125.43% | AA13: 67 | AB13: 8 | AC13: 8.7 | AF13: -8 | AG13: -137 | AH13: 952 | AI13: 0.22% | AJ13: 5.76 | AK13: 12 | AL13: 82 | AM13: 0.49% | AN13: 2.18 | AO13: 1 | AP13: 2.3 | AQ13: 0.12 | AR13: 100.00% | AS13: 200.00% | AT13: 13 | AU13: 28 | AV13: 248 | AW13: 0.82% | AX13: 3.16 | AY13: 0 | AZ13: 100.00% | BA13: 153.57% | BB13: 6 | BC13: 13 | BD13: 1,515 | BE13: -1.20% | BF13: 6.72 | BG13: 2 | BH13: 168.99% | BI13: 47.19% | BJ13: 20 | BK13: 3 | BL13: -98 | BM13: -12 | BN13: 202206 | BO13: 5.00 | BP13: 0.02 | BQ13: 0.30% | BR13: 360.38 | BS13: 54.94 | BT13: 15% | BU13: 2.18 | BV13: 0.61% | BW13: 5,564.65 | BX13: 605.91 | BY13: 10.9% | BZ13: 4.23 | CA13: 0.08% | CB13: 121.29 | CC13: 7.28 | CD13: 6.00% | CE13: 1.10 | CF13: 0.91% | CG13: 6,051.31 | CH13: 668.13 | CI13: 11.0% | CJ13: 7.53 | CK13: 0.12% | CL13: -55 | CM13: ='Zoom Collecte'!$B$5 -> 0.87% | CN13: ='Zoom Collecte'!$C$5 -> 5.38 | CO13: -3 | CP13: 890 | CQ13: 0.88% | CR13: 5.38 | CS13: 42 | CT13: -96 | CU13: ='Zoom Collecte'!$B$8 -> 0.93% | CV13: ='Zoom Collecte'!$C$8 -> 5.38 | CW13: -5 | CX13: -228 | CY13: ='Zoom Collecte'!$B$9 -> 0.94% | CZ13: ='Zoom Collecte'!$C$9 -> 5.38 | DA13: -12 | DB13: 293 | DC13: ='Zoom Collecte'!$B$10 -> 0.20% | DD13: ='Zoom Collecte'!$C$10 -> 5.38 | DE13: 3 | DF13: 234 | DG13: ='Zoom Collecte'!$B$11 -> 0.20% | DH13: ='Zoom Collecte'!$C$11 -> 5.38 | DI13: 3 | DJ13: -0 | DK13: ='Zoom Collecte'!$B$12 -> 0.20% | DL13: ='Zoom Collecte'!$C$12 -> 5.26 | DM13: -0 | DN13: 120 | DO13: ='Zoom Collecte'!$B$15 -> -0.02% | DP13: ='Zoom Collecte'!$C$15 -> 5.38 | DQ13: -0 | DR13: -17 | DS13: ='Zoom Collecte'!$B$13 -> 0.22% | DT13: ='Zoom Collecte'!$C$13 -> 5.69 | DU13: -0 | DV13: -166 | DW13: 0.22% | DX13: 5.69 | DY13: -2 | DZ13: -578 | EA13: ='Zoom Collecte'!$B$16 -> 0.00% | EB13: ='Zoom Collecte'!$C$16 -> 8.36 | EC13: 0 | ED13: 0 | EE13: ='Zoom Collecte'!$B$17 -> 0.00% | EF13: ='Zoom Collecte'!$C$17 -> 1.74 | EG13: 0 | EH13: 0 | EI13: ='Zoom Collecte'!$B$18 -> 0.20% | EJ13: ='Zoom Collecte'!$C$18 -> 8.00 | EK13: 0 | EL13: -80 | EM13: ='Zoom Collecte'!$B$19 -> 1.00% | EN13: ='Zoom Collecte'!$C$19 -> 5.00 | EO13: -4 | EP13: 821 | EQ13: 46 | ER13: 2,027 | ES13: ='Zoom Collecte'!$B$20 -> 0.54% | ET13: ='Zoom Collecte'!$C$20 -> 8.00 | EU13: 88 | EV13: -70 | EW13: 0.54% | EX13: 8.00 | EY13: -3 | EZ13: -75 | FA13: ='Zoom Collecte'!$B$23 -> 0.80% | FB13: ='Zoom Collecte'!$C$23 -> 4.00 | FC13: -2 | FD13: -53 | FE13: ='Zoom Collecte'!$B$23 -> 0.80% | FF13: ='Zoom Collecte'!$C$23 -> 4.00 | FG13: -2 | FH13: 228 | FI13: ='Zoom Collecte'!$B$25 -> 1.00% | FJ13: ='Zoom Collecte'!$C$25 -> 5.00 | FK13: 11 | FL13: 3,731 | FM13: 0.12% | FN13: 1.00 | FO13: 5 | FP13: 8 | FQ13: 0.12% | FR13: 1.00 | FS13: 0 | FT13: 40 | FU13: ='Zoom Collecte'!$B$24 -> 0.40% | FV13: ='Zoom Collecte'!$C$24 -> 1.00 | FW13: 0 | FX13: 0 | FY13: ='Zoom Collecte'!$B$24 -> 0.40% | FZ13: ='Zoom Collecte'!$C$24 -> 1.00 | GA13: 0 | GB13: 212 | GC13: 5 | GD13: 51 | GE13: 1 | GF13: 2,057 | GG13: 104 | GH13: -225 | GI13: =(IF(ISERROR(IF(VLOOKUP($C13,'Indicateurs Cumulés'!$C$3:$HL$553,186,FALSE)/(VLOOKUP($C13,objectifs!$C$3:$AAB$559,158,FALSE))>=1.5,(VLOOKUP($C13,objectifs!$C$3:$AAB$559,158,FALSE))*1.5,IF(VLOOKUP($C13,'Indicateurs Cumulés'!$C$3:$HL$553,186,FALSE)/(VLOOKUP($C13,objectifs!$C$3:$AAB$559,158,FALSE))<=-0.5,(VLOOKUP($C13,objectifs!$C$3:$AAB$559,158,FALSE))*-0.5,VLOOKUP($C13,'Indicateurs Cumulés'!$C$3:$HL$553,186,FALSE)))),VLOOKUP($C13,'Indicateurs Cumulés'!$C$3:$HL$553,186,FALSE),IF(VLOOKUP($C13,'Indicateurs Cumulés'!$C$3:$HL$553,186,FALSE)/(VLOOKUP($C13,objectifs!$C$3:$AAB$559,158,FALSE))>=1.5,(VLOOKUP($C13,objectifs!$C$3:$AAB$559,158,FALSE))*1.5,IF(VLOOKUP($C13,'Indicateurs Cumulés'!$C$3:$HL$553,186,FALSE)/(VLOOKUP($C13,objectifs!$C$3:$AAB$559,158,FALSE))<=-0.5,(VLOOKUP($C13,objectifs!$C$3:$AAB$559,158,FALSE))*-0.5,VLOOKUP($C13,'Indicateurs Cumulés'!$C$3:$HL$553,186,FALSE)))))*0 -> 0 | GJ13: 1.00% | GK13: 5.33 | GL13: -6 | GM13: 144 | GN13: -0 | GO13: 0.22% | GP13: 22 | GR13: 450 | GS13: -121 | GT13: 503 | GU13: -110 | GV13: -489 | GW13: =IF(ISERROR(IF(VLOOKUP($C13,'Indicateurs Cumulés'!$C$3:$HL$553,200,FALSE)/(VLOOKUP($C13,objectifs!$C$3:$AAB$559,162,FALSE))>=1.5,(VLOOKUP($C13,objectifs!$C$3:$AAB$559,162,FALSE))*1.5,IF(VLOOKUP($C13,'Indicateurs Cumulés'!$C$3:$HL$553,200,FALSE)/(VLOOKUP($C13,objectifs!$C$3:$AAB$559,162,FALSE))<=-0.5,(VLOOKUP($C13,objectifs!$C$3:$AAB$559,162,FALSE))*-0.5,VLOOKUP($C13,'Indicateurs Cumulés'!$C$3:$HL$553,200,FALSE)))),VLOOKUP($C13,'Indicateurs Cumulés'!$C$3:$HL$553,200,FALSE),IF(VLOOKUP($C13,'Indicateurs Cumulés'!$C$3:$HL$553,200,FALSE)/(VLOOKUP($C13,objectifs!$C$3:$AAB$559,162,FALSE))>=1.5,(VLOOKUP($C13,objectifs!$C$3:$AAB$559,162,FALSE))*1.5,IF(VLOOKUP($C13,'Indicateurs Cumulés'!$C$3:$HL$553,200,FALSE)/(VLOOKUP($C13,objectifs!$C$3:$AAB$559,162,FALSE))<=-0.5,(VLOOKUP($C13,objectifs!$C$3:$AAB$559,162,FALSE))*-0.5,VLOOKUP($C13,'Indicateurs Cumulés'!$C$3:$HL$553,200,FALSE)))) -> 8 | GX13: -0 | GY13: 1 | HA13: 19 | HB13: 0 | HC13: 24 | HD13: -5 | HE13: -20 | HF13: 20 | HH13: -100 | HI13: 4 | HJ13: -7 | HK13: 0 | HL13: 1 | HM13: 46 | HN13: 20 | HO13: -1 | HP13: 19 | HQ13: 7 | HR13: 0 | HS13: -2 | HT13: 16 | HU13: 2 | HV13: 9 | HW13: 6 | HX13: -4 | HY13: -1 | HZ13: 22 | IA13: 0 | IB13: 0 | IC13: -2 | ID13: 0 | IE13: 42 | IF13: 21 | IG13: -24 | IH13: 0 | II13: 0 | IK13: 0 | IL13: -65 | IM13: 0 | IN13: -4 | IO13: 0 | IP13: 30 | IQ13: 44 | IR13: -1 | IS13: 4 | IT13: 1 | IU13: 3 | IV13: 1 | IW13: -0 | IX13: -0 | IY13: 3 | IZ13: 0 | JA13: 0 | JB13: 0 | JC13: 0 | JD13: -1 | JE13: 0 | JF13: 20 | JG13: 4 | JH13: -3 | JI13: 0 | JJ13: 0 | JK13: 0 | JL13: 0 | JM13: 36 | JN13: -6 | JO13: 1 | JP13: 1 | JQ13: 2 | JS13: 0 | JT13: 1 | JU13: -4 | JV13: 2 | JW13: -4 | JX13: 2 | JY13: 3 | JZ13: -2 | KA13: 0 | KB13: -1 | KC13: 5 | KD13: 0 | KE13: -1 | KF13: 3 | KG13: 3 | KH13: 0 | KI13: 0 | KJ13: 2 | KK13: 0 | KL13: 1 | KM13: -3 | KN13: 0 | KO13: 0 | KP13: -1 | KQ13: 1 | KR13: 0 | KS13: 0 | KT13: 0 | KU13: 0 | KV13: 0 | KW13: 0 | KX13: -2 | KY13: 18 | KZ13: 17 | LA13: -7 | LB13: 236 | LC13: 0 | LD13: 0 | LE13: 2 | LF13: 0 | LG13: -5 | LN13: 0.0 | LO13: 0.0 | LP13: 0.0 | LQ13: 0.0 | LR13: 0.0 | LS13: 0.0 | LT13: 20 | LU13: 0.0 | LV13: 178 | LW13: -22 | LX13: 0.00 | LY13: 178 | LZ13: 0.0 | MA13: 178 | MC13: 1.6
A14: 105006 | B14: 200262 | C14: 23 | D14: STRASBOURG VOSGES | E14: 23 | F14: STRASBOURG VOSGES | G14: 2022-06-30 | H14: 44 | I14: 4.32% | J14: 1.58 | K14: 2022-06-30 | L14: 782 | M14: 1.34% | N14: 2.64 | O14: 28 | P14: 95.44% | Q14: 124.57% | R14: 11 | S14: 1 | T14: 43 | U14: 5,282 | V14: -0.67% | W14: 7.45 | X14: -263 | Y14: 92.83% | Z14: 168.49% | AA14: 85 | AB14: 8 | AC14: 8.8 | AF14: -5 | AG14: -166 | AH14: -703 | AI14: 0.28% | AJ14: 6.21 | AK14: -12 | AL14: 62 | AM14: 0.94% | AN14: 1.48 | AO14: 1 | AP14: 3.0 | AQ14: 0.30 | AR14: 100.00% | AS14: 100.00% | AT14: 0 | AU14: -8 | AV14: 38 | AW14: 3.07% | AX14: 1.57 | AY14: 0 | AZ14: 100.00% | BA14: 161.33% | BB14: 0 | BC14: 2 | BD14: 232 | BE14: 0.02% | BF14: 7.68 | BG14: 1 | BH14: 0.00% | BI14: 0.00% | BJ14: 0 | BK14: 1 | BL14: 1 | BM14: -131 | BN14: 202206 | BO14: 0 | BP14: 0 | BQ14: 0.00% | BR14: 327.05 | BS14: 40.12 | BT14: 12% | BU14: 0.47 | BV14: 0.14% | BW14: 1,144.03 | BX14: 45.38 | BY14: 4.0% | BZ14: 2.28 | CA14: 0.20% | CB14: 43.49 | CC14: 10.12 | CD14: 23.27% | CE14: 0.39 | CF14: 0.91% | CG14: 1,514.57 | CH14: 95.62 | CI14: 6.3% | CJ14: 3.15 | CK14: 0.21% | CL14: 378 | CM14: ='Zoom Collecte'!$B$5 -> 0.87% | CN14: ='Zoom Collecte'!$C$5 -> 5.38 | CO14: 18 | CP14: 457 | CQ14: 0.88% | CR14: 5.38 | CS14: 22 | CT14: -3 | CU14: ='Zoom Collecte'!$B$8 -> 0.93% | CV14: ='Zoom Collecte'!$C$8 -> 5.38 | CW14: -0 | CX14: -39 | CY14: ='Zoom Collecte'!$B$9 -> 0.94% | CZ14: ='Zoom Collecte'!$C$9 -> 5.38 | DA14: -2 | DB14: 74 | DC14: ='Zoom Collecte'!$B$10 -> 0.20% | DD14: ='Zoom Collecte'!$C$10 -> 5.38 | DE14: 1 | DF14: 231 | DG14: ='Zoom Collecte'!$B$11 -> 0.20% | DH14: ='Zoom Collecte'!$C$11 -> 5.38 | DI14: 2 | DJ14: 1 | DK14: ='Zoom Collecte'!$B$12 -> 0.20% | DL14: ='Zoom Collecte'!$C$12 -> 5.26 | DM14: 0 | DN14: -36 | DO14: ='Zoom Collecte'!$B$15 -> -0.02% | DP14: ='Zoom Collecte'!$C$15 -> 5.38 | DQ14: 0 | DR14: -2 | DS14: ='Zoom Collecte'!$B$13 -> 0.22% | DT14: ='Zoom Collecte'!$C$13 -> 5.69 | DU14: -0 | DV14: -37 | DW14: 0.22% | DX14: 5.69 | DY14: -0 | DZ14: -141 | EA14: ='Zoom Collecte'!$B$16 -> 0.00% | EB14: ='Zoom Collecte'!$C$16 -> 8.36 | EC14: 0 | ED14: 0 | EE14: ='Zoom Collecte'!$B$17 -> 0.00% | EF14: ='Zoom Collecte'!$C$17 -> 1.74 | EG14: 0 | EH14: 0 | EI14: ='Zoom Collecte'!$B$18 -> 0.20% | EJ14: ='Zoom Collecte'!$C$18 -> 8.00 | EK14: 0 | EL14: 42 | EM14: ='Zoom Collecte'!$B$19 -> 1.00% | EN14: ='Zoom Collecte'!$C$19 -> 5.00 | EO14: 2 | EP14: 1,112 | EQ14: 51 | ER14: 507 | ES14: ='Zoom Collecte'!$B$20 -> 0.54% | ET14: ='Zoom Collecte'!$C$20 -> 8.00 | EU14: 22 | EV14: -16 | EW14: 0.54% | EX14: 8.00 | EY14: -1 | EZ14: -1 | FA14: ='Zoom Collecte'!$B$23 -> 0.80% | FB14: ='Zoom Collecte'!$C$23 -> 4.00 | FC14: -0 | FD14: 0 | FE14: ='Zoom Collecte'!$B$23 -> 0.80% | FF14: ='Zoom Collecte'!$C$23 -> 4.00 | FG14: 0 | FH14: -80 | FI14: ='Zoom Collecte'!$B$25 -> 1.00% | FJ14: ='Zoom Collecte'!$C$25 -> 5.00 | FK14: -4 | FL14: 1,605 | FM14: 0.21% | FN14: 1.00 | FO14: 3 | FP14: 6 | FQ14: 0.21% | FR14: 1.00 | FS14: 0 | FT14: 8 | FU14: ='Zoom Collecte'!$B$24 -> 0.40% | FV14: ='Zoom Collecte'!$C$24 -> 1.00 | FW14: 0 | FX14: 0 | FY14: ='Zoom Collecte'!$B$24 -> 0.40% | FZ14: ='Zoom Collecte'!$C$24 -> 1.00 | GA14: 0 | GB14: 95 | GC14: 2 | GD14: 61 | GE14: 2 | GF14: 410 | GG14: 25 | GH14: 460 | GI14: =(IF(ISERROR(IF(VLOOKUP($C14,'Indicateurs Cumulés'!$C$3:$HL$553,186,FALSE)/(VLOOKUP($C14,objectifs!$C$3:$AAB$559,158,FALSE))>=1.5,(VLOOKUP($C14,objectifs!$C$3:$AAB$559,158,FALSE))*1.5,IF(VLOOKUP($C14,'Indicateurs Cumulés'!$C$3:$HL$553,186,FALSE)/(VLOOKUP($C14,objectifs!$C$3:$AAB$559,158,FALSE))<=-0.5,(VLOOKUP($C14,objectifs!$C$3:$AAB$559,158,FALSE))*-0.5,VLOOKUP($C14,'Indicateurs Cumulés'!$C$3:$HL$553,186,FALSE)))),VLOOKUP($C14,'Indicateurs Cumulés'!$C$3:$HL$553,186,FALSE),IF(VLOOKUP($C14,'Indicateurs Cumulés'!$C$3:$HL$553,186,FALSE)/(VLOOKUP($C14,objectifs!$C$3:$AAB$559,158,FALSE))>=1.5,(VLOOKUP($C14,objectifs!$C$3:$AAB$559,158,FALSE))*1.5,IF(VLOOKUP($C14,'Indicateurs Cumulés'!$C$3:$HL$553,186,FALSE)/(VLOOKUP($C14,objectifs!$C$3:$AAB$559,158,FALSE))<=-0.5,(VLOOKUP($C14,objectifs!$C$3:$AAB$559,158,FALSE))*-0.5,VLOOKUP($C14,'Indicateurs Cumulés'!$C$3:$HL$553,186,FALSE)))))*0 -> 0 | GJ14: 1.00% | GK14: 5.33 | GL14: 12 | GM14: 88 | GN14: 2 | GO14: 0.22% | GP14: -1 | GR14: 11 | GS14: 76 | GT14: 188 | GU14: 393 | GV14: 209 | GW14: =IF(ISERROR(IF(VLOOKUP($C14,'Indicateurs Cumulés'!$C$3:$HL$553,200,FALSE)/(VLOOKUP($C14,objectifs!$C$3:$AAB$559,162,FALSE))>=1.5,(VLOOKUP($C14,objectifs!$C$3:$AAB$559,162,FALSE))*1.5,IF(VLOOKUP($C14,'Indicateurs Cumulés'!$C$3:$HL$553,200,FALSE)/(VLOOKUP($C14,objectifs!$C$3:$AAB$559,162,FALSE))<=-0.5,(VLOOKUP($C14,objectifs!$C$3:$AAB$559,162,FALSE))*-0.5,VLOOKUP($C14,'Indicateurs Cumulés'!$C$3:$HL$553,200,FALSE)))),VLOOKUP($C14,'Indicateurs Cumulés'!$C$3:$HL$553,200,FALSE),IF(VLOOKUP($C14,'Indicateurs Cumulés'!$C$3:$HL$553,200,FALSE)/(VLOOKUP($C14,objectifs!$C$3:$AAB$559,162,FALSE))>=1.5,(VLOOKUP($C14,objectifs!$C$3:$AAB$559,162,FALSE))*1.5,IF(VLOOKUP($C14,'Indicateurs Cumulés'!$C$3:$HL$553,200,FALSE)/(VLOOKUP($C14,objectifs!$C$3:$AAB$559,162,FALSE))<=-0.5,(VLOOKUP($C14,objectifs!$C$3:$AAB$559,162,FALSE))*-0.5,VLOOKUP($C14,'Indicateurs Cumulés'!$C$3:$HL$553,200,FALSE)))) -> 8 | GX14: 0 | GY14: -0 | HA14: 0 | HB14: 0 | HC14: 9 | HD14: 19 | HE14: 8 | HF14: 36 | HH14: -71 | HI14: 0 | HJ14: -2 | HK14: 0 | HL14: 7 | HM14: 56 | HN14: 3 | HO14: 0 | HP14: 9 | HQ14: 2 | HR14: 0 | HS14: -1 | HT14: 7 | HU14: 0 | HV14: -1 | HW14: 1 | HX14: -5 | HY14: -1 | HZ14: 19 | IA14: 6 | IB14: 0 | IC14: 1 | ID14: 3 | IE14: 15 | IF14: 27 | IG14: -11 | IH14: 0 | II14: 0 | IK14: 0 | IL14: -46 | IM14: 0 | IN14: -1 | IO14: 0 | IP14: 13 | IQ14: 34 | IR14: -0 | IS14: 2 | IT14: 0 | IU14: -0 | IV14: 0 | IW14: -0 | IX14: -0 | IY14: 2 | IZ14: 3 | JA14: 0 | JB14: 0 | JC14: 0 | JD14: 1 | JE14: 2 | JF14: 7 | JG14: 5 | JH14: -2 | JI14: 0 | JJ14: 0 | JK14: 0 | JL14: 0 | JM14: 20 | JN14: -8 | JO14: 0 | JP14: 3 | JQ14: 4 | JS14: 1 | JT14: 0 | JU14: 2 | JV14: 2 | JW14: -5 | JX14: 1 | JY14: 6 | JZ14: 1 | KA14: 0 | KB14: 3 | KC14: 1 | KD14: 0 | KE14: 0 | KF14: 3 | KG14: 0 | KH14: 0 | KI14: 1 | KJ14: 0 | KK14: 0 | KL14: 0 | KM14: 2 | KN14: 0 | KO14: 0 | KP14: 0 | KQ14: 1 | KR14: 0 | KS14: 0 | KT14: 1 | KU14: 0 | KV14: 0 | KW14: 0 | KX14: 1 | KY14: 4 | KZ14: 6 | LA14: -6 | LB14: 144 | LC14: 0 | LD14: 0 | LE14: 0 | LF14: 0 | LG14: -6 | LN14: 0.0 | LO14: 0.0 | LP14: 0.0 | LQ14: 0.0 | LR14: 0.0 | LS14: 0.0 | LT14: 23 | LU14: 0.0 | LV14: -20 | LW14: 41 | LX14: 0.00 | LY14: -20 | LZ14: 0.0 | MA14: -20 | MC14: 0.0
A15: 105006 | B15: 200262 | C15: 24 | D15: STRASBOURG AUSTERLITZ | E15: 24 | F15: STRASBOURG AUSTERLITZ | G15: 2022-06-30 | H15: 75 | I15: 4.32% | J15: 1.58 | K15: 2022-06-30 | L15: 438 | M15: 2.12% | N15: 2.92 | O15: 27 | P15: 98.91% | Q15: 128.73% | R15: 8 | S15: 3 | T15: 43 | U15: 3,661 | V15: -1.00% | W15: 7.30 | X15: -267 | Y15: 40.14% | Z15: 157.11% | AA15: 55 | AB15: 6 | AC15: 6.7 | AF15: -8 | AG15: -207 | AH15: 379 | AI15: -0.44% | AJ15: 8.55 | AK15: -14 | AL15: 0 | AM15: 0.00% | AN15: 0 | AO15: 0 | AP15: 1.0 | AQ15: 0.00 | AR15: 100.00% | AS15: 100.00% | AT15: 0 | AU15: -13 | AV15: 0 | AW15: 0.00% | AX15: 0 | AY15: -0 | AZ15: 0.00% | BA15: 0.00% | BB15: 0 | BC15: -0 | BD15: 0 | BE15: 0.00% | BF15: 0 | BG15: 0 | BH15: 0.00% | BI15: 0.00% | BJ15: 0 | BK15: 0 | BL15: 0 | BM15: -178 | BN15: 202206 | BO15: 5.00 | BP15: 0.12 | BQ15: 2.40% | BR15: 112.72 | BS15: 3.18 | BT15: 3% | BU15: 0.78 | BV15: 0.69% | BW15: 694.85 | BX15: 27.81 | BY15: 4.0% | BZ15: 1.09 | CA15: 0.16% | CB15: 15.24 | CC15: 0.58 | CD15: 3.78% | CE15: 0.36 | CF15: 2.34% | CG15: 827.82 | CH15: 31.57 | CI15: 3.8% | CJ15: 2.34 | CK15: 0.28% | CL15: 1 | CM15: ='Zoom Collecte'!$B$5 -> 0.87% | CN15: ='Zoom Collecte'!$C$5 -> 5.38 | CO15: 0 | CP15: -358 | CQ15: 0.88% | CR15: 5.38 | CS15: -17 | CT15: 24 | CU15: ='Zoom Collecte'!$B$8 -> 0.93% | CV15: ='Zoom Collecte'!$C$8 -> 5.38 | CW15: 1 | CX15: -253 | CY15: ='Zoom Collecte'!$B$9 -> 0.94% | CZ15: ='Zoom Collecte'!$C$9 -> 5.38 | DA15: -13 | DB15: -48 | DC15: ='Zoom Collecte'!$B$10 -> 0.20% | DD15: ='Zoom Collecte'!$C$10 -> 5.38 | DE15: -1 | DF15: -20 | DG15: ='Zoom Collecte'!$B$11 -> 0.20% | DH15: ='Zoom Collecte'!$C$11 -> 5.38 | DI15: -0 | DJ15: -11 | DK15: ='Zoom Collecte'!$B$12 -> 0.20% | DL15: ='Zoom Collecte'!$C$12 -> 5.26 | DM15: -0 | DN15: 1 | DO15: ='Zoom Collecte'!$B$15 -> -0.02% | DP15: ='Zoom Collecte'!$C$15 -> 5.38 | DQ15: -0 | DR15: 2 | DS15: ='Zoom Collecte'!$B$13 -> 0.22% | DT15: ='Zoom Collecte'!$C$13 -> 5.69 | DU15: 0 | DV15: -5 | DW15: 0.22% | DX15: 5.69 | DY15: -0 | DZ15: -889 | EA15: ='Zoom Collecte'!$B$16 -> 0.00% | EB15: ='Zoom Collecte'!$C$16 -> 8.36 | EC15: 0 | ED15: 0 | EE15: ='Zoom Collecte'!$B$17 -> 0.00% | EF15: ='Zoom Collecte'!$C$17 -> 1.74 | EG15: 0 | EH15: 0 | EI15: ='Zoom Collecte'!$B$18 -> 0.20% | EJ15: ='Zoom Collecte'!$C$18 -> 8.00 | EK15: 0 | EL15: -144 | EM15: ='Zoom Collecte'!$B$19 -> 1.00% | EN15: ='Zoom Collecte'!$C$19 -> 5.00 | EO15: -7 | EP15: -1,394 | EQ15: -22 | ER15: 18 | ES15: ='Zoom Collecte'!$B$20 -> 0.54% | ET15: ='Zoom Collecte'!$C$20 -> 8.00 | EU15: 1 | EV15: 100 | EW15: 0.54% | EX15: 8.00 | EY15: 4 | EZ15: -9 | FA15: ='Zoom Collecte'!$B$23 -> 0.80% | FB15: ='Zoom Collecte'!$C$23 -> 4.00 | FC15: -0 | FD15: 0 | FE15: ='Zoom Collecte'!$B$23 -> 0.80% | FF15: ='Zoom Collecte'!$C$23 -> 4.00 | FG15: 0 | FH15: 141 | FI15: ='Zoom Collecte'!$B$25 -> 1.00% | FJ15: ='Zoom Collecte'!$C$25 -> 5.00 | FK15: 7 | FL15: 706 | FM15: 0.28% | FN15: 1.00 | FO15: 2 | FP15: 100 | FQ15: 0.28% | FR15: 1.00 | FS15: 0 | FT15: 30 | FU15: ='Zoom Collecte'!$B$24 -> 0.40% | FV15: ='Zoom Collecte'!$C$24 -> 1.00 | FW15: 0 | FX15: 0 | FY15: ='Zoom Collecte'!$B$24 -> 0.40% | FZ15: ='Zoom Collecte'!$C$24 -> 1.00 | GA15: 0 | GB15: 3 | GC15: 0 | GD15: 26 | GE15: 1 | GF15: 250 | GG15: 15 | GH15: 16 | GI15: =(IF(ISERROR(IF(VLOOKUP($C15,'Indicateurs Cumulés'!$C$3:$HL$553,186,FALSE)/(VLOOKUP($C15,objectifs!$C$3:$AAB$559,158,FALSE))>=1.5,(VLOOKUP($C15,objectifs!$C$3:$AAB$559,158,FALSE))*1.5,IF(VLOOKUP($C15,'Indicateurs Cumulés'!$C$3:$HL$553,186,FALSE)/(VLOOKUP($C15,objectifs!$C$3:$AAB$559,158,FALSE))<=-0.5,(VLOOKUP($C15,objectifs!$C$3:$AAB$559,158,FALSE))*-0.5,VLOOKUP($C15,'Indicateurs Cumulés'!$C$3:$HL$553,186,FALSE)))),VLOOKUP($C15,'Indicateurs Cumulés'!$C$3:$HL$553,186,FALSE),IF(VLOOKUP($C15,'Indicateurs Cumulés'!$C$3:$HL$553,186,FALSE)/(VLOOKUP($C15,objectifs!$C$3:$AAB$559,158,FALSE))>=1.5,(VLOOKUP($C15,objectifs!$C$3:$AAB$559,158,FALSE))*1.5,IF(VLOOKUP($C15,'Indicateurs Cumulés'!$C$3:$HL$553,186,FALSE)/(VLOOKUP($C15,objectifs!$C$3:$AAB$559,158,FALSE))<=-0.5,(VLOOKUP($C15,objectifs!$C$3:$AAB$559,158,FALSE))*-0.5,VLOOKUP($C15,'Indicateurs Cumulés'!$C$3:$HL$553,186,FALSE)))))*0 -> 0 | GJ15: 1.00% | GK15: 5.33 | GL15: 0 | GM15: -7 | GN15: 0 | GO15: 0.22% | GP15: -13 | GR15: -30 | GS15: 5 | GT15: 306 | GU15: -181 | GV15: -287 | GW15: =IF(ISERROR(IF(VLOOKUP($C15,'Indicateurs Cumulés'!$C$3:$HL$553,200,FALSE)/(VLOOKUP($C15,objectifs!$C$3:$AAB$559,162,FALSE))>=1.5,(VLOOKUP($C15,objectifs!$C$3:$AAB$559,162,FALSE))*1.5,IF(VLOOKUP($C15,'Indicateurs Cumulés'!$C$3:$HL$553,200,FALSE)/(VLOOKUP($C15,objectifs!$C$3:$AAB$559,162,FALSE))<=-0.5,(VLOOKUP($C15,objectifs!$C$3:$AAB$559,162,FALSE))*-0.5,VLOOKUP($C15,'Indicateurs Cumulés'!$C$3:$HL$553,200,FALSE)))),VLOOKUP($C15,'Indicateurs Cumulés'!$C$3:$HL$553,200,FALSE),IF(VLOOKUP($C15,'Indicateurs Cumulés'!$C$3:$HL$553,200,FALSE)/(VLOOKUP($C15,objectifs!$C$3:$AAB$559,162,FALSE))>=1.5,(VLOOKUP($C15,objectifs!$C$3:$AAB$559,162,FALSE))*1.5,IF(VLOOKUP($C15,'Indicateurs Cumulés'!$C$3:$HL$553,200,FALSE)/(VLOOKUP($C15,objectifs!$C$3:$AAB$559,162,FALSE))<=-0.5,(VLOOKUP($C15,objectifs!$C$3:$AAB$559,162,FALSE))*-0.5,VLOOKUP($C15,'Indicateurs Cumulés'!$C$3:$HL$553,200,FALSE)))) -> 8 | GX15: 0 | GY15: -1 | HA15: -1 | HB15: 0 | HC15: 14 | HD15: -9 | HE15: -11 | HF15: -7 | HH15: -46 | HI15: 4 | HJ15: -1 | HK15: 0 | HL15: -1 | HM15: 6 | HN15: 5 | HO15: 0 | HP15: 1 | HQ15: 4 | HR15: 0 | HS15: -4 | HT15: 3 | HU15: -2 | HV15: -2 | HW15: 3 | HX15: -1 | HY15: 1 | HZ15: 12 | IA15: 0 | IB15: 0 | IC15: 0 | ID15: 2 | IE15: 5 | IF15: -9 | IG15: -15 | IH15: 0 | II15: 0 | IK15: 0 | IL15: -30 | IM15: 0 | IN15: -1 | IO15: 0 | IP15: 7 | IQ15: 8 | IR15: -1 | IS15: 1 | IT15: -1 | IU15: -1 | IV15: 0 | IW15: -0 | IX15: 0 | IY15: 1 | IZ15: 0 | JA15: 0 | JB15: 0 | JC15: 0 | JD15: 0 | JE15: 1 | JF15: 2 | JG15: -2 | JH15: -2 | JI15: 0 | JJ15: 0 | JK15: 0 | JL15: 0 | JM15: -15 | JN15: -2 | JO15: 0 | JP15: 0 | JQ15: 0 | JS15: 0 | JT15: 0 | JU15: -3 | JV15: 1 | JW15: -1 | JX15: 0 | JY15: 0 | JZ15: -1 | KA15: 0 | KB15: -3 | KC15: 0 | KD15: 0 | KE15: 0 | KF15: 4 | KG15: -4 | KH15: 0 | KI15: 0 | KJ15: 0 | KK15: 0 | KL15: 1 | KM15: -6 | KN15: 0 | KO15: 0 | KP15: 0 | KQ15: 1 | KR15: 0 | KS15: 0 | KT15: 0 | KU15: 0 | KV15: 0 | KW15: 0 | KX15: -3 | KY15: 2 | KZ15: 0 | LA15: -3 | LB15: 140 | LC15: 0 | LD15: 0 | LE15: 0 | LF15: 0 | LG15: -3 | LN15: 0.0 | LO15: 0.0 | LP15: 0.0 | LQ15: 0.0 | LR15: 0.0 | LS15: 0.0 | LT15: 24 | LU15: 0.0 | LV15: -205 | LW15: -23 | LX15: 0.00 | LY15: -205 | LZ15: 0.0 | MA15: -205 | MC15: 0.0
A16: 105006 | B16: 200262 | C16: 25 | D16: STRASBOURG ESPLANADE | E16: 26 | F16: STRASBOURG DANUBE | G16: 2022-06-30 | H16: 0 | I16: 0.00% | J16: 0 | K16: 2022-06-30 | L16: 0 | M16: 0.00% | N16: 0 | O16: 0 | P16: 0.00% | Q16: 0.00% | R16: 0 | S16: 0 | T16: 0 | U16: 0 | V16: 0.00% | W16: 0 | X16: 0 | Y16: 0.00% | Z16: 0.00% | AA16: 0 | AB16: 0 | AC16: 0 | AF16: 0 | AG16: 0 | AH16: 0 | AI16: 0.00% | AJ16: 0 | AK16: 0 | AL16: 0 | AM16: 0.00% | AN16: 0 | AO16: 0 | AP16: 0 | AQ16: 0.00 | AR16: 0.00% | AS16: 0.00% | AT16: 0 | AU16: 0 | AV16: 0 | AW16: 0.00% | AX16: 0 | AY16: 0 | AZ16: 0.00% | BA16: 0.00% | BB16: 0 | BC16: 0 | BD16: 0 | BE16: 0.00% | BF16: 0 | BG16: 0 | BH16: 0.00% | BI16: 0.00% | BJ16: 0 | BK16: 0 | BL16: 0 | BM16: 0 | BN16: 202206 | BO16: 0 | BP16: 0 | BQ16: 0.00% | BR16: 0 | BS16: 0 | BT16: 0% | BU16: 0 | BV16: 0.00% | BW16: 0 | BX16: 0 | BY16: 0.0% | BZ16: 0 | CA16: 0.00% | CB16: 0 | CC16: 0 | CD16: 0.00% | CE16: 0 | CF16: 0.00% | CG16: 0 | CH16: 0 | CI16: 0.0% | CJ16: 0 | CK16: 0.00% | CL16: -1 | CM16: ='Zoom Collecte'!$B$5 -> 0.87% | CN16: ='Zoom Collecte'!$C$5 -> 5.38 | CO16: -0 | CP16: 0 | CQ16: =CQ$367 -> 0.88% | CR16: 5.38 | CS16: 0 | CT16: 0 | CU16: ='Zoom Collecte'!$B$8 -> 0.93% | CV16: ='Zoom Collecte'!$C$8 -> 5.38 | CW16: 0 | CX16: 0 | CY16: ='Zoom Collecte'!$B$9 -> 0.94% | CZ16: ='Zoom Collecte'!$C$9 -> 5.38 | DA16: 0 | DB16: 0 | DC16: ='Zoom Collecte'!$B$10 -> 0.20% | DD16: ='Zoom Collecte'!$C$10 -> 5.38 | DE16: 0 | DF16: 0 | DG16: ='Zoom Collecte'!$B$11 -> 0.20% | DH16: ='Zoom Collecte'!$C$11 -> 5.38 | DI16: 0 | DJ16: 0 | DK16: ='Zoom Collecte'!$B$12 -> 0.20% | DL16: ='Zoom Collecte'!$C$12 -> 5.26 | DM16: 0 | DN16: 0 | DO16: ='Zoom Collecte'!$B$15 -> -0.02% | DP16: ='Zoom Collecte'!$C$15 -> 5.38 | DQ16: 0 | DR16: 0 | DS16: ='Zoom Collecte'!$B$13 -> 0.22% | DT16: ='Zoom Collecte'!$C$13 -> 5.69 | DU16: 0 | DV16: 0 | DW16: =DW$367 -> 0.22% | DX16: 5.69 | DY16: 0 | DZ16: 0 | EA16: ='Zoom Collecte'!$B$16 -> 0.00% | EB16: ='Zoom Collecte'!$C$16 -> 8.36 | EC16: 0 | ED16: 0 | EE16: ='Zoom Collecte'!$B$17 -> 0.00% | EF16: ='Zoom Collecte'!$C$17 -> 1.74 | EG16: 0 | EH16: 0 | EI16: ='Zoom Collecte'!$B$18 -> 0.20% | EJ16: ='Zoom Collecte'!$C$18 -> 8.00 | EK16: 0 | EL16: 0 | EM16: ='Zoom Collecte'!$B$19 -> 1.00% | EN16: ='Zoom Collecte'!$C$19 -> 5.00 | EO16: 0 | EP16: -1 | EQ16: -0 | ER16: 0 | ES16: ='Zoom Collecte'!$B$20 -> 0.54% | ET16: ='Zoom Collecte'!$C$20 -> 8.00 | EU16: 0 | EV16: 0 | EW16: =EW$367 -> 0.54% | EX16: 8.00 | EY16: 0 | EZ16: 0 | FA16: ='Zoom Collecte'!$B$23 -> 0.80% | FB16: ='Zoom Collecte'!$C$23 -> 4.00 | FC16: 0 | FD16: 0 | FE16: ='Zoom Collecte'!$B$23 -> 0.80% | FF16: ='Zoom Collecte'!$C$23 -> 4.00 | FG16: 0 | FH16: 0 | FI16: ='Zoom Collecte'!$B$25 -> 1.00% | FJ16: ='Zoom Collecte'!$C$25 -> 5.00 | FK16: 0 | FL16: 0 | FM16: 0.00% | FN16: =FN$367 -> 1.00 | FO16: 0 | FP16: 0 | FQ16: 0.00% | FR16: =FR$367 -> 1.00 | FS16: 0 | FT16: 0 | FU16: ='Zoom Collecte'!$B$24 -> 0.40% | FV16: ='Zoom Collecte'!$C$24 -> 1.00 | FW16: 0 | FX16: 0 | FY16: ='Zoom Collecte'!$B$24 -> 0.40% | FZ16: ='Zoom Collecte'!$C$24 -> 1.00 | GA16: 0 | GB16: 2 | GC16: 0 | GD16: 0 | GE16: 0 | GF16: 0 | GG16: 0 | GH16: 0 | GI16: =(IF(ISERROR(IF(VLOOKUP($C16,'Indicateurs Cumulés'!$C$3:$HL$553,186,FALSE)/(VLOOKUP($C16,objectifs!$C$3:$AAB$559,158,FALSE))>=1.5,(VLOOKUP($C16,objectifs!$C$3:$AAB$559,158,FALSE))*1.5,IF(VLOOKUP($C16,'Indicateurs Cumulés'!$C$3:$HL$553,186,FALSE)/(VLOOKUP($C16,objectifs!$C$3:$AAB$559,158,FALSE))<=-0.5,(VLOOKUP($C16,objectifs!$C$3:$AAB$559,158,FALSE))*-0.5,VLOOKUP($C16,'Indicateurs Cumulés'!$C$3:$HL$553,186,FALSE)))),VLOOKUP($C16,'Indicateurs Cumulés'!$C$3:$HL$553,186,FALSE),IF(VLOOKUP($C16,'Indicateurs Cumulés'!$C$3:$HL$553,186,FALSE)/(VLOOKUP($C16,objectifs!$C$3:$AAB$559,158,FALSE))>=1.5,(VLOOKUP($C16,objectifs!$C$3:$AAB$559,158,FALSE))*1.5,IF(VLOOKUP($C16,'Indicateurs Cumulés'!$C$3:$HL$553,186,FALSE)/(VLOOKUP($C16,objectifs!$C$3:$AAB$559,158,FALSE))<=-0.5,(VLOOKUP($C16,objectifs!$C$3:$AAB$559,158,FALSE))*-0.5,VLOOKUP($C16,'Indicateurs Cumulés'!$C$3:$HL$553,186,FALSE)))))*0 -> 0 | GJ16: =GJ$367 -> 1.00% | GK16: 5.33 | GL16: 0 | GM16: -0 | GN16: 0 | GO16: =$DW$367 -> 0.22% | GP16: 0 | GR16: 0 | GS16: 0 | GT16: 0 | GU16: 0 | GV16: 0 | GW16: =IF(ISERROR(IF(VLOOKUP($C16,'Indicateurs Cumulés'!$C$3:$HL$553,200,FALSE)/(VLOOKUP($C16,objectifs!$C$3:$AAB$559,162,FALSE))>=1.5,(VLOOKUP($C16,objectifs!$C$3:$AAB$559,162,FALSE))*1.5,IF(VLOOKUP($C16,'Indicateurs Cumulés'!$C$3:$HL$553,200,FALSE)/(VLOOKUP($C16,objectifs!$C$3:$AAB$559,162,FALSE))<=-0.5,(VLOOKUP($C16,objectifs!$C$3:$AAB$559,162,FALSE))*-0.5,VLOOKUP($C16,'Indicateurs Cumulés'!$C$3:$HL$553,200,FALSE)))),VLOOKUP($C16,'Indicateurs Cumulés'!$C$3:$HL$553,200,FALSE),IF(VLOOKUP($C16,'Indicateurs Cumulés'!$C$3:$HL$553,200,FALSE)/(VLOOKUP($C16,objectifs!$C$3:$AAB$559,162,FALSE))>=1.5,(VLOOKUP($C16,objectifs!$C$3:$AAB$559,162,FALSE))*1.5,IF(VLOOKUP($C16,'Indicateurs Cumulés'!$C$3:$HL$553,200,FALSE)/(VLOOKUP($C16,objectifs!$C$3:$AAB$559,162,FALSE))<=-0.5,(VLOOKUP($C16,objectifs!$C$3:$AAB$559,162,FALSE))*-0.5,VLOOKUP($C16,'Indicateurs Cumulés'!$C$3:$HL$553,200,FALSE)))) -> 0 | GX16: 0 | GY16: 0 | HA16: 0 | HB16: 0 | HC16: 0 | HD16: 0 | HE16: 0 | HF16: 0 | HH16: 0 | HI16: 0 | HJ16: 0 | HK16: 0 | HL16: 0 | HM16: 0 | HN16: 0 | HO16: 0 | HP16: 0 | HQ16: 0 | HR16: 0 | HS16: 0 | HT16: 0 | HU16: 0 | HV16: 0 | HW16: 0 | HX16: 0 | HY16: 0 | HZ16: 0 | IA16: 0 | IB16: 0 | IC16: 0 | ID16: 0 | IE16: 0 | IF16: 0 | IG16: 0 | IH16: 0 | II16: 0 | IK16: 0 | IL16: 0 | IM16: 0 | IN16: 0 | IO16: 0 | IP16: 0 | IQ16: 0 | IR16: 0 | IS16: 0 | IT16: 0 | IU16: 0 | IV16: 0 | IW16: 0 | IX16: 0 | IY16: 0 | IZ16: 0 | JA16: 0 | JB16: 0 | JC16: 0 | JD16: 0 | JE16: 0 | JF16: 0 | JG16: 0 | JH16: 0 | JI16: 0 | JJ16: 0 | JK16: 0 | JL16: 0 | JM16: 0 | JN16: 0 | JO16: 0 | JP16: 0 | JQ16: 0 | JS16: 0 | JT16: 0 | JU16: 0 | JV16: 0 | JW16: 0 | JX16: 0 | JY16: 0 | JZ16: 0 | KA16: 0 | KB16: 0 | KC16: 0 | KD16: 0 | KE16: 0 | KF16: 0 | KG16: 0 | KH16: 0 | KI16: 0 | KJ16: 0 | KK16: 0 | KL16: 0 | KM16: 0 | KN16: 0 | KO16: 0 | KP16: 0 | KQ16: 0 | KR16: 0 | KS16: 0 | KT16: 0 | KU16: 0 | KV16: 0 | KW16: 0 | KX16: 0 | KY16: 0 | KZ16: 0 | LA16: 0 | LB16: 0 | LC16: 0 | LD16: 0 | LE16: 0 | LF16: 0 | LG16: 0 | LN16: 0.0 | LO16: 0.0 | LP16: 0.0 | LQ16: 0.0 | LR16: 0.0 | LS16: 0.0 | LT16: 25 | LU16: 0.0 | LV16: -0 | LW16: 0 | LX16: 0.00 | LY16: -0 | LZ16: 0.0 | MA16: -0 | MC16: 0.0
A17: 105006 | B17: 200262 | C17: 26 | D17: STRASBOURG DANUBE | E17: 26 | F17: STRASBOURG DANUBE | G17: 2022-06-30 | H17: 113 | I17: 4.32% | J17: 1.58 | K17: 2022-06-30 | L17: 1,716 | M17: 1.92% | N17: 2.88 | O17: 95 | P17: 97.91% | Q17: 122.86% | R17: 27 | S17: 2 | T17: 131 | U17: 3,130 | V17: -0.81% | W17: 8.63 | X17: -218 | Y17: 83.85% | Z17: 124.35% | AA17: 59 | AB17: 9 | AC17: 6.5 | AF17: -10 | AG17: -154 | AH17: 37 | AI17: -4.39% | AJ17: 3.05 | AK17: -5 | AL17: 0 | AM17: 0.00% | AN17: 0 | AO17: 0 | AP17: 0.2 | AQ17: 0.00 | AR17: 0.00% | AS17: 0.00% | AT17: 1 | AU17: -4 | AV17: 115 | AW17: 1.40% | AX17: 2.11 | AY17: 0 | AZ17: 100.00% | BA17: 113.04% | BB17: 1 | BC17: 5 | BD17: 287 | BE17: -1.25% | BF17: 9.01 | BG17: 1 | BH17: 99.51% | BI17: 100.00% | BJ17: 7 | BK17: 1 | BL17: -24 | BM17: -26 | BN17: 202206 | BO17: 0 | BP17: 0 | BQ17: 0.00% | BR17: 177.63 | BS17: 19.60 | BT17: 11% | BU17: 1.98 | BV17: 1.12% | BW17: 1,559.29 | BX17: 341.25 | BY17: 21.9% | BZ17: 0.83 | CA17: 0.05% | CB17: 68.83 | CC17: 2.70 | CD17: 3.92% | CE17: 0.65 | CF17: 0.95% | CG17: 1,805.76 | CH17: 363.55 | CI17: 20.1% | CJ17: 3.46 | CK17: 0.19% | CL17: 387 | CM17: ='Zoom Collecte'!$B$5 -> 0.87% | CN17: ='Zoom Collecte'!$C$5 -> 5.38 | CO17: 18 | CP17: 1,034 | CQ17: =CQ$367 -> 0.88% | CR17: 5.38 | CS17: 49 | CT17: 27 | CU17: ='Zoom Collecte'!$B$8 -> 0.93% | CV17: ='Zoom Collecte'!$C$8 -> 5.38 | CW17: 1 | CX17: -51 | CY17: ='Zoom Collecte'!$B$9 -> 0.94% | CZ17: ='Zoom Collecte'!$C$9 -> 5.38 | DA17: -3 | DB17: 16 | DC17: ='Zoom Collecte'!$B$10 -> 0.20% | DD17: ='Zoom Collecte'!$C$10 -> 5.38 | DE17: 0 | DF17: 261 | DG17: ='Zoom Collecte'!$B$11 -> 0.20% | DH17: ='Zoom Collecte'!$C$11 -> 5.38 | DI17: 3 | DJ17: -9 | DK17: ='Zoom Collecte'!$B$12 -> 0.20% | DL17: ='Zoom Collecte'!$C$12 -> 5.26 | DM17: -0 | DN17: 162 | DO17: ='Zoom Collecte'!$B$15 -> -0.02% | DP17: ='Zoom Collecte'!$C$15 -> 5.38 | DQ17: -0 | DR17: -7 | DS17: ='Zoom Collecte'!$B$13 -> 0.22% | DT17: ='Zoom Collecte'!$C$13 -> 5.69 | DU17: -0 | DV17: -108 | DW17: =DW$367 -> 0.22% | DX17: 5.69 | DY17: -1 | DZ17: -1,167 | EA17: ='Zoom Collecte'!$B$16 -> 0.00% | EB17: ='Zoom Collecte'!$C$16 -> 8.36 | EC17: 0 | ED17: 0 | EE17: ='Zoom Collecte'!$B$17 -> 0.00% | EF17: ='Zoom Collecte'!$C$17 -> 1.74 | EG17: 0 | EH17: -10 | EI17: ='Zoom Collecte'!$B$18 -> 0.20% | EJ17: ='Zoom Collecte'!$C$18 -> 8.00 | EK17: -0 | EL17: -187 | EM17: ='Zoom Collecte'!$B$19 -> 1.00% | EN17: ='Zoom Collecte'!$C$19 -> 5.00 | EO17: -9 | EP17: 223 | EQ17: 52 | ER17: 188 | ES17: ='Zoom Collecte'!$B$20 -> 0.54% | ET17: ='Zoom Collecte'!$C$20 -> 8.00 | EU17: 8 | EV17: -3 | EW17: =EW$367 -> 0.54% | EX17: 8.00 | EY17: -0 | EZ17: -54 | FA17: ='Zoom Collecte'!$B$23 -> 0.80% | FB17: ='Zoom Collecte'!$C$23 -> 4.00 | FC17: -2 | FD17: 0 | FE17: ='Zoom Collecte'!$B$23 -> 0.80% | FF17: ='Zoom Collecte'!$C$23 -> 4.00 | FG17: 0 | FH17: 373 | FI17: ='Zoom Collecte'!$B$25 -> 1.00% | FJ17: ='Zoom Collecte'!$C$25 -> 5.00 | FK17: 19 | FL17: 1,636 | FM17: 0.19% | FN17: =FN$367 -> 1.00 | FO17: 3 | FP17: 1 | FQ17: 0.19% | FR17: =FR$367 -> 1.00 | FS17: 0 | FT17: 69 | FU17: ='Zoom Collecte'!$B$24 -> 0.40% | FV17: ='Zoom Collecte'!$C$24 -> 1.00 | FW17: 0 | FX17: 0 | FY17: ='Zoom Collecte'!$B$24 -> 0.40% | FZ17: ='Zoom Collecte'!$C$24 -> 1.00 | GA17: 0 | GB17: 92 | GC17: 2 | GD17: 109 | GE17: 3 | GF17: 505 | GG17: 33 | GH17: 939 | GI17: =(IF(ISERROR(IF(VLOOKUP($C17,'Indicateurs Cumulés'!$C$3:$HL$553,186,FALSE)/(VLOOKUP($C17,objectifs!$C$3:$AAB$559,158,FALSE))>=1.5,(VLOOKUP($C17,objectifs!$C$3:$AAB$559,158,FALSE))*1.5,IF(VLOOKUP($C17,'Indicateurs Cumulés'!$C$3:$HL$553,186,FALSE)/(VLOOKUP($C17,objectifs!$C$3:$AAB$559,158,FALSE))<=-0.5,(VLOOKUP($C17,objectifs!$C$3:$AAB$559,158,FALSE))*-0.5,VLOOKUP($C17,'Indicateurs Cumulés'!$C$3:$HL$553,186,FALSE)))),VLOOKUP($C17,'Indicateurs Cumulés'!$C$3:$HL$553,186,FALSE),IF(VLOOKUP($C17,'Indicateurs Cumulés'!$C$3:$HL$553,186,FALSE)/(VLOOKUP($C17,objectifs!$C$3:$AAB$559,158,FALSE))>=1.5,(VLOOKUP($C17,objectifs!$C$3:$AAB$559,158,FALSE))*1.5,IF(VLOOKUP($C17,'Indicateurs Cumulés'!$C$3:$HL$553,186,FALSE)/(VLOOKUP($C17,objectifs!$C$3:$AAB$559,158,FALSE))<=-0.5,(VLOOKUP($C17,objectifs!$C$3:$AAB$559,158,FALSE))*-0.5,VLOOKUP($C17,'Indicateurs Cumulés'!$C$3:$HL$553,186,FALSE)))))*0 -> 0 | GJ17: =GJ$367 -> 1.00% | GK17: 5.33 | GL17: 25 | GM17: 110 | GN17: -1 | GO17: =$DW$367 -> 0.22% | GP17: 0 | GR17: -8 | GS17: 12 | GT17: -125 | GU17: -21 | GV17: -143 | GW17: =IF(ISERROR(IF(VLOOKUP($C17,'Indicateurs Cumulés'!$C$3:$HL$553,200,FALSE)/(VLOOKUP($C17,objectifs!$C$3:$AAB$559,162,FALSE))>=1.5,(VLOOKUP($C17,objectifs!$C$3:$AAB$559,162,FALSE))*1.5,IF(VLOOKUP($C17,'Indicateurs Cumulés'!$C$3:$HL$553,200,FALSE)/(VLOOKUP($C17,objectifs!$C$3:$AAB$559,162,FALSE))<=-0.5,(VLOOKUP($C17,objectifs!$C$3:$AAB$559,162,FALSE))*-0.5,VLOOKUP($C17,'Indicateurs Cumulés'!$C$3:$HL$553,200,FALSE)))),VLOOKUP($C17,'Indicateurs Cumulés'!$C$3:$HL$553,200,FALSE),IF(VLOOKUP($C17,'Indicateurs Cumulés'!$C$3:$HL$553,200,FALSE)/(VLOOKUP($C17,objectifs!$C$3:$AAB$559,162,FALSE))>=1.5,(VLOOKUP($C17,objectifs!$C$3:$AAB$559,162,FALSE))*1.5,IF(VLOOKUP($C17,'Indicateurs Cumulés'!$C$3:$HL$553,200,FALSE)/(VLOOKUP($C17,objectifs!$C$3:$AAB$559,162,FALSE))<=-0.5,(VLOOKUP($C17,objectifs!$C$3:$AAB$559,162,FALSE))*-0.5,VLOOKUP($C17,'Indicateurs Cumulés'!$C$3:$HL$553,200,FALSE)))) -> -3 | GX17: -0 | GY17: 0 | HA17: -0 | HB17: 0 | HC17: -6 | HD17: -1 | HE17: -6 | HF17: -13 | HH17: -127 | HI17: 8 | HJ17: -5 | HK17: -2 | HL17: -3 | HM17: 86 | HN17: 2 | HO17: 0 | HP17: 8 | HQ17: 6 | HR17: 0 | HS17: 8 | HT17: 20 | HU17: -6 | HV17: 8 | HW17: -7 | HX17: -5 | HY17: 5 | HZ17: 20 | IA17: 2 | IB17: 0 | IC17: 0 | ID17: 2 | IE17: 3 | IF17: 21 | IG17: -48 | IH17: -1 | II17: 0 | IK17: 0 | IL17: -82 | IM17: 0 | IN17: -3 | IO17: -2 | IP17: 18 | IQ17: 46 | IR17: 2 | IS17: 5 | IT17: -3 | IU17: 2 | IV17: -1 | IW17: -0 | IX17: 0 | IY17: 2 | IZ17: 1 | JA17: 0 | JB17: 0 | JC17: 0 | JD17: 0 | JE17: 1 | JF17: 1 | JG17: 4 | JH17: -7 | JI17: -0 | JJ17: 0 | JK17: 0 | JL17: 0 | JM17: -12 | JN17: -7 | JO17: 0 | JP17: 2 | JQ17: -2 | JS17: 1 | JT17: 1 | JU17: 1 | JV17: 3 | JW17: -5 | JX17: 3 | JY17: -1 | JZ17: 0 | KA17: 0 | KB17: -2 | KC17: -2 | KD17: 0 | KE17: -2 | KF17: -2 | KG17: 1 | KH17: 0 | KI17: 0 | KJ17: 0 | KK17: 0 | KL17: 0 | KM17: -1 | KN17: 0 | KO17: 0 | KP17: -1 | KQ17: -0 | KR17: 0 | KS17: 0 | KT17: 0 | KU17: 0 | KV17: 0 | KW17: 0 | KX17: -1 | KY17: 3 | KZ17: 1 | LA17: -8 | LB17: 237 | LC17: 0 | LD17: 0 | LE17: 0 | LF17: 0 | LG17: -8 | LN17: 0.0 | LO17: 0.0 | LP17: 0.0 | LQ17: 0.0 | LR17: 0.0 | LS17: 0.0 | LT17: 26 | LU17: 0.0 | LV17: 63 | LW17: -38 | LX17: 0.00 | LY17: 63 | LZ17: 0.0 | MA17: 63 | MC17: 0.0
A18: 105006 | B18: 200262 | C18: 27 | D18: SCHILTIGHEIM CENTRE | E18: 27 | F18: SCHILTIGHEIM CENTRE | G18: 2022-06-30 | H18: 116 | I18: 4.32% | J18: 1.58 | K18: 2022-06-30 | L18: 1,763 | M18: 2.26% | N18: 2.90 | O18: 116 | P18: 97.83% | Q18: 120.37% | R18: 28 | S18: 3 | T18: 154 | U18: 6,534 | V18: -0.63% | W18: 8.02 | X18: -331 | Y18: 51.85% | Z18: 139.33% | AA18: 96 | AB18: 13 | AC18: 11.5 | AF18: -13 | AG18: -222 | AH18: 692 | AI18: -0.81% | AJ18: 5.21 | AK18: -29 | AL18: 0 | AM18: 0.00% | AN18: 0 | AO18: 0 | AP18: 4.6 | AQ18: 0.00 | AR18: 0.00% | AS18: 0.00% | AT18: 3 | AU18: -22 | AV18: 96 | AW18: 2.44% | AX18: 2.61 | AY18: 0 | AZ18: 80.77% | BA18: 100.00% | BB18: 1 | BC18: 7 | BD18: 748 | BE18: -0.72% | BF18: 6.05 | BG18: 1 | BH18: 143.96% | BI18: 100.00% | BJ18: 22 | BK18: 1 | BL18: -7 | BM18: -90 | BN18: 202206 | BO18: 4.50 | BP18: 0.07 | BQ18: 1.50% | BR18: 148.57 | BS18: 36.50 | BT18: 25% | BU18: 0.93 | BV18: 0.63% | BW18: 1,873.16 | BX18: 191.44 | BY18: 10.2% | BZ18: 1.03 | CA18: 0.06% | CB18: 80.23 | CC18: 12.43 | CD18: 15.50% | CE18: 0.36 | CF18: 0.45% | CG18: 2,106.47 | CH18: 240.38 | CI18: 11.4% | CJ18: 2.39 | CK18: 0.11% | CL18: 45 | CM18: ='Zoom Collecte'!$B$5 -> 0.87% | CN18: ='Zoom Collecte'!$C$5 -> 5.38 | CO18: 2 | CP18: 1,263 | CQ18: 0.88% | CR18: 5.38 | CS18: 60 | CT18: -4 | CU18: ='Zoom Collecte'!$B$8 -> 0.93% | CV18: ='Zoom Collecte'!$C$8 -> 5.38 | CW18: -0 | CX18: -75 | CY18: ='Zoom Collecte'!$B$9 -> 0.94% | CZ18: ='Zoom Collecte'!$C$9 -> 5.38 | DA18: -4 | DB18: 82 | DC18: ='Zoom Collecte'!$B$10 -> 0.20% | DD18: ='Zoom Collecte'!$C$10 -> 5.38 | DE18: 1 | DF18: 294 | DG18: ='Zoom Collecte'!$B$11 -> 0.20% | DH18: ='Zoom Collecte'!$C$11 -> 5.38 | DI18: 3 | DJ18: -21 | DK18: ='Zoom Collecte'!$B$12 -> 0.20% | DL18: ='Zoom Collecte'!$C$12 -> 5.26 | DM18: -0 | DN18: 1 | DO18: ='Zoom Collecte'!$B$15 -> -0.02% | DP18: ='Zoom Collecte'!$C$15 -> 5.38 | DQ18: -0 | DR18: -8 | DS18: ='Zoom Collecte'!$B$13 -> 0.22% | DT18: ='Zoom Collecte'!$C$13 -> 5.69 | DU18: -0 | DV18: -103 | DW18: 0.22% | DX18: 5.69 | DY18: -1 | DZ18: -475 | EA18: ='Zoom Collecte'!$B$16 -> 0.00% | EB18: ='Zoom Collecte'!$C$16 -> 8.36 | EC18: 0 | ED18: 0 | EE18: ='Zoom Collecte'!$B$17 -> 0.00% | EF18: ='Zoom Collecte'!$C$17 -> 1.74 | EG18: 0 | EH18: 0 | EI18: ='Zoom Collecte'!$B$18 -> 0.20% | EJ18: ='Zoom Collecte'!$C$18 -> 8.00 | EK18: 0 | EL18: 70 | EM18: ='Zoom Collecte'!$B$19 -> 1.00% | EN18: ='Zoom Collecte'!$C$19 -> 5.00 | EO18: 4 | EP18: 1,222 | EQ18: 71 | ER18: 568 | ES18: ='Zoom Collecte'!$B$20 -> 0.54% | ET18: ='Zoom Collecte'!$C$20 -> 8.00 | EU18: 25 | EV18: 0 | EW18: 0.54% | EX18: 8.00 | EY18: 0 | EZ18: -51 | FA18: ='Zoom Collecte'!$B$23 -> 0.80% | FB18: ='Zoom Collecte'!$C$23 -> 4.00 | FC18: -2 | FD18: 0 | FE18: ='Zoom Collecte'!$B$23 -> 0.80% | FF18: ='Zoom Collecte'!$C$23 -> 4.00 | FG18: 0 | FH18: -595 | FI18: ='Zoom Collecte'!$B$25 -> 1.00% | FJ18: ='Zoom Collecte'!$C$25 -> 5.00 | FK18: -30 | FL18: 1,900 | FM18: 0.11% | FN18: 1.00 | FO18: 2 | FP18: 0 | FQ18: 0.11% | FR18: 1.00 | FS18: 0 | FT18: 3 | FU18: ='Zoom Collecte'!$B$24 -> 0.40% | FV18: ='Zoom Collecte'!$C$24 -> 1.00 | FW18: 0 | FX18: 0 | FY18: ='Zoom Collecte'!$B$24 -> 0.40% | FZ18: ='Zoom Collecte'!$C$24 -> 1.00 | GA18: 0 | GB18: 206 | GC18: 5 | GD18: 167 | GE18: 4 | GF18: -78 | GG18: 5 | GH18: 3,430 | GI18: =(IF(ISERROR(IF(VLOOKUP($C18,'Indicateurs Cumulés'!$C$3:$HL$553,186,FALSE)/(VLOOKUP($C18,objectifs!$C$3:$AAB$559,158,FALSE))>=1.5,(VLOOKUP($C18,objectifs!$C$3:$AAB$559,158,FALSE))*1.5,IF(VLOOKUP($C18,'Indicateurs Cumulés'!$C$3:$HL$553,186,FALSE)/(VLOOKUP($C18,objectifs!$C$3:$AAB$559,158,FALSE))<=-0.5,(VLOOKUP($C18,objectifs!$C$3:$AAB$559,158,FALSE))*-0.5,VLOOKUP($C18,'Indicateurs Cumulés'!$C$3:$HL$553,186,FALSE)))),VLOOKUP($C18,'Indicateurs Cumulés'!$C$3:$HL$553,186,FALSE),IF(VLOOKUP($C18,'Indicateurs Cumulés'!$C$3:$HL$553,186,FALSE)/(VLOOKUP($C18,objectifs!$C$3:$AAB$559,158,FALSE))>=1.5,(VLOOKUP($C18,objectifs!$C$3:$AAB$559,158,FALSE))*1.5,IF(VLOOKUP($C18,'Indicateurs Cumulés'!$C$3:$HL$553,186,FALSE)/(VLOOKUP($C18,objectifs!$C$3:$AAB$559,158,FALSE))<=-0.5,(VLOOKUP($C18,objectifs!$C$3:$AAB$559,158,FALSE))*-0.5,VLOOKUP($C18,'Indicateurs Cumulés'!$C$3:$HL$553,186,FALSE)))))*0 -> 0 | GJ18: 1.00% | GK18: 5.33 | GL18: 91 | GM18: 167 | GN18: -7 | GO18: 0.22% | GP18: -2 | GR18: 56 | GS18: -57 | GT18: 153 | GU18: -40 | GV18: 976 | GW18: =IF(ISERROR(IF(VLOOKUP($C18,'Indicateurs Cumulés'!$C$3:$HL$553,200,FALSE)/(VLOOKUP($C18,objectifs!$C$3:$AAB$559,162,FALSE))>=1.5,(VLOOKUP($C18,objectifs!$C$3:$AAB$559,162,FALSE))*1.5,IF(VLOOKUP($C18,'Indicateurs Cumulés'!$C$3:$HL$553,200,FALSE)/(VLOOKUP($C18,objectifs!$C$3:$AAB$559,162,FALSE))<=-0.5,(VLOOKUP($C18,objectifs!$C$3:$AAB$559,162,FALSE))*-0.5,VLOOKUP($C18,'Indicateurs Cumulés'!$C$3:$HL$553,200,FALSE)))),VLOOKUP($C18,'Indicateurs Cumulés'!$C$3:$HL$553,200,FALSE),IF(VLOOKUP($C18,'Indicateurs Cumulés'!$C$3:$HL$553,200,FALSE)/(VLOOKUP($C18,objectifs!$C$3:$AAB$559,162,FALSE))>=1.5,(VLOOKUP($C18,objectifs!$C$3:$AAB$559,162,FALSE))*1.5,IF(VLOOKUP($C18,'Indicateurs Cumulés'!$C$3:$HL$553,200,FALSE)/(VLOOKUP($C18,objectifs!$C$3:$AAB$559,162,FALSE))<=-0.5,(VLOOKUP($C18,objectifs!$C$3:$AAB$559,162,FALSE))*-0.5,VLOOKUP($C18,'Indicateurs Cumulés'!$C$3:$HL$553,200,FALSE)))) -> 8 | GX18: -0 | GY18: -0 | HA18: 2 | HB18: 0 | HC18: 7 | HD18: -2 | HE18: 39 | HF18: 47 | HH18: -98 | HI18: 1 | HJ18: 0 | HK18: -1 | HL18: 15 | HM18: 92 | HN18: 7 | HO18: 0 | HP18: 13 | HQ18: 6 | HR18: 0 | HS18: -1 | HT18: 12 | HU18: 7 | HV18: 22 | HW18: 3 | HX18: -7 | HY18: 10 | HZ18: 44 | IA18: 0 | IB18: 0 | IC18: 3 | ID18: 1 | IE18: 35 | IF18: 67 | IG18: -35 | IH18: 0 | II18: 0 | IK18: 0 | IL18: -63 | IM18: 0 | IN18: 0 | IO18: -1 | IP18: 23 | IQ18: 60 | IR18: -0 | IS18: 3 | IT18: 3 | IU18: 6 | IV18: 0 | IW18: -0 | IX18: 1 | IY18: 5 | IZ18: 0 | JA18: 0 | JB18: 0 | JC18: 0 | JD18: 2 | JE18: 1 | JF18: 17 | JG18: 14 | JH18: -5 | JI18: 0 | JJ18: 0 | JK18: 0 | JL18: 0 | JM18: 66 | JN18: -3 | JO18: 0 | JP18: 1 | JQ18: 5 | JS18: 0 | JT18: 0 | JU18: 3 | JV18: -5 | JW18: -2 | JX18: 0 | JY18: 5 | JZ18: 1 | KA18: -1 | KB18: 4 | KC18: 7 | KD18: 0 | KE18: -1 | KF18: 1 | KG18: 4 | KH18: 0 | KI18: 2 | KJ18: 4 | KK18: 0 | KL18: 6 | KM18: -2 | KN18: 0 | KO18: 0 | KP18: -1 | KQ18: 0 | KR18: 0 | KS18: 0 | KT18: 1 | KU18: 1 | KV18: 0 | KW18: 2 | KX18: -1 | KY18: 25 | KZ18: 28 | LA18: -7 | LB18: 315 | LC18: 0 | LD18: 0 | LE18: 1 | LF18: 8 | LG18: 2 | LN18: 0.0 | LO18: 0.0 | LP18: 0.0 | LQ18: 0.0 | LR18: 0.0 | LS18: 0.0 | LT18: 27 | LU18: 0.0 | LV18: 177 | LW18: 57 | LX18: 0.00 | LY18: 177 | LZ18: 0.0 | MA18: 177 | MC18: 9.1
A19: 105006 | B19: 200262 | C19: 28 | D19: BISCHHEIM | E19: 28 | F19: BISCHHEIM | G19: 2022-06-30 | H19: 90 | I19: 4.32% | J19: 1.58 | K19: 2022-06-30 | L19: 1,199 | M19: 2.30% | N19: 2.84 | O19: 78 | P19: 92.99% | Q19: 109.27% | R19: 17 | S19: 1 | T19: 103 | U19: 3,905 | V19: -0.48% | W19: 6.98 | X19: -131 | Y19: 98.42% | Z19: 174.73% | AA19: 99 | AB19: 8 | AC19: 6.1 | AF19: -8 | AG19: -26 | AH19: -4 | AI19: 1.37% | AJ19: 2.38 | AK19: -0 | AL19: 0 | AM19: 0.00% | AN19: 0 | AO19: 0 | AP19: 0 | AQ19: 0.00 | AR19: 0.00% | AS19: 0.00% | AT19: 0 | AU19: -0 | AV19: 81 | AW19: 1.99% | AX19: 2.17 | AY19: 0 | AZ19: 100.00% | BA19: 100.00% | BB19: 1 | BC19: 4 | BD19: 58 | BE19: -1.04% | BF19: 6.16 | BG19: 1 | BH19: 0.00% | BI19: 0.00% | BJ19: 0 | BK19: 0 | BL19: -3 | BM19: 76 | BN19: 202206 | BO19: 141.87 | BP19: 0 | BQ19: 0.00% | BR19: 586.81 | BS19: 176.38 | BT19: 30% | BU19: 1.16 | BV19: 0.20% | BW19: 1,901.76 | BX19: 114.44 | BY19: 6.0% | BZ19: 0.26 | CA19: 0.01% | CB19: 52.34 | CC19: 3.05 | CD19: 5.83% | CE19: 0.41 | CF19: 0.78% | CG19: 2,682.77 | CH19: 293.87 | CI19: 11.0% | CJ19: 1.83 | CK19: 0.07% | CL19: -200 | CM19: ='Zoom Collecte'!$B$5 -> 0.87% | CN19: ='Zoom Collecte'!$C$5 -> 5.38 | CO19: -9 | CP19: 630 | CQ19: 0.88% | CR19: 5.38 | CS19: 30 | CT19: -13 | CU19: ='Zoom Collecte'!$B$8 -> 0.93% | CV19: ='Zoom Collecte'!$C$8 -> 5.38 | CW19: -1 | CX19: 18 | CY19: ='Zoom Collecte'!$B$9 -> 0.94% | CZ19: ='Zoom Collecte'!$C$9 -> 5.38 | DA19: 1 | DB19: 177 | DC19: ='Zoom Collecte'!$B$10 -> 0.20% | DD19: ='Zoom Collecte'!$C$10 -> 5.38 | DE19: 2 | DF19: 173 | DG19: ='Zoom Collecte'!$B$11 -> 0.20% | DH19: ='Zoom Collecte'!$C$11 -> 5.38 | DI19: 2 | DJ19: -7 | DK19: ='Zoom Collecte'!$B$12 -> 0.20% | DL19: ='Zoom Collecte'!$C$12 -> 5.26 | DM19: -0 | DN19: 52 | DO19: ='Zoom Collecte'!$B$15 -> -0.02% | DP19: ='Zoom Collecte'!$C$15 -> 5.38 | DQ19: -0 | DR19: -5 | DS19: ='Zoom Collecte'!$B$13 -> 0.22% | DT19: ='Zoom Collecte'!$C$13 -> 5.69 | DU19: -0 | DV19: -54 | DW19: 0.22% | DX19: 5.69 | DY19: -1 | DZ19: -417 | EA19: ='Zoom Collecte'!$B$16 -> 0.00% | EB19: ='Zoom Collecte'!$C$16 -> 8.36 | EC19: 0 | ED19: 0 | EE19: ='Zoom Collecte'!$B$17 -> 0.00% | EF19: ='Zoom Collecte'!$C$17 -> 1.74 | EG19: 0 | EH19: 0 | EI19: ='Zoom Collecte'!$B$18 -> 0.20% | EJ19: ='Zoom Collecte'!$C$18 -> 8.00 | EK19: 0 | EL19: -86 | EM19: ='Zoom Collecte'!$B$19 -> 1.00% | EN19: ='Zoom Collecte'!$C$19 -> 5.00 | EO19: -4 | EP19: 479 | EQ19: 29 | ER19: -65 | ES19: ='Zoom Collecte'!$B$20 -> 0.54% | ET19: ='Zoom Collecte'!$C$20 -> 8.00 | EU19: -3 | EV19: 0 | EW19: 0.54% | EX19: 8.00 | EY19: 0 | EZ19: -80 | FA19: ='Zoom Collecte'!$B$23 -> 0.80% | FB19: ='Zoom Collecte'!$C$23 -> 4.00 | FC19: -3 | FD19: 0 | FE19: ='Zoom Collecte'!$B$23 -> 0.80% | FF19: ='Zoom Collecte'!$C$23 -> 4.00 | FG19: 0 | FH19: 11 | FI19: ='Zoom Collecte'!$B$25 -> 1.00% | FJ19: ='Zoom Collecte'!$C$25 -> 5.00 | FK19: 1 | FL19: 2,525 | FM19: 0.07% | FN19: 1.00 | FO19: 2 | FP19: 0 | FQ19: 0.07% | FR19: 1.00 | FS19: 0 | FT19: 21 | FU19: ='Zoom Collecte'!$B$24 -> 0.40% | FV19: ='Zoom Collecte'!$C$24 -> 1.00 | FW19: 0 | FX19: 0 | FY19: ='Zoom Collecte'!$B$24 -> 0.40% | FZ19: ='Zoom Collecte'!$C$24 -> 1.00 | GA19: 0 | GB19: 234 | GC19: 6 | GD19: 98 | GE19: 2 | GF19: -134 | GG19: 5 | GH19: 187 | GI19: =(IF(ISERROR(IF(VLOOKUP($C19,'Indicateurs Cumulés'!$C$3:$HL$553,186,FALSE)/(VLOOKUP($C19,objectifs!$C$3:$AAB$559,158,FALSE))>=1.5,(VLOOKUP($C19,objectifs!$C$3:$AAB$559,158,FALSE))*1.5,IF(VLOOKUP($C19,'Indicateurs Cumulés'!$C$3:$HL$553,186,FALSE)/(VLOOKUP($C19,objectifs!$C$3:$AAB$559,158,FALSE))<=-0.5,(VLOOKUP($C19,objectifs!$C$3:$AAB$559,158,FALSE))*-0.5,VLOOKUP($C19,'Indicateurs Cumulés'!$C$3:$HL$553,186,FALSE)))),VLOOKUP($C19,'Indicateurs Cumulés'!$C$3:$HL$553,186,FALSE),IF(VLOOKUP($C19,'Indicateurs Cumulés'!$C$3:$HL$553,186,FALSE)/(VLOOKUP($C19,objectifs!$C$3:$AAB$559,158,FALSE))>=1.5,(VLOOKUP($C19,objectifs!$C$3:$AAB$559,158,FALSE))*1.5,IF(VLOOKUP($C19,'Indicateurs Cumulés'!$C$3:$HL$553,186,FALSE)/(VLOOKUP($C19,objectifs!$C$3:$AAB$559,158,FALSE))<=-0.5,(VLOOKUP($C19,objectifs!$C$3:$AAB$559,158,FALSE))*-0.5,VLOOKUP($C19,'Indicateurs Cumulés'!$C$3:$HL$553,186,FALSE)))))*0 -> 0 | GJ19: 1.00% | GK19: 5.33 | GL19: 5 | GM19: 40 | GN19: -0 | GO19: 0.22% | GP19: -0 | GR19: 3 | GS19: 4 | GT19: 212 | GU19: 70 | GV19: -12 | GW19: =IF(ISERROR(IF(VLOOKUP($C19,'Indicateurs Cumulés'!$C$3:$HL$553,200,FALSE)/(VLOOKUP($C19,objectifs!$C$3:$AAB$559,162,FALSE))>=1.5,(VLOOKUP($C19,objectifs!$C$3:$AAB$559,162,FALSE))*1.5,IF(VLOOKUP($C19,'Indicateurs Cumulés'!$C$3:$HL$553,200,FALSE)/(VLOOKUP($C19,objectifs!$C$3:$AAB$559,162,FALSE))<=-0.5,(VLOOKUP($C19,objectifs!$C$3:$AAB$559,162,FALSE))*-0.5,VLOOKUP($C19,'Indicateurs Cumulés'!$C$3:$HL$553,200,FALSE)))),VLOOKUP($C19,'Indicateurs Cumulés'!$C$3:$HL$553,200,FALSE),IF(VLOOKUP($C19,'Indicateurs Cumulés'!$C$3:$HL$553,200,FALSE)/(VLOOKUP($C19,objectifs!$C$3:$AAB$559,162,FALSE))>=1.5,(VLOOKUP($C19,objectifs!$C$3:$AAB$559,162,FALSE))*1.5,IF(VLOOKUP($C19,'Indicateurs Cumulés'!$C$3:$HL$553,200,FALSE)/(VLOOKUP($C19,objectifs!$C$3:$AAB$559,162,FALSE))<=-0.5,(VLOOKUP($C19,objectifs!$C$3:$AAB$559,162,FALSE))*-0.5,VLOOKUP($C19,'Indicateurs Cumulés'!$C$3:$HL$553,200,FALSE)))) -> 8 | GX19: -0 | GY19: -0 | HA19: 0 | HB19: 0 | HC19: 10 | HD19: 3 | HE19: -0 | HF19: 13 | HH19: -39 | HI19: 0 | HJ19: -1 | HK19: 0 | HL19: 29 | HM19: 25 | HN19: 0 | HO19: 0 | HP19: 2 | HQ19: 1 | HR19: 0 | HS19: 7 | HT19: 12 | HU19: 2 | HV19: 9 | HW19: -4 | HX19: -7 | HY19: 3 | HZ19: 30 | IA19: -1 | IB19: 0 | IC19: 0 | ID19: 0 | IE19: 15 | IF19: 45 | IG19: -40 | IH19: 0 | II19: 0 | IK19: 0 | IL19: -25 | IM19: 0 | IN19: -1 | IO19: 0 | IP19: 4 | IQ19: 22 | IR19: 2 | IS19: 3 | IT19: 1 | IU19: 3 | IV19: -1 | IW19: -0 | IX19: 0 | IY19: 3 | IZ19: -0 | JA19: 0 | JB19: 0 | JC19: 0 | JD19: 0 | JE19: 0 | JF19: 7 | JG19: 9 | JH19: -5 | JI19: 0 | JJ19: 0 | JK19: 0 | JL19: 0 | JM19: 23 | JN19: -1 | JO19: 2 | JP19: 1 | JQ19: 0 | JS19: 0 | JT19: 0 | JU19: 3 | JV19: 4 | JW19: -1 | JX19: 0 | JY19: 1 | JZ19: 1 | KA19: 0 | KB19: 2 | KC19: -1 | KD19: 0 | KE19: -1 | KF19: -1 | KG19: -1 | KH19: 0 | KI19: 3 | KJ19: 0 | KK19: 0 | KL19: 0 | KM19: 4 | KN19: 0 | KO19: 0 | KP19: -1 | KQ19: -0 | KR19: 0 | KS19: 0 | KT19: 2 | KU19: 0 | KV19: 0 | KW19: 0 | KX19: 2 | KY19: 6 | KZ19: 9 | LA19: -5 | LB19: 204 | LC19: 0 | LD19: 0 | LE19: 0 | LF19: 0 | LG19: -5 | LN19: 0.0 | LO19: 0.0 | LP19: 0.0 | LQ19: 0.0 | LR19: 0.0 | LS19: 0.0 | LT19: 28 | LU19: 0.0 | LV19: 145 | LW19: 26 | LX19: 0.00 | LY19: 145 | LZ19: 0.0 | MA19: 145 | MC19: 0.0
A20: 105006 | B20: 200262 | C20: 29 | D20: SCHILTIGHEIM KLEBER | E20: 29 | F20: SCHILTIGHEIM KLEBER | G20: 2022-06-30 | H20: 55 | I20: 4.32% | J20: 1.58 | K20: 2022-06-30 | L20: 175 | M20: 3.05% | N20: 2.85 | O20: 15 | P20: 96.70% | Q20: 137.48% | R20: 8 | S20: 1 | T20: 28 | U20: 494 | V20: -0.00% | W20: 6.95 | X20: -0 | Y20: 100.00% | Z20: 138.09% | AA20: 40 | AB20: 3 | AC20: 0.1 | AF20: -4 | AG20: 39 | AH20: 539 | AI20: -0.39% | AJ20: 6.16 | AK20: -13 | AL20: 0 | AM20: 0.00% | AN20: 0 | AO20: 0 | AP20: 3.5 | AQ20: 0.00 | AR20: 0.00% | AS20: 0.00% | AT20: 0 | AU20: -9 | AV20: 0 | AW20: 0.00% | AX20: 0 | AY20: 0 | AZ20: 0.00% | BA20: 0.00% | BB20: 0 | BC20: 0 | BD20: -6 | BE20: 0.67% | BF20: 2.78 | BG20: 0 | BH20: 0.00% | BI20: 0.00% | BJ20: -0 | BK20: -1 | BL20: -1 | BM20: 57 | BN20: 202206 | BO20: 0 | BP20: 0 | BQ20: 0.00% | BR20: 48.77 | BS20: 3.15 | BT20: 6% | BU20: 0.54 | BV20: 1.12% | BW20: 519.82 | BX20: 94.35 | BY20: 18.2% | BZ20: 0.41 | CA20: 0.08% | CB20: 11.45 | CC20: 1.45 | CD20: 12.68% | CE20: 0.19 | CF20: 1.64% | CG20: 580.04 | CH20: 98.95 | CI20: 17.1% | CJ20: 1.14 | CK20: 0.20% | CL20: 109 | CM20: ='Zoom Collecte'!$B$5 -> 0.87% | CN20: ='Zoom Collecte'!$C$5 -> 5.38 | CO20: 5 | CP20: 367 | CQ20: 0.88% | CR20: 5.38 | CS20: 17 | CT20: 3 | CU20: ='Zoom Collecte'!$B$8 -> 0.93% | CV20: ='Zoom Collecte'!$C$8 -> 5.38 | CW20: 0 | CX20: 39 | CY20: ='Zoom Collecte'!$B$9 -> 0.94% | CZ20: ='Zoom Collecte'!$C$9 -> 5.38 | DA20: 2 | DB20: 87 | DC20: ='Zoom Collecte'!$B$10 -> 0.20% | DD20: ='Zoom Collecte'!$C$10 -> 5.38 | DE20: 1 | DF20: 49 | DG20: ='Zoom Collecte'!$B$11 -> 0.20% | DH20: ='Zoom Collecte'!$C$11 -> 5.38 | DI20: 1 | DJ20: -10 | DK20: ='Zoom Collecte'!$B$12 -> 0.20% | DL20: ='Zoom Collecte'!$C$12 -> 5.26 | DM20: -0 | DN20: 3 | DO20: ='Zoom Collecte'!$B$15 -> -0.02% | DP20: ='Zoom Collecte'!$C$15 -> 5.38 | DQ20: -0 | DR20: 1 | DS20: ='Zoom Collecte'!$B$13 -> 0.22% | DT20: ='Zoom Collecte'!$C$13 -> 5.69 | DU20: 0 | DV20: -30 | DW20: 0.22% | DX20: 5.69 | DY20: -0 | DZ20: -687 | EA20: ='Zoom Collecte'!$B$16 -> 0.00% | EB20: ='Zoom Collecte'!$C$16 -> 8.36 | EC20: 0 | ED20: 0 | EE20: ='Zoom Collecte'!$B$17 -> 0.00% | EF20: ='Zoom Collecte'!$C$17 -> 1.74 | EG20: 0 | EH20: 0 | EI20: ='Zoom Collecte'!$B$18 -> 0.20% | EJ20: ='Zoom Collecte'!$C$18 -> 8.00 | EK20: 0 | EL20: 64 | EM20: ='Zoom Collecte'!$B$19 -> 1.00% | EN20: ='Zoom Collecte'!$C$19 -> 5.00 | EO20: 3 | EP20: 40 | EQ20: 31 | ER20: 49 | ES20: ='Zoom Collecte'!$B$20 -> 0.54% | ET20: ='Zoom Collecte'!$C$20 -> 8.00 | EU20: 2 | EV20: 0 | EW20: 0.54% | EX20: 8.00 | EY20: 0 | EZ20: -65 | FA20: ='Zoom Collecte'!$B$23 -> 0.80% | FB20: ='Zoom Collecte'!$C$23 -> 4.00 | FC20: -2 | FD20: 0 | FE20: ='Zoom Collecte'!$B$23 -> 0.80% | FF20: ='Zoom Collecte'!$C$23 -> 4.00 | FG20: 0 | FH20: 28 | FI20: ='Zoom Collecte'!$B$25 -> 1.00% | FJ20: ='Zoom Collecte'!$C$25 -> 5.00 | FK20: 1 | FL20: 499 | FM20: 0.20% | FN20: 1.00 | FO20: 1 | FP20: 0 | FQ20: 0.20% | FR20: 1.00 | FS20: 0 | FT20: 106 | FU20: ='Zoom Collecte'!$B$24 -> 0.40% | FV20: ='Zoom Collecte'!$C$24 -> 1.00 | FW20: 0 | FX20: 0 | FY20: ='Zoom Collecte'!$B$24 -> 0.40% | FZ20: ='Zoom Collecte'!$C$24 -> 1.00 | GA20: 0 | GB20: 23 | GC20: 1 | GD20: 42 | GE20: 1 | GF20: 12 | GG20: 4 | GH20: -4,443 | GI20: =(IF(ISERROR(IF(VLOOKUP($C20,'Indicateurs Cumulés'!$C$3:$HL$553,186,FALSE)/(VLOOKUP($C20,objectifs!$C$3:$AAB$559,158,FALSE))>=1.5,(VLOOKUP($C20,objectifs!$C$3:$AAB$559,158,FALSE))*1.5,IF(VLOOKUP($C20,'Indicateurs Cumulés'!$C$3:$HL$553,186,FALSE)/(VLOOKUP($C20,objectifs!$C$3:$AAB$559,158,FALSE))<=-0.5,(VLOOKUP($C20,objectifs!$C$3:$AAB$559,158,FALSE))*-0.5,VLOOKUP($C20,'Indicateurs Cumulés'!$C$3:$HL$553,186,FALSE)))),VLOOKUP($C20,'Indicateurs Cumulés'!$C$3:$HL$553,186,FALSE),IF(VLOOKUP($C20,'Indicateurs Cumulés'!$C$3:$HL$553,186,FALSE)/(VLOOKUP($C20,objectifs!$C$3:$AAB$559,158,FALSE))>=1.5,(VLOOKUP($C20,objectifs!$C$3:$AAB$559,158,FALSE))*1.5,IF(VLOOKUP($C20,'Indicateurs Cumulés'!$C$3:$HL$553,186,FALSE)/(VLOOKUP($C20,objectifs!$C$3:$AAB$559,158,FALSE))<=-0.5,(VLOOKUP($C20,objectifs!$C$3:$AAB$559,158,FALSE))*-0.5,VLOOKUP($C20,'Indicateurs Cumulés'!$C$3:$HL$553,186,FALSE)))))*0 -> 0 | GJ20: 1.00% | GK20: 5.33 | GL20: -118 | GM20: -83 | GN20: 0 | GO20: 0.22% | GP20: 0 | GR20: -6 | GS20: -6 | GT20: 46 | GU20: 33 | GV20: -9 | GW20: =IF(ISERROR(IF(VLOOKUP($C20,'Indicateurs Cumulés'!$C$3:$HL$553,200,FALSE)/(VLOOKUP($C20,objectifs!$C$3:$AAB$559,162,FALSE))>=1.5,(VLOOKUP($C20,objectifs!$C$3:$AAB$559,162,FALSE))*1.5,IF(VLOOKUP($C20,'Indicateurs Cumulés'!$C$3:$HL$553,200,FALSE)/(VLOOKUP($C20,objectifs!$C$3:$AAB$559,162,FALSE))<=-0.5,(VLOOKUP($C20,objectifs!$C$3:$AAB$559,162,FALSE))*-0.5,VLOOKUP($C20,'Indicateurs Cumulés'!$C$3:$HL$553,200,FALSE)))),VLOOKUP($C20,'Indicateurs Cumulés'!$C$3:$HL$553,200,FALSE),IF(VLOOKUP($C20,'Indicateurs Cumulés'!$C$3:$HL$553,200,FALSE)/(VLOOKUP($C20,objectifs!$C$3:$AAB$559,162,FALSE))>=1.5,(VLOOKUP($C20,objectifs!$C$3:$AAB$559,162,FALSE))*1.5,IF(VLOOKUP($C20,'Indicateurs Cumulés'!$C$3:$HL$553,200,FALSE)/(VLOOKUP($C20,objectifs!$C$3:$AAB$559,162,FALSE))<=-0.5,(VLOOKUP($C20,objectifs!$C$3:$AAB$559,162,FALSE))*-0.5,VLOOKUP($C20,'Indicateurs Cumulés'!$C$3:$HL$553,200,FALSE)))) -> 8 | GX20: 0 | GY20: 0 | HA20: -0 | HB20: 0 | HC20: 2 | HD20: 2 | HE20: -0 | HF20: 3 | HH20: -18 | HI20: 2 | HJ20: 0 | HK20: 0 | HL20: 8 | HM20: 11 | HN20: 0 | HO20: 1 | HP20: 0 | HQ20: 0 | HR20: 0 | HS20: -9 | HT20: 4 | HU20: 2 | HV20: -2 | HW20: 0 | HX20: 0 | HY20: 0 | HZ20: 13 | IA20: -1 | IB20: 0 | IC20: 0 | ID20: 0 | IE20: -1 | IF20: 21 | IG20: -19 | IH20: 0 | II20: 0 | IK20: 0 | IL20: -12 | IM20: 0 | IN20: 0 | IO20: 0 | IP20: 1 | IQ20: 8 | IR20: -3 | IS20: 1 | IT20: 1 | IU20: -1 | IV20: 0 | IW20: 0 | IX20: 0 | IY20: 1 | IZ20: -0 | JA20: 0 | JB20: 0 | JC20: 0 | JD20: 0 | JE20: 0 | JF20: -0 | JG20: 4 | JH20: -3 | JI20: 0 | JJ20: 0 | JK20: 0 | JL20: 0 | JM20: -2 | JN20: -1 | JO20: 0 | JP20: 1 | JQ20: 0 | JS20: 0 | JT20: 0 | JU20: 0 | JV20: -1 | JW20: -1 | JX20: 0 | JY20: 1 | JZ20: 0 | KA20: -0 | KB20: -0 | KC20: 2 | KD20: 0 | KE20: 1 | KF20: 3 | KG20: 0 | KH20: 0 | KI20: 0 | KJ20: 2 | KK20: 0 | KL20: 0 | KM20: -2 | KN20: 0 | KO20: 0 | KP20: 1 | KQ20: 1 | KR20: 0 | KS20: 0 | KT20: 0 | KU20: 0 | KV20: 0 | KW20: 0 | KX20: -1 | KY20: 4 | KZ20: 5 | LA20: -2 | LB20: 94 | LC20: 0 | LD20: 0 | LE20: 0 | LF20: 0 | LG20: -2 | LN20: 0.0 | LO20: 0.0 | LP20: 0.0 | LQ20: 0.0 | LR20: 0.0 | LS20: 0.0 | LT20: 29 | LU20: 0.0 | LV20: -25 | LW20: -2 | LX20: 0.00 | LY20: -25 | LZ20: 0.0 | MA20: -25 | MC20: 0.0
A21: 105060 | B21: 200262 | C21: 30 | D21: BRUMATH | E21: 30 | F21: BRUMATH | G21: 2022-06-30 | H21: 183 | I21: 4.32% | J21: 1.58 | K21: 2022-06-30 | L21: 1,563 | M21: 1.91% | N21: 2.75 | O21: 82 | P21: 96.44% | Q21: 143.46% | R21: 27 | S21: 6 | T21: 127 | U21: 6,331 | V21: -0.76% | W21: 6.33 | X21: -304 | Y21: 63.93% | Z21: 148.87% | AA21: 86 | AB21: 17 | AC21: 10.1 | AF21: -10 | AG21: -201 | AH21: 773 | AI21: -0.81% | AJ21: 5.74 | AK21: -36 | AL21: 100 | AM21: 0.41% | AN21: 2.37 | AO21: 1 | AP21: 2.5 | AQ21: 0.20 | AR21: 0.00% | AS21: 0.00% | AT21: 4 | AU21: -28 | AV21: 113 | AW21: 1.72% | AX21: 2.61 | AY21: 1 | AZ21: 100.00% | BA21: 123.89% | BB21: 1 | BC21: 7 | BD21: 1,311 | BE21: -1.28% | BF21: 6.29 | BG21: 2 | BH21: 191.71% | BI21: 55.22% | BJ21: 14 | BK21: 2 | BL21: -87 | BM21: -102 | BN21: 202206 | BO21: 0 | BP21: 0 | BQ21: 0.00% | BR21: 639.31 | BS21: 78.83 | BT21: 12% | BU21: 3.38 | BV21: 0.53% | BW21: 2,717.50 | BX21: 209.63 | BY21: 7.7% | BZ21: 8.23 | CA21: 0.30% | CB21: 93.35 | CC21: 4.85 | CD21: 5.19% | CE21: 1.80 | CF21: 1.93% | CG21: 3,450.16 | CH21: 293.31 | CI21: 8.5% | CJ21: 13.41 | CK21: 0.39% | CL21: 567 | CM21: ='Zoom Collecte'!$B$5 -> 0.87% | CN21: ='Zoom Collecte'!$C$5 -> 5.38 | CO21: 26 | CP21: 831 | CQ21: 0.88% | CR21: 5.38 | CS21: 39 | CT21: -1 | CU21: ='Zoom Collecte'!$B$8 -> 0.93% | CV21: ='Zoom Collecte'!$C$8 -> 5.38 | CW21: -0 | CX21: 52 | CY21: ='Zoom Collecte'!$B$9 -> 0.94% | CZ21: ='Zoom Collecte'!$C$9 -> 5.38 | DA21: 3 | DB21: -1 | DC21: ='Zoom Collecte'!$B$10 -> 0.20% | DD21: ='Zoom Collecte'!$C$10 -> 5.38 | DE21: -0 | DF21: 368 | DG21: ='Zoom Collecte'!$B$11 -> 0.20% | DH21: ='Zoom Collecte'!$C$11 -> 5.38 | DI21: 4 | DJ21: -20 | DK21: ='Zoom Collecte'!$B$12 -> 0.20% | DL21: ='Zoom Collecte'!$C$12 -> 5.26 | DM21: -0 | DN21: 147 | DO21: ='Zoom Collecte'!$B$15 -> -0.02% | DP21: ='Zoom Collecte'!$C$15 -> 5.38 | DQ21: -0 | DR21: -14 | DS21: ='Zoom Collecte'!$B$13 -> 0.22% | DT21: ='Zoom Collecte'!$C$13 -> 5.69 | DU21: -0 | DV21: -175 | DW21: 0.22% | DX21: 5.69 | DY21: -2 | DZ21: -815 | EA21: ='Zoom Collecte'!$B$16 -> 0.00% | EB21: ='Zoom Collecte'!$C$16 -> 8.36 | EC21: 0 | ED21: 0 | EE21: ='Zoom Collecte'!$B$17 -> 0.00% | EF21: ='Zoom Collecte'!$C$17 -> 1.74 | EG21: 0 | EH21: 0 | EI21: ='Zoom Collecte'!$B$18 -> 0.20% | EJ21: ='Zoom Collecte'!$C$18 -> 8.00 | EK21: 0 | EL21: -275 | EM21: ='Zoom Collecte'!$B$19 -> 1.00% | EN21: ='Zoom Collecte'!$C$19 -> 5.00 | EO21: -14 | EP21: 755 | EQ21: 60 | ER21: 774 | ES21: ='Zoom Collecte'!$B$20 -> 0.54% | ET21: ='Zoom Collecte'!$C$20 -> 8.00 | EU21: 34 | EV21: -16 | EW21: 0.54% | EX21: 8.00 | EY21: -1 | EZ21: -176 | FA21: ='Zoom Collecte'!$B$23 -> 0.80% | FB21: ='Zoom Collecte'!$C$23 -> 4.00 | FC21: -6 | FD21: 0 | FE21: ='Zoom Collecte'!$B$23 -> 0.80% | FF21: ='Zoom Collecte'!$C$23 -> 4.00 | FG21: 0 | FH21: 291 | FI21: ='Zoom Collecte'!$B$25 -> 1.00% | FJ21: ='Zoom Collecte'!$C$25 -> 5.00 | FK21: 15 | FL21: 3,185 | FM21: 0.39% | FN21: 1.00 | FO21: 12 | FP21: 0 | FQ21: 0.39% | FR21: 1.00 | FS21: 0 | FT21: 16 | FU21: ='Zoom Collecte'!$B$24 -> 0.40% | FV21: ='Zoom Collecte'!$C$24 -> 1.00 | FW21: 0 | FX21: 0 | FY21: ='Zoom Collecte'!$B$24 -> 0.40% | FZ21: ='Zoom Collecte'!$C$24 -> 1.00 | GA21: 0 | GB21: 256 | GC21: 7 | GD21: 192 | GE21: 5 | GF21: 872 | GG21: 66 | GH21: 1,431 | GI21: =(IF(ISERROR(IF(VLOOKUP($C21,'Indicateurs Cumulés'!$C$3:$HL$553,186,FALSE)/(VLOOKUP($C21,objectifs!$C$3:$AAB$559,158,FALSE))>=1.5,(VLOOKUP($C21,objectifs!$C$3:$AAB$559,158,FALSE))*1.5,IF(VLOOKUP($C21,'Indicateurs Cumulés'!$C$3:$HL$553,186,FALSE)/(VLOOKUP($C21,objectifs!$C$3:$AAB$559,158,FALSE))<=-0.5,(VLOOKUP($C21,objectifs!$C$3:$AAB$559,158,FALSE))*-0.5,VLOOKUP($C21,'Indicateurs Cumulés'!$C$3:$HL$553,186,FALSE)))),VLOOKUP($C21,'Indicateurs Cumulés'!$C$3:$HL$553,186,FALSE),IF(VLOOKUP($C21,'Indicateurs Cumulés'!$C$3:$HL$553,186,FALSE)/(VLOOKUP($C21,objectifs!$C$3:$AAB$559,158,FALSE))>=1.5,(VLOOKUP($C21,objectifs!$C$3:$AAB$559,158,FALSE))*1.5,IF(VLOOKUP($C21,'Indicateurs Cumulés'!$C$3:$HL$553,186,FALSE)/(VLOOKUP($C21,objectifs!$C$3:$AAB$559,158,FALSE))<=-0.5,(VLOOKUP($C21,objectifs!$C$3:$AAB$559,158,FALSE))*-0.5,VLOOKUP($C21,'Indicateurs Cumulés'!$C$3:$HL$553,186,FALSE)))))*0 -> 0 | GJ21: 1.00% | GK21: 5.33 | GL21: 38 | GM21: 164 | GN21: -23 | GO21: 0.22% | GP21: 38 | GR21: 148 | GS21: -43 | GT21: 92 | GU21: 422 | GV21: 885 | GW21: =IF(ISERROR(IF(VLOOKUP($C21,'Indicateurs Cumulés'!$C$3:$HL$553,200,FALSE)/(VLOOKUP($C21,objectifs!$C$3:$AAB$559,162,FALSE))>=1.5,(VLOOKUP($C21,objectifs!$C$3:$AAB$559,162,FALSE))*1.5,IF(VLOOKUP($C21,'Indicateurs Cumulés'!$C$3:$HL$553,200,FALSE)/(VLOOKUP($C21,objectifs!$C$3:$AAB$559,162,FALSE))<=-0.5,(VLOOKUP($C21,objectifs!$C$3:$AAB$559,162,FALSE))*-0.5,VLOOKUP($C21,'Indicateurs Cumulés'!$C$3:$HL$553,200,FALSE)))),VLOOKUP($C21,'Indicateurs Cumulés'!$C$3:$HL$553,200,FALSE),IF(VLOOKUP($C21,'Indicateurs Cumulés'!$C$3:$HL$553,200,FALSE)/(VLOOKUP($C21,objectifs!$C$3:$AAB$559,162,FALSE))>=1.5,(VLOOKUP($C21,objectifs!$C$3:$AAB$559,162,FALSE))*1.5,IF(VLOOKUP($C21,'Indicateurs Cumulés'!$C$3:$HL$553,200,FALSE)/(VLOOKUP($C21,objectifs!$C$3:$AAB$559,162,FALSE))<=-0.5,(VLOOKUP($C21,objectifs!$C$3:$AAB$559,162,FALSE))*-0.5,VLOOKUP($C21,'Indicateurs Cumulés'!$C$3:$HL$553,200,FALSE)))) -> 8 | GX21: -0 | GY21: 2 | HA21: 6 | HB21: 0 | HC21: 4 | HD21: 20 | HE21: 35 | HF21: 68 | HH21: -76 | HI21: 3 | HJ21: -3 | HK21: -3 | HL21: 9 | HM21: 31 | HN21: 13 | HO21: 0 | HP21: 13 | HQ21: 9 | HR21: 0 | HS21: -1 | HT21: 6 | HU21: -2 | HV21: -4 | HW21: 4 | HX21: -2 | HY21: -5 | HZ21: 16 | IA21: 0 | IB21: 0 | IC21: 2 | ID21: 7 | IE21: 18 | IF21: 25 | IG21: -17 | IH21: 0 | II21: 0 | IK21: 0 | IL21: -49 | IM21: 0 | IN21: -2 | IO21: -2 | IP21: 28 | IQ21: 32 | IR21: -0 | IS21: 2 | IT21: -1 | IU21: -1 | IV21: 1 | IW21: -0 | IX21: -0 | IY21: 2 | IZ21: 0 | JA21: 0 | JB21: 0 | JC21: 0 | JD21: 1 | JE21: 5 | JF21: 9 | JG21: 5 | JH21: -2 | JI21: 0 | JJ21: 0 | JK21: 0 | JL21: 0 | JM21: 25 | JN21: -9 | JO21: 0 | JP21: 3 | JQ21: 0 | JS21: 2 | JT21: 2 | JU21: 7 | JV21: -3 | JW21: -6 | JX21: 5 | JY21: 2 | JZ21: 3 | KA21: -0 | KB21: 4 | KC21: 5 | KD21: 0 | KE21: -1 | KF21: 4 | KG21: 0 | KH21: 0 | KI21: 0 | KJ21: 3 | KK21: 0 | KL21: 6 | KM21: 6 | KN21: 0 | KO21: 0 | KP21: -1 | KQ21: 1 | KR21: 0 | KS21: 0 | KT21: 0 | KU21: 1 | KV21: 0 | KW21: 2 | KX21: 3 | KY21: 20 | KZ21: 26 | LA21: -8 | LB21: 319 | LC21: 6 | LD21: 0 | LE21: 0 | LF21: 0 | LG21: -2 | LN21: 0.0 | LO21: 0.0 | LP21: 0.0 | LQ21: 0.0 | LR21: 0.0 | LS21: 0.0 | LT21: 30 | LU21: 0.0 | LV21: 115 | LW21: -11 | LX21: 0.00 | LY21: 115 | LZ21: 0.0 | MA21: 115 | MC21: 5.6
A22: 105060 | B22: 200262 | C22: 31 | D22: TRUCHTERSHEIM | E22: 31 | F22: TRUCHTERSHEIM | G22: 2022-06-30 | H22: 31 | I22: 4.32% | J22: 1.58 | K22: 2022-06-30 | L22: 508 | M22: 1.95% | N22: 3.15 | O22: 31 | P22: 97.53% | Q22: 107.41% | R22: 5 | S22: 1 | T22: 40 | U22: 3,109 | V22: -0.36% | W22: 6.28 | X22: -70 | Y22: 73.22% | Z22: 164.85% | AA22: 60 | AB22: 5 | AC22: 5.9 | AF22: -5 | AG22: -4 | AH22: 622 | AI22: -0.35% | AJ22: 6.55 | AK22: -14 | AL22: 0 | AM22: 0.00% | AN22: 0 | AO22: 0 | AP22: 1.9 | AQ22: 0.00 | AR22: 100.00% | AS22: 100.00% | AT22: 7 | AU22: -6 | AV22: 168 | AW22: 1.52% | AX22: 3.34 | AY22: 0 | AZ22: 100.00% | BA22: 100.00% | BB22: 2 | BC22: 11 | BD22: 0 | BE22: 0.00% | BF22: 0 | BG22: 0 | BH22: 0.00% | BI22: 0.00% | BJ22: 0 | BK22: 0 | BL22: 0 | BM22: 30 | BN22: 202206 | BO22: 0 | BP22: 0 | BQ22: 0.00% | BR22: 239.58 | BS22: 70.23 | BT22: 29% | BU22: 0.95 | BV22: 0.40% | BW22: 2,100.02 | BX22: 624.70 | BY22: 29.7% | BZ22: 0.12 | CA22: 0.01% | CB22: 43.65 | CC22: 26.96 | CD22: 61.77% | CE22: 0.30 | CF22: 0.69% | CG22: 2,383.26 | CH22: 721.89 | CI22: 30.3% | CJ22: 1.37 | CK22: 0.06% | CL22: 460 | CM22: ='Zoom Collecte'!$B$5 -> 0.87% | CN22: ='Zoom Collecte'!$C$5 -> 5.38 | CO22: 21 | CP22: 325 | CQ22: 0.88% | CR22: 5.38 | CS22: 15 | CT22: -9 | CU22: ='Zoom Collecte'!$B$8 -> 0.93% | CV22: ='Zoom Collecte'!$C$8 -> 5.38 | CW22: -0 | CX22: -69 | CY22: ='Zoom Collecte'!$B$9 -> 0.94% | CZ22: ='Zoom Collecte'!$C$9 -> 5.38 | DA22: -4 | DB22: 124 | DC22: ='Zoom Collecte'!$B$10 -> 0.20% | DD22: ='Zoom Collecte'!$C$10 -> 5.38 | DE22: 1 | DF22: 276 | DG22: ='Zoom Collecte'!$B$11 -> 0.20% | DH22: ='Zoom Collecte'!$C$11 -> 5.38 | DI22: 3 | DJ22: -24 | DK22: ='Zoom Collecte'!$B$12 -> 0.20% | DL22: ='Zoom Collecte'!$C$12 -> 5.26 | DM22: -0 | DN22: 47 | DO22: ='Zoom Collecte'!$B$15 -> -0.02% | DP22: ='Zoom Collecte'!$C$15 -> 5.38 | DQ22: -0 | DR22: -4 | DS22: ='Zoom Collecte'!$B$13 -> 0.22% | DT22: ='Zoom Collecte'!$C$13 -> 5.69 | DU22: -0 | DV22: -43 | DW22: 0.22% | DX22: 5.69 | DY22: -1 | DZ22: -59 | EA22: ='Zoom Collecte'!$B$16 -> 0.00% | EB22: ='Zoom Collecte'!$C$16 -> 8.36 | EC22: 0 | ED22: 0 | EE22: ='Zoom Collecte'!$B$17 -> 0.00% | EF22: ='Zoom Collecte'!$C$17 -> 1.74 | EG22: 0 | EH22: -0 | EI22: ='Zoom Collecte'!$B$18 -> 0.20% | EJ22: ='Zoom Collecte'!$C$18 -> 8.00 | EK22: -0 | EL22: -208 | EM22: ='Zoom Collecte'!$B$19 -> 1.00% | EN22: ='Zoom Collecte'!$C$19 -> 5.00 | EO22: -10 | EP22: 474 | EQ22: 10 | ER22: 1,110 | ES22: ='Zoom Collecte'!$B$20 -> 0.54% | ET22: ='Zoom Collecte'!$C$20 -> 8.00 | EU22: 48 | EV22: -62 | EW22: 0.54% | EX22: 8.00 | EY22: -3 | EZ22: -18 | FA22: ='Zoom Collecte'!$B$23 -> 0.80% | FB22: ='Zoom Collecte'!$C$23 -> 4.00 | FC22: -1 | FD22: 0 | FE22: ='Zoom Collecte'!$B$23 -> 0.80% | FF22: ='Zoom Collecte'!$C$23 -> 4.00 | FG22: 0 | FH22: 3 | FI22: ='Zoom Collecte'!$B$25 -> 1.00% | FJ22: ='Zoom Collecte'!$C$25 -> 5.00 | FK22: 0 | FL22: 2,275 | FM22: 0.06% | FN22: 1.00 | FO22: 1 | FP22: 0 | FQ22: 0.06% | FR22: 1.00 | FS22: 0 | FT22: 7 | FU22: ='Zoom Collecte'!$B$24 -> 0.40% | FV22: ='Zoom Collecte'!$C$24 -> 1.00 | FW22: 0 | FX22: 0 | FY22: ='Zoom Collecte'!$B$24 -> 0.40% | FZ22: ='Zoom Collecte'!$C$24 -> 1.00 | GA22: 0 | GB22: 84 | GC22: 2 | GD22: 327 | GE22: 8 | GF22: 1,032 | GG22: 57 | GH22: -291 | GI22: =(IF(ISERROR(IF(VLOOKUP($C22,'Indicateurs Cumulés'!$C$3:$HL$553,186,FALSE)/(VLOOKUP($C22,objectifs!$C$3:$AAB$559,158,FALSE))>=1.5,(VLOOKUP($C22,objectifs!$C$3:$AAB$559,158,FALSE))*1.5,IF(VLOOKUP($C22,'Indicateurs Cumulés'!$C$3:$HL$553,186,FALSE)/(VLOOKUP($C22,objectifs!$C$3:$AAB$559,158,FALSE))<=-0.5,(VLOOKUP($C22,objectifs!$C$3:$AAB$559,158,FALSE))*-0.5,VLOOKUP($C22,'Indicateurs Cumulés'!$C$3:$HL$553,186,FALSE)))),VLOOKUP($C22,'Indicateurs Cumulés'!$C$3:$HL$553,186,FALSE),IF(VLOOKUP($C22,'Indicateurs Cumulés'!$C$3:$HL$553,186,FALSE)/(VLOOKUP($C22,objectifs!$C$3:$AAB$559,158,FALSE))>=1.5,(VLOOKUP($C22,objectifs!$C$3:$AAB$559,158,FALSE))*1.5,IF(VLOOKUP($C22,'Indicateurs Cumulés'!$C$3:$HL$553,186,FALSE)/(VLOOKUP($C22,objectifs!$C$3:$AAB$559,158,FALSE))<=-0.5,(VLOOKUP($C22,objectifs!$C$3:$AAB$559,158,FALSE))*-0.5,VLOOKUP($C22,'Indicateurs Cumulés'!$C$3:$HL$553,186,FALSE)))))*0 -> 0 | GJ22: 1.00% | GK22: 5.33 | GL22: -8 | GM22: 59 | GN22: -2 | GO22: 0.22% | GP22: -1 | GR22: -68 | GS22: 1 | GT22: -343 | GU22: 21 | GV22: 25 | GW22: =IF(ISERROR(IF(VLOOKUP($C22,'Indicateurs Cumulés'!$C$3:$HL$553,200,FALSE)/(VLOOKUP($C22,objectifs!$C$3:$AAB$559,162,FALSE))>=1.5,(VLOOKUP($C22,objectifs!$C$3:$AAB$559,162,FALSE))*1.5,IF(VLOOKUP($C22,'Indicateurs Cumulés'!$C$3:$HL$553,200,FALSE)/(VLOOKUP($C22,objectifs!$C$3:$AAB$559,162,FALSE))<=-0.5,(VLOOKUP($C22,objectifs!$C$3:$AAB$559,162,FALSE))*-0.5,VLOOKUP($C22,'Indicateurs Cumulés'!$C$3:$HL$553,200,FALSE)))),VLOOKUP($C22,'Indicateurs Cumulés'!$C$3:$HL$553,200,FALSE),IF(VLOOKUP($C22,'Indicateurs Cumulés'!$C$3:$HL$553,200,FALSE)/(VLOOKUP($C22,objectifs!$C$3:$AAB$559,162,FALSE))>=1.5,(VLOOKUP($C22,objectifs!$C$3:$AAB$559,162,FALSE))*1.5,IF(VLOOKUP($C22,'Indicateurs Cumulés'!$C$3:$HL$553,200,FALSE)/(VLOOKUP($C22,objectifs!$C$3:$AAB$559,162,FALSE))<=-0.5,(VLOOKUP($C22,objectifs!$C$3:$AAB$559,162,FALSE))*-0.5,VLOOKUP($C22,'Indicateurs Cumulés'!$C$3:$HL$553,200,FALSE)))) -> -3 | GX22: -0 | GY22: -0 | HA22: -3 | HB22: 0 | HC22: -16 | HD22: 1 | HE22: 1 | HF22: -17 | HH22: -65 | HI22: 2 | HJ22: 0 | HK22: 0 | HL22: 0 | HM22: 32 | HN22: 7 | HO22: 0 | HP22: 5 | HQ22: 8 | HR22: 0 | HS22: -1 | HT22: -3 | HU22: -3 | HV22: 4 | HW22: 9 | HX22: 0 | HY22: 0 | HZ22: 4 | IA22: 0 | IB22: 0 | IC22: 4 | ID22: 2 | IE22: 14 | IF22: 19 | IG22: -13 | IH22: 0 | II22: 0 | IK22: 0 | IL22: -42 | IM22: 0 | IN22: 0 | IO22: 0 | IP22: 18 | IQ22: 24 | IR22: -0 | IS22: -1 | IT22: -1 | IU22: 1 | IV22: 1 | IW22: 0 | IX22: 0 | IY22: 0 | IZ22: 0 | JA22: 0 | JB22: 0 | JC22: 0 | JD22: 3 | JE22: 1 | JF22: 7 | JG22: 4 | JH22: -2 | JI22: 0 | JJ22: 0 | JK22: 0 | JL22: 0 | JM22: 12 | JN22: -5 | JO22: 0 | JP22: 1 | JQ22: 0 | JS22: 0 | JT22: 1 | JU22: 1 | JV22: -1 | JW22: -3 | JX22: 2 | JY22: 1 | JZ22: 0 | KA22: -0 | KB22: -1 | KC22: 0 | KD22: 0 | KE22: -2 | KF22: 2 | KG22: -1 | KH22: 0 | KI22: 0 | KJ22: 1 | KK22: 0 | KL22: 3 | KM22: 3 | KN22: 0 | KO22: 0 | KP22: -1 | KQ22: 0 | KR22: 0 | KS22: 0 | KT22: 0 | KU22: 0 | KV22: 0 | KW22: 1 | KX22: 2 | KY22: 6 | KZ22: 8 | LA22: -8 | LB22: 131 | LC22: 0 | LD22: 0 | LE22: 0 | LF22: 0 | LG22: -8 | LN22: 0.0 | LO22: 0.0 | LP22: 0.0 | LQ22: 0.0 | LR22: 0.0 | LS22: 0.0 | LT22: 31 | LU22: 0.0 | LV22: 100 | LW22: -5 | LX22: 0.00 | LY22: 100 | LZ22: 0.0 | MA22: 100 | MC22: 0.0
